Workbook

Sheet GETTING STARTED
B2: Introduction
B3: This life cycle assessment (LCA) tool enables brands to model product carbon footprints (kg CO2e) through 5 lifecycles phases: Materials, Manufacturing, Transportation, Use, EOL. The tool can help sustainability, innovation, design, development, and supply chain teams to identify key opportunities for carbon reductions on a per product basis. Allbirds uses a version of this tool, complete with proprietary data and third-party verified according to ISO 14067:2018, to share the carbon footprint of all products with customers. Getting Started: Download the Carbon Footprint Manual at FreeTheFootprint.com for full context of how to gather product primary data, identify secondary datasets, calculate the carbon footprint with this LCA tool, label products, and reduce the carbon footprint over time.
B6: System Boundaries
B7: Methodology | C7: • Functional Unit: 1 pair of shoes or 1 apparel item, including packaging. Most footwear and apparel products come in a wide range of sizes, so it’s important to establish a standard size to ensure items are comparable. Allbirds uses the most produced size, normalized for men’s and women’s styles. The draft Product Environmental Footprint Category Rules (PEFCR) for Footwear suggest the use of size UK 8.5. Download our Carbon Footprint Manual at FreeTheFootprint.com for additional details. • Carbon Footprint Standard: The LCA tool models carbon footprint based on principles of ISO 14067:2018. • Use of CFP-PCR: Per Section 6.2 of ISO 14067:2018, existing PCRs (product category rules) were reviewed and quantification of CFP (carbon footprints of products) should consider the EU PEF T-Shirt for apparel or leather footwear PCR (by Envirodec). • LCIA Methodology: IPCC 2013 GWP 100. Characterization Factors: GWP100 Characterization factors for all GHGs are taken from IPCC Fifth Assessment (AR5) Report (Chapter 8, Appendix 8A, Table 8.A.1) https://www.ipcc.ch/site/assets/uploads/2018/02/WG1AR5_Chapter08_FINAL.pdf. Includes fossil emissions, biogenic emissions/removals and direct land use change. • Modeled Impacts: The LCA tool focuses on the climate change impact (kg CO2e) of products. Other environmental and social issues should also be considered when assessing broader product impact.
B10: This LCA tool calculates a cradle-to-grave carbon footprint for products, which includes the following 5 phases:
B31: Materials | C31: Production and extraction of raw materials, including waste Material processes that occur before Tier 1 factory, which may include yarn formation, textile formation, preparation, coloration Packaging
B32: Manufacturing | C32: Manufacturing processes that occur at Tier 1 factories, which may include molding, cutting, stitching, and product assembly
B33: Transportation | C33: Raw materials, primary textiles, and materials transportation to Tier 1 factory (if not included in materials phase) Product transportation from Tier 1 factory to distribution centers Product transportation from distribution centers to customers, including returns
B34: Product use | C34: Customer care, including washing and drying product over lifetime
B35: End of life | C35: Final disposal of products after use
B38: LCA Tool Tabs and Calculation Overview
B39: Notes: • Example calculations for a T-Shirt and Sneaker are included in the LCA tool to demonstrate functionality; the product data is meant to be representative of products in market, but is not based on specific Allbirds products. Placeholder data is included in place of proprietary datasets (e.g., material carbon intensities) and labeled with 'PLACEHOLDER VALUE' in the relevant tabs (see Key summary table below). • To simplify the LCA tool, some of the calculation columns are hidden. As you get comfortable with the basics, you can expand the columns to get a better understanding of how to model functions.
B41: Product Data Tabs | C41: Instructions
B42: Enter Product | C42: First step to calculate the carbon footprint of a product. Input the product weight, packaging weight, manufacturing steps and weight of relevant components. Adjust end of life landfill, incineration, and packaging recycling percentages, as needed.
B43: Calculation- Materials + Scrap | C43: Calculates materials phase carbon footprint. Input product components, materials, blends, packaging, weights, and material wasted during manufacturing.
B44: Calculation- Energy Consump | C44: Calculates manufacturing phase carbon footprint. Input Tier 1 factory manufacturing processes and location.
B45: Calculation- Transport | C45: Calculates transportation phase carbon footprint. Input Tier 1 factory, warehouse, and customer locations, as well as distribution breakdown. Option to input the transportation of raw material to Tier 1 factory, if not included in the materials phase.
B46: Calculation- Use | C46: Calculates product use phase carbon footprint. Input washing and drying methods, number of cycles over product lifetime, and customer location.
B47: Calculation- EOL | C47: Calculates end of life phase carbon footprint, based on material composition entered in 'Calculation- Materials + Scrap' tab.
B48: Summary | C48: Shows summary of all product carbon footprints by phase, as well as overall DQR and Uncertainty score per product
B49: Dashboard | C49: Shows additional detail for carbon footprint breakdowns, such as emissions per component, material blend, material process, and manufacturing steps.
B51: Datasets Tabs | C51: Instructions
B52: InputMats | C52: Generates materials that can be selected on the 'Calculation- Materials + Scraps' and 'InputBlends' tabs. Input carbon intensity data for materials, processes, direct land use change and biogenic emissions/removals (if applicable).
B53: InputBlends | C53: Generates material blends that can be selected on the 'Calculation- Materials + Scraps' tab. Input blend data including material and composition percentage.
B54: EnergyProcess | C54: Generates manufacturing steps that can be selected on the 'Enter Product' and 'Calculation- Energy Consump' tabs. Input Tier 1 manufacturing data including electricity, fuels, and other impacts (e.g., chemicals, dyes), as well as country grid emissions factors and carbon intensities of fuels/other impacts.
B55: ShoeTransport | C55: Generates product distribution locations that can be selected on the 'Calculation-Transport' tab. Input locations, distances, and transportation mode carbon intensity data.
B56: ConsumerUse | C56: Generates product use options, including customer care via washing and drying, that can be selected on the 'Calculation- Use' tab. Input carbon intensity data for wash and dry methods.
B58: Back-end Calculations Tabs | C58: Instructions
B59: DataQuality | C59: Summarizes the data quality rating (DQR) and uncertainty approach to assess sufficient data quality to reliably quantify the carbon footprint of products.
B60: Remaining 'Back-end Calculations' Tabs | C60: Pivot tables used for calculations and Dashboard. Do not edit the tabs.
B63: Key | C63: Instructions
B64: Input data | C64: User should select from a dropdown or enter data; instructions provided throughout LCA tool.
B65: Do not edit | C65: User should not edit cells; includes calculation steps, helpers for calculations, and assumption details.
B66: Calculation result | C66: Shows carbon footprint phase calculation results as well as breakdowns by component, manufacturing step, and transportation leg.
B67: PLACEHOLDER VALUE | C67: Indicates the use of placeholder data, entered to demonstrate LCA tool functionality (proprietary data cannot be shared). User should not use this data to calculate specific product carbon footprints; data must be updated.
B70: The following equations demonstrate a high-level summary of the calculations for each LCA phase:

Sheet Product Data -->

Sheet Enter Product
A2: This table is the first step to calculate the carbon footprint of a product. Enter the following information: product name (column A), total product weight excluding packaging (column B), and packaging weight (column C). | F2: This table summarizes the product's manufacturing processes and the data is used to calculate the manufacturing phase on the 'Calculation- Energy Consump' tab. Select the product from dropdown (column F) and corresponding manufacturing steps (column G). If the product manufacturing utilizes a new process, input the relevant data in the 'EnergyProcess' tab. Enter the weight of the component manufactured using the specified process (column H). E.g., enter the midsole weight for an injection molding process or the garment weight for a cut & sew process; the weight of component manufactured can be equal to the product weight or it can only represent the weight of a specific component. | J2: This table summarizes the end of life assumptions and the data is used to calculate the end of life phase on the 'Calculation- EOL' tab. Adjust end of life landfill, incineration, and packaging recycling percentages, as needed, based on location of majority of customers. Current assumptions are based on US rates (EPA WARM and MSW datasets).
A3: Product | B3: Product Weight (g) | C3: Package Weight (g) | E3: HelperColumn_Shoe_Component | F3: Product | G3: Manufacturing Process | H3: Weight of Component Manufactured (g) | J3: End of Life Assumptions
A4: T-Shirt | B4: 250 | C4: 200 | E4: =tbl_ShoeComponentMass[[#This Row],[Product]]&";"&tbl_ShoeComponentMass[[#This Row],[Manufacturing Process]] -> T-Shirt;Cut & Sew - Apparel | F4: T-Shirt | G4: Cut & Sew - Apparel | H4: 250 | J4: % landfilled | K4: 0.8
A5: Sneaker | B5: 674 | C5: 178 | E5: =tbl_ShoeComponentMass[[#This Row],[Product]]&";"&tbl_ShoeComponentMass[[#This Row],[Manufacturing Process]] -> T-Shirt;Finishing - Apparel | F5: T-Shirt | G5: Finishing - Apparel | H5: 250 | J5: % Incinerated | K5: 0.2
E6: =tbl_ShoeComponentMass[[#This Row],[Product]]&";"&tbl_ShoeComponentMass[[#This Row],[Manufacturing Process]] -> Sneaker;Manufacturing - Sneaker | F6: Sneaker | G6: Manufacturing - Sneaker | H6: 674 | J6: % recycling rate-cardboard | K6: 0.659
E7: =tbl_ShoeComponentMass[[#This Row],[Product]]&";"&tbl_ShoeComponentMass[[#This Row],[Manufacturing Process]] -> ;
E8: =tbl_ShoeComponentMass[[#This Row],[Product]]&";"&tbl_ShoeComponentMass[[#This Row],[Manufacturing Process]] -> ;
E9: =tbl_ShoeComponentMass[[#This Row],[Product]]&";"&tbl_ShoeComponentMass[[#This Row],[Manufacturing Process]] -> ;
E10: =tbl_ShoeComponentMass[[#This Row],[Product]]&";"&tbl_ShoeComponentMass[[#This Row],[Manufacturing Process]] -> ;
E11: =tbl_ShoeComponentMass[[#This Row],[Product]]&";"&tbl_ShoeComponentMass[[#This Row],[Manufacturing Process]] -> ;
E12: =tbl_ShoeComponentMass[[#This Row],[Product]]&";"&tbl_ShoeComponentMass[[#This Row],[Manufacturing Process]] -> ;
E13: =tbl_ShoeComponentMass[[#This Row],[Product]]&";"&tbl_ShoeComponentMass[[#This Row],[Manufacturing Process]] -> ;
E14: =tbl_ShoeComponentMass[[#This Row],[Product]]&";"&tbl_ShoeComponentMass[[#This Row],[Manufacturing Process]] -> ;
E15: =tbl_ShoeComponentMass[[#This Row],[Product]]&";"&tbl_ShoeComponentMass[[#This Row],[Manufacturing Process]] -> ;
E16: =tbl_ShoeComponentMass[[#This Row],[Product]]&";"&tbl_ShoeComponentMass[[#This Row],[Manufacturing Process]] -> ;
E17: =tbl_ShoeComponentMass[[#This Row],[Product]]&";"&tbl_ShoeComponentMass[[#This Row],[Manufacturing Process]] -> ;
E18: =tbl_ShoeComponentMass[[#This Row],[Product]]&";"&tbl_ShoeComponentMass[[#This Row],[Manufacturing Process]] -> ;
E19: =tbl_ShoeComponentMass[[#This Row],[Product]]&";"&tbl_ShoeComponentMass[[#This Row],[Manufacturing Process]] -> ;
E20: =tbl_ShoeComponentMass[[#This Row],[Product]]&";"&tbl_ShoeComponentMass[[#This Row],[Manufacturing Process]] -> ;
E21: =tbl_ShoeComponentMass[[#This Row],[Product]]&";"&tbl_ShoeComponentMass[[#This Row],[Manufacturing Process]] -> ;
E22: =tbl_ShoeComponentMass[[#This Row],[Product]]&";"&tbl_ShoeComponentMass[[#This Row],[Manufacturing Process]] -> ;
E23: =tbl_ShoeComponentMass[[#This Row],[Product]]&";"&tbl_ShoeComponentMass[[#This Row],[Manufacturing Process]] -> ;
E24: =tbl_ShoeComponentMass[[#This Row],[Product]]&";"&tbl_ShoeComponentMass[[#This Row],[Manufacturing Process]] -> ;
E25: =tbl_ShoeComponentMass[[#This Row],[Product]]&";"&tbl_ShoeComponentMass[[#This Row],[Manufacturing Process]] -> ;
E26: =tbl_ShoeComponentMass[[#This Row],[Product]]&";"&tbl_ShoeComponentMass[[#This Row],[Manufacturing Process]] -> ;
E27: =tbl_ShoeComponentMass[[#This Row],[Product]]&";"&tbl_ShoeComponentMass[[#This Row],[Manufacturing Process]] -> ;
E28: =tbl_ShoeComponentMass[[#This Row],[Product]]&";"&tbl_ShoeComponentMass[[#This Row],[Manufacturing Process]] -> ;
E29: =tbl_ShoeComponentMass[[#This Row],[Product]]&";"&tbl_ShoeComponentMass[[#This Row],[Manufacturing Process]] -> ;
E30: =tbl_ShoeComponentMass[[#This Row],[Product]]&";"&tbl_ShoeComponentMass[[#This Row],[Manufacturing Process]] -> ;
E31: =tbl_ShoeComponentMass[[#This Row],[Product]]&";"&tbl_ShoeComponentMass[[#This Row],[Manufacturing Process]] -> ;
E32: =tbl_ShoeComponentMass[[#This Row],[Product]]&";"&tbl_ShoeComponentMass[[#This Row],[Manufacturing Process]] -> ;
E33: =tbl_ShoeComponentMass[[#This Row],[Product]]&";"&tbl_ShoeComponentMass[[#This Row],[Manufacturing Process]] -> ;
E34: =tbl_ShoeComponentMass[[#This Row],[Product]]&";"&tbl_ShoeComponentMass[[#This Row],[Manufacturing Process]] -> ;
E35: =tbl_ShoeComponentMass[[#This Row],[Product]]&";"&tbl_ShoeComponentMass[[#This Row],[Manufacturing Process]] -> ;
E36: =tbl_ShoeComponentMass[[#This Row],[Product]]&";"&tbl_ShoeComponentMass[[#This Row],[Manufacturing Process]] -> ;
E37: =tbl_ShoeComponentMass[[#This Row],[Product]]&";"&tbl_ShoeComponentMass[[#This Row],[Manufacturing Process]] -> ;
E38: =tbl_ShoeComponentMass[[#This Row],[Product]]&";"&tbl_ShoeComponentMass[[#This Row],[Manufacturing Process]] -> ;
E39: =tbl_ShoeComponentMass[[#This Row],[Product]]&";"&tbl_ShoeComponentMass[[#This Row],[Manufacturing Process]] -> ;
E40: =tbl_ShoeComponentMass[[#This Row],[Product]]&";"&tbl_ShoeComponentMass[[#This Row],[Manufacturing Process]] -> ;
E41: =tbl_ShoeComponentMass[[#This Row],[Product]]&";"&tbl_ShoeComponentMass[[#This Row],[Manufacturing Process]] -> ;
E42: =tbl_ShoeComponentMass[[#This Row],[Product]]&";"&tbl_ShoeComponentMass[[#This Row],[Manufacturing Process]] -> ;
E43: =tbl_ShoeComponentMass[[#This Row],[Product]]&";"&tbl_ShoeComponentMass[[#This Row],[Manufacturing Process]] -> ;
E44: =tbl_ShoeComponentMass[[#This Row],[Product]]&";"&tbl_ShoeComponentMass[[#This Row],[Manufacturing Process]] -> ;
E45: =tbl_ShoeComponentMass[[#This Row],[Product]]&";"&tbl_ShoeComponentMass[[#This Row],[Manufacturing Process]] -> ;
E46: =tbl_ShoeComponentMass[[#This Row],[Product]]&";"&tbl_ShoeComponentMass[[#This Row],[Manufacturing Process]] -> ;
E47: =tbl_ShoeComponentMass[[#This Row],[Product]]&";"&tbl_ShoeComponentMass[[#This Row],[Manufacturing Process]] -> ;
E48: =tbl_ShoeComponentMass[[#This Row],[Product]]&";"&tbl_ShoeComponentMass[[#This Row],[Manufacturing Process]] -> ;
E49: =tbl_ShoeComponentMass[[#This Row],[Product]]&";"&tbl_ShoeComponentMass[[#This Row],[Manufacturing Process]] -> ;
E50: =tbl_ShoeComponentMass[[#This Row],[Product]]&";"&tbl_ShoeComponentMass[[#This Row],[Manufacturing Process]] -> ;
E51: =tbl_ShoeComponentMass[[#This Row],[Product]]&";"&tbl_ShoeComponentMass[[#This Row],[Manufacturing Process]] -> ;
E52: =tbl_ShoeComponentMass[[#This Row],[Product]]&";"&tbl_ShoeComponentMass[[#This Row],[Manufacturing Process]] -> ;
E53: =tbl_ShoeComponentMass[[#This Row],[Product]]&";"&tbl_ShoeComponentMass[[#This Row],[Manufacturing Process]] -> ;
E54: =tbl_ShoeComponentMass[[#This Row],[Product]]&";"&tbl_ShoeComponentMass[[#This Row],[Manufacturing Process]] -> ;
E55: =tbl_ShoeComponentMass[[#This Row],[Product]]&";"&tbl_ShoeComponentMass[[#This Row],[Manufacturing Process]] -> ;
E56: =tbl_ShoeComponentMass[[#This Row],[Product]]&";"&tbl_ShoeComponentMass[[#This Row],[Manufacturing Process]] -> ;
E57: =tbl_ShoeComponentMass[[#This Row],[Product]]&";"&tbl_ShoeComponentMass[[#This Row],[Manufacturing Process]] -> ;
E58: =tbl_ShoeComponentMass[[#This Row],[Product]]&";"&tbl_ShoeComponentMass[[#This Row],[Manufacturing Process]] -> ;
E59: =tbl_ShoeComponentMass[[#This Row],[Product]]&";"&tbl_ShoeComponentMass[[#This Row],[Manufacturing Process]] -> ;
E60: =tbl_ShoeComponentMass[[#This Row],[Product]]&";"&tbl_ShoeComponentMass[[#This Row],[Manufacturing Process]] -> ;
E61: =tbl_ShoeComponentMass[[#This Row],[Product]]&";"&tbl_ShoeComponentMass[[#This Row],[Manufacturing Process]] -> ;
E62: =tbl_ShoeComponentMass[[#This Row],[Product]]&";"&tbl_ShoeComponentMass[[#This Row],[Manufacturing Process]] -> ;
E63: =tbl_ShoeComponentMass[[#This Row],[Product]]&";"&tbl_ShoeComponentMass[[#This Row],[Manufacturing Process]] -> ;
E64: =tbl_ShoeComponentMass[[#This Row],[Product]]&";"&tbl_ShoeComponentMass[[#This Row],[Manufacturing Process]] -> ;
E65: =tbl_ShoeComponentMass[[#This Row],[Product]]&";"&tbl_ShoeComponentMass[[#This Row],[Manufacturing Process]] -> ;
E66: =tbl_ShoeComponentMass[[#This Row],[Product]]&";"&tbl_ShoeComponentMass[[#This Row],[Manufacturing Process]] -> ;
E67: =tbl_ShoeComponentMass[[#This Row],[Product]]&";"&tbl_ShoeComponentMass[[#This Row],[Manufacturing Process]] -> ;
E68: =tbl_ShoeComponentMass[[#This Row],[Product]]&";"&tbl_ShoeComponentMass[[#This Row],[Manufacturing Process]] -> ;
E69: =tbl_ShoeComponentMass[[#This Row],[Product]]&";"&tbl_ShoeComponentMass[[#This Row],[Manufacturing Process]] -> ;
E70: =tbl_ShoeComponentMass[[#This Row],[Product]]&";"&tbl_ShoeComponentMass[[#This Row],[Manufacturing Process]] -> ;
E71: =tbl_ShoeComponentMass[[#This Row],[Product]]&";"&tbl_ShoeComponentMass[[#This Row],[Manufacturing Process]] -> ;
E72: =tbl_ShoeComponentMass[[#This Row],[Product]]&";"&tbl_ShoeComponentMass[[#This Row],[Manufacturing Process]] -> ;
E73: =tbl_ShoeComponentMass[[#This Row],[Product]]&";"&tbl_ShoeComponentMass[[#This Row],[Manufacturing Process]] -> ;
E74: =tbl_ShoeComponentMass[[#This Row],[Product]]&";"&tbl_ShoeComponentMass[[#This Row],[Manufacturing Process]] -> ;
E75: =tbl_ShoeComponentMass[[#This Row],[Product]]&";"&tbl_ShoeComponentMass[[#This Row],[Manufacturing Process]] -> ;
E76: =tbl_ShoeComponentMass[[#This Row],[Product]]&";"&tbl_ShoeComponentMass[[#This Row],[Manufacturing Process]] -> ;
E77: =tbl_ShoeComponentMass[[#This Row],[Product]]&";"&tbl_ShoeComponentMass[[#This Row],[Manufacturing Process]] -> ;
E78: =tbl_ShoeComponentMass[[#This Row],[Product]]&";"&tbl_ShoeComponentMass[[#This Row],[Manufacturing Process]] -> ;
E79: =tbl_ShoeComponentMass[[#This Row],[Product]]&";"&tbl_ShoeComponentMass[[#This Row],[Manufacturing Process]] -> ;
E80: =tbl_ShoeComponentMass[[#This Row],[Product]]&";"&tbl_ShoeComponentMass[[#This Row],[Manufacturing Process]] -> ;
E81: =tbl_ShoeComponentMass[[#This Row],[Product]]&";"&tbl_ShoeComponentMass[[#This Row],[Manufacturing Process]] -> ;
E82: =tbl_ShoeComponentMass[[#This Row],[Product]]&";"&tbl_ShoeComponentMass[[#This Row],[Manufacturing Process]] -> ;
E83: =tbl_ShoeComponentMass[[#This Row],[Product]]&";"&tbl_ShoeComponentMass[[#This Row],[Manufacturing Process]] -> ;
E84: =tbl_ShoeComponentMass[[#This Row],[Product]]&";"&tbl_ShoeComponentMass[[#This Row],[Manufacturing Process]] -> ;
E85: =tbl_ShoeComponentMass[[#This Row],[Product]]&";"&tbl_ShoeComponentMass[[#This Row],[Manufacturing Process]] -> ;
E86: =tbl_ShoeComponentMass[[#This Row],[Product]]&";"&tbl_ShoeComponentMass[[#This Row],[Manufacturing Process]] -> ;
E87: =tbl_ShoeComponentMass[[#This Row],[Product]]&";"&tbl_ShoeComponentMass[[#This Row],[Manufacturing Process]] -> ;
E88: =tbl_ShoeComponentMass[[#This Row],[Product]]&";"&tbl_ShoeComponentMass[[#This Row],[Manufacturing Process]] -> ;
E89: =tbl_ShoeComponentMass[[#This Row],[Product]]&";"&tbl_ShoeComponentMass[[#This Row],[Manufacturing Process]] -> ;
E90: =tbl_ShoeComponentMass[[#This Row],[Product]]&";"&tbl_ShoeComponentMass[[#This Row],[Manufacturing Process]] -> ;
E91: =tbl_ShoeComponentMass[[#This Row],[Product]]&";"&tbl_ShoeComponentMass[[#This Row],[Manufacturing Process]] -> ;
E92: =tbl_ShoeComponentMass[[#This Row],[Product]]&";"&tbl_ShoeComponentMass[[#This Row],[Manufacturing Process]] -> ;
E93: =tbl_ShoeComponentMass[[#This Row],[Product]]&";"&tbl_ShoeComponentMass[[#This Row],[Manufacturing Process]] -> ;
E94: =tbl_ShoeComponentMass[[#This Row],[Product]]&";"&tbl_ShoeComponentMass[[#This Row],[Manufacturing Process]] -> ;
E95: =tbl_ShoeComponentMass[[#This Row],[Product]]&";"&tbl_ShoeComponentMass[[#This Row],[Manufacturing Process]] -> ;
E96: =tbl_ShoeComponentMass[[#This Row],[Product]]&";"&tbl_ShoeComponentMass[[#This Row],[Manufacturing Process]] -> ;
E97: =tbl_ShoeComponentMass[[#This Row],[Product]]&";"&tbl_ShoeComponentMass[[#This Row],[Manufacturing Process]] -> ;
E98: =tbl_ShoeComponentMass[[#This Row],[Product]]&";"&tbl_ShoeComponentMass[[#This Row],[Manufacturing Process]] -> ;
E99: =tbl_ShoeComponentMass[[#This Row],[Product]]&";"&tbl_ShoeComponentMass[[#This Row],[Manufacturing Process]] -> ;
E100: =tbl_ShoeComponentMass[[#This Row],[Product]]&";"&tbl_ShoeComponentMass[[#This Row],[Manufacturing Process]] -> ;
E101: =tbl_ShoeComponentMass[[#This Row],[Product]]&";"&tbl_ShoeComponentMass[[#This Row],[Manufacturing Process]] -> ;

Sheet Calculation- Materials + Scrap
A2: Summary
A4: Materials phase carbon footprint summary (column B), including emissions impact separated by material phase (columns C-H). Click 'Refresh' to ensure data is updated.
B5: Sum of Net Materials Emissions (kg CO2e) for Pair of Shoes or Unit of Apparel | C5: 1. Fiber/Resin/Rubber/Elastomer | D5: 2. Yarn formation/Mixing & Pouring | E5: 3. Textile Formation/Foaming | F5: 4. Prep/Molding & Pouring | G5: 5. Coloration | H5: 6. Additional Finishing | I5: Sum of FOR REPORTING PURPOSE: ProductBiogenicContent For Pair of Shoes or Apparel (kg CO2e) | J5: Sum of Biogenic Carbon Content of Packaging materials (kg CO2e) | K5: Sum of Materials DQR Score | L5: Sum of Materials Uncertainty Score
A6: T-Shirt | B6: 4.256761046 | C6: 0.8602941176 | D6: 0.825 | E6: 0.4583333333 | F6: 0.7875 | G6: 1.283333333 | H6: 0 | I6: -0.1222222222 | J6: 0 | K6: 2 | L6: 2
A7: Sneaker | B7: 10.12847362 | C7: 4.102842241 | D7: 1.713163571 | E7: 1.104156429 | F7: 1.683315 | G7: 1.22331 | H7: 0 | I7: 0 | J7: 0 | K7: 2 | L7: 2
A10: Input Product Data
A12: Select the product from dropdown (column A) and corresponding sections (column B), then enter the component names (column C). For each component, select if it is a blend or material or packaging (column D) and the relevant material or blend (column E). If a new material or blend is needed, input the relevant data in the 'InputMats' or 'InputBlends' tabs. Enter the mass of the final component included in the product (column F) and the percentage of total material wasted during manufacturing (column G). E.g., if a final component weight is 75 grams and 25 grams were wasted at the factory, 25% of material was wasted. Select if material waste is recycled at the factory (column H). The example Sneaker was modeled with a blend to demonstrate tool functionality, however, products can also be modeled at the component level to align with the format of a BOM (bill of materials). | J12: Carbon Intensity breakdown by process | S12: Material and End of Life Carbon Intensities | X12: End of Life Emissions | AF12: Materials + Scrap Emissions
A13: Shoe | B13: Section | C13: Component | D13: Blend or Material or Packaging? | E13: Name | F13: Mass of Final Component(g) | G13: % material wasted | H13: Is Waste Recycled? | I13: Starting Material/Blend mass in Component(kg) | J13: 1 | K13: 2 | L13: 3 | M13: 4 | N13: 5 | O13: 6 | P13: % of Total Product Mass (for DQR) | Q13: DQR Score | R13: Uncertainty Score | S13: CI_Raw | T13: CI_Raw_prodBiogenic | U13: CI_Landfill | V13: CI_Incinerated | W13: Product EOL-Material/Blend mass in Final Component (kg) | X13: Product EOL Calculations-Mat CI_Land*MatMassinFinal Component+Waste Transport | Y13: Product EOL-Calculations: Mat CI_Incin*MatMassinFinal Component+Waste transport | Z13: Production Emissions-1 | AA13: Production Emissions-2 | AB13: Production Emissions-3 | AC13: Production Emissions-4 | AD13: Production Emissions-5 | AE13: Production Emissions-6 | AF13: Production Emissions for Pair(kg) | AG13: EOL for waste material at Raw Material Extraction Phase: Landfilled and Incinerated Emissions (kg) | AH13: EOL-Transportation of Waste Materials for Raw Material Phase | AI13: Net Materials Emissions (kg CO2e) for Pair of Shoes or Unit of Apparel | AJ13: FOR REPORTING PURPOSE: ProductBiogenicContent For Pair of Shoes or Apparel (kg CO2e) | AK13: Biogenic Carbon Content of Packaging materials (kg CO2e)- This is a subset of the value reported in Column AJ | AL13: Materials DQR Score | AM13: Materials Uncertainty Score
A14: T-Shirt | B14: Garment | C14: Body | D14: Blend | E14: B_T-shirt_blend | F14: 250 | G14: 0.25 | H14: No | I14: =tbl_MatsScrapsEmissions8[[#This Row],[ Mass of Final Component(g)]]/(1-tbl_MatsScrapsEmissions8[[#This Row],[% material wasted]])/1000 -> 0.3333333333 | J14: =IFERROR(IF(ISNUMBER(SEARCH("B_",tbl_MatsScrapsEmissions8[Name]:tbl_MatsScrapsEmissions8[Name])),GETPIVOTDATA("Sum of 1",'PivotTables-EOL+CIs'!$K$133,"Blend name",tbl_MatsScrapsEmissions8[Name]:tbl_MatsScrapsEmissions8[Name]),GETPIVOTDATA("Sum of Net CI (kg CO2e/kg)",'PivotTables-EOL+CIs'!$A$133,"Material Name/Stage/Product Category (CALCULATED COLUMN -NO NEED TO EDIT)",tbl_MatsScrapsEmissions8[Name]:tbl_MatsScrapsEmissions8[Name])),"") -> 1.675 | K14: =IF(ISNUMBER(SEARCH("B_",tbl_MatsScrapsEmissions8[Name]:tbl_MatsScrapsEmissions8[Name])),GETPIVOTDATA("Sum of 2",'PivotTables-EOL+CIs'!$K$133,"Blend name",tbl_MatsScrapsEmissions8[Name]:tbl_MatsScrapsEmissions8[Name]),0) -> 2.475 | L14: =IF(ISNUMBER(SEARCH("B_",tbl_MatsScrapsEmissions8[Name]:tbl_MatsScrapsEmissions8[Name])),GETPIVOTDATA("Sum of 3",'PivotTables-EOL+CIs'!$K$133,"Blend name",tbl_MatsScrapsEmissions8[Name]:tbl_MatsScrapsEmissions8[Name]),0) -> 1.375 | M14: =IF(ISNUMBER(SEARCH("B_",tbl_MatsScrapsEmissions8[Name]:tbl_MatsScrapsEmissions8[Name])),GETPIVOTDATA("Sum of 4",'PivotTables-EOL+CIs'!$K$133,"Blend name",tbl_MatsScrapsEmissions8[Name]:tbl_MatsScrapsEmissions8[Name]),0) -> 2.3625 | N14: =IF(ISNUMBER(SEARCH("B_",tbl_MatsScrapsEmissions8[Name]:tbl_MatsScrapsEmissions8[Name])),GETPIVOTDATA("Sum of 5",'PivotTables-EOL+CIs'!$K$133,"Blend name",tbl_MatsScrapsEmissions8[Name]:tbl_MatsScrapsEmissions8[Name]),0) -> 3.85 | O14: =IF(ISNUMBER(SEARCH("B_",tbl_MatsScrapsEmissions8[Name]:tbl_MatsScrapsEmissions8[Name])),GETPIVOTDATA("Sum of 6",'PivotTables-EOL+CIs'!$K$133,"Blend name",tbl_MatsScrapsEmissions8[Name]:tbl_MatsScrapsEmissions8[Name]),0) -> 0 | P14: =IFERROR(tbl_MatsScrapsEmissions8[[#This Row],[Starting Material/Blend mass in Component(kg)]]/SUMIFS(tbl_MatsScrapsEmissions8[Starting Material/Blend mass in Component(kg)],tbl_MatsScrapsEmissions8[[ Shoe]],tbl_MatsScrapsEmissions8[[#This Row],[ Shoe]]),"") -> 0.5862068966 | Q14: =IFERROR(IF(ISNUMBER(SEARCH("B_",tbl_MatsScrapsEmissions8[Name]:tbl_MatsScrapsEmissions8[Name])),GETPIVOTDATA("Sum of DQR Score",'PivotTables-EOL+CIs'!$K$133,"Blend name",tbl_MatsScrapsEmissions8[Name]:tbl_MatsScrapsEmissions8[Name]),GETPIVOTDATA("Average of DQR Score",'PivotTables-EOL+CIs'!$A$133,"Material Name/Stage/Product Category (CALCULATED COLUMN -NO NEED TO EDIT)",tbl_MatsScrapsEmissions8[Name]:tbl_MatsScrapsEmissions8[Name])),"") -> 2 | R14: =IFERROR(IF(ISNUMBER(SEARCH("B_",tbl_MatsScrapsEmissions8[Name]:tbl_MatsScrapsEmissions8[Name])),GETPIVOTDATA("Sum of Uncertainty Score",'PivotTables-EOL+CIs'!$K$133,"Blend name",tbl_MatsScrapsEmissions8[Name]:tbl_MatsScrapsEmissions8[Name]),GETPIVOTDATA("Average of Uncertainty Score",'PivotTables-EOL+CIs'!$A$133,"Material Name/Stage/Product Category (CALCULATED COLUMN -NO NEED TO EDIT)",tbl_MatsScrapsEmissions8[Name]:tbl_MatsScrapsEmissions8[Name])),"") -> 2 | S14: =IFERROR(IF(ISNUMBER(SEARCH("B_",tbl_MatsScrapsEmissions8[Name]:tbl_MatsScrapsEmissions8[Name])),GETPIVOTDATA("Sum of CI_Blend_raw",'PivotTables-EOL+CIs'!$K$133,"Blend name",tbl_MatsScrapsEmissions8[Name]:tbl_MatsScrapsEmissions8[Name]),GETPIVOTDATA("Sum of Net CI (kg CO2e/kg)",'PivotTables-EOL+CIs'!$A$133,"Material Name/Stage/Product Category (CALCULATED COLUMN -NO NEED TO EDIT)",tbl_MatsScrapsEmissions8[Name]:tbl_MatsScrapsEmissions8[Name])),"") -> 11.55583333 | T14: =IFERROR(IF(ISNUMBER(SEARCH("B_",tbl_MatsScrapsEmissions8[Name]:tbl_MatsScrapsEmissions8[Name])),GETPIVOTDATA("Sum of CI_blend_prodBiogenic",'PivotTables-EOL+CIs'!$K$133,"Blend name",tbl_MatsScrapsEmissions8[Name]:tbl_MatsScrapsEmissions8[Name]),GETPIVOTDATA("Sum of Biogenic Carbon-Product biogenic carbon content",'PivotTables-EOL+CIs'!$A$133,"Material Name/Stage/Product Category (CALCULATED COLUMN -NO NEED TO EDIT)",tbl_MatsScrapsEmissions8[Name]:tbl_MatsScrapsEmissions8[Name])),"") -> -0.3666666667 | U14: =IFERROR(IF(ISNUMBER(SEARCH("B_",tbl_MatsScrapsEmissions8[Name]:tbl_MatsScrapsEmissions8[Name])),GETPIVOTDATA("Sum of CI_Blend_land",'PivotTables-EOL+CIs'!$K$133,"Blend name",tbl_MatsScrapsEmissions8[Name]:tbl_MatsScrapsEmissions8[Name]),GETPIVOTDATA("Sum of Landfill ",'PivotTables-EOL+CIs'!$A$133,"Material Name/Stage/Product Category (CALCULATED COLUMN -NO NEED TO EDIT)",tbl_MatsScrapsEmissions8[Name]:tbl_MatsScrapsEmissions8[Name])),"") -> 1 | V14: =IFERROR(IF(ISNUMBER(SEARCH("B_",tbl_MatsScrapsEmissions8[Name]:tbl_MatsScrapsEmissions8[Name])),GETPIVOTDATA("Sum of CI_Blend_incin",'PivotTables-EOL+CIs'!$K$133,"Blend name",tbl_MatsScrapsEmissions8[Name]:tbl_MatsScrapsEmissions8[Name]),GETPIVOTDATA("Sum of Incinerated ",'PivotTables-EOL+CIs'!$A$133,"Material Name/Stage/Product Category (CALCULATED COLUMN -NO NEED TO EDIT)",tbl_MatsScrapsEmissions8[Name]:tbl_MatsScrapsEmissions8[Name])),"") -> 1.366666667 | W14: =IF(tbl_MatsScrapsEmissions8[[#This Row],[Blend or Material or Packaging?]]="Packaging",((1-'Enter Product'!$K$6)* tbl_MatsScrapsEmissions8[[#This Row],[ Mass of Final Component(g)]])/1000,tbl_MatsScrapsEmissions8[[#This Row],[ Mass of Final Component(g)]]/1000) -> 0.25 | X14: =IFERROR(((tbl_MatsScrapsEmissions8[[#This Row],[Product EOL-Material/Blend mass in Final Component (kg)]]*tbl_MatsScrapsEmissions8[[#This Row],[CI_Landfill]]*'Enter Product'!$K$4)+(tbl_MatsScrapsEmissions8[[#This Row],[Product EOL-Material/Blend mass in Final Component (kg)]]*'Enter Product'!$K$4*32*tbl_TransportCI[Truck CI]*0.001)),) -> 0.200832 | Y14: =IFERROR(((tbl_MatsScrapsEmissions8[[#This Row],[Product EOL-Material/Blend mass in Final Component (kg)]]*tbl_MatsScrapsEmissions8[[#This Row],[CI_Incinerated]]*'Enter Product'!$K$5)+(tbl_MatsScrapsEmissions8[[#This Row],[Product EOL-Material/Blend mass in Final Component (kg)]]*'Enter Product'!$K$5*32*tbl_TransportCI[Truck CI]*0.001)),) -> 0.06854133333 | Z14: =IFERROR(tbl_MatsScrapsEmissions8[[#This Row],[Starting Material/Blend mass in Component(kg)]:[Starting Material/Blend mass in Component(kg)]]*tbl_MatsScrapsEmissions8[[#This Row],[1]],0) -> 0.5583333333 | AA14: =IFERROR(tbl_MatsScrapsEmissions8[[#This Row],[Starting Material/Blend mass in Component(kg)]:[Starting Material/Blend mass in Component(kg)]]*tbl_MatsScrapsEmissions8[[#This Row],[2]],0) -> 0.825 | AB14: =IFERROR(tbl_MatsScrapsEmissions8[[#This Row],[Starting Material/Blend mass in Component(kg)]:[Starting Material/Blend mass in Component(kg)]]*tbl_MatsScrapsEmissions8[[#This Row],[3]],0) -> 0.4583333333 | AC14: =IFERROR(tbl_MatsScrapsEmissions8[[#This Row],[Starting Material/Blend mass in Component(kg)]:[Starting Material/Blend mass in Component(kg)]]*tbl_MatsScrapsEmissions8[[#This Row],[4]],0) -> 0.7875 | AD14: =IFERROR(tbl_MatsScrapsEmissions8[[#This Row],[Starting Material/Blend mass in Component(kg)]:[Starting Material/Blend mass in Component(kg)]]*tbl_MatsScrapsEmissions8[[#This Row],[5]],0) -> 1.283333333 | AE14: =IFERROR(tbl_MatsScrapsEmissions8[[#This Row],[Starting Material/Blend mass in Component(kg)]:[Starting Material/Blend mass in Component(kg)]]*tbl_MatsScrapsEmissions8[[#This Row],[6]],0) -> 0 | AF14: =IFERROR(tbl_MatsScrapsEmissions8[[#This Row],[Starting Material/Blend mass in Component(kg)]:[Starting Material/Blend mass in Component(kg)]]*tbl_MatsScrapsEmissions8[[#This Row],[CI_Raw]],0) -> 3.851944444 | AG14: =IFERROR(IF(tbl_MatsScrapsEmissions8[[#This Row],[Is Waste Recycled?]:[Is Waste Recycled?]]="yes","N/A",IF(tbl_MatsScrapsEmissions8[[#This Row],[Blend or Material or Packaging?]]="Packaging",tbl_MatsScrapsEmissions8[[#This Row],[% material wasted]]*(tbl_MatsScrapsEmissions8[[#This Row],[Starting Material/Blend mass in Component(kg)]]*(1-'Enter Product'!$K$6)*'Enter Product'!$K$4*tbl_MatsScrapsEmissions8[[#This Row],[CI_Landfill]])+(tbl_MatsScrapsEmissions8[[#This Row],[Starting Material/Blend mass in Component(kg)]]*tbl_MatsScrapsEmissions8[[#This Row],[% material wasted]]*(1-'Enter Product'!$K$6)*'Enter Product'!$K$5*tbl_MatsScrapsEmissions8[[#This Row],[CI_Incinerated]]),tbl_MatsScrapsEmissions8[[#This Row],[% material wasted]]*(tbl_MatsScrapsEmissions8[[#This Row],[Starting Material/Blend mass in Component(kg)]]*'Enter Product'!$K$4*tbl_MatsScrapsEmissions8[[#This Row],[CI_Landfill]])+(tbl_MatsScrapsEmissions8[[#This Row],[Starting Material/Blend mass in Component(kg)]]*tbl_MatsScrapsEmissions8[[#This Row],[% material wasted]]*'Enter Product'!$K$5*tbl_MatsScrapsEmissions8[[#This Row],[CI_Incinerated]]))),"") -> 0.08944444444 | AH14: =IFERROR(tbl_MatsScrapsEmissions8[[#This Row],[% material wasted]]*tbl_MatsScrapsEmissions8[[#This Row],[Starting Material/Blend mass in Component(kg)]]*tbl_TransportCI[Truck CI]*0.001*32,) -> 0.0003466666667 | AI14: =SUM($AF14:$AH14) -> 3.941735556 | AJ14: =IFERROR(tbl_MatsScrapsEmissions8[[#This Row],[Starting Material/Blend mass in Component(kg)]:[Starting Material/Blend mass in Component(kg)]]*tbl_MatsScrapsEmissions8[[#This Row],[CI_Raw_prodBiogenic]],0) -> -0.1222222222 | AK14: =IFERROR(IF(tbl_MatsScrapsEmissions8[[#This Row],[Blend or Material or Packaging?]]="Packaging",tbl_MatsScrapsEmissions8[[#This Row],[Starting Material/Blend mass in Component(kg)]:[Starting Material/Blend mass in Component(kg)]]*tbl_MatsScrapsEmissions8[[#This Row],[CI_Raw_prodBiogenic]],0),0) -> 0 | AL14: =IFERROR(tbl_MatsScrapsEmissions8[[#This Row],[% of Total Product Mass (for DQR)]]*tbl_MatsScrapsEmissions8[[#This Row],[DQR Score]],0) -> 1.172413793 | AM14: =IFERROR(tbl_MatsScrapsEmissions8[[#This Row],[% of Total Product Mass (for DQR)]]*tbl_MatsScrapsEmissions8[[#This Row],[Uncertainty Score]],0) -> 1.172413793
A15: T-Shirt | B15: Packaging | C15: Packaging | D15: Packaging | E15: Cardboard - Virgin ; Packaging - Packaging | F15: 200 | G15: 0.15 | H15: No | I15: =tbl_MatsScrapsEmissions8[[#This Row],[ Mass of Final Component(g)]]/(1-tbl_MatsScrapsEmissions8[[#This Row],[% material wasted]])/1000 -> 0.2352941176 | J15: =IFERROR(IF(ISNUMBER(SEARCH("B_",tbl_MatsScrapsEmissions8[Name]:tbl_MatsScrapsEmissions8[Name])),GETPIVOTDATA("Sum of 1",'PivotTables-EOL+CIs'!$K$133,"Blend name",tbl_MatsScrapsEmissions8[Name]:tbl_MatsScrapsEmissions8[Name]),GETPIVOTDATA("Sum of Net CI (kg CO2e/kg)",'PivotTables-EOL+CIs'!$A$133,"Material Name/Stage/Product Category (CALCULATED COLUMN -NO NEED TO EDIT)",tbl_MatsScrapsEmissions8[Name]:tbl_MatsScrapsEmissions8[Name])),"") -> 1.283333333 | K15: =IF(ISNUMBER(SEARCH("B_",tbl_MatsScrapsEmissions8[Name]:tbl_MatsScrapsEmissions8[Name])),GETPIVOTDATA("Sum of 2",'PivotTables-EOL+CIs'!$K$133,"Blend name",tbl_MatsScrapsEmissions8[Name]:tbl_MatsScrapsEmissions8[Name]),0) -> 0 | L15: =IF(ISNUMBER(SEARCH("B_",tbl_MatsScrapsEmissions8[Name]:tbl_MatsScrapsEmissions8[Name])),GETPIVOTDATA("Sum of 3",'PivotTables-EOL+CIs'!$K$133,"Blend name",tbl_MatsScrapsEmissions8[Name]:tbl_MatsScrapsEmissions8[Name]),0) -> 0 | M15: =IF(ISNUMBER(SEARCH("B_",tbl_MatsScrapsEmissions8[Name]:tbl_MatsScrapsEmissions8[Name])),GETPIVOTDATA("Sum of 4",'PivotTables-EOL+CIs'!$K$133,"Blend name",tbl_MatsScrapsEmissions8[Name]:tbl_MatsScrapsEmissions8[Name]),0) -> 0 | N15: =IF(ISNUMBER(SEARCH("B_",tbl_MatsScrapsEmissions8[Name]:tbl_MatsScrapsEmissions8[Name])),GETPIVOTDATA("Sum of 5",'PivotTables-EOL+CIs'!$K$133,"Blend name",tbl_MatsScrapsEmissions8[Name]:tbl_MatsScrapsEmissions8[Name]),0) -> 0 | O15: =IF(ISNUMBER(SEARCH("B_",tbl_MatsScrapsEmissions8[Name]:tbl_MatsScrapsEmissions8[Name])),GETPIVOTDATA("Sum of 6",'PivotTables-EOL+CIs'!$K$133,"Blend name",tbl_MatsScrapsEmissions8[Name]:tbl_MatsScrapsEmissions8[Name]),0) -> 0 | P15: =IFERROR(tbl_MatsScrapsEmissions8[[#This Row],[Starting Material/Blend mass in Component(kg)]]/SUMIFS(tbl_MatsScrapsEmissions8[Starting Material/Blend mass in Component(kg)],tbl_MatsScrapsEmissions8[[ Shoe]],tbl_MatsScrapsEmissions8[[#This Row],[ Shoe]]),"") -> 0.4137931034 | Q15: =IFERROR(IF(ISNUMBER(SEARCH("B_",tbl_MatsScrapsEmissions8[Name]:tbl_MatsScrapsEmissions8[Name])),GETPIVOTDATA("Sum of DQR Score",'PivotTables-EOL+CIs'!$K$133,"Blend name",tbl_MatsScrapsEmissions8[Name]:tbl_MatsScrapsEmissions8[Name]),GETPIVOTDATA("Average of DQR Score",'PivotTables-EOL+CIs'!$A$133,"Material Name/Stage/Product Category (CALCULATED COLUMN -NO NEED TO EDIT)",tbl_MatsScrapsEmissions8[Name]:tbl_MatsScrapsEmissions8[Name])),"") -> 2 | R15: =IFERROR(IF(ISNUMBER(SEARCH("B_",tbl_MatsScrapsEmissions8[Name]:tbl_MatsScrapsEmissions8[Name])),GETPIVOTDATA("Sum of Uncertainty Score",'PivotTables-EOL+CIs'!$K$133,"Blend name",tbl_MatsScrapsEmissions8[Name]:tbl_MatsScrapsEmissions8[Name]),GETPIVOTDATA("Average of Uncertainty Score",'PivotTables-EOL+CIs'!$A$133,"Material Name/Stage/Product Category (CALCULATED COLUMN -NO NEED TO EDIT)",tbl_MatsScrapsEmissions8[Name]:tbl_MatsScrapsEmissions8[Name])),"") -> 2 | S15: =IFERROR(IF(ISNUMBER(SEARCH("B_",tbl_MatsScrapsEmissions8[Name]:tbl_MatsScrapsEmissions8[Name])),GETPIVOTDATA("Sum of CI_Blend_raw",'PivotTables-EOL+CIs'!$K$133,"Blend name",tbl_MatsScrapsEmissions8[Name]:tbl_MatsScrapsEmissions8[Name]),GETPIVOTDATA("Sum of Net CI (kg CO2e/kg)",'PivotTables-EOL+CIs'!$A$133,"Material Name/Stage/Product Category (CALCULATED COLUMN -NO NEED TO EDIT)",tbl_MatsScrapsEmissions8[Name]:tbl_MatsScrapsEmissions8[Name])),"") -> 1.283333333 | T15: =IFERROR(IF(ISNUMBER(SEARCH("B_",tbl_MatsScrapsEmissions8[Name]:tbl_MatsScrapsEmissions8[Name])),GETPIVOTDATA("Sum of CI_blend_prodBiogenic",'PivotTables-EOL+CIs'!$K$133,"Blend name",tbl_MatsScrapsEmissions8[Name]:tbl_MatsScrapsEmissions8[Name]),GETPIVOTDATA("Sum of Biogenic Carbon-Product biogenic carbon content",'PivotTables-EOL+CIs'!$A$133,"Material Name/Stage/Product Category (CALCULATED COLUMN -NO NEED TO EDIT)",tbl_MatsScrapsEmissions8[Name]:tbl_MatsScrapsEmissions8[Name])),"") ->  | U15: =IFERROR(IF(ISNUMBER(SEARCH("B_",tbl_MatsScrapsEmissions8[Name]:tbl_MatsScrapsEmissions8[Name])),GETPIVOTDATA("Sum of CI_Blend_land",'PivotTables-EOL+CIs'!$K$133,"Blend name",tbl_MatsScrapsEmissions8[Name]:tbl_MatsScrapsEmissions8[Name]),GETPIVOTDATA("Sum of Landfill ",'PivotTables-EOL+CIs'!$A$133,"Material Name/Stage/Product Category (CALCULATED COLUMN -NO NEED TO EDIT)",tbl_MatsScrapsEmissions8[Name]:tbl_MatsScrapsEmissions8[Name])),"") -> 1 | V15: =IFERROR(IF(ISNUMBER(SEARCH("B_",tbl_MatsScrapsEmissions8[Name]:tbl_MatsScrapsEmissions8[Name])),GETPIVOTDATA("Sum of CI_Blend_incin",'PivotTables-EOL+CIs'!$K$133,"Blend name",tbl_MatsScrapsEmissions8[Name]:tbl_MatsScrapsEmissions8[Name]),GETPIVOTDATA("Sum of Incinerated ",'PivotTables-EOL+CIs'!$A$133,"Material Name/Stage/Product Category (CALCULATED COLUMN -NO NEED TO EDIT)",tbl_MatsScrapsEmissions8[Name]:tbl_MatsScrapsEmissions8[Name])),"") -> 1.366666667 | W15: =IF(tbl_MatsScrapsEmissions8[[#This Row],[Blend or Material or Packaging?]]="Packaging",((1-'Enter Product'!$K$6)* tbl_MatsScrapsEmissions8[[#This Row],[ Mass of Final Component(g)]])/1000,tbl_MatsScrapsEmissions8[[#This Row],[ Mass of Final Component(g)]]/1000) -> 0.0682 | X15: =IFERROR(((tbl_MatsScrapsEmissions8[[#This Row],[Product EOL-Material/Blend mass in Final Component (kg)]]*tbl_MatsScrapsEmissions8[[#This Row],[CI_Landfill]]*'Enter Product'!$K$4)+(tbl_MatsScrapsEmissions8[[#This Row],[Product EOL-Material/Blend mass in Final Component (kg)]]*'Enter Product'!$K$4*32*tbl_TransportCI[Truck CI]*0.001)),) -> 0.0547869696 | Y15: =IFERROR(((tbl_MatsScrapsEmissions8[[#This Row],[Product EOL-Material/Blend mass in Final Component (kg)]]*tbl_MatsScrapsEmissions8[[#This Row],[CI_Incinerated]]*'Enter Product'!$K$5)+(tbl_MatsScrapsEmissions8[[#This Row],[Product EOL-Material/Blend mass in Final Component (kg)]]*'Enter Product'!$K$5*32*tbl_TransportCI[Truck CI]*0.001)),) -> 0.01869807573 | Z15: =IFERROR(tbl_MatsScrapsEmissions8[[#This Row],[Starting Material/Blend mass in Component(kg)]:[Starting Material/Blend mass in Component(kg)]]*tbl_MatsScrapsEmissions8[[#This Row],[1]],0) -> 0.3019607843 | AA15: =IFERROR(tbl_MatsScrapsEmissions8[[#This Row],[Starting Material/Blend mass in Component(kg)]:[Starting Material/Blend mass in Component(kg)]]*tbl_MatsScrapsEmissions8[[#This Row],[2]],0) -> 0 | AB15: =IFERROR(tbl_MatsScrapsEmissions8[[#This Row],[Starting Material/Blend mass in Component(kg)]:[Starting Material/Blend mass in Component(kg)]]*tbl_MatsScrapsEmissions8[[#This Row],[3]],0) -> 0 | AC15: =IFERROR(tbl_MatsScrapsEmissions8[[#This Row],[Starting Material/Blend mass in Component(kg)]:[Starting Material/Blend mass in Component(kg)]]*tbl_MatsScrapsEmissions8[[#This Row],[4]],0) -> 0 | AD15: =IFERROR(tbl_MatsScrapsEmissions8[[#This Row],[Starting Material/Blend mass in Component(kg)]:[Starting Material/Blend mass in Component(kg)]]*tbl_MatsScrapsEmissions8[[#This Row],[5]],0) -> 0 | AE15: =IFERROR(tbl_MatsScrapsEmissions8[[#This Row],[Starting Material/Blend mass in Component(kg)]:[Starting Material/Blend mass in Component(kg)]]*tbl_MatsScrapsEmissions8[[#This Row],[6]],0) -> 0 | AF15: =IFERROR(tbl_MatsScrapsEmissions8[[#This Row],[Starting Material/Blend mass in Component(kg)]:[Starting Material/Blend mass in Component(kg)]]*tbl_MatsScrapsEmissions8[[#This Row],[CI_Raw]],0) -> 0.3019607843 | AG15: =IFERROR(IF(tbl_MatsScrapsEmissions8[[#This Row],[Is Waste Recycled?]:[Is Waste Recycled?]]="yes","N/A",IF(tbl_MatsScrapsEmissions8[[#This Row],[Blend or Material or Packaging?]]="Packaging",tbl_MatsScrapsEmissions8[[#This Row],[% material wasted]]*(tbl_MatsScrapsEmissions8[[#This Row],[Starting Material/Blend mass in Component(kg)]]*(1-'Enter Product'!$K$6)*'Enter Product'!$K$4*tbl_MatsScrapsEmissions8[[#This Row],[CI_Landfill]])+(tbl_MatsScrapsEmissions8[[#This Row],[Starting Material/Blend mass in Component(kg)]]*tbl_MatsScrapsEmissions8[[#This Row],[% material wasted]]*(1-'Enter Product'!$K$6)*'Enter Product'!$K$5*tbl_MatsScrapsEmissions8[[#This Row],[CI_Incinerated]]),tbl_MatsScrapsEmissions8[[#This Row],[% material wasted]]*(tbl_MatsScrapsEmissions8[[#This Row],[Starting Material/Blend mass in Component(kg)]]*'Enter Product'!$K$4*tbl_MatsScrapsEmissions8[[#This Row],[CI_Landfill]])+(tbl_MatsScrapsEmissions8[[#This Row],[Starting Material/Blend mass in Component(kg)]]*tbl_MatsScrapsEmissions8[[#This Row],[% material wasted]]*'Enter Product'!$K$5*tbl_MatsScrapsEmissions8[[#This Row],[CI_Incinerated]]))),"") -> 0.01291788235 | AH15: =IFERROR(tbl_MatsScrapsEmissions8[[#This Row],[% material wasted]]*tbl_MatsScrapsEmissions8[[#This Row],[Starting Material/Blend mass in Component(kg)]]*tbl_TransportCI[Truck CI]*0.001*32,) -> 0.0001468235294 | AI15: =SUM($AF15:$AH15) -> 0.3150254902 | AJ15: =IFERROR(tbl_MatsScrapsEmissions8[[#This Row],[Starting Material/Blend mass in Component(kg)]:[Starting Material/Blend mass in Component(kg)]]*tbl_MatsScrapsEmissions8[[#This Row],[CI_Raw_prodBiogenic]],0) -> 0 | AK15: =IFERROR(IF(tbl_MatsScrapsEmissions8[[#This Row],[Blend or Material or Packaging?]]="Packaging",tbl_MatsScrapsEmissions8[[#This Row],[Starting Material/Blend mass in Component(kg)]:[Starting Material/Blend mass in Component(kg)]]*tbl_MatsScrapsEmissions8[[#This Row],[CI_Raw_prodBiogenic]],0),0) -> 0 | AL15: =IFERROR(tbl_MatsScrapsEmissions8[[#This Row],[% of Total Product Mass (for DQR)]]*tbl_MatsScrapsEmissions8[[#This Row],[DQR Score]],0) -> 0.8275862069 | AM15: =IFERROR(tbl_MatsScrapsEmissions8[[#This Row],[% of Total Product Mass (for DQR)]]*tbl_MatsScrapsEmissions8[[#This Row],[Uncertainty Score]],0) -> 0.8275862069
A16: Sneaker | B16: Product | C16: Shoe | D16: Blend | E16: B_Sneaker_blend | F16: 674 | G16: 0.3 | H16: No | I16: =tbl_MatsScrapsEmissions8[[#This Row],[ Mass of Final Component(g)]]/(1-tbl_MatsScrapsEmissions8[[#This Row],[% material wasted]])/1000 -> 0.9628571429 | J16: =IFERROR(IF(ISNUMBER(SEARCH("B_",tbl_MatsScrapsEmissions8[Name]:tbl_MatsScrapsEmissions8[Name])),GETPIVOTDATA("Sum of 1",'PivotTables-EOL+CIs'!$K$133,"Blend name",tbl_MatsScrapsEmissions8[Name]:tbl_MatsScrapsEmissions8[Name]),GETPIVOTDATA("Sum of Net CI (kg CO2e/kg)",'PivotTables-EOL+CIs'!$A$133,"Material Name/Stage/Product Category (CALCULATED COLUMN -NO NEED TO EDIT)",tbl_MatsScrapsEmissions8[Name]:tbl_MatsScrapsEmissions8[Name])),"") -> 3.982 | K16: =IF(ISNUMBER(SEARCH("B_",tbl_MatsScrapsEmissions8[Name]:tbl_MatsScrapsEmissions8[Name])),GETPIVOTDATA("Sum of 2",'PivotTables-EOL+CIs'!$K$133,"Blend name",tbl_MatsScrapsEmissions8[Name]:tbl_MatsScrapsEmissions8[Name]),0) -> 1.77925 | L16: =IF(ISNUMBER(SEARCH("B_",tbl_MatsScrapsEmissions8[Name]:tbl_MatsScrapsEmissions8[Name])),GETPIVOTDATA("Sum of 3",'PivotTables-EOL+CIs'!$K$133,"Blend name",tbl_MatsScrapsEmissions8[Name]:tbl_MatsScrapsEmissions8[Name]),0) -> 1.14675 | M16: =IF(ISNUMBER(SEARCH("B_",tbl_MatsScrapsEmissions8[Name]:tbl_MatsScrapsEmissions8[Name])),GETPIVOTDATA("Sum of 4",'PivotTables-EOL+CIs'!$K$133,"Blend name",tbl_MatsScrapsEmissions8[Name]:tbl_MatsScrapsEmissions8[Name]),0) -> 1.74825 | N16: =IF(ISNUMBER(SEARCH("B_",tbl_MatsScrapsEmissions8[Name]:tbl_MatsScrapsEmissions8[Name])),GETPIVOTDATA("Sum of 5",'PivotTables-EOL+CIs'!$K$133,"Blend name",tbl_MatsScrapsEmissions8[Name]:tbl_MatsScrapsEmissions8[Name]),0) -> 1.2705 | O16: =IF(ISNUMBER(SEARCH("B_",tbl_MatsScrapsEmissions8[Name]:tbl_MatsScrapsEmissions8[Name])),GETPIVOTDATA("Sum of 6",'PivotTables-EOL+CIs'!$K$133,"Blend name",tbl_MatsScrapsEmissions8[Name]:tbl_MatsScrapsEmissions8[Name]),0) -> 0 | P16: =IFERROR(tbl_MatsScrapsEmissions8[[#This Row],[Starting Material/Blend mass in Component(kg)]]/SUMIFS(tbl_MatsScrapsEmissions8[Starting Material/Blend mass in Component(kg)],tbl_MatsScrapsEmissions8[[ Shoe]],tbl_MatsScrapsEmissions8[[#This Row],[ Shoe]]),"") -> 0.8213620072 | Q16: =IFERROR(IF(ISNUMBER(SEARCH("B_",tbl_MatsScrapsEmissions8[Name]:tbl_MatsScrapsEmissions8[Name])),GETPIVOTDATA("Sum of DQR Score",'PivotTables-EOL+CIs'!$K$133,"Blend name",tbl_MatsScrapsEmissions8[Name]:tbl_MatsScrapsEmissions8[Name]),GETPIVOTDATA("Average of DQR Score",'PivotTables-EOL+CIs'!$A$133,"Material Name/Stage/Product Category (CALCULATED COLUMN -NO NEED TO EDIT)",tbl_MatsScrapsEmissions8[Name]:tbl_MatsScrapsEmissions8[Name])),"") -> 2 | R16: =IFERROR(IF(ISNUMBER(SEARCH("B_",tbl_MatsScrapsEmissions8[Name]:tbl_MatsScrapsEmissions8[Name])),GETPIVOTDATA("Sum of Uncertainty Score",'PivotTables-EOL+CIs'!$K$133,"Blend name",tbl_MatsScrapsEmissions8[Name]:tbl_MatsScrapsEmissions8[Name]),GETPIVOTDATA("Average of Uncertainty Score",'PivotTables-EOL+CIs'!$A$133,"Material Name/Stage/Product Category (CALCULATED COLUMN -NO NEED TO EDIT)",tbl_MatsScrapsEmissions8[Name]:tbl_MatsScrapsEmissions8[Name])),"") -> 2 | S16: =IFERROR(IF(ISNUMBER(SEARCH("B_",tbl_MatsScrapsEmissions8[Name]:tbl_MatsScrapsEmissions8[Name])),GETPIVOTDATA("Sum of CI_Blend_raw",'PivotTables-EOL+CIs'!$K$133,"Blend name",tbl_MatsScrapsEmissions8[Name]:tbl_MatsScrapsEmissions8[Name]),GETPIVOTDATA("Sum of Net CI (kg CO2e/kg)",'PivotTables-EOL+CIs'!$A$133,"Material Name/Stage/Product Category (CALCULATED COLUMN -NO NEED TO EDIT)",tbl_MatsScrapsEmissions8[Name]:tbl_MatsScrapsEmissions8[Name])),"") -> 9.92675 | T16: =IFERROR(IF(ISNUMBER(SEARCH("B_",tbl_MatsScrapsEmissions8[Name]:tbl_MatsScrapsEmissions8[Name])),GETPIVOTDATA("Sum of CI_blend_prodBiogenic",'PivotTables-EOL+CIs'!$K$133,"Blend name",tbl_MatsScrapsEmissions8[Name]:tbl_MatsScrapsEmissions8[Name]),GETPIVOTDATA("Sum of Biogenic Carbon-Product biogenic carbon content",'PivotTables-EOL+CIs'!$A$133,"Material Name/Stage/Product Category (CALCULATED COLUMN -NO NEED TO EDIT)",tbl_MatsScrapsEmissions8[Name]:tbl_MatsScrapsEmissions8[Name])),"") -> 0 | U16: =IFERROR(IF(ISNUMBER(SEARCH("B_",tbl_MatsScrapsEmissions8[Name]:tbl_MatsScrapsEmissions8[Name])),GETPIVOTDATA("Sum of CI_Blend_land",'PivotTables-EOL+CIs'!$K$133,"Blend name",tbl_MatsScrapsEmissions8[Name]:tbl_MatsScrapsEmissions8[Name]),GETPIVOTDATA("Sum of Landfill ",'PivotTables-EOL+CIs'!$A$133,"Material Name/Stage/Product Category (CALCULATED COLUMN -NO NEED TO EDIT)",tbl_MatsScrapsEmissions8[Name]:tbl_MatsScrapsEmissions8[Name])),"") -> 1 | V16: =IFERROR(IF(ISNUMBER(SEARCH("B_",tbl_MatsScrapsEmissions8[Name]:tbl_MatsScrapsEmissions8[Name])),GETPIVOTDATA("Sum of CI_Blend_incin",'PivotTables-EOL+CIs'!$K$133,"Blend name",tbl_MatsScrapsEmissions8[Name]:tbl_MatsScrapsEmissions8[Name]),GETPIVOTDATA("Sum of Incinerated ",'PivotTables-EOL+CIs'!$A$133,"Material Name/Stage/Product Category (CALCULATED COLUMN -NO NEED TO EDIT)",tbl_MatsScrapsEmissions8[Name]:tbl_MatsScrapsEmissions8[Name])),"") -> 1 | W16: =IF(tbl_MatsScrapsEmissions8[[#This Row],[Blend or Material or Packaging?]]="Packaging",((1-'Enter Product'!$K$6)* tbl_MatsScrapsEmissions8[[#This Row],[ Mass of Final Component(g)]])/1000,tbl_MatsScrapsEmissions8[[#This Row],[ Mass of Final Component(g)]]/1000) -> 0.674 | X16: =IFERROR(((tbl_MatsScrapsEmissions8[[#This Row],[Product EOL-Material/Blend mass in Final Component (kg)]]*tbl_MatsScrapsEmissions8[[#This Row],[CI_Landfill]]*'Enter Product'!$K$4)+(tbl_MatsScrapsEmissions8[[#This Row],[Product EOL-Material/Blend mass in Final Component (kg)]]*'Enter Product'!$K$4*32*tbl_TransportCI[Truck CI]*0.001)),) -> 0.541443072 | Y16: =IFERROR(((tbl_MatsScrapsEmissions8[[#This Row],[Product EOL-Material/Blend mass in Final Component (kg)]]*tbl_MatsScrapsEmissions8[[#This Row],[CI_Incinerated]]*'Enter Product'!$K$5)+(tbl_MatsScrapsEmissions8[[#This Row],[Product EOL-Material/Blend mass in Final Component (kg)]]*'Enter Product'!$K$5*32*tbl_TransportCI[Truck CI]*0.001)),) -> 0.135360768 | Z16: =IFERROR(tbl_MatsScrapsEmissions8[[#This Row],[Starting Material/Blend mass in Component(kg)]:[Starting Material/Blend mass in Component(kg)]]*tbl_MatsScrapsEmissions8[[#This Row],[1]],0) -> 3.834097143 | AA16: =IFERROR(tbl_MatsScrapsEmissions8[[#This Row],[Starting Material/Blend mass in Component(kg)]:[Starting Material/Blend mass in Component(kg)]]*tbl_MatsScrapsEmissions8[[#This Row],[2]],0) -> 1.713163571 | AB16: =IFERROR(tbl_MatsScrapsEmissions8[[#This Row],[Starting Material/Blend mass in Component(kg)]:[Starting Material/Blend mass in Component(kg)]]*tbl_MatsScrapsEmissions8[[#This Row],[3]],0) -> 1.104156429 | AC16: =IFERROR(tbl_MatsScrapsEmissions8[[#This Row],[Starting Material/Blend mass in Component(kg)]:[Starting Material/Blend mass in Component(kg)]]*tbl_MatsScrapsEmissions8[[#This Row],[4]],0) -> 1.683315 | AD16: =IFERROR(tbl_MatsScrapsEmissions8[[#This Row],[Starting Material/Blend mass in Component(kg)]:[Starting Material/Blend mass in Component(kg)]]*tbl_MatsScrapsEmissions8[[#This Row],[5]],0) -> 1.22331 | AE16: =IFERROR(tbl_MatsScrapsEmissions8[[#This Row],[Starting Material/Blend mass in Component(kg)]:[Starting Material/Blend mass in Component(kg)]]*tbl_MatsScrapsEmissions8[[#This Row],[6]],0) -> 0 | AF16: =IFERROR(tbl_MatsScrapsEmissions8[[#This Row],[Starting Material/Blend mass in Component(kg)]:[Starting Material/Blend mass in Component(kg)]]*tbl_MatsScrapsEmissions8[[#This Row],[CI_Raw]],0) -> 9.558042143 | AG16: =IFERROR(IF(tbl_MatsScrapsEmissions8[[#This Row],[Is Waste Recycled?]:[Is Waste Recycled?]]="yes","N/A",IF(tbl_MatsScrapsEmissions8[[#This Row],[Blend or Material or Packaging?]]="Packaging",tbl_MatsScrapsEmissions8[[#This Row],[% material wasted]]*(tbl_MatsScrapsEmissions8[[#This Row],[Starting Material/Blend mass in Component(kg)]]*(1-'Enter Product'!$K$6)*'Enter Product'!$K$4*tbl_MatsScrapsEmissions8[[#This Row],[CI_Landfill]])+(tbl_MatsScrapsEmissions8[[#This Row],[Starting Material/Blend mass in Component(kg)]]*tbl_MatsScrapsEmissions8[[#This Row],[% material wasted]]*(1-'Enter Product'!$K$6)*'Enter Product'!$K$5*tbl_MatsScrapsEmissions8[[#This Row],[CI_Incinerated]]),tbl_MatsScrapsEmissions8[[#This Row],[% material wasted]]*(tbl_MatsScrapsEmissions8[[#This Row],[Starting Material/Blend mass in Component(kg)]]*'Enter Product'!$K$4*tbl_MatsScrapsEmissions8[[#This Row],[CI_Landfill]])+(tbl_MatsScrapsEmissions8[[#This Row],[Starting Material/Blend mass in Component(kg)]]*tbl_MatsScrapsEmissions8[[#This Row],[% material wasted]]*'Enter Product'!$K$5*tbl_MatsScrapsEmissions8[[#This Row],[CI_Incinerated]]))),"") -> 0.2888571429 | AH16: =IFERROR(tbl_MatsScrapsEmissions8[[#This Row],[% material wasted]]*tbl_MatsScrapsEmissions8[[#This Row],[Starting Material/Blend mass in Component(kg)]]*tbl_TransportCI[Truck CI]*0.001*32,) -> 0.001201645714 | AI16: =SUM($AF16:$AH16) -> 9.848100931 | AJ16: =IFERROR(tbl_MatsScrapsEmissions8[[#This Row],[Starting Material/Blend mass in Component(kg)]:[Starting Material/Blend mass in Component(kg)]]*tbl_MatsScrapsEmissions8[[#This Row],[CI_Raw_prodBiogenic]],0) -> 0 | AK16: =IFERROR(IF(tbl_MatsScrapsEmissions8[[#This Row],[Blend or Material or Packaging?]]="Packaging",tbl_MatsScrapsEmissions8[[#This Row],[Starting Material/Blend mass in Component(kg)]:[Starting Material/Blend mass in Component(kg)]]*tbl_MatsScrapsEmissions8[[#This Row],[CI_Raw_prodBiogenic]],0),0) -> 0 | AL16: =IFERROR(tbl_MatsScrapsEmissions8[[#This Row],[% of Total Product Mass (for DQR)]]*tbl_MatsScrapsEmissions8[[#This Row],[DQR Score]],0) -> 1.642724014 | AM16: =IFERROR(tbl_MatsScrapsEmissions8[[#This Row],[% of Total Product Mass (for DQR)]]*tbl_MatsScrapsEmissions8[[#This Row],[Uncertainty Score]],0) -> 1.642724014
A17: Sneaker | B17: Packaging | C17: Packaging | D17: Packaging | E17: Cardboard - Virgin ; Packaging - Packaging | F17: 178 | G17: 0.15 | H17: No | I17: =tbl_MatsScrapsEmissions8[[#This Row],[ Mass of Final Component(g)]]/(1-tbl_MatsScrapsEmissions8[[#This Row],[% material wasted]])/1000 -> 0.2094117647 | J17: =IFERROR(IF(ISNUMBER(SEARCH("B_",tbl_MatsScrapsEmissions8[Name]:tbl_MatsScrapsEmissions8[Name])),GETPIVOTDATA("Sum of 1",'PivotTables-EOL+CIs'!$K$133,"Blend name",tbl_MatsScrapsEmissions8[Name]:tbl_MatsScrapsEmissions8[Name]),GETPIVOTDATA("Sum of Net CI (kg CO2e/kg)",'PivotTables-EOL+CIs'!$A$133,"Material Name/Stage/Product Category (CALCULATED COLUMN -NO NEED TO EDIT)",tbl_MatsScrapsEmissions8[Name]:tbl_MatsScrapsEmissions8[Name])),"") -> 1.283333333 | K17: =IF(ISNUMBER(SEARCH("B_",tbl_MatsScrapsEmissions8[Name]:tbl_MatsScrapsEmissions8[Name])),GETPIVOTDATA("Sum of 2",'PivotTables-EOL+CIs'!$K$133,"Blend name",tbl_MatsScrapsEmissions8[Name]:tbl_MatsScrapsEmissions8[Name]),0) -> 0 | L17: =IF(ISNUMBER(SEARCH("B_",tbl_MatsScrapsEmissions8[Name]:tbl_MatsScrapsEmissions8[Name])),GETPIVOTDATA("Sum of 3",'PivotTables-EOL+CIs'!$K$133,"Blend name",tbl_MatsScrapsEmissions8[Name]:tbl_MatsScrapsEmissions8[Name]),0) -> 0 | M17: =IF(ISNUMBER(SEARCH("B_",tbl_MatsScrapsEmissions8[Name]:tbl_MatsScrapsEmissions8[Name])),GETPIVOTDATA("Sum of 4",'PivotTables-EOL+CIs'!$K$133,"Blend name",tbl_MatsScrapsEmissions8[Name]:tbl_MatsScrapsEmissions8[Name]),0) -> 0 | N17: =IF(ISNUMBER(SEARCH("B_",tbl_MatsScrapsEmissions8[Name]:tbl_MatsScrapsEmissions8[Name])),GETPIVOTDATA("Sum of 5",'PivotTables-EOL+CIs'!$K$133,"Blend name",tbl_MatsScrapsEmissions8[Name]:tbl_MatsScrapsEmissions8[Name]),0) -> 0 | O17: =IF(ISNUMBER(SEARCH("B_",tbl_MatsScrapsEmissions8[Name]:tbl_MatsScrapsEmissions8[Name])),GETPIVOTDATA("Sum of 6",'PivotTables-EOL+CIs'!$K$133,"Blend name",tbl_MatsScrapsEmissions8[Name]:tbl_MatsScrapsEmissions8[Name]),0) -> 0 | P17: =IFERROR(tbl_MatsScrapsEmissions8[[#This Row],[Starting Material/Blend mass in Component(kg)]]/SUMIFS(tbl_MatsScrapsEmissions8[Starting Material/Blend mass in Component(kg)],tbl_MatsScrapsEmissions8[[ Shoe]],tbl_MatsScrapsEmissions8[[#This Row],[ Shoe]]),"") -> 0.1786379928 | Q17: =IFERROR(IF(ISNUMBER(SEARCH("B_",tbl_MatsScrapsEmissions8[Name]:tbl_MatsScrapsEmissions8[Name])),GETPIVOTDATA("Sum of DQR Score",'PivotTables-EOL+CIs'!$K$133,"Blend name",tbl_MatsScrapsEmissions8[Name]:tbl_MatsScrapsEmissions8[Name]),GETPIVOTDATA("Average of DQR Score",'PivotTables-EOL+CIs'!$A$133,"Material Name/Stage/Product Category (CALCULATED COLUMN -NO NEED TO EDIT)",tbl_MatsScrapsEmissions8[Name]:tbl_MatsScrapsEmissions8[Name])),"") -> 2 | R17: =IFERROR(IF(ISNUMBER(SEARCH("B_",tbl_MatsScrapsEmissions8[Name]:tbl_MatsScrapsEmissions8[Name])),GETPIVOTDATA("Sum of Uncertainty Score",'PivotTables-EOL+CIs'!$K$133,"Blend name",tbl_MatsScrapsEmissions8[Name]:tbl_MatsScrapsEmissions8[Name]),GETPIVOTDATA("Average of Uncertainty Score",'PivotTables-EOL+CIs'!$A$133,"Material Name/Stage/Product Category (CALCULATED COLUMN -NO NEED TO EDIT)",tbl_MatsScrapsEmissions8[Name]:tbl_MatsScrapsEmissions8[Name])),"") -> 2 | S17: =IFERROR(IF(ISNUMBER(SEARCH("B_",tbl_MatsScrapsEmissions8[Name]:tbl_MatsScrapsEmissions8[Name])),GETPIVOTDATA("Sum of CI_Blend_raw",'PivotTables-EOL+CIs'!$K$133,"Blend name",tbl_MatsScrapsEmissions8[Name]:tbl_MatsScrapsEmissions8[Name]),GETPIVOTDATA("Sum of Net CI (kg CO2e/kg)",'PivotTables-EOL+CIs'!$A$133,"Material Name/Stage/Product Category (CALCULATED COLUMN -NO NEED TO EDIT)",tbl_MatsScrapsEmissions8[Name]:tbl_MatsScrapsEmissions8[Name])),"") -> 1.283333333 | T17: =IFERROR(IF(ISNUMBER(SEARCH("B_",tbl_MatsScrapsEmissions8[Name]:tbl_MatsScrapsEmissions8[Name])),GETPIVOTDATA("Sum of CI_blend_prodBiogenic",'PivotTables-EOL+CIs'!$K$133,"Blend name",tbl_MatsScrapsEmissions8[Name]:tbl_MatsScrapsEmissions8[Name]),GETPIVOTDATA("Sum of Biogenic Carbon-Product biogenic carbon content",'PivotTables-EOL+CIs'!$A$133,"Material Name/Stage/Product Category (CALCULATED COLUMN -NO NEED TO EDIT)",tbl_MatsScrapsEmissions8[Name]:tbl_MatsScrapsEmissions8[Name])),"") ->  | U17: =IFERROR(IF(ISNUMBER(SEARCH("B_",tbl_MatsScrapsEmissions8[Name]:tbl_MatsScrapsEmissions8[Name])),GETPIVOTDATA("Sum of CI_Blend_land",'PivotTables-EOL+CIs'!$K$133,"Blend name",tbl_MatsScrapsEmissions8[Name]:tbl_MatsScrapsEmissions8[Name]),GETPIVOTDATA("Sum of Landfill ",'PivotTables-EOL+CIs'!$A$133,"Material Name/Stage/Product Category (CALCULATED COLUMN -NO NEED TO EDIT)",tbl_MatsScrapsEmissions8[Name]:tbl_MatsScrapsEmissions8[Name])),"") -> 1 | V17: =IFERROR(IF(ISNUMBER(SEARCH("B_",tbl_MatsScrapsEmissions8[Name]:tbl_MatsScrapsEmissions8[Name])),GETPIVOTDATA("Sum of CI_Blend_incin",'PivotTables-EOL+CIs'!$K$133,"Blend name",tbl_MatsScrapsEmissions8[Name]:tbl_MatsScrapsEmissions8[Name]),GETPIVOTDATA("Sum of Incinerated ",'PivotTables-EOL+CIs'!$A$133,"Material Name/Stage/Product Category (CALCULATED COLUMN -NO NEED TO EDIT)",tbl_MatsScrapsEmissions8[Name]:tbl_MatsScrapsEmissions8[Name])),"") -> 1.366666667 | W17: =IF(tbl_MatsScrapsEmissions8[[#This Row],[Blend or Material or Packaging?]]="Packaging",((1-'Enter Product'!$K$6)* tbl_MatsScrapsEmissions8[[#This Row],[ Mass of Final Component(g)]])/1000,tbl_MatsScrapsEmissions8[[#This Row],[ Mass of Final Component(g)]]/1000) -> 0.060698 | X17: =IFERROR(((tbl_MatsScrapsEmissions8[[#This Row],[Product EOL-Material/Blend mass in Final Component (kg)]]*tbl_MatsScrapsEmissions8[[#This Row],[CI_Landfill]]*'Enter Product'!$K$4)+(tbl_MatsScrapsEmissions8[[#This Row],[Product EOL-Material/Blend mass in Final Component (kg)]]*'Enter Product'!$K$4*32*tbl_TransportCI[Truck CI]*0.001)),) -> 0.04876040294 | Y17: =IFERROR(((tbl_MatsScrapsEmissions8[[#This Row],[Product EOL-Material/Blend mass in Final Component (kg)]]*tbl_MatsScrapsEmissions8[[#This Row],[CI_Incinerated]]*'Enter Product'!$K$5)+(tbl_MatsScrapsEmissions8[[#This Row],[Product EOL-Material/Blend mass in Final Component (kg)]]*'Enter Product'!$K$5*32*tbl_TransportCI[Truck CI]*0.001)),) -> 0.0166412874 | Z17: =IFERROR(tbl_MatsScrapsEmissions8[[#This Row],[Starting Material/Blend mass in Component(kg)]:[Starting Material/Blend mass in Component(kg)]]*tbl_MatsScrapsEmissions8[[#This Row],[1]],0) -> 0.268745098 | AA17: =IFERROR(tbl_MatsScrapsEmissions8[[#This Row],[Starting Material/Blend mass in Component(kg)]:[Starting Material/Blend mass in Component(kg)]]*tbl_MatsScrapsEmissions8[[#This Row],[2]],0) -> 0 | AB17: =IFERROR(tbl_MatsScrapsEmissions8[[#This Row],[Starting Material/Blend mass in Component(kg)]:[Starting Material/Blend mass in Component(kg)]]*tbl_MatsScrapsEmissions8[[#This Row],[3]],0) -> 0 | AC17: =IFERROR(tbl_MatsScrapsEmissions8[[#This Row],[Starting Material/Blend mass in Component(kg)]:[Starting Material/Blend mass in Component(kg)]]*tbl_MatsScrapsEmissions8[[#This Row],[4]],0) -> 0 | AD17: =IFERROR(tbl_MatsScrapsEmissions8[[#This Row],[Starting Material/Blend mass in Component(kg)]:[Starting Material/Blend mass in Component(kg)]]*tbl_MatsScrapsEmissions8[[#This Row],[5]],0) -> 0 | AE17: =IFERROR(tbl_MatsScrapsEmissions8[[#This Row],[Starting Material/Blend mass in Component(kg)]:[Starting Material/Blend mass in Component(kg)]]*tbl_MatsScrapsEmissions8[[#This Row],[6]],0) -> 0 | AF17: =IFERROR(tbl_MatsScrapsEmissions8[[#This Row],[Starting Material/Blend mass in Component(kg)]:[Starting Material/Blend mass in Component(kg)]]*tbl_MatsScrapsEmissions8[[#This Row],[CI_Raw]],0) -> 0.268745098 | AG17: =IFERROR(IF(tbl_MatsScrapsEmissions8[[#This Row],[Is Waste Recycled?]:[Is Waste Recycled?]]="yes","N/A",IF(tbl_MatsScrapsEmissions8[[#This Row],[Blend or Material or Packaging?]]="Packaging",tbl_MatsScrapsEmissions8[[#This Row],[% material wasted]]*(tbl_MatsScrapsEmissions8[[#This Row],[Starting Material/Blend mass in Component(kg)]]*(1-'Enter Product'!$K$6)*'Enter Product'!$K$4*tbl_MatsScrapsEmissions8[[#This Row],[CI_Landfill]])+(tbl_MatsScrapsEmissions8[[#This Row],[Starting Material/Blend mass in Component(kg)]]*tbl_MatsScrapsEmissions8[[#This Row],[% material wasted]]*(1-'Enter Product'!$K$6)*'Enter Product'!$K$5*tbl_MatsScrapsEmissions8[[#This Row],[CI_Incinerated]]),tbl_MatsScrapsEmissions8[[#This Row],[% material wasted]]*(tbl_MatsScrapsEmissions8[[#This Row],[Starting Material/Blend mass in Component(kg)]]*'Enter Product'!$K$4*tbl_MatsScrapsEmissions8[[#This Row],[CI_Landfill]])+(tbl_MatsScrapsEmissions8[[#This Row],[Starting Material/Blend mass in Component(kg)]]*tbl_MatsScrapsEmissions8[[#This Row],[% material wasted]]*'Enter Product'!$K$5*tbl_MatsScrapsEmissions8[[#This Row],[CI_Incinerated]]))),"") -> 0.01149691529 | AH17: =IFERROR(tbl_MatsScrapsEmissions8[[#This Row],[% material wasted]]*tbl_MatsScrapsEmissions8[[#This Row],[Starting Material/Blend mass in Component(kg)]]*tbl_TransportCI[Truck CI]*0.001*32,) -> 0.0001306729412 | AI17: =SUM($AF17:$AH17) -> 0.2803726863 | AJ17: =IFERROR(tbl_MatsScrapsEmissions8[[#This Row],[Starting Material/Blend mass in Component(kg)]:[Starting Material/Blend mass in Component(kg)]]*tbl_MatsScrapsEmissions8[[#This Row],[CI_Raw_prodBiogenic]],0) -> 0 | AK17: =IFERROR(IF(tbl_MatsScrapsEmissions8[[#This Row],[Blend or Material or Packaging?]]="Packaging",tbl_MatsScrapsEmissions8[[#This Row],[Starting Material/Blend mass in Component(kg)]:[Starting Material/Blend mass in Component(kg)]]*tbl_MatsScrapsEmissions8[[#This Row],[CI_Raw_prodBiogenic]],0),0) -> 0 | AL17: =IFERROR(tbl_MatsScrapsEmissions8[[#This Row],[% of Total Product Mass (for DQR)]]*tbl_MatsScrapsEmissions8[[#This Row],[DQR Score]],0) -> 0.3572759857 | AM17: =IFERROR(tbl_MatsScrapsEmissions8[[#This Row],[% of Total Product Mass (for DQR)]]*tbl_MatsScrapsEmissions8[[#This Row],[Uncertainty Score]],0) -> 0.3572759857
I18: =tbl_MatsScrapsEmissions8[[#This Row],[ Mass of Final Component(g)]]/(1-tbl_MatsScrapsEmissions8[[#This Row],[% material wasted]])/1000 -> 0 | J18: =IFERROR(IF(ISNUMBER(SEARCH("B_",tbl_MatsScrapsEmissions8[Name]:tbl_MatsScrapsEmissions8[Name])),GETPIVOTDATA("Sum of 1",'PivotTables-EOL+CIs'!$K$133,"Blend name",tbl_MatsScrapsEmissions8[Name]:tbl_MatsScrapsEmissions8[Name]),GETPIVOTDATA("Sum of Net CI (kg CO2e/kg)",'PivotTables-EOL+CIs'!$A$133,"Material Name/Stage/Product Category (CALCULATED COLUMN -NO NEED TO EDIT)",tbl_MatsScrapsEmissions8[Name]:tbl_MatsScrapsEmissions8[Name])),"") ->  | K18: =IF(ISNUMBER(SEARCH("B_",tbl_MatsScrapsEmissions8[Name]:tbl_MatsScrapsEmissions8[Name])),GETPIVOTDATA("Sum of 2",'PivotTables-EOL+CIs'!$K$133,"Blend name",tbl_MatsScrapsEmissions8[Name]:tbl_MatsScrapsEmissions8[Name]),0) -> 0 | L18: =IF(ISNUMBER(SEARCH("B_",tbl_MatsScrapsEmissions8[Name]:tbl_MatsScrapsEmissions8[Name])),GETPIVOTDATA("Sum of 3",'PivotTables-EOL+CIs'!$K$133,"Blend name",tbl_MatsScrapsEmissions8[Name]:tbl_MatsScrapsEmissions8[Name]),0) -> 0 | M18: =IF(ISNUMBER(SEARCH("B_",tbl_MatsScrapsEmissions8[Name]:tbl_MatsScrapsEmissions8[Name])),GETPIVOTDATA("Sum of 4",'PivotTables-EOL+CIs'!$K$133,"Blend name",tbl_MatsScrapsEmissions8[Name]:tbl_MatsScrapsEmissions8[Name]),0) -> 0 | N18: =IF(ISNUMBER(SEARCH("B_",tbl_MatsScrapsEmissions8[Name]:tbl_MatsScrapsEmissions8[Name])),GETPIVOTDATA("Sum of 5",'PivotTables-EOL+CIs'!$K$133,"Blend name",tbl_MatsScrapsEmissions8[Name]:tbl_MatsScrapsEmissions8[Name]),0) -> 0 | O18: =IF(ISNUMBER(SEARCH("B_",tbl_MatsScrapsEmissions8[Name]:tbl_MatsScrapsEmissions8[Name])),GETPIVOTDATA("Sum of 6",'PivotTables-EOL+CIs'!$K$133,"Blend name",tbl_MatsScrapsEmissions8[Name]:tbl_MatsScrapsEmissions8[Name]),0) -> 0 | P18: =IFERROR(tbl_MatsScrapsEmissions8[[#This Row],[Starting Material/Blend mass in Component(kg)]]/SUMIFS(tbl_MatsScrapsEmissions8[Starting Material/Blend mass in Component(kg)],tbl_MatsScrapsEmissions8[[ Shoe]],tbl_MatsScrapsEmissions8[[#This Row],[ Shoe]]),"") ->  | Q18: =IFERROR(IF(ISNUMBER(SEARCH("B_",tbl_MatsScrapsEmissions8[Name]:tbl_MatsScrapsEmissions8[Name])),GETPIVOTDATA("Sum of DQR Score",'PivotTables-EOL+CIs'!$K$133,"Blend name",tbl_MatsScrapsEmissions8[Name]:tbl_MatsScrapsEmissions8[Name]),GETPIVOTDATA("Average of DQR Score",'PivotTables-EOL+CIs'!$A$133,"Material Name/Stage/Product Category (CALCULATED COLUMN -NO NEED TO EDIT)",tbl_MatsScrapsEmissions8[Name]:tbl_MatsScrapsEmissions8[Name])),"") ->  | R18: =IFERROR(IF(ISNUMBER(SEARCH("B_",tbl_MatsScrapsEmissions8[Name]:tbl_MatsScrapsEmissions8[Name])),GETPIVOTDATA("Sum of Uncertainty Score",'PivotTables-EOL+CIs'!$K$133,"Blend name",tbl_MatsScrapsEmissions8[Name]:tbl_MatsScrapsEmissions8[Name]),GETPIVOTDATA("Average of Uncertainty Score",'PivotTables-EOL+CIs'!$A$133,"Material Name/Stage/Product Category (CALCULATED COLUMN -NO NEED TO EDIT)",tbl_MatsScrapsEmissions8[Name]:tbl_MatsScrapsEmissions8[Name])),"") ->  | S18: =IFERROR(IF(ISNUMBER(SEARCH("B_",tbl_MatsScrapsEmissions8[Name]:tbl_MatsScrapsEmissions8[Name])),GETPIVOTDATA("Sum of CI_Blend_raw",'PivotTables-EOL+CIs'!$K$133,"Blend name",tbl_MatsScrapsEmissions8[Name]:tbl_MatsScrapsEmissions8[Name]),GETPIVOTDATA("Sum of Net CI (kg CO2e/kg)",'PivotTables-EOL+CIs'!$A$133,"Material Name/Stage/Product Category (CALCULATED COLUMN -NO NEED TO EDIT)",tbl_MatsScrapsEmissions8[Name]:tbl_MatsScrapsEmissions8[Name])),"") ->  | T18: =IFERROR(IF(ISNUMBER(SEARCH("B_",tbl_MatsScrapsEmissions8[Name]:tbl_MatsScrapsEmissions8[Name])),GETPIVOTDATA("Sum of CI_blend_prodBiogenic",'PivotTables-EOL+CIs'!$K$133,"Blend name",tbl_MatsScrapsEmissions8[Name]:tbl_MatsScrapsEmissions8[Name]),GETPIVOTDATA("Sum of Biogenic Carbon-Product biogenic carbon content",'PivotTables-EOL+CIs'!$A$133,"Material Name/Stage/Product Category (CALCULATED COLUMN -NO NEED TO EDIT)",tbl_MatsScrapsEmissions8[Name]:tbl_MatsScrapsEmissions8[Name])),"") ->  | U18: =IFERROR(IF(ISNUMBER(SEARCH("B_",tbl_MatsScrapsEmissions8[Name]:tbl_MatsScrapsEmissions8[Name])),GETPIVOTDATA("Sum of CI_Blend_land",'PivotTables-EOL+CIs'!$K$133,"Blend name",tbl_MatsScrapsEmissions8[Name]:tbl_MatsScrapsEmissions8[Name]),GETPIVOTDATA("Sum of Landfill ",'PivotTables-EOL+CIs'!$A$133,"Material Name/Stage/Product Category (CALCULATED COLUMN -NO NEED TO EDIT)",tbl_MatsScrapsEmissions8[Name]:tbl_MatsScrapsEmissions8[Name])),"") ->  | V18: =IFERROR(IF(ISNUMBER(SEARCH("B_",tbl_MatsScrapsEmissions8[Name]:tbl_MatsScrapsEmissions8[Name])),GETPIVOTDATA("Sum of CI_Blend_incin",'PivotTables-EOL+CIs'!$K$133,"Blend name",tbl_MatsScrapsEmissions8[Name]:tbl_MatsScrapsEmissions8[Name]),GETPIVOTDATA("Sum of Incinerated ",'PivotTables-EOL+CIs'!$A$133,"Material Name/Stage/Product Category (CALCULATED COLUMN -NO NEED TO EDIT)",tbl_MatsScrapsEmissions8[Name]:tbl_MatsScrapsEmissions8[Name])),"") ->  | W18: =IF(tbl_MatsScrapsEmissions8[[#This Row],[Blend or Material or Packaging?]]="Packaging",((1-'Enter Product'!$K$6)* tbl_MatsScrapsEmissions8[[#This Row],[ Mass of Final Component(g)]])/1000,tbl_MatsScrapsEmissions8[[#This Row],[ Mass of Final Component(g)]]/1000) -> 0 | X18: =IFERROR(((tbl_MatsScrapsEmissions8[[#This Row],[Product EOL-Material/Blend mass in Final Component (kg)]]*tbl_MatsScrapsEmissions8[[#This Row],[CI_Landfill]]*'Enter Product'!$K$4)+(tbl_MatsScrapsEmissions8[[#This Row],[Product EOL-Material/Blend mass in Final Component (kg)]]*'Enter Product'!$K$4*32*tbl_TransportCI[Truck CI]*0.001)),) -> 0 | Y18: =IFERROR(((tbl_MatsScrapsEmissions8[[#This Row],[Product EOL-Material/Blend mass in Final Component (kg)]]*tbl_MatsScrapsEmissions8[[#This Row],[CI_Incinerated]]*'Enter Product'!$K$5)+(tbl_MatsScrapsEmissions8[[#This Row],[Product EOL-Material/Blend mass in Final Component (kg)]]*'Enter Product'!$K$5*32*tbl_TransportCI[Truck CI]*0.001)),) -> 0 | Z18: =IFERROR(tbl_MatsScrapsEmissions8[[#This Row],[Starting Material/Blend mass in Component(kg)]:[Starting Material/Blend mass in Component(kg)]]*tbl_MatsScrapsEmissions8[[#This Row],[1]],0) -> 0 | AA18: =IFERROR(tbl_MatsScrapsEmissions8[[#This Row],[Starting Material/Blend mass in Component(kg)]:[Starting Material/Blend mass in Component(kg)]]*tbl_MatsScrapsEmissions8[[#This Row],[2]],0) -> 0 | AB18: =IFERROR(tbl_MatsScrapsEmissions8[[#This Row],[Starting Material/Blend mass in Component(kg)]:[Starting Material/Blend mass in Component(kg)]]*tbl_MatsScrapsEmissions8[[#This Row],[3]],0) -> 0 | AC18: =IFERROR(tbl_MatsScrapsEmissions8[[#This Row],[Starting Material/Blend mass in Component(kg)]:[Starting Material/Blend mass in Component(kg)]]*tbl_MatsScrapsEmissions8[[#This Row],[4]],0) -> 0 | AD18: =IFERROR(tbl_MatsScrapsEmissions8[[#This Row],[Starting Material/Blend mass in Component(kg)]:[Starting Material/Blend mass in Component(kg)]]*tbl_MatsScrapsEmissions8[[#This Row],[5]],0) -> 0 | AE18: =IFERROR(tbl_MatsScrapsEmissions8[[#This Row],[Starting Material/Blend mass in Component(kg)]:[Starting Material/Blend mass in Component(kg)]]*tbl_MatsScrapsEmissions8[[#This Row],[6]],0) -> 0 | AF18: =IFERROR(tbl_MatsScrapsEmissions8[[#This Row],[Starting Material/Blend mass in Component(kg)]:[Starting Material/Blend mass in Component(kg)]]*tbl_MatsScrapsEmissions8[[#This Row],[CI_Raw]],0) -> 0 | AG18: =IFERROR(IF(tbl_MatsScrapsEmissions8[[#This Row],[Is Waste Recycled?]:[Is Waste Recycled?]]="yes","N/A",IF(tbl_MatsScrapsEmissions8[[#This Row],[Blend or Material or Packaging?]]="Packaging",tbl_MatsScrapsEmissions8[[#This Row],[% material wasted]]*(tbl_MatsScrapsEmissions8[[#This Row],[Starting Material/Blend mass in Component(kg)]]*(1-'Enter Product'!$K$6)*'Enter Product'!$K$4*tbl_MatsScrapsEmissions8[[#This Row],[CI_Landfill]])+(tbl_MatsScrapsEmissions8[[#This Row],[Starting Material/Blend mass in Component(kg)]]*tbl_MatsScrapsEmissions8[[#This Row],[% material wasted]]*(1-'Enter Product'!$K$6)*'Enter Product'!$K$5*tbl_MatsScrapsEmissions8[[#This Row],[CI_Incinerated]]),tbl_MatsScrapsEmissions8[[#This Row],[% material wasted]]*(tbl_MatsScrapsEmissions8[[#This Row],[Starting Material/Blend mass in Component(kg)]]*'Enter Product'!$K$4*tbl_MatsScrapsEmissions8[[#This Row],[CI_Landfill]])+(tbl_MatsScrapsEmissions8[[#This Row],[Starting Material/Blend mass in Component(kg)]]*tbl_MatsScrapsEmissions8[[#This Row],[% material wasted]]*'Enter Product'!$K$5*tbl_MatsScrapsEmissions8[[#This Row],[CI_Incinerated]]))),"") ->  | AH18: =IFERROR(tbl_MatsScrapsEmissions8[[#This Row],[% material wasted]]*tbl_MatsScrapsEmissions8[[#This Row],[Starting Material/Blend mass in Component(kg)]]*tbl_TransportCI[Truck CI]*0.001*32,) -> 0 | AI18: 0 | AJ18: =IFERROR(tbl_MatsScrapsEmissions8[[#This Row],[Starting Material/Blend mass in Component(kg)]:[Starting Material/Blend mass in Component(kg)]]*tbl_MatsScrapsEmissions8[[#This Row],[CI_Raw_prodBiogenic]],0) -> 0 | AK18: =IFERROR(IF(tbl_MatsScrapsEmissions8[[#This Row],[Blend or Material or Packaging?]]="Packaging",tbl_MatsScrapsEmissions8[[#This Row],[Starting Material/Blend mass in Component(kg)]:[Starting Material/Blend mass in Component(kg)]]*tbl_MatsScrapsEmissions8[[#This Row],[CI_Raw_prodBiogenic]],0),0) -> 0 | AL18: =IFERROR(tbl_MatsScrapsEmissions8[[#This Row],[% of Total Product Mass (for DQR)]]*tbl_MatsScrapsEmissions8[[#This Row],[DQR Score]],0) -> 0 | AM18: =IFERROR(tbl_MatsScrapsEmissions8[[#This Row],[% of Total Product Mass (for DQR)]]*tbl_MatsScrapsEmissions8[[#This Row],[Uncertainty Score]],0) -> 0
I19: =tbl_MatsScrapsEmissions8[[#This Row],[ Mass of Final Component(g)]]/(1-tbl_MatsScrapsEmissions8[[#This Row],[% material wasted]])/1000 -> 0 | J19: =IFERROR(IF(ISNUMBER(SEARCH("B_",tbl_MatsScrapsEmissions8[Name]:tbl_MatsScrapsEmissions8[Name])),GETPIVOTDATA("Sum of 1",'PivotTables-EOL+CIs'!$K$133,"Blend name",tbl_MatsScrapsEmissions8[Name]:tbl_MatsScrapsEmissions8[Name]),GETPIVOTDATA("Sum of Net CI (kg CO2e/kg)",'PivotTables-EOL+CIs'!$A$133,"Material Name/Stage/Product Category (CALCULATED COLUMN -NO NEED TO EDIT)",tbl_MatsScrapsEmissions8[Name]:tbl_MatsScrapsEmissions8[Name])),"") ->  | K19: =IF(ISNUMBER(SEARCH("B_",tbl_MatsScrapsEmissions8[Name]:tbl_MatsScrapsEmissions8[Name])),GETPIVOTDATA("Sum of 2",'PivotTables-EOL+CIs'!$K$133,"Blend name",tbl_MatsScrapsEmissions8[Name]:tbl_MatsScrapsEmissions8[Name]),0) -> 0 | L19: =IF(ISNUMBER(SEARCH("B_",tbl_MatsScrapsEmissions8[Name]:tbl_MatsScrapsEmissions8[Name])),GETPIVOTDATA("Sum of 3",'PivotTables-EOL+CIs'!$K$133,"Blend name",tbl_MatsScrapsEmissions8[Name]:tbl_MatsScrapsEmissions8[Name]),0) -> 0 | M19: =IF(ISNUMBER(SEARCH("B_",tbl_MatsScrapsEmissions8[Name]:tbl_MatsScrapsEmissions8[Name])),GETPIVOTDATA("Sum of 4",'PivotTables-EOL+CIs'!$K$133,"Blend name",tbl_MatsScrapsEmissions8[Name]:tbl_MatsScrapsEmissions8[Name]),0) -> 0 | N19: =IF(ISNUMBER(SEARCH("B_",tbl_MatsScrapsEmissions8[Name]:tbl_MatsScrapsEmissions8[Name])),GETPIVOTDATA("Sum of 5",'PivotTables-EOL+CIs'!$K$133,"Blend name",tbl_MatsScrapsEmissions8[Name]:tbl_MatsScrapsEmissions8[Name]),0) -> 0 | O19: =IF(ISNUMBER(SEARCH("B_",tbl_MatsScrapsEmissions8[Name]:tbl_MatsScrapsEmissions8[Name])),GETPIVOTDATA("Sum of 6",'PivotTables-EOL+CIs'!$K$133,"Blend name",tbl_MatsScrapsEmissions8[Name]:tbl_MatsScrapsEmissions8[Name]),0) -> 0 | P19: =IFERROR(tbl_MatsScrapsEmissions8[[#This Row],[Starting Material/Blend mass in Component(kg)]]/SUMIFS(tbl_MatsScrapsEmissions8[Starting Material/Blend mass in Component(kg)],tbl_MatsScrapsEmissions8[[ Shoe]],tbl_MatsScrapsEmissions8[[#This Row],[ Shoe]]),"") ->  | Q19: =IFERROR(IF(ISNUMBER(SEARCH("B_",tbl_MatsScrapsEmissions8[Name]:tbl_MatsScrapsEmissions8[Name])),GETPIVOTDATA("Sum of DQR Score",'PivotTables-EOL+CIs'!$K$133,"Blend name",tbl_MatsScrapsEmissions8[Name]:tbl_MatsScrapsEmissions8[Name]),GETPIVOTDATA("Average of DQR Score",'PivotTables-EOL+CIs'!$A$133,"Material Name/Stage/Product Category (CALCULATED COLUMN -NO NEED TO EDIT)",tbl_MatsScrapsEmissions8[Name]:tbl_MatsScrapsEmissions8[Name])),"") ->  | R19: =IFERROR(IF(ISNUMBER(SEARCH("B_",tbl_MatsScrapsEmissions8[Name]:tbl_MatsScrapsEmissions8[Name])),GETPIVOTDATA("Sum of Uncertainty Score",'PivotTables-EOL+CIs'!$K$133,"Blend name",tbl_MatsScrapsEmissions8[Name]:tbl_MatsScrapsEmissions8[Name]),GETPIVOTDATA("Average of Uncertainty Score",'PivotTables-EOL+CIs'!$A$133,"Material Name/Stage/Product Category (CALCULATED COLUMN -NO NEED TO EDIT)",tbl_MatsScrapsEmissions8[Name]:tbl_MatsScrapsEmissions8[Name])),"") ->  | S19: =IFERROR(IF(ISNUMBER(SEARCH("B_",tbl_MatsScrapsEmissions8[Name]:tbl_MatsScrapsEmissions8[Name])),GETPIVOTDATA("Sum of CI_Blend_raw",'PivotTables-EOL+CIs'!$K$133,"Blend name",tbl_MatsScrapsEmissions8[Name]:tbl_MatsScrapsEmissions8[Name]),GETPIVOTDATA("Sum of Net CI (kg CO2e/kg)",'PivotTables-EOL+CIs'!$A$133,"Material Name/Stage/Product Category (CALCULATED COLUMN -NO NEED TO EDIT)",tbl_MatsScrapsEmissions8[Name]:tbl_MatsScrapsEmissions8[Name])),"") ->  | T19: =IFERROR(IF(ISNUMBER(SEARCH("B_",tbl_MatsScrapsEmissions8[Name]:tbl_MatsScrapsEmissions8[Name])),GETPIVOTDATA("Sum of CI_blend_prodBiogenic",'PivotTables-EOL+CIs'!$K$133,"Blend name",tbl_MatsScrapsEmissions8[Name]:tbl_MatsScrapsEmissions8[Name]),GETPIVOTDATA("Sum of Biogenic Carbon-Product biogenic carbon content",'PivotTables-EOL+CIs'!$A$133,"Material Name/Stage/Product Category (CALCULATED COLUMN -NO NEED TO EDIT)",tbl_MatsScrapsEmissions8[Name]:tbl_MatsScrapsEmissions8[Name])),"") ->  | U19: =IFERROR(IF(ISNUMBER(SEARCH("B_",tbl_MatsScrapsEmissions8[Name]:tbl_MatsScrapsEmissions8[Name])),GETPIVOTDATA("Sum of CI_Blend_land",'PivotTables-EOL+CIs'!$K$133,"Blend name",tbl_MatsScrapsEmissions8[Name]:tbl_MatsScrapsEmissions8[Name]),GETPIVOTDATA("Sum of Landfill ",'PivotTables-EOL+CIs'!$A$133,"Material Name/Stage/Product Category (CALCULATED COLUMN -NO NEED TO EDIT)",tbl_MatsScrapsEmissions8[Name]:tbl_MatsScrapsEmissions8[Name])),"") ->  | V19: =IFERROR(IF(ISNUMBER(SEARCH("B_",tbl_MatsScrapsEmissions8[Name]:tbl_MatsScrapsEmissions8[Name])),GETPIVOTDATA("Sum of CI_Blend_incin",'PivotTables-EOL+CIs'!$K$133,"Blend name",tbl_MatsScrapsEmissions8[Name]:tbl_MatsScrapsEmissions8[Name]),GETPIVOTDATA("Sum of Incinerated ",'PivotTables-EOL+CIs'!$A$133,"Material Name/Stage/Product Category (CALCULATED COLUMN -NO NEED TO EDIT)",tbl_MatsScrapsEmissions8[Name]:tbl_MatsScrapsEmissions8[Name])),"") ->  | W19: =IF(tbl_MatsScrapsEmissions8[[#This Row],[Blend or Material or Packaging?]]="Packaging",((1-'Enter Product'!$K$6)* tbl_MatsScrapsEmissions8[[#This Row],[ Mass of Final Component(g)]])/1000,tbl_MatsScrapsEmissions8[[#This Row],[ Mass of Final Component(g)]]/1000) -> 0 | X19: =IFERROR(((tbl_MatsScrapsEmissions8[[#This Row],[Product EOL-Material/Blend mass in Final Component (kg)]]*tbl_MatsScrapsEmissions8[[#This Row],[CI_Landfill]]*'Enter Product'!$K$4)+(tbl_MatsScrapsEmissions8[[#This Row],[Product EOL-Material/Blend mass in Final Component (kg)]]*'Enter Product'!$K$4*32*tbl_TransportCI[Truck CI]*0.001)),) -> 0 | Y19: =IFERROR(((tbl_MatsScrapsEmissions8[[#This Row],[Product EOL-Material/Blend mass in Final Component (kg)]]*tbl_MatsScrapsEmissions8[[#This Row],[CI_Incinerated]]*'Enter Product'!$K$5)+(tbl_MatsScrapsEmissions8[[#This Row],[Product EOL-Material/Blend mass in Final Component (kg)]]*'Enter Product'!$K$5*32*tbl_TransportCI[Truck CI]*0.001)),) -> 0 | Z19: =IFERROR(tbl_MatsScrapsEmissions8[[#This Row],[Starting Material/Blend mass in Component(kg)]:[Starting Material/Blend mass in Component(kg)]]*tbl_MatsScrapsEmissions8[[#This Row],[1]],0) -> 0 | AA19: =IFERROR(tbl_MatsScrapsEmissions8[[#This Row],[Starting Material/Blend mass in Component(kg)]:[Starting Material/Blend mass in Component(kg)]]*tbl_MatsScrapsEmissions8[[#This Row],[2]],0) -> 0 | AB19: =IFERROR(tbl_MatsScrapsEmissions8[[#This Row],[Starting Material/Blend mass in Component(kg)]:[Starting Material/Blend mass in Component(kg)]]*tbl_MatsScrapsEmissions8[[#This Row],[3]],0) -> 0 | AC19: =IFERROR(tbl_MatsScrapsEmissions8[[#This Row],[Starting Material/Blend mass in Component(kg)]:[Starting Material/Blend mass in Component(kg)]]*tbl_MatsScrapsEmissions8[[#This Row],[4]],0) -> 0 | AD19: =IFERROR(tbl_MatsScrapsEmissions8[[#This Row],[Starting Material/Blend mass in Component(kg)]:[Starting Material/Blend mass in Component(kg)]]*tbl_MatsScrapsEmissions8[[#This Row],[5]],0) -> 0 | AE19: =IFERROR(tbl_MatsScrapsEmissions8[[#This Row],[Starting Material/Blend mass in Component(kg)]:[Starting Material/Blend mass in Component(kg)]]*tbl_MatsScrapsEmissions8[[#This Row],[6]],0) -> 0 | AF19: =IFERROR(tbl_MatsScrapsEmissions8[[#This Row],[Starting Material/Blend mass in Component(kg)]:[Starting Material/Blend mass in Component(kg)]]*tbl_MatsScrapsEmissions8[[#This Row],[CI_Raw]],0) -> 0 | AG19: =IFERROR(IF(tbl_MatsScrapsEmissions8[[#This Row],[Is Waste Recycled?]:[Is Waste Recycled?]]="yes","N/A",IF(tbl_MatsScrapsEmissions8[[#This Row],[Blend or Material or Packaging?]]="Packaging",tbl_MatsScrapsEmissions8[[#This Row],[% material wasted]]*(tbl_MatsScrapsEmissions8[[#This Row],[Starting Material/Blend mass in Component(kg)]]*(1-'Enter Product'!$K$6)*'Enter Product'!$K$4*tbl_MatsScrapsEmissions8[[#This Row],[CI_Landfill]])+(tbl_MatsScrapsEmissions8[[#This Row],[Starting Material/Blend mass in Component(kg)]]*tbl_MatsScrapsEmissions8[[#This Row],[% material wasted]]*(1-'Enter Product'!$K$6)*'Enter Product'!$K$5*tbl_MatsScrapsEmissions8[[#This Row],[CI_Incinerated]]),tbl_MatsScrapsEmissions8[[#This Row],[% material wasted]]*(tbl_MatsScrapsEmissions8[[#This Row],[Starting Material/Blend mass in Component(kg)]]*'Enter Product'!$K$4*tbl_MatsScrapsEmissions8[[#This Row],[CI_Landfill]])+(tbl_MatsScrapsEmissions8[[#This Row],[Starting Material/Blend mass in Component(kg)]]*tbl_MatsScrapsEmissions8[[#This Row],[% material wasted]]*'Enter Product'!$K$5*tbl_MatsScrapsEmissions8[[#This Row],[CI_Incinerated]]))),"") ->  | AH19: =IFERROR(tbl_MatsScrapsEmissions8[[#This Row],[% material wasted]]*tbl_MatsScrapsEmissions8[[#This Row],[Starting Material/Blend mass in Component(kg)]]*tbl_TransportCI[Truck CI]*0.001*32,) -> 0 | AI19: 0 | AJ19: =IFERROR(tbl_MatsScrapsEmissions8[[#This Row],[Starting Material/Blend mass in Component(kg)]:[Starting Material/Blend mass in Component(kg)]]*tbl_MatsScrapsEmissions8[[#This Row],[CI_Raw_prodBiogenic]],0) -> 0 | AK19: =IFERROR(IF(tbl_MatsScrapsEmissions8[[#This Row],[Blend or Material or Packaging?]]="Packaging",tbl_MatsScrapsEmissions8[[#This Row],[Starting Material/Blend mass in Component(kg)]:[Starting Material/Blend mass in Component(kg)]]*tbl_MatsScrapsEmissions8[[#This Row],[CI_Raw_prodBiogenic]],0),0) -> 0 | AL19: =IFERROR(tbl_MatsScrapsEmissions8[[#This Row],[% of Total Product Mass (for DQR)]]*tbl_MatsScrapsEmissions8[[#This Row],[DQR Score]],0) -> 0 | AM19: =IFERROR(tbl_MatsScrapsEmissions8[[#This Row],[% of Total Product Mass (for DQR)]]*tbl_MatsScrapsEmissions8[[#This Row],[Uncertainty Score]],0) -> 0

Sheet Calculation- Energy Consump
A2: Summary
A4: Manufacturing phase carbon footprint summary (column B). Click 'Refresh' to ensure data is updated.
B5: Sum of Factory Emissions (Kg CO2 eq) | C5: Sum of DQR Score | D5: Sum of Uncertainty Score
A6: T-Shirt | B6: 0.363745 | C6: 1.25 | D6: 2
A7: Sneaker | B7: 4.042314 | C7: 1.25 | D7: 2
A10: Input Product Data
A12: Select the product from dropdown (column B) and corresponding Tier 1 manufacturing processes (column B), then enter the T1 factory location. If a new process or location is needed, input the relevant data in the 'EnergyProcess' tab.
A13: Shoe | B13: Energy Process | C13: Mass of Shoe/Component (kg) | D13: Total Electricity Consumed (kWh) | E13: Total Natural Gas Consumed (cu ft) | F13: Total Diesel Consumed (liters) | G13: Total Chemicals and Dyestuffs Consumed (kg) | H13: Total Packaging Materials (kg) | I13: Total Waste Landfilled- Hazardous+Non-hazardous (kg) | J13: Total Waste Incinerated- Hazardous+Non-hazardous (kg) | K13: Country | L13: Factory Emissions (Kg CO2 eq) | M13: % of Total Product (for DQR) | N13: DQR Score | O13: Uncertainty Score
A14: T-Shirt | B14: Cut & Sew - Apparel | C14: =VLOOKUP(tbl_EnergyEmissions[[#This Row],[Shoe]]&";"&tbl_EnergyEmissions[[#This Row],[Energy Process]],tbl_ShoeComponentMass[],4,FALSE)*0.001 -> 0.25 | D14: =IFERROR((INDEX(FactoryCIs[],MATCH(tbl_EnergyEmissions[[#This Row],[Energy Process]],FactoryCIs[Energy Process],0),11)*tbl_EnergyEmissions[[#This Row],[Mass of Shoe/Component (kg)]]),0) -> 0.5 | E14: =IFERROR((INDEX(FactoryCIs[],MATCH(tbl_EnergyEmissions[[#This Row],[Energy Process]],FactoryCIs[Energy Process],0),12)*tbl_EnergyEmissions[[#This Row],[Mass of Shoe/Component (kg)]]),0) -> 0 | F14: =IFERROR((INDEX(FactoryCIs[],MATCH(tbl_EnergyEmissions[[#This Row],[Energy Process]],FactoryCIs[Energy Process],0),13)*tbl_EnergyEmissions[[#This Row],[Mass of Shoe/Component (kg)]]),0) -> 0 | G14: =IFERROR(((INDEX(FactoryCIs[],MATCH(tbl_EnergyEmissions[[#This Row],[Energy Process]],FactoryCIs[Energy Process],0),14)+INDEX(FactoryCIs[],MATCH(tbl_EnergyEmissions[[#This Row],[Energy Process]],FactoryCIs[Energy Process],0),15))*tbl_EnergyEmissions[[#This Row],[Mass of Shoe/Component (kg)]]),0) -> 0 | H14: =IFERROR(((INDEX(FactoryCIs[],MATCH(tbl_EnergyEmissions[[#This Row],[Energy Process]],FactoryCIs[Energy Process],0),16)+INDEX(FactoryCIs[],MATCH(tbl_EnergyEmissions[[#This Row],[Energy Process]],FactoryCIs[Energy Process],0),17))*tbl_EnergyEmissions[[#This Row],[Mass of Shoe/Component (kg)]]),0) -> 0 | I14: =IFERROR(((INDEX(FactoryCIs[],MATCH(tbl_EnergyEmissions[[#This Row],[Energy Process]],FactoryCIs[Energy Process],0),18)+INDEX(FactoryCIs[],MATCH(tbl_EnergyEmissions[[#This Row],[Energy Process]],FactoryCIs[Energy Process],0),20))*tbl_EnergyEmissions[[#This Row],[Mass of Shoe/Component (kg)]]),0) -> 0 | J14: =IFERROR(((INDEX(FactoryCIs[],MATCH(tbl_EnergyEmissions[[#This Row],[Energy Process]],FactoryCIs[Energy Process],0),19)+INDEX(FactoryCIs[],MATCH(tbl_EnergyEmissions[[#This Row],[Energy Process]],FactoryCIs[Energy Process],0),21))*tbl_EnergyEmissions[[#This Row],[Mass of Shoe/Component (kg)]]),0) -> 0 | K14: China grid | L14: =IFERROR(IF(ISERROR(VLOOKUP(tbl_EnergyEmissions[[#This Row],[Energy Process]]&";"&tbl_EnergyEmissions[[#This Row],[Country]],FactoryCIs[],1,FALSE)),((VLOOKUP(tbl_EnergyEmissions[[#This Row],[Country]],tbl_EnergyTypes[[#All],[Country]:[Electricity (kgCO2e/kWh)]],2,FALSE)*tbl_EnergyEmissions[[#This Row],[Total Electricity Consumed (kWh)]])+(VLOOKUP(tbl_EnergyEmissions[[#This Row],[Energy Process]],FactoryCIs[[#All],[Energy Process]:[TOTAL minus electricity (kgCO2e/kg)]],5,FALSE)*tbl_EnergyEmissions[[#This Row],[Mass of Shoe/Component (kg)]])),(VLOOKUP(tbl_EnergyEmissions[[#This Row],[Energy Process]]&";"&tbl_EnergyEmissions[[#This Row],[Country]],FactoryCIs[],5,FALSE)*tbl_EnergyEmissions[[#This Row],[Mass of Shoe/Component (kg)]])),) -> 0.3163 | M14: =IFERROR(tbl_EnergyEmissions[[#This Row],[Mass of Shoe/Component (kg)]]/SUMIFS(tbl_EnergyEmissions[Mass of Shoe/Component (kg)],tbl_EnergyEmissions[Shoe],tbl_EnergyEmissions[[#This Row],[Shoe]]),"") -> 0.5 | N14: =IFERROR(IFERROR(INDEX(FactoryCIs[#All],MATCH(tbl_EnergyEmissions[[#This Row],[Energy Process]]&";"&tbl_EnergyEmissions[[#This Row],[Country]],FactoryCIs[[#All],[HelperForCalculations]],0),22),AVERAGE(3,1,2,3))*tbl_EnergyEmissions[[#This Row],[% of Total Product (for DQR)]],"") -> 0.625 | O14: =IFERROR(IFERROR(INDEX(FactoryCIs[#All],MATCH(tbl_EnergyEmissions[[#This Row],[Energy Process]]&";"&tbl_EnergyEmissions[[#This Row],[Country]],FactoryCIs[[#All],[HelperForCalculations]],0),23),3)*tbl_EnergyEmissions[[#This Row],[% of Total Product (for DQR)]],"") -> 1
A15: T-Shirt | B15: Finishing - Apparel | C15: =VLOOKUP(tbl_EnergyEmissions[[#This Row],[Shoe]]&";"&tbl_EnergyEmissions[[#This Row],[Energy Process]],tbl_ShoeComponentMass[],4,FALSE)*0.001 -> 0.25 | D15: =IFERROR((INDEX(FactoryCIs[],MATCH(tbl_EnergyEmissions[[#This Row],[Energy Process]],FactoryCIs[Energy Process],0),11)*tbl_EnergyEmissions[[#This Row],[Mass of Shoe/Component (kg)]]),0) -> 0.075 | E15: =IFERROR((INDEX(FactoryCIs[],MATCH(tbl_EnergyEmissions[[#This Row],[Energy Process]],FactoryCIs[Energy Process],0),12)*tbl_EnergyEmissions[[#This Row],[Mass of Shoe/Component (kg)]]),0) -> 0 | F15: =IFERROR((INDEX(FactoryCIs[],MATCH(tbl_EnergyEmissions[[#This Row],[Energy Process]],FactoryCIs[Energy Process],0),13)*tbl_EnergyEmissions[[#This Row],[Mass of Shoe/Component (kg)]]),0) -> 0 | G15: =IFERROR(((INDEX(FactoryCIs[],MATCH(tbl_EnergyEmissions[[#This Row],[Energy Process]],FactoryCIs[Energy Process],0),14)+INDEX(FactoryCIs[],MATCH(tbl_EnergyEmissions[[#This Row],[Energy Process]],FactoryCIs[Energy Process],0),15))*tbl_EnergyEmissions[[#This Row],[Mass of Shoe/Component (kg)]]),0) -> 0 | H15: =IFERROR(((INDEX(FactoryCIs[],MATCH(tbl_EnergyEmissions[[#This Row],[Energy Process]],FactoryCIs[Energy Process],0),16)+INDEX(FactoryCIs[],MATCH(tbl_EnergyEmissions[[#This Row],[Energy Process]],FactoryCIs[Energy Process],0),17))*tbl_EnergyEmissions[[#This Row],[Mass of Shoe/Component (kg)]]),0) -> 0 | I15: =IFERROR(((INDEX(FactoryCIs[],MATCH(tbl_EnergyEmissions[[#This Row],[Energy Process]],FactoryCIs[Energy Process],0),18)+INDEX(FactoryCIs[],MATCH(tbl_EnergyEmissions[[#This Row],[Energy Process]],FactoryCIs[Energy Process],0),20))*tbl_EnergyEmissions[[#This Row],[Mass of Shoe/Component (kg)]]),0) -> 0 | J15: =IFERROR(((INDEX(FactoryCIs[],MATCH(tbl_EnergyEmissions[[#This Row],[Energy Process]],FactoryCIs[Energy Process],0),19)+INDEX(FactoryCIs[],MATCH(tbl_EnergyEmissions[[#This Row],[Energy Process]],FactoryCIs[Energy Process],0),21))*tbl_EnergyEmissions[[#This Row],[Mass of Shoe/Component (kg)]]),0) -> 0 | K15: China grid | L15: =IFERROR(IF(ISERROR(VLOOKUP(tbl_EnergyEmissions[[#This Row],[Energy Process]]&";"&tbl_EnergyEmissions[[#This Row],[Country]],FactoryCIs[],1,FALSE)),((VLOOKUP(tbl_EnergyEmissions[[#This Row],[Country]],tbl_EnergyTypes[[#All],[Country]:[Electricity (kgCO2e/kWh)]],2,FALSE)*tbl_EnergyEmissions[[#This Row],[Total Electricity Consumed (kWh)]])+(VLOOKUP(tbl_EnergyEmissions[[#This Row],[Energy Process]],FactoryCIs[[#All],[Energy Process]:[TOTAL minus electricity (kgCO2e/kg)]],5,FALSE)*tbl_EnergyEmissions[[#This Row],[Mass of Shoe/Component (kg)]])),(VLOOKUP(tbl_EnergyEmissions[[#This Row],[Energy Process]]&";"&tbl_EnergyEmissions[[#This Row],[Country]],FactoryCIs[],5,FALSE)*tbl_EnergyEmissions[[#This Row],[Mass of Shoe/Component (kg)]])),) -> 0.047445 | M15: =IFERROR(tbl_EnergyEmissions[[#This Row],[Mass of Shoe/Component (kg)]]/SUMIFS(tbl_EnergyEmissions[Mass of Shoe/Component (kg)],tbl_EnergyEmissions[Shoe],tbl_EnergyEmissions[[#This Row],[Shoe]]),"") -> 0.5 | N15: =IFERROR(IFERROR(INDEX(FactoryCIs[#All],MATCH(tbl_EnergyEmissions[[#This Row],[Energy Process]]&";"&tbl_EnergyEmissions[[#This Row],[Country]],FactoryCIs[[#All],[HelperForCalculations]],0),22),AVERAGE(3,1,2,3))*tbl_EnergyEmissions[[#This Row],[% of Total Product (for DQR)]],"") -> 0.625 | O15: =IFERROR(IFERROR(INDEX(FactoryCIs[#All],MATCH(tbl_EnergyEmissions[[#This Row],[Energy Process]]&";"&tbl_EnergyEmissions[[#This Row],[Country]],FactoryCIs[[#All],[HelperForCalculations]],0),23),3)*tbl_EnergyEmissions[[#This Row],[% of Total Product (for DQR)]],"") -> 1
A16: Sneaker | B16: Manufacturing - Sneaker | C16: =VLOOKUP(tbl_EnergyEmissions[[#This Row],[Shoe]]&";"&tbl_EnergyEmissions[[#This Row],[Energy Process]],tbl_ShoeComponentMass[],4,FALSE)*0.001 -> 0.674 | D16: =IFERROR((INDEX(FactoryCIs[],MATCH(tbl_EnergyEmissions[[#This Row],[Energy Process]],FactoryCIs[Energy Process],0),11)*tbl_EnergyEmissions[[#This Row],[Mass of Shoe/Component (kg)]]),0) -> 6.39 | E16: =IFERROR((INDEX(FactoryCIs[],MATCH(tbl_EnergyEmissions[[#This Row],[Energy Process]],FactoryCIs[Energy Process],0),12)*tbl_EnergyEmissions[[#This Row],[Mass of Shoe/Component (kg)]]),0) -> 0 | F16: =IFERROR((INDEX(FactoryCIs[],MATCH(tbl_EnergyEmissions[[#This Row],[Energy Process]],FactoryCIs[Energy Process],0),13)*tbl_EnergyEmissions[[#This Row],[Mass of Shoe/Component (kg)]]),0) -> 0 | G16: =IFERROR(((INDEX(FactoryCIs[],MATCH(tbl_EnergyEmissions[[#This Row],[Energy Process]],FactoryCIs[Energy Process],0),14)+INDEX(FactoryCIs[],MATCH(tbl_EnergyEmissions[[#This Row],[Energy Process]],FactoryCIs[Energy Process],0),15))*tbl_EnergyEmissions[[#This Row],[Mass of Shoe/Component (kg)]]),0) -> 0 | H16: =IFERROR(((INDEX(FactoryCIs[],MATCH(tbl_EnergyEmissions[[#This Row],[Energy Process]],FactoryCIs[Energy Process],0),16)+INDEX(FactoryCIs[],MATCH(tbl_EnergyEmissions[[#This Row],[Energy Process]],FactoryCIs[Energy Process],0),17))*tbl_EnergyEmissions[[#This Row],[Mass of Shoe/Component (kg)]]),0) -> 0 | I16: =IFERROR(((INDEX(FactoryCIs[],MATCH(tbl_EnergyEmissions[[#This Row],[Energy Process]],FactoryCIs[Energy Process],0),18)+INDEX(FactoryCIs[],MATCH(tbl_EnergyEmissions[[#This Row],[Energy Process]],FactoryCIs[Energy Process],0),20))*tbl_EnergyEmissions[[#This Row],[Mass of Shoe/Component (kg)]]),0) -> 0 | J16: =IFERROR(((INDEX(FactoryCIs[],MATCH(tbl_EnergyEmissions[[#This Row],[Energy Process]],FactoryCIs[Energy Process],0),19)+INDEX(FactoryCIs[],MATCH(tbl_EnergyEmissions[[#This Row],[Energy Process]],FactoryCIs[Energy Process],0),21))*tbl_EnergyEmissions[[#This Row],[Mass of Shoe/Component (kg)]]),0) -> 0 | K16: China grid | L16: =IFERROR(IF(ISERROR(VLOOKUP(tbl_EnergyEmissions[[#This Row],[Energy Process]]&";"&tbl_EnergyEmissions[[#This Row],[Country]],FactoryCIs[],1,FALSE)),((VLOOKUP(tbl_EnergyEmissions[[#This Row],[Country]],tbl_EnergyTypes[[#All],[Country]:[Electricity (kgCO2e/kWh)]],2,FALSE)*tbl_EnergyEmissions[[#This Row],[Total Electricity Consumed (kWh)]])+(VLOOKUP(tbl_EnergyEmissions[[#This Row],[Energy Process]],FactoryCIs[[#All],[Energy Process]:[TOTAL minus electricity (kgCO2e/kg)]],5,FALSE)*tbl_EnergyEmissions[[#This Row],[Mass of Shoe/Component (kg)]])),(VLOOKUP(tbl_EnergyEmissions[[#This Row],[Energy Process]]&";"&tbl_EnergyEmissions[[#This Row],[Country]],FactoryCIs[],5,FALSE)*tbl_EnergyEmissions[[#This Row],[Mass of Shoe/Component (kg)]])),) -> 4.042314 | M16: =IFERROR(tbl_EnergyEmissions[[#This Row],[Mass of Shoe/Component (kg)]]/SUMIFS(tbl_EnergyEmissions[Mass of Shoe/Component (kg)],tbl_EnergyEmissions[Shoe],tbl_EnergyEmissions[[#This Row],[Shoe]]),"") -> 1 | N16: =IFERROR(IFERROR(INDEX(FactoryCIs[#All],MATCH(tbl_EnergyEmissions[[#This Row],[Energy Process]]&";"&tbl_EnergyEmissions[[#This Row],[Country]],FactoryCIs[[#All],[HelperForCalculations]],0),22),AVERAGE(3,1,2,3))*tbl_EnergyEmissions[[#This Row],[% of Total Product (for DQR)]],"") -> 1.25 | O16: =IFERROR(IFERROR(INDEX(FactoryCIs[#All],MATCH(tbl_EnergyEmissions[[#This Row],[Energy Process]]&";"&tbl_EnergyEmissions[[#This Row],[Country]],FactoryCIs[[#All],[HelperForCalculations]],0),23),3)*tbl_EnergyEmissions[[#This Row],[% of Total Product (for DQR)]],"") -> 2
C17: =VLOOKUP(tbl_EnergyEmissions[[#This Row],[Shoe]]&";"&tbl_EnergyEmissions[[#This Row],[Energy Process]],tbl_ShoeComponentMass[],4,FALSE)*0.001 -> 0 | D17: =IFERROR((INDEX(FactoryCIs[],MATCH(tbl_EnergyEmissions[[#This Row],[Energy Process]],FactoryCIs[Energy Process],0),11)*tbl_EnergyEmissions[[#This Row],[Mass of Shoe/Component (kg)]]),0) -> 0 | E17: =IFERROR((INDEX(FactoryCIs[],MATCH(tbl_EnergyEmissions[[#This Row],[Energy Process]],FactoryCIs[Energy Process],0),12)*tbl_EnergyEmissions[[#This Row],[Mass of Shoe/Component (kg)]]),0) -> 0 | F17: =IFERROR((INDEX(FactoryCIs[],MATCH(tbl_EnergyEmissions[[#This Row],[Energy Process]],FactoryCIs[Energy Process],0),13)*tbl_EnergyEmissions[[#This Row],[Mass of Shoe/Component (kg)]]),0) -> 0 | G17: =IFERROR(((INDEX(FactoryCIs[],MATCH(tbl_EnergyEmissions[[#This Row],[Energy Process]],FactoryCIs[Energy Process],0),14)+INDEX(FactoryCIs[],MATCH(tbl_EnergyEmissions[[#This Row],[Energy Process]],FactoryCIs[Energy Process],0),15))*tbl_EnergyEmissions[[#This Row],[Mass of Shoe/Component (kg)]]),0) -> 0 | H17: =IFERROR(((INDEX(FactoryCIs[],MATCH(tbl_EnergyEmissions[[#This Row],[Energy Process]],FactoryCIs[Energy Process],0),16)+INDEX(FactoryCIs[],MATCH(tbl_EnergyEmissions[[#This Row],[Energy Process]],FactoryCIs[Energy Process],0),17))*tbl_EnergyEmissions[[#This Row],[Mass of Shoe/Component (kg)]]),0) -> 0 | I17: =IFERROR(((INDEX(FactoryCIs[],MATCH(tbl_EnergyEmissions[[#This Row],[Energy Process]],FactoryCIs[Energy Process],0),18)+INDEX(FactoryCIs[],MATCH(tbl_EnergyEmissions[[#This Row],[Energy Process]],FactoryCIs[Energy Process],0),20))*tbl_EnergyEmissions[[#This Row],[Mass of Shoe/Component (kg)]]),0) -> 0 | J17: =IFERROR(((INDEX(FactoryCIs[],MATCH(tbl_EnergyEmissions[[#This Row],[Energy Process]],FactoryCIs[Energy Process],0),19)+INDEX(FactoryCIs[],MATCH(tbl_EnergyEmissions[[#This Row],[Energy Process]],FactoryCIs[Energy Process],0),21))*tbl_EnergyEmissions[[#This Row],[Mass of Shoe/Component (kg)]]),0) -> 0 | L17: =IFERROR(IF(ISERROR(VLOOKUP(tbl_EnergyEmissions[[#This Row],[Energy Process]]&";"&tbl_EnergyEmissions[[#This Row],[Country]],FactoryCIs[],1,FALSE)),((VLOOKUP(tbl_EnergyEmissions[[#This Row],[Country]],tbl_EnergyTypes[[#All],[Country]:[Electricity (kgCO2e/kWh)]],2,FALSE)*tbl_EnergyEmissions[[#This Row],[Total Electricity Consumed (kWh)]])+(VLOOKUP(tbl_EnergyEmissions[[#This Row],[Energy Process]],FactoryCIs[[#All],[Energy Process]:[TOTAL minus electricity (kgCO2e/kg)]],5,FALSE)*tbl_EnergyEmissions[[#This Row],[Mass of Shoe/Component (kg)]])),(VLOOKUP(tbl_EnergyEmissions[[#This Row],[Energy Process]]&";"&tbl_EnergyEmissions[[#This Row],[Country]],FactoryCIs[],5,FALSE)*tbl_EnergyEmissions[[#This Row],[Mass of Shoe/Component (kg)]])),) -> 0 | M17: =IFERROR(tbl_EnergyEmissions[[#This Row],[Mass of Shoe/Component (kg)]]/SUMIFS(tbl_EnergyEmissions[Mass of Shoe/Component (kg)],tbl_EnergyEmissions[Shoe],tbl_EnergyEmissions[[#This Row],[Shoe]]),"") ->  | N17: =IFERROR(IFERROR(INDEX(FactoryCIs[#All],MATCH(tbl_EnergyEmissions[[#This Row],[Energy Process]]&";"&tbl_EnergyEmissions[[#This Row],[Country]],FactoryCIs[[#All],[HelperForCalculations]],0),22),AVERAGE(3,1,2,3))*tbl_EnergyEmissions[[#This Row],[% of Total Product (for DQR)]],"") ->  | O17: =IFERROR(IFERROR(INDEX(FactoryCIs[#All],MATCH(tbl_EnergyEmissions[[#This Row],[Energy Process]]&";"&tbl_EnergyEmissions[[#This Row],[Country]],FactoryCIs[[#All],[HelperForCalculations]],0),23),3)*tbl_EnergyEmissions[[#This Row],[% of Total Product (for DQR)]],"") -> 
C18: =VLOOKUP(tbl_EnergyEmissions[[#This Row],[Shoe]]&";"&tbl_EnergyEmissions[[#This Row],[Energy Process]],tbl_ShoeComponentMass[],4,FALSE)*0.001 -> 0 | D18: =IFERROR((INDEX(FactoryCIs[],MATCH(tbl_EnergyEmissions[[#This Row],[Energy Process]],FactoryCIs[Energy Process],0),11)*tbl_EnergyEmissions[[#This Row],[Mass of Shoe/Component (kg)]]),0) -> 0 | E18: =IFERROR((INDEX(FactoryCIs[],MATCH(tbl_EnergyEmissions[[#This Row],[Energy Process]],FactoryCIs[Energy Process],0),12)*tbl_EnergyEmissions[[#This Row],[Mass of Shoe/Component (kg)]]),0) -> 0 | F18: =IFERROR((INDEX(FactoryCIs[],MATCH(tbl_EnergyEmissions[[#This Row],[Energy Process]],FactoryCIs[Energy Process],0),13)*tbl_EnergyEmissions[[#This Row],[Mass of Shoe/Component (kg)]]),0) -> 0 | G18: =IFERROR(((INDEX(FactoryCIs[],MATCH(tbl_EnergyEmissions[[#This Row],[Energy Process]],FactoryCIs[Energy Process],0),14)+INDEX(FactoryCIs[],MATCH(tbl_EnergyEmissions[[#This Row],[Energy Process]],FactoryCIs[Energy Process],0),15))*tbl_EnergyEmissions[[#This Row],[Mass of Shoe/Component (kg)]]),0) -> 0 | H18: =IFERROR(((INDEX(FactoryCIs[],MATCH(tbl_EnergyEmissions[[#This Row],[Energy Process]],FactoryCIs[Energy Process],0),16)+INDEX(FactoryCIs[],MATCH(tbl_EnergyEmissions[[#This Row],[Energy Process]],FactoryCIs[Energy Process],0),17))*tbl_EnergyEmissions[[#This Row],[Mass of Shoe/Component (kg)]]),0) -> 0 | I18: =IFERROR(((INDEX(FactoryCIs[],MATCH(tbl_EnergyEmissions[[#This Row],[Energy Process]],FactoryCIs[Energy Process],0),18)+INDEX(FactoryCIs[],MATCH(tbl_EnergyEmissions[[#This Row],[Energy Process]],FactoryCIs[Energy Process],0),20))*tbl_EnergyEmissions[[#This Row],[Mass of Shoe/Component (kg)]]),0) -> 0 | J18: =IFERROR(((INDEX(FactoryCIs[],MATCH(tbl_EnergyEmissions[[#This Row],[Energy Process]],FactoryCIs[Energy Process],0),19)+INDEX(FactoryCIs[],MATCH(tbl_EnergyEmissions[[#This Row],[Energy Process]],FactoryCIs[Energy Process],0),21))*tbl_EnergyEmissions[[#This Row],[Mass of Shoe/Component (kg)]]),0) -> 0 | L18: =IFERROR(IF(ISERROR(VLOOKUP(tbl_EnergyEmissions[[#This Row],[Energy Process]]&";"&tbl_EnergyEmissions[[#This Row],[Country]],FactoryCIs[],1,FALSE)),((VLOOKUP(tbl_EnergyEmissions[[#This Row],[Country]],tbl_EnergyTypes[[#All],[Country]:[Electricity (kgCO2e/kWh)]],2,FALSE)*tbl_EnergyEmissions[[#This Row],[Total Electricity Consumed (kWh)]])+(VLOOKUP(tbl_EnergyEmissions[[#This Row],[Energy Process]],FactoryCIs[[#All],[Energy Process]:[TOTAL minus electricity (kgCO2e/kg)]],5,FALSE)*tbl_EnergyEmissions[[#This Row],[Mass of Shoe/Component (kg)]])),(VLOOKUP(tbl_EnergyEmissions[[#This Row],[Energy Process]]&";"&tbl_EnergyEmissions[[#This Row],[Country]],FactoryCIs[],5,FALSE)*tbl_EnergyEmissions[[#This Row],[Mass of Shoe/Component (kg)]])),) -> 0 | M18: =IFERROR(tbl_EnergyEmissions[[#This Row],[Mass of Shoe/Component (kg)]]/SUMIFS(tbl_EnergyEmissions[Mass of Shoe/Component (kg)],tbl_EnergyEmissions[Shoe],tbl_EnergyEmissions[[#This Row],[Shoe]]),"") ->  | N18: =IFERROR(IFERROR(INDEX(FactoryCIs[#All],MATCH(tbl_EnergyEmissions[[#This Row],[Energy Process]]&";"&tbl_EnergyEmissions[[#This Row],[Country]],FactoryCIs[[#All],[HelperForCalculations]],0),22),AVERAGE(3,1,2,3))*tbl_EnergyEmissions[[#This Row],[% of Total Product (for DQR)]],"") ->  | O18: =IFERROR(IFERROR(INDEX(FactoryCIs[#All],MATCH(tbl_EnergyEmissions[[#This Row],[Energy Process]]&";"&tbl_EnergyEmissions[[#This Row],[Country]],FactoryCIs[[#All],[HelperForCalculations]],0),23),3)*tbl_EnergyEmissions[[#This Row],[% of Total Product (for DQR)]],"") -> 

Sheet Calculation-Transport
A2: Summary
B4: Raw material to textile transportation carbon footprint (column C), if not included in materials phase. Click 'Refresh' to ensure data is updated. | F4: Textile material to Tier 1 transportation carbon footprint (column G), if not included in materials phase. Click 'Refresh' to ensure data is updated. | L4: Tier 1 to warehouse transportation carbon footprint (column M). Click 'Refresh' to ensure data is updated. | R4: Warehouse to customer transportation , including returns (column S). Click 'Refresh' to ensure data is updated.
C5: Sum of Transportation Emissions- Raw Mat to Textile (kg) | D5: Sum of Aircraft Transportation Emissions | G5: Sum of Transportation Emissions- Textile to Tier 1 (kg) | H5: Sum of Aircraft Transportation Emissions-Textile to Tier 1 | I5: Sum of DQR Score- Raw Material to Tier 1 | J5: Sum of Uncertainty Score- Raw Maerial to Tier 1 | M5: Sum of Transportation Emissions- Tier 1 to Warehouse (kg) | N5: Sum of Aircraft Transportation Emissions-Tier 1 to Warehouse | O5: Sum of DQR Score-Tier 1 to WH | P5: Sum of Uncertainty Score- Tier 1 to WH | S5: Sum of Transportation Emissions- Warehouse to Consumers(kg) | T5: Sum of Aircraft Transportation Emissions-Warehouse to Consumers | U5: Sum of DQR Score- WH to Consumer | V5: Sum of Uncertainty Score- WH to Consumer
L6: T-Shirt | M6: 0.8412415875 | N6: 0.67075965 | O6: 2.25 | P6: 3 | R6: T-Shirt | S6: 0.1020740484 | T6: 0.04136201719 | U6: 2.25 | V6: 3
L7: Sneaker | M7: 1.592750739 | N7: 1.269971604 | O7: 2.25 | P7: 3 | R7: Sneaker | S7: 0.1932601984 | T7: 0.07831208587 | U7: 2.25 | V7: 3
A13: Input Product Data
A15: Only use this table if transportation of raw material to textile mill/factory (Tier 2+) is not included in the materials phase. Select the product from dropdown (column A) and relevant material being transported (column B). If 'No' is selected (column C), then select the raw material source location (column E), Tier 2+ textile mill/factory location (column F), and enter the transportation mode breakdown (columns H-J). If the material is supplied to a single location, enter 100% in column G; otherwise, enter the % supplied and add another row to model the remaining distribution. If a new location is needed, input the relevant data in the 'ShoeTransport' tab.
A16: Shoe | B16: Material | C16: Is Transportation included in the material's CI? | D16: Mass of Material (kg) | E16: Raw Material | F16: Textile | G16: %supplied | H16: % air | I16: % ocean | J16: % truck | K16: Aircraft Transportation Emissions | L16: Transportation Emissions- Raw Mat to Textile (kg)
C17: Yes | D17: =IFERROR(IF(Tbl_Transp_SupplierFabricProducer21[[#This Row],[Is Transportation included in the material''s CI?]]="No",SUMIFS(INDEX(#REF!,,MATCH(Tbl_Transp_SupplierFabricProducer21[[#This Row],[Material]],#REF!,0)),#REF!,Tbl_Transp_SupplierFabricProducer21[[#This Row],[Shoe]]),""),"") ->  | K17: =IF(Tbl_Transp_SupplierFabricProducer21[[#This Row],[Is Transportation included in the material''s CI?]]="No",IFERROR(((Tbl_Transp_SupplierFabricProducer21[[#This Row],[Mass of Material (kg)]]*Tbl_Transp_SupplierFabricProducer21[[#This Row],[%supplied]])*((Tbl_Transp_SupplierFabricProducer21[[#This Row],[% air]]*Air_Distance*tbl_TransportCI[Air CI])))/1000,0),"") ->  | L17: =IF(Tbl_Transp_SupplierFabricProducer21[[#This Row],[Is Transportation included in the material''s CI?]]="No",IFERROR(((Tbl_Transp_SupplierFabricProducer21[[#This Row],[Mass of Material (kg)]]*Tbl_Transp_SupplierFabricProducer21[[#This Row],[%supplied]])*((Tbl_Transp_SupplierFabricProducer21[[#This Row],[% air]]*Air_Distance*tbl_TransportCI[Air CI])+(Tbl_Transp_SupplierFabricProducer21[[#This Row],[% ocean]]*Ocean_Distance*tbl_TransportCI[Ocean CI])+(Tbl_Transp_SupplierFabricProducer21[[#This Row],[% truck]]*Truck_Distance*tbl_TransportCI[Truck CI])))/1000,0),"") -> 
A20: Only use this table if transportation of material from textile mill/factory (Tier 2+) to Tier 1 factory is not included in the materials phase. Select the product from dropdown (column A) and relevant material being transported (column B). Select the material source location (column D), Tier 1 factory location (column E), and enter the transportation mode breakdown (columns G-I). If the material is supplied to a single location, enter 100% in column F; otherwise, enter the % supplied and add another row to model the remaining distribution. If a new location is needed, input the relevant data in the 'ShoeTransport' tab.
A21: Shoe | B21: Material | C21: Mass of Material (kg) | D21: Textile | E21: Tier 1 | F21: %supplied | G21: % air | H21: % ocean | I21: % truck | J21: Aircraft Transportation Emissions-Textile to Tier 1 | K21: Transportation Emissions- Textile to Tier 1 (kg) | L21: DQR Score- Raw Material to Tier 1 | M21: Uncertainty Score- Raw Maerial to Tier 1
C22: =SUMIFS(Merge1[Starting Material/Blend mass in Component(kg)],Merge1[[ Shoe]],tbl_Transp_FabricProdAssembly25[[#This Row],[Shoe]],Merge1[FinalMaterialList],tbl_Transp_FabricProdAssembly25[[#This Row],[Material]]) -> 0 | J22: =IFERROR(((tbl_Transp_FabricProdAssembly25[[#This Row],[Mass of Material (kg)]]*tbl_Transp_FabricProdAssembly25[[#This Row],[%supplied]])*((tbl_Transp_FabricProdAssembly25[[#This Row],[% air]]*Air_Distance2Factory*tbl_TransportCI[Air CI])))/1000,"") -> 0 | K22: =IFERROR(((tbl_Transp_FabricProdAssembly25[[#This Row],[Mass of Material (kg)]]*tbl_Transp_FabricProdAssembly25[[#This Row],[%supplied]])*((tbl_Transp_FabricProdAssembly25[[#This Row],[% air]]*Air_Distance2Factory*tbl_TransportCI[Air CI])+(Ocean_Distance2Factory*tbl_Transp_FabricProdAssembly25[[#This Row],[% ocean]]*tbl_TransportCI[Ocean CI])+(Truck_Distance2Factory*tbl_Transp_FabricProdAssembly25[[#This Row],[% truck]]*tbl_TransportCI[Truck CI])))/1000,"") -> 0 | L22: =ShoeTransport!$B$74*tbl_Transp_FabricProdAssembly25[[#This Row],[%supplied]] -> 0 | M22: =ShoeTransport!$B$75*tbl_Transp_FabricProdAssembly25[[#This Row],[%supplied]] -> 0
A25: Select the product from dropdown (column A), Tier 1 factory location (column C), warehouse location (column D), and enter the transportation mode breakdown (columns F-H). If the product is transported to a single warehouse, enter 100% in column E; otherwise, indicate the % supplied and add another row to model the remaining distribution. If a new location is needed, input the relevant data in the 'ShoeTransport' tab.
A26: Shoe | B26: Mass of Shoe + Package (kg) | C26: Tier 1 | D26: Warehouse | E26: %supplied | F26: % air | G26: % ocean | H26: % truck | I26: Aircraft Transportation Emissions-Tier 1 to Warehouse | J26: Transportation Emissions- Tier 1 to Warehouse (kg) | K26: DQR Score-Tier 1 to WH | L26: Uncertainty Score- Tier 1 to WH
A27: T-Shirt | B27: =IFERROR((INDEX(tbl_ShoeMassPackage[Product Weight (g)],MATCH('Calculation-Transport'!$A27,tbl_ShoeMassPackage[Product],0),1)+INDEX(tbl_ShoeMassPackage[Package Weight (g)],MATCH(tbl_Transp_AssemblyWH26[[#This Row],[Shoe]],tbl_ShoeMassPackage[Product],0),1))/1000,"") -> 0.45 | C27: China Tier 1 | D27: NA Warehouse | E27: 0.5 | F27: 0.17 | G27: 0.83 | H27: 1 | I27: =IFERROR((((tbl_Transp_AssemblyWH26[[#This Row],[Mass of Shoe + Package (kg)]]*tbl_Transp_AssemblyWH26[[#This Row],[%supplied]])*tbl_Transp_AssemblyWH26[[#This Row],[% air]]*(Air_Distance2Warehouse*tbl_TransportCI[Air CI]))/1000),"") -> 0.396357975 | J27: =IFERROR((((tbl_Transp_AssemblyWH26[[#This Row],[Mass of Shoe + Package (kg)]]*tbl_Transp_AssemblyWH26[[#This Row],[%supplied]])*((tbl_Transp_AssemblyWH26[[#This Row],[% air]]*Air_Distance2Warehouse*tbl_TransportCI[Air CI])+(Ocean_Distance2Warehouse*tbl_Transp_AssemblyWH26[[#This Row],[% ocean]]*tbl_TransportCI[Ocean CI])+(Truck_Distance2Warehouse*tbl_Transp_AssemblyWH26[[#This Row],[% truck]]*tbl_TransportCI[Truck CI])))/1000),"") -> 0.4752716625 | K27: =ShoeTransport!$B$74*tbl_Transp_AssemblyWH26[[#This Row],[%supplied]] -> 1.125 | L27: =ShoeTransport!$B$75*tbl_Transp_AssemblyWH26[[#This Row],[%supplied]] -> 1.5
A28: T-Shirt | B28: =IFERROR((INDEX(tbl_ShoeMassPackage[Product Weight (g)],MATCH('Calculation-Transport'!$A28,tbl_ShoeMassPackage[Product],0),1)+INDEX(tbl_ShoeMassPackage[Package Weight (g)],MATCH(tbl_Transp_AssemblyWH26[[#This Row],[Shoe]],tbl_ShoeMassPackage[Product],0),1))/1000,"") -> 0.45 | C28: China Tier 1 | D28: EMEA Warehouse | E28: 0.5 | F28: 0.17 | G28: 0.83 | H28: 1 | I28: =IFERROR((((tbl_Transp_AssemblyWH26[[#This Row],[Mass of Shoe + Package (kg)]]*tbl_Transp_AssemblyWH26[[#This Row],[%supplied]])*tbl_Transp_AssemblyWH26[[#This Row],[% air]]*(Air_Distance2Warehouse*tbl_TransportCI[Air CI]))/1000),"") -> 0.274401675 | J28: =IFERROR((((tbl_Transp_AssemblyWH26[[#This Row],[Mass of Shoe + Package (kg)]]*tbl_Transp_AssemblyWH26[[#This Row],[%supplied]])*((tbl_Transp_AssemblyWH26[[#This Row],[% air]]*Air_Distance2Warehouse*tbl_TransportCI[Air CI])+(Ocean_Distance2Warehouse*tbl_Transp_AssemblyWH26[[#This Row],[% ocean]]*tbl_TransportCI[Ocean CI])+(Truck_Distance2Warehouse*tbl_Transp_AssemblyWH26[[#This Row],[% truck]]*tbl_TransportCI[Truck CI])))/1000),"") -> 0.365969925 | K28: =ShoeTransport!$B$74*tbl_Transp_AssemblyWH26[[#This Row],[%supplied]] -> 1.125 | L28: =ShoeTransport!$B$75*tbl_Transp_AssemblyWH26[[#This Row],[%supplied]] -> 1.5
A29: Sneaker | B29: =IFERROR((INDEX(tbl_ShoeMassPackage[Product Weight (g)],MATCH('Calculation-Transport'!$A29,tbl_ShoeMassPackage[Product],0),1)+INDEX(tbl_ShoeMassPackage[Package Weight (g)],MATCH(tbl_Transp_AssemblyWH26[[#This Row],[Shoe]],tbl_ShoeMassPackage[Product],0),1))/1000,"") -> 0.852 | C29: China Tier 1 | D29: NA Warehouse | E29: 0.5 | F29: 0.17 | G29: 0.83 | H29: 1 | I29: =IFERROR((((tbl_Transp_AssemblyWH26[[#This Row],[Mass of Shoe + Package (kg)]]*tbl_Transp_AssemblyWH26[[#This Row],[%supplied]])*tbl_Transp_AssemblyWH26[[#This Row],[% air]]*(Air_Distance2Warehouse*tbl_TransportCI[Air CI]))/1000),"") -> 0.750437766 | J29: =IFERROR((((tbl_Transp_AssemblyWH26[[#This Row],[Mass of Shoe + Package (kg)]]*tbl_Transp_AssemblyWH26[[#This Row],[%supplied]])*((tbl_Transp_AssemblyWH26[[#This Row],[% air]]*Air_Distance2Warehouse*tbl_TransportCI[Air CI])+(Ocean_Distance2Warehouse*tbl_Transp_AssemblyWH26[[#This Row],[% ocean]]*tbl_TransportCI[Ocean CI])+(Truck_Distance2Warehouse*tbl_Transp_AssemblyWH26[[#This Row],[% truck]]*tbl_TransportCI[Truck CI])))/1000),"") -> 0.899847681 | K29: =ShoeTransport!$B$74*tbl_Transp_AssemblyWH26[[#This Row],[%supplied]] -> 1.125 | L29: =ShoeTransport!$B$75*tbl_Transp_AssemblyWH26[[#This Row],[%supplied]] -> 1.5
A30: Sneaker | B30: =IFERROR((INDEX(tbl_ShoeMassPackage[Product Weight (g)],MATCH('Calculation-Transport'!$A30,tbl_ShoeMassPackage[Product],0),1)+INDEX(tbl_ShoeMassPackage[Package Weight (g)],MATCH(tbl_Transp_AssemblyWH26[[#This Row],[Shoe]],tbl_ShoeMassPackage[Product],0),1))/1000,"") -> 0.852 | C30: China Tier 1 | D30: EMEA Warehouse | E30: 0.5 | F30: 0.17 | G30: 0.83 | H30: 1 | I30: =IFERROR((((tbl_Transp_AssemblyWH26[[#This Row],[Mass of Shoe + Package (kg)]]*tbl_Transp_AssemblyWH26[[#This Row],[%supplied]])*tbl_Transp_AssemblyWH26[[#This Row],[% air]]*(Air_Distance2Warehouse*tbl_TransportCI[Air CI]))/1000),"") -> 0.519533838 | J30: =IFERROR((((tbl_Transp_AssemblyWH26[[#This Row],[Mass of Shoe + Package (kg)]]*tbl_Transp_AssemblyWH26[[#This Row],[%supplied]])*((tbl_Transp_AssemblyWH26[[#This Row],[% air]]*Air_Distance2Warehouse*tbl_TransportCI[Air CI])+(Ocean_Distance2Warehouse*tbl_Transp_AssemblyWH26[[#This Row],[% ocean]]*tbl_TransportCI[Ocean CI])+(Truck_Distance2Warehouse*tbl_Transp_AssemblyWH26[[#This Row],[% truck]]*tbl_TransportCI[Truck CI])))/1000),"") -> 0.692903058 | K30: =ShoeTransport!$B$74*tbl_Transp_AssemblyWH26[[#This Row],[%supplied]] -> 1.125 | L30: =ShoeTransport!$B$75*tbl_Transp_AssemblyWH26[[#This Row],[%supplied]] -> 1.5
B31: =IFERROR((INDEX(tbl_ShoeMassPackage[Product Weight (g)],MATCH('Calculation-Transport'!$A31,tbl_ShoeMassPackage[Product],0),1)+INDEX(tbl_ShoeMassPackage[Package Weight (g)],MATCH(tbl_Transp_AssemblyWH26[[#This Row],[Shoe]],tbl_ShoeMassPackage[Product],0),1))/1000,"") ->  | I31: =IFERROR((((tbl_Transp_AssemblyWH26[[#This Row],[Mass of Shoe + Package (kg)]]*tbl_Transp_AssemblyWH26[[#This Row],[%supplied]])*tbl_Transp_AssemblyWH26[[#This Row],[% air]]*(Air_Distance2Warehouse*tbl_TransportCI[Air CI]))/1000),"") ->  | J31: =IFERROR((((tbl_Transp_AssemblyWH26[[#This Row],[Mass of Shoe + Package (kg)]]*tbl_Transp_AssemblyWH26[[#This Row],[%supplied]])*((tbl_Transp_AssemblyWH26[[#This Row],[% air]]*Air_Distance2Warehouse*tbl_TransportCI[Air CI])+(Ocean_Distance2Warehouse*tbl_Transp_AssemblyWH26[[#This Row],[% ocean]]*tbl_TransportCI[Ocean CI])+(Truck_Distance2Warehouse*tbl_Transp_AssemblyWH26[[#This Row],[% truck]]*tbl_TransportCI[Truck CI])))/1000),"") ->  | K31: =ShoeTransport!$B$74*tbl_Transp_AssemblyWH26[[#This Row],[%supplied]] -> 0 | L31: =ShoeTransport!$B$75*tbl_Transp_AssemblyWH26[[#This Row],[%supplied]] -> 0
B32: =IFERROR((INDEX(tbl_ShoeMassPackage[Product Weight (g)],MATCH('Calculation-Transport'!$A32,tbl_ShoeMassPackage[Product],0),1)+INDEX(tbl_ShoeMassPackage[Package Weight (g)],MATCH(tbl_Transp_AssemblyWH26[[#This Row],[Shoe]],tbl_ShoeMassPackage[Product],0),1))/1000,"") ->  | I32: =IFERROR((((tbl_Transp_AssemblyWH26[[#This Row],[Mass of Shoe + Package (kg)]]*tbl_Transp_AssemblyWH26[[#This Row],[%supplied]])*tbl_Transp_AssemblyWH26[[#This Row],[% air]]*(Air_Distance2Warehouse*tbl_TransportCI[Air CI]))/1000),"") ->  | J32: =IFERROR((((tbl_Transp_AssemblyWH26[[#This Row],[Mass of Shoe + Package (kg)]]*tbl_Transp_AssemblyWH26[[#This Row],[%supplied]])*((tbl_Transp_AssemblyWH26[[#This Row],[% air]]*Air_Distance2Warehouse*tbl_TransportCI[Air CI])+(Ocean_Distance2Warehouse*tbl_Transp_AssemblyWH26[[#This Row],[% ocean]]*tbl_TransportCI[Ocean CI])+(Truck_Distance2Warehouse*tbl_Transp_AssemblyWH26[[#This Row],[% truck]]*tbl_TransportCI[Truck CI])))/1000),"") ->  | K32: =ShoeTransport!$B$74*tbl_Transp_AssemblyWH26[[#This Row],[%supplied]] -> 0 | L32: =ShoeTransport!$B$75*tbl_Transp_AssemblyWH26[[#This Row],[%supplied]] -> 0
A35: Select the product from dropdown (column A) and warehouse location (column C). Enter the percentage of online sales (column E) and in-store sales (column F), as well as the online product return rate (column G). If the product is transported to a single warehouse, enter 100% in column D; otherwise, indicate the % supplied and add another row to model the remaining distribution. If a new location is needed, input the relevant data in the 'ShoeTransport' tab.
A36: Shoe | B36: Mass of Shoe + Package (kg) | C36: Warehouse | D36: %supplied | E36: % Online Sales | F36: % In-store Sales | G36: Online Product Return Rate (%) | H36: Aircraft Transportation Emissions-Warehouse to Consumers | I36: Transportation Emissions- Warehouse to Consumers(kg) | J36: DQR Score- WH to Consumer | K36: Uncertainty Score- WH to Consumer
A37: T-Shirt | B37: =IFERROR((INDEX(tbl_ShoeMassPackage[Product Weight (g)],MATCH(tbl_Transp_WHConsumer[[#This Row],[Shoe]],tbl_ShoeMassPackage[Product],0),1)+INDEX(tbl_ShoeMassPackage[Package Weight (g)],MATCH(tbl_Transp_WHConsumer[[#This Row],[Shoe]],tbl_ShoeMassPackage[Product],0),1))/1000,"") -> 0.45 | C37: NA Warehouse | D37: 0.5 | E37: 0.75 | F37: 0.25 | G37: 0.175 | H37: =IFERROR((tbl_Transp_WHConsumer[[#This Row],[Mass of Shoe + Package (kg)]]*tbl_Transp_WHConsumer[[#This Row],[%supplied]]*((tbl_Transp_WHConsumer[[#This Row],[% Online Sales]]*ShoeTransport!$B$66*tbl_WHConsumer[Online: Air Distance (km)]*tbl_TransportCI[Air CI])+(tbl_Transp_WHConsumer[[#This Row],[% In-store Sales]]*ShoeTransport!$B$66*tbl_WHConsumer[Instore: Air Distance (km)]*tbl_TransportCI[Air CI])+(tbl_Transp_WHConsumer[[#This Row],[% Online Sales]]*tbl_Transp_WHConsumer[[#This Row],[Online Product Return Rate (%)]]*ShoeTransport!$B$66*tbl_WHConsumer[Online: Air Distance (km)]*tbl_TransportCI[Air CI]))/1000),"") -> 0.02028868594 | I37: =IFERROR((tbl_Transp_WHConsumer[[#This Row],[Mass of Shoe + Package (kg)]]*tbl_Transp_WHConsumer[[#This Row],[%supplied]]*((tbl_Transp_WHConsumer[[#This Row],[% Online Sales]]*ShoeTransport!$B$66*tbl_WHConsumer[Online: Air Distance (km)]*tbl_TransportCI[Air CI]+tbl_Transp_WHConsumer[[#This Row],[% Online Sales]]*(1-ShoeTransport!$B$66)*tbl_WHConsumer[Online: Truck Distance (km)]*tbl_TransportCI[Truck CI])+(tbl_Transp_WHConsumer[[#This Row],[% In-store Sales]]*ShoeTransport!$B$66*tbl_WHConsumer[Instore: Air Distance (km)]*tbl_TransportCI[Air CI]+tbl_Transp_WHConsumer[[#This Row],[% In-store Sales]]*(1-ShoeTransport!$B$66)*tbl_WHConsumer[Instore: Truck Distance (km)]*tbl_TransportCI[Truck CI])+(tbl_Transp_WHConsumer[[#This Row],[% Online Sales]]*tbl_Transp_WHConsumer[[#This Row],[Online Product Return Rate (%)]]*ShoeTransport!$B$66*tbl_WHConsumer[Online: Air Distance (km)]*tbl_TransportCI[Air CI]+tbl_Transp_WHConsumer[[#This Row],[% Online Sales]]*(1-ShoeTransport!$B$66)*tbl_Transp_WHConsumer[[#This Row],[Online Product Return Rate (%)]]*tbl_WHConsumer[Online: Truck Distance (km)]*tbl_TransportCI[Truck CI]))/1000),"") -> 0.05006884219 | J37: =ShoeTransport!$B$74*tbl_Transp_WHConsumer[[#This Row],[%supplied]] -> 1.125 | K37: =ShoeTransport!$B$75*tbl_Transp_WHConsumer[[#This Row],[%supplied]] -> 1.5
A38: T-Shirt | B38: =IFERROR((INDEX(tbl_ShoeMassPackage[Product Weight (g)],MATCH(tbl_Transp_WHConsumer[[#This Row],[Shoe]],tbl_ShoeMassPackage[Product],0),1)+INDEX(tbl_ShoeMassPackage[Package Weight (g)],MATCH(tbl_Transp_WHConsumer[[#This Row],[Shoe]],tbl_ShoeMassPackage[Product],0),1))/1000,"") -> 0.45 | C38: EMEA Warehouse | D38: 0.5 | E38: 1 | F38: 0 | G38: 0.175 | H38: =IFERROR((tbl_Transp_WHConsumer[[#This Row],[Mass of Shoe + Package (kg)]]*tbl_Transp_WHConsumer[[#This Row],[%supplied]]*((tbl_Transp_WHConsumer[[#This Row],[% Online Sales]]*ShoeTransport!$B$66*tbl_WHConsumer[Online: Air Distance (km)]*tbl_TransportCI[Air CI])+(tbl_Transp_WHConsumer[[#This Row],[% In-store Sales]]*ShoeTransport!$B$66*tbl_WHConsumer[Instore: Air Distance (km)]*tbl_TransportCI[Air CI])+(tbl_Transp_WHConsumer[[#This Row],[% Online Sales]]*tbl_Transp_WHConsumer[[#This Row],[Online Product Return Rate (%)]]*ShoeTransport!$B$66*tbl_WHConsumer[Online: Air Distance (km)]*tbl_TransportCI[Air CI]))/1000),"") -> 0.02107333125 | I38: =IFERROR((tbl_Transp_WHConsumer[[#This Row],[Mass of Shoe + Package (kg)]]*tbl_Transp_WHConsumer[[#This Row],[%supplied]]*((tbl_Transp_WHConsumer[[#This Row],[% Online Sales]]*ShoeTransport!$B$66*tbl_WHConsumer[Online: Air Distance (km)]*tbl_TransportCI[Air CI]+tbl_Transp_WHConsumer[[#This Row],[% Online Sales]]*(1-ShoeTransport!$B$66)*tbl_WHConsumer[Online: Truck Distance (km)]*tbl_TransportCI[Truck CI])+(tbl_Transp_WHConsumer[[#This Row],[% In-store Sales]]*ShoeTransport!$B$66*tbl_WHConsumer[Instore: Air Distance (km)]*tbl_TransportCI[Air CI]+tbl_Transp_WHConsumer[[#This Row],[% In-store Sales]]*(1-ShoeTransport!$B$66)*tbl_WHConsumer[Instore: Truck Distance (km)]*tbl_TransportCI[Truck CI])+(tbl_Transp_WHConsumer[[#This Row],[% Online Sales]]*tbl_Transp_WHConsumer[[#This Row],[Online Product Return Rate (%)]]*ShoeTransport!$B$66*tbl_WHConsumer[Online: Air Distance (km)]*tbl_TransportCI[Air CI]+tbl_Transp_WHConsumer[[#This Row],[% Online Sales]]*(1-ShoeTransport!$B$66)*tbl_Transp_WHConsumer[[#This Row],[Online Product Return Rate (%)]]*tbl_WHConsumer[Online: Truck Distance (km)]*tbl_TransportCI[Truck CI]))/1000),"") -> 0.05200520625 | J38: =ShoeTransport!$B$74*tbl_Transp_WHConsumer[[#This Row],[%supplied]] -> 1.125 | K38: =ShoeTransport!$B$75*tbl_Transp_WHConsumer[[#This Row],[%supplied]] -> 1.5
A39: Sneaker | B39: =IFERROR((INDEX(tbl_ShoeMassPackage[Product Weight (g)],MATCH(tbl_Transp_WHConsumer[[#This Row],[Shoe]],tbl_ShoeMassPackage[Product],0),1)+INDEX(tbl_ShoeMassPackage[Package Weight (g)],MATCH(tbl_Transp_WHConsumer[[#This Row],[Shoe]],tbl_ShoeMassPackage[Product],0),1))/1000,"") -> 0.852 | C39: NA Warehouse | D39: 0.5 | E39: 0.75 | F39: 0.25 | G39: 0.175 | H39: =IFERROR((tbl_Transp_WHConsumer[[#This Row],[Mass of Shoe + Package (kg)]]*tbl_Transp_WHConsumer[[#This Row],[%supplied]]*((tbl_Transp_WHConsumer[[#This Row],[% Online Sales]]*ShoeTransport!$B$66*tbl_WHConsumer[Online: Air Distance (km)]*tbl_TransportCI[Air CI])+(tbl_Transp_WHConsumer[[#This Row],[% In-store Sales]]*ShoeTransport!$B$66*tbl_WHConsumer[Instore: Air Distance (km)]*tbl_TransportCI[Air CI])+(tbl_Transp_WHConsumer[[#This Row],[% Online Sales]]*tbl_Transp_WHConsumer[[#This Row],[Online Product Return Rate (%)]]*ShoeTransport!$B$66*tbl_WHConsumer[Online: Air Distance (km)]*tbl_TransportCI[Air CI]))/1000),"") -> 0.03841324538 | I39: =IFERROR((tbl_Transp_WHConsumer[[#This Row],[Mass of Shoe + Package (kg)]]*tbl_Transp_WHConsumer[[#This Row],[%supplied]]*((tbl_Transp_WHConsumer[[#This Row],[% Online Sales]]*ShoeTransport!$B$66*tbl_WHConsumer[Online: Air Distance (km)]*tbl_TransportCI[Air CI]+tbl_Transp_WHConsumer[[#This Row],[% Online Sales]]*(1-ShoeTransport!$B$66)*tbl_WHConsumer[Online: Truck Distance (km)]*tbl_TransportCI[Truck CI])+(tbl_Transp_WHConsumer[[#This Row],[% In-store Sales]]*ShoeTransport!$B$66*tbl_WHConsumer[Instore: Air Distance (km)]*tbl_TransportCI[Air CI]+tbl_Transp_WHConsumer[[#This Row],[% In-store Sales]]*(1-ShoeTransport!$B$66)*tbl_WHConsumer[Instore: Truck Distance (km)]*tbl_TransportCI[Truck CI])+(tbl_Transp_WHConsumer[[#This Row],[% Online Sales]]*tbl_Transp_WHConsumer[[#This Row],[Online Product Return Rate (%)]]*ShoeTransport!$B$66*tbl_WHConsumer[Online: Air Distance (km)]*tbl_TransportCI[Air CI]+tbl_Transp_WHConsumer[[#This Row],[% Online Sales]]*(1-ShoeTransport!$B$66)*tbl_Transp_WHConsumer[[#This Row],[Online Product Return Rate (%)]]*tbl_WHConsumer[Online: Truck Distance (km)]*tbl_TransportCI[Truck CI]))/1000),"") -> 0.09479700788 | J39: =ShoeTransport!$B$74*tbl_Transp_WHConsumer[[#This Row],[%supplied]] -> 1.125 | K39: =ShoeTransport!$B$75*tbl_Transp_WHConsumer[[#This Row],[%supplied]] -> 1.5
A40: Sneaker | B40: =IFERROR((INDEX(tbl_ShoeMassPackage[Product Weight (g)],MATCH(tbl_Transp_WHConsumer[[#This Row],[Shoe]],tbl_ShoeMassPackage[Product],0),1)+INDEX(tbl_ShoeMassPackage[Package Weight (g)],MATCH(tbl_Transp_WHConsumer[[#This Row],[Shoe]],tbl_ShoeMassPackage[Product],0),1))/1000,"") -> 0.852 | C40: EMEA Warehouse | D40: 0.5 | E40: 1 | F40: 0 | G40: 0.175 | H40: =IFERROR((tbl_Transp_WHConsumer[[#This Row],[Mass of Shoe + Package (kg)]]*tbl_Transp_WHConsumer[[#This Row],[%supplied]]*((tbl_Transp_WHConsumer[[#This Row],[% Online Sales]]*ShoeTransport!$B$66*tbl_WHConsumer[Online: Air Distance (km)]*tbl_TransportCI[Air CI])+(tbl_Transp_WHConsumer[[#This Row],[% In-store Sales]]*ShoeTransport!$B$66*tbl_WHConsumer[Instore: Air Distance (km)]*tbl_TransportCI[Air CI])+(tbl_Transp_WHConsumer[[#This Row],[% Online Sales]]*tbl_Transp_WHConsumer[[#This Row],[Online Product Return Rate (%)]]*ShoeTransport!$B$66*tbl_WHConsumer[Online: Air Distance (km)]*tbl_TransportCI[Air CI]))/1000),"") -> 0.0398988405 | I40: =IFERROR((tbl_Transp_WHConsumer[[#This Row],[Mass of Shoe + Package (kg)]]*tbl_Transp_WHConsumer[[#This Row],[%supplied]]*((tbl_Transp_WHConsumer[[#This Row],[% Online Sales]]*ShoeTransport!$B$66*tbl_WHConsumer[Online: Air Distance (km)]*tbl_TransportCI[Air CI]+tbl_Transp_WHConsumer[[#This Row],[% Online Sales]]*(1-ShoeTransport!$B$66)*tbl_WHConsumer[Online: Truck Distance (km)]*tbl_TransportCI[Truck CI])+(tbl_Transp_WHConsumer[[#This Row],[% In-store Sales]]*ShoeTransport!$B$66*tbl_WHConsumer[Instore: Air Distance (km)]*tbl_TransportCI[Air CI]+tbl_Transp_WHConsumer[[#This Row],[% In-store Sales]]*(1-ShoeTransport!$B$66)*tbl_WHConsumer[Instore: Truck Distance (km)]*tbl_TransportCI[Truck CI])+(tbl_Transp_WHConsumer[[#This Row],[% Online Sales]]*tbl_Transp_WHConsumer[[#This Row],[Online Product Return Rate (%)]]*ShoeTransport!$B$66*tbl_WHConsumer[Online: Air Distance (km)]*tbl_TransportCI[Air CI]+tbl_Transp_WHConsumer[[#This Row],[% Online Sales]]*(1-ShoeTransport!$B$66)*tbl_Transp_WHConsumer[[#This Row],[Online Product Return Rate (%)]]*tbl_WHConsumer[Online: Truck Distance (km)]*tbl_TransportCI[Truck CI]))/1000),"") -> 0.0984631905 | J40: =ShoeTransport!$B$74*tbl_Transp_WHConsumer[[#This Row],[%supplied]] -> 1.125 | K40: =ShoeTransport!$B$75*tbl_Transp_WHConsumer[[#This Row],[%supplied]] -> 1.5
B41: =IFERROR((INDEX(tbl_ShoeMassPackage[Product Weight (g)],MATCH(tbl_Transp_WHConsumer[[#This Row],[Shoe]],tbl_ShoeMassPackage[Product],0),1)+INDEX(tbl_ShoeMassPackage[Package Weight (g)],MATCH(tbl_Transp_WHConsumer[[#This Row],[Shoe]],tbl_ShoeMassPackage[Product],0),1))/1000,"") ->  | H41: =IFERROR((tbl_Transp_WHConsumer[[#This Row],[Mass of Shoe + Package (kg)]]*tbl_Transp_WHConsumer[[#This Row],[%supplied]]*((tbl_Transp_WHConsumer[[#This Row],[% Online Sales]]*ShoeTransport!$B$66*tbl_WHConsumer[Online: Air Distance (km)]*tbl_TransportCI[Air CI])+(tbl_Transp_WHConsumer[[#This Row],[% In-store Sales]]*ShoeTransport!$B$66*tbl_WHConsumer[Instore: Air Distance (km)]*tbl_TransportCI[Air CI])+(tbl_Transp_WHConsumer[[#This Row],[% Online Sales]]*tbl_Transp_WHConsumer[[#This Row],[Online Product Return Rate (%)]]*ShoeTransport!$B$66*tbl_WHConsumer[Online: Air Distance (km)]*tbl_TransportCI[Air CI]))/1000),"") ->  | I41: =IFERROR((tbl_Transp_WHConsumer[[#This Row],[Mass of Shoe + Package (kg)]]*tbl_Transp_WHConsumer[[#This Row],[%supplied]]*((tbl_Transp_WHConsumer[[#This Row],[% Online Sales]]*ShoeTransport!$B$66*tbl_WHConsumer[Online: Air Distance (km)]*tbl_TransportCI[Air CI]+tbl_Transp_WHConsumer[[#This Row],[% Online Sales]]*(1-ShoeTransport!$B$66)*tbl_WHConsumer[Online: Truck Distance (km)]*tbl_TransportCI[Truck CI])+(tbl_Transp_WHConsumer[[#This Row],[% In-store Sales]]*ShoeTransport!$B$66*tbl_WHConsumer[Instore: Air Distance (km)]*tbl_TransportCI[Air CI]+tbl_Transp_WHConsumer[[#This Row],[% In-store Sales]]*(1-ShoeTransport!$B$66)*tbl_WHConsumer[Instore: Truck Distance (km)]*tbl_TransportCI[Truck CI])+(tbl_Transp_WHConsumer[[#This Row],[% Online Sales]]*tbl_Transp_WHConsumer[[#This Row],[Online Product Return Rate (%)]]*ShoeTransport!$B$66*tbl_WHConsumer[Online: Air Distance (km)]*tbl_TransportCI[Air CI]+tbl_Transp_WHConsumer[[#This Row],[% Online Sales]]*(1-ShoeTransport!$B$66)*tbl_Transp_WHConsumer[[#This Row],[Online Product Return Rate (%)]]*tbl_WHConsumer[Online: Truck Distance (km)]*tbl_TransportCI[Truck CI]))/1000),"") ->  | J41: =ShoeTransport!$B$74*tbl_Transp_WHConsumer[[#This Row],[%supplied]] -> 0 | K41: =ShoeTransport!$B$75*tbl_Transp_WHConsumer[[#This Row],[%supplied]] -> 0
B42: =IFERROR((INDEX(tbl_ShoeMassPackage[Product Weight (g)],MATCH(tbl_Transp_WHConsumer[[#This Row],[Shoe]],tbl_ShoeMassPackage[Product],0),1)+INDEX(tbl_ShoeMassPackage[Package Weight (g)],MATCH(tbl_Transp_WHConsumer[[#This Row],[Shoe]],tbl_ShoeMassPackage[Product],0),1))/1000,"") ->  | H42: =IFERROR((tbl_Transp_WHConsumer[[#This Row],[Mass of Shoe + Package (kg)]]*tbl_Transp_WHConsumer[[#This Row],[%supplied]]*((tbl_Transp_WHConsumer[[#This Row],[% Online Sales]]*ShoeTransport!$B$66*tbl_WHConsumer[Online: Air Distance (km)]*tbl_TransportCI[Air CI])+(tbl_Transp_WHConsumer[[#This Row],[% In-store Sales]]*ShoeTransport!$B$66*tbl_WHConsumer[Instore: Air Distance (km)]*tbl_TransportCI[Air CI])+(tbl_Transp_WHConsumer[[#This Row],[% Online Sales]]*tbl_Transp_WHConsumer[[#This Row],[Online Product Return Rate (%)]]*ShoeTransport!$B$66*tbl_WHConsumer[Online: Air Distance (km)]*tbl_TransportCI[Air CI]))/1000),"") ->  | I42: =IFERROR((tbl_Transp_WHConsumer[[#This Row],[Mass of Shoe + Package (kg)]]*tbl_Transp_WHConsumer[[#This Row],[%supplied]]*((tbl_Transp_WHConsumer[[#This Row],[% Online Sales]]*ShoeTransport!$B$66*tbl_WHConsumer[Online: Air Distance (km)]*tbl_TransportCI[Air CI]+tbl_Transp_WHConsumer[[#This Row],[% Online Sales]]*(1-ShoeTransport!$B$66)*tbl_WHConsumer[Online: Truck Distance (km)]*tbl_TransportCI[Truck CI])+(tbl_Transp_WHConsumer[[#This Row],[% In-store Sales]]*ShoeTransport!$B$66*tbl_WHConsumer[Instore: Air Distance (km)]*tbl_TransportCI[Air CI]+tbl_Transp_WHConsumer[[#This Row],[% In-store Sales]]*(1-ShoeTransport!$B$66)*tbl_WHConsumer[Instore: Truck Distance (km)]*tbl_TransportCI[Truck CI])+(tbl_Transp_WHConsumer[[#This Row],[% Online Sales]]*tbl_Transp_WHConsumer[[#This Row],[Online Product Return Rate (%)]]*ShoeTransport!$B$66*tbl_WHConsumer[Online: Air Distance (km)]*tbl_TransportCI[Air CI]+tbl_Transp_WHConsumer[[#This Row],[% Online Sales]]*(1-ShoeTransport!$B$66)*tbl_Transp_WHConsumer[[#This Row],[Online Product Return Rate (%)]]*tbl_WHConsumer[Online: Truck Distance (km)]*tbl_TransportCI[Truck CI]))/1000),"") ->  | J42: =ShoeTransport!$B$74*tbl_Transp_WHConsumer[[#This Row],[%supplied]] -> 0 | K42: =ShoeTransport!$B$75*tbl_Transp_WHConsumer[[#This Row],[%supplied]] -> 0

Sheet Calculation- Use
A2: Input Product Data
A4: Select the product from dropdown (column A) and corresponding wash type (column B) and dry method (column D). If a new customer care method is needed, input the relevant data in the 'ConsumerUse' tab. Enter the number of washes (column C) and drying cycles (column E). This information should reference product care instructions and relevant industry PEFCRs, when available. Select the country grid(s) (column F) where the majority of customers use and care for the product. | H4: Product use phase carbon footprint summary (column H). Enter the data quality rating (DQR) and uncertainty scores (columns I-J); see 'DataQuality' tab for additional details on Data Quality assessment approach.
A5: Shoe | B5: Select Wash Type | C5: Number of Washes | D5: Select Drying Method | E5: Number of Drying Cycles | F5: Country | G5: Total Energy Consumed (kWh) | H5: Use Emissions (kg CO2 eq) | I5: DQR Score | J5: Uncertainty Score
A6: T-Shirt | B6: Hot wash- normal wash cycle | C6: 52 | D6: Tumble Dry | E6: 52 | F6: US grid | G6: =IFERROR(INDEX(tbl_ShoeMassPackage[Product Weight (g)],MATCH('Calculation- Use'!A6,tbl_ShoeMassPackage[Product],0),1)/1000*tbl_UseEmissions[[#This Row],[Number of Washes]]*(VLOOKUP(tbl_UseEmissions[[#This Row],[Select Wash Type]],ConsumerUse!$A$4:$B$9,2,FALSE))+INDEX(tbl_ShoeMassPackage[Product Weight (g)],MATCH('Calculation- Use'!A6,tbl_ShoeMassPackage[Product],0),1)/1000*tbl_UseEmissions[[#This Row],[Number of Drying Cycles]]*(VLOOKUP(tbl_UseEmissions[[#This Row],[Select Drying Method]],ConsumerUse!$A$10:$B$11,2,FALSE)),"") -> 9.436321556 | H6: =IFERROR(tbl_UseEmissions[[#This Row],[Total Energy Consumed (kWh)]]*INDEX(tbl_EnergyTypes[Electricity (kgCO2e/kWh)],MATCH(tbl_UseEmissions[[#This Row],[Country]],tbl_EnergyTypes[Country],0),1),"") -> 4.073317477 | I6: =AVERAGE(2,2,2,3) -> 2.25 | J6: 3
A7: Sneaker | B7: Cold wash- gentle wash cycle | C7: 3 | D7: Line dry | E7: 3 | F7: US grid | G7: =IFERROR(INDEX(tbl_ShoeMassPackage[Product Weight (g)],MATCH('Calculation- Use'!A7,tbl_ShoeMassPackage[Product],0),1)/1000*tbl_UseEmissions[[#This Row],[Number of Washes]]*(VLOOKUP(tbl_UseEmissions[[#This Row],[Select Wash Type]],ConsumerUse!$A$4:$B$9,2,FALSE))+INDEX(tbl_ShoeMassPackage[Product Weight (g)],MATCH('Calculation- Use'!A7,tbl_ShoeMassPackage[Product],0),1)/1000*tbl_UseEmissions[[#This Row],[Number of Drying Cycles]]*(VLOOKUP(tbl_UseEmissions[[#This Row],[Select Drying Method]],ConsumerUse!$A$10:$B$11,2,FALSE)),"") -> 0.071603064 | H7: =IFERROR(tbl_UseEmissions[[#This Row],[Total Energy Consumed (kWh)]]*INDEX(tbl_EnergyTypes[Electricity (kgCO2e/kWh)],MATCH(tbl_UseEmissions[[#This Row],[Country]],tbl_EnergyTypes[Country],0),1),"") -> 0.03090844354 | I7: =AVERAGE(2,2,2,3) -> 2.25 | J7: 3
G8: =IFERROR(INDEX(tbl_ShoeMassPackage[Product Weight (g)],MATCH('Calculation- Use'!A8,tbl_ShoeMassPackage[Product],0),1)/1000*tbl_UseEmissions[[#This Row],[Number of Washes]]*(VLOOKUP(tbl_UseEmissions[[#This Row],[Select Wash Type]],ConsumerUse!$A$4:$B$9,2,FALSE))+INDEX(tbl_ShoeMassPackage[Product Weight (g)],MATCH('Calculation- Use'!A8,tbl_ShoeMassPackage[Product],0),1)/1000*tbl_UseEmissions[[#This Row],[Number of Drying Cycles]]*(VLOOKUP(tbl_UseEmissions[[#This Row],[Select Drying Method]],ConsumerUse!$A$10:$B$11,2,FALSE)),"") ->  | H8: =IFERROR(tbl_UseEmissions[[#This Row],[Total Energy Consumed (kWh)]]*INDEX(tbl_EnergyTypes[Electricity (kgCO2e/kWh)],MATCH(tbl_UseEmissions[[#This Row],[Country]],tbl_EnergyTypes[Country],0),1),"") -> 
G9: =IFERROR(INDEX(tbl_ShoeMassPackage[Product Weight (g)],MATCH('Calculation- Use'!A9,tbl_ShoeMassPackage[Product],0),1)/1000*tbl_UseEmissions[[#This Row],[Number of Washes]]*(VLOOKUP(tbl_UseEmissions[[#This Row],[Select Wash Type]],ConsumerUse!$A$4:$B$9,2,FALSE))+INDEX(tbl_ShoeMassPackage[Product Weight (g)],MATCH('Calculation- Use'!A9,tbl_ShoeMassPackage[Product],0),1)/1000*tbl_UseEmissions[[#This Row],[Number of Drying Cycles]]*(VLOOKUP(tbl_UseEmissions[[#This Row],[Select Drying Method]],ConsumerUse!$A$10:$B$11,2,FALSE)),"") ->  | H9: =IFERROR(tbl_UseEmissions[[#This Row],[Total Energy Consumed (kWh)]]*INDEX(tbl_EnergyTypes[Electricity (kgCO2e/kWh)],MATCH(tbl_UseEmissions[[#This Row],[Country]],tbl_EnergyTypes[Country],0),1),"") -> 

Sheet Calculation- EOL
A2: Input Product Data
A4: Select the product from dropdown (column A). End of life carbon footprint summary (column C) is calculated based on material categories in final product. Enter the data quality rating (DQR) and uncertainty scores (columns D-E); see 'DataQuality' tab for additional details on Data Quality assessment approach.
A5: Shoe | B5: Shoe mass (g) | C5: EOL Emissions (kg) | D5: DQR Score | E5: Uncertainty Score
A6: T-Shirt | B6: =IFERROR(INDEX(tbl_ShoeMassPackage[Product Weight (g)], MATCH('Calculation- EOL'!$A6,tbl_ShoeMassPackage[Product],0),1),"") -> 250 | C6: =IF(ISBLANK(tbl_EOLEmissions[[#This Row],[ Shoe]]),0,SUMIF(tbl_MatsScrapsEmissions8[[ Shoe]:[Product EOL-Calculations: Mat CI_Incin*MatMassinFinal Component+Waste transport]],tbl_EOLEmissions[[#This Row],[ Shoe]],tbl_MatsScrapsEmissions8[Product EOL Calculations-Mat CI_Land*MatMassinFinal Component+Waste Transport])+SUMIF(tbl_MatsScrapsEmissions8[[ Shoe]:[Product EOL-Calculations: Mat CI_Incin*MatMassinFinal Component+Waste transport]],tbl_EOLEmissions[[#This Row],[ Shoe]],tbl_MatsScrapsEmissions8[Product EOL-Calculations: Mat CI_Incin*MatMassinFinal Component+Waste transport])) -> 0.3428583787 | D6: =AVERAGE(2,2,3,3) -> 2.5 | E6: 3
A7: Sneaker | B7: =IFERROR(INDEX(tbl_ShoeMassPackage[Product Weight (g)], MATCH('Calculation- EOL'!$A7,tbl_ShoeMassPackage[Product],0),1),"") -> 674 | C7: =IF(ISBLANK(tbl_EOLEmissions[[#This Row],[ Shoe]]),0,SUMIF(tbl_MatsScrapsEmissions8[[ Shoe]:[Product EOL-Calculations: Mat CI_Incin*MatMassinFinal Component+Waste transport]],tbl_EOLEmissions[[#This Row],[ Shoe]],tbl_MatsScrapsEmissions8[Product EOL Calculations-Mat CI_Land*MatMassinFinal Component+Waste Transport])+SUMIF(tbl_MatsScrapsEmissions8[[ Shoe]:[Product EOL-Calculations: Mat CI_Incin*MatMassinFinal Component+Waste transport]],tbl_EOLEmissions[[#This Row],[ Shoe]],tbl_MatsScrapsEmissions8[Product EOL-Calculations: Mat CI_Incin*MatMassinFinal Component+Waste transport])) -> 0.7422055303 | D7: 2.5 | E7: 3
B8: =IFERROR(INDEX(tbl_ShoeMassPackage[Product Weight (g)], MATCH('Calculation- EOL'!$A8,tbl_ShoeMassPackage[Product],0),1),"") ->  | C8: =IF(ISBLANK(tbl_EOLEmissions[[#This Row],[ Shoe]]),0,SUMIF(tbl_MatsScrapsEmissions8[[ Shoe]:[Product EOL-Calculations: Mat CI_Incin*MatMassinFinal Component+Waste transport]],tbl_EOLEmissions[[#This Row],[ Shoe]],tbl_MatsScrapsEmissions8[Product EOL Calculations-Mat CI_Land*MatMassinFinal Component+Waste Transport])+SUMIF(tbl_MatsScrapsEmissions8[[ Shoe]:[Product EOL-Calculations: Mat CI_Incin*MatMassinFinal Component+Waste transport]],tbl_EOLEmissions[[#This Row],[ Shoe]],tbl_MatsScrapsEmissions8[Product EOL-Calculations: Mat CI_Incin*MatMassinFinal Component+Waste transport])) -> 0
B9: =IFERROR(INDEX(tbl_ShoeMassPackage[Product Weight (g)], MATCH('Calculation- EOL'!$A9,tbl_ShoeMassPackage[Product],0),1),"") ->  | C9: =IF(ISBLANK(tbl_EOLEmissions[[#This Row],[ Shoe]]),0,SUMIF(tbl_MatsScrapsEmissions8[[ Shoe]:[Product EOL-Calculations: Mat CI_Incin*MatMassinFinal Component+Waste transport]],tbl_EOLEmissions[[#This Row],[ Shoe]],tbl_MatsScrapsEmissions8[Product EOL Calculations-Mat CI_Land*MatMassinFinal Component+Waste Transport])+SUMIF(tbl_MatsScrapsEmissions8[[ Shoe]:[Product EOL-Calculations: Mat CI_Incin*MatMassinFinal Component+Waste transport]],tbl_EOLEmissions[[#This Row],[ Shoe]],tbl_MatsScrapsEmissions8[Product EOL-Calculations: Mat CI_Incin*MatMassinFinal Component+Waste transport])) -> 0

Sheet Summary
A4: Summary of total carbon footprint (column G) with emissions impact separated by phase (columns B-F). Select the product from dropdown (column A). Click 'Refresh to ensure data is updated. | H4: % Contribution Analysis by Life Cycle Stage | M4: For reporting purposes ONLY (according to ISO 14067:2018) | P4: Summary of data quality rating (DQR) and uncertainty scores (columns P-S) for each product. See 'DataQuality' tab for additional details on Data Quality assessment approach.
A5: Select Shoe | B5: Materials & Scraps | C5: Energy | D5: Transportation | E5: Use | F5: EOL | G5: Net CO2e (kg) for Pair | H5: % Materials & Scraps | I5: % Energy | J5: % Transportation | K5: % Use | L5: % EOL | M5: Product Biogenic Carbon (kgCO2e) | N5: Aircraft Transportation | O5: % Contribution of Aircraft Transportation to the TOTAL Transportation Impacts | P5: DQR Score | Q5: Overall DQR | R5: Uncertainty Score | S5: Overall Uncertainty Score
A6: T-Shirt | B6: =IFERROR(GETPIVOTDATA("Net Materials Emissions (kg CO2e) for Pair of Shoes or Unit of Apparel",'Calculation- Materials + Scrap'!$A$5," Shoe",tbl_Summary[[#This Row],[Select Shoe]]),"") -> 4.256761046 | C6: =IFERROR(GETPIVOTDATA("Sum of Factory Emissions (Kg CO2 eq)",'Calculation- Energy Consump'!$A$5,"Shoe",tbl_Summary[[#This Row],[Select Shoe]]),"") -> 0.363745 | D6: =IFERROR((IFERROR(GETPIVOTDATA("Sum of Transportation Emissions- Raw Mat to Textile (kg)",'Calculation-Transport'!$B$5,"Shoe",tbl_Summary[[#This Row],[Select Shoe]]),0)+IFERROR(GETPIVOTDATA("Sum of Transportation Emissions- Textile to Tier 1 (kg)",'Calculation-Transport'!$F$5,"Shoe",tbl_Summary[[#This Row],[Select Shoe]]),0)+GETPIVOTDATA("Sum of Transportation Emissions- Tier 1 to Warehouse (kg)",'Calculation-Transport'!$L$5,"Shoe",tbl_Summary[[#This Row],[Select Shoe]])+GETPIVOTDATA("Sum of Transportation Emissions- Warehouse to Consumers(kg)",'Calculation-Transport'!$R$5,"Shoe",tbl_Summary[[#This Row],[Select Shoe]])),"") -> 0.9433156359 | E6: =IFERROR(INDEX(tbl_UseEmissions[Use Emissions (kg CO2 eq)],MATCH(tbl_Summary[[#This Row],[Select Shoe]],tbl_UseEmissions[Shoe],0),),"") -> 4.073317477 | F6: =IFERROR(INDEX(tbl_EOLEmissions[EOL Emissions (kg)],MATCH(tbl_Summary[[#This Row],[Select Shoe]],tbl_EOLEmissions[[ Shoe]],0),),"") -> 0.3428583787 | G6: =_xlfn.AGGREGATE(9,6,tbl_Summary[[#This Row],[Materials & Scraps]:[EOL]]) -> 9.979997537 | H6: =IFERROR(tbl_Summary[[#This Row],[Materials & Scraps]]/tbl_Summary[[#This Row],[Net CO2e (kg) for Pair]],) -> 0.4265292681 | I6: =IFERROR(tbl_Summary[[#This Row],[Energy ]]/tbl_Summary[[#This Row],[Net CO2e (kg) for Pair]],) -> 0.03644740378 | J6: =IFERROR(tbl_Summary[[#This Row],[Transportation]]/tbl_Summary[[#This Row],[Net CO2e (kg) for Pair]],) -> 0.09452062813 | K6: =IFERROR(tbl_Summary[[#This Row],[Use]]/tbl_Summary[[#This Row],[Net CO2e (kg) for Pair]],) -> 0.4081481445 | L6: =IFERROR(tbl_Summary[[#This Row],[EOL]]/tbl_Summary[[#This Row],[Net CO2e (kg) for Pair]],) -> 0.03435455544 | M6: =IFERROR(GETPIVOTDATA("Sum of FOR REPORTING PURPOSE: ProductBiogenicContent For Pair of Shoes or Apparel (kg CO2e)",'Calculation- Materials + Scrap'!$A$5," Shoe",tbl_Summary[[#This Row],[Select Shoe]]),"") -> -0.1222222222 | N6: =IFERROR((IFERROR(GETPIVOTDATA("Sum of Aircraft Transportation Emissions",'Calculation-Transport'!$B$5,"Shoe",tbl_Summary[[#This Row],[Select Shoe]]),0)+IFERROR(GETPIVOTDATA("Sum of Aircraft Transportation Emissions-Textile to Tier 1",'Calculation-Transport'!$F$5,"Shoe",tbl_Summary[[#This Row],[Select Shoe]]),0)+GETPIVOTDATA("Sum of Aircraft Transportation Emissions-Tier 1 to Warehouse",'Calculation-Transport'!$L$5,"Shoe",tbl_Summary[[#This Row],[Select Shoe]])+GETPIVOTDATA("Sum of Aircraft Transportation Emissions-Warehouse to Consumers",'Calculation-Transport'!$R$5,"Shoe",tbl_Summary[[#This Row],[Select Shoe]])),"") -> 0.7121216672 | O6: =IFERROR(tbl_Summary[[#This Row],[Aircraft Transportation]]/tbl_Summary[[#This Row],[Transportation]], "") -> 0.7549134564 | P6: =IFERROR(((GETPIVOTDATA("Sum of Materials DQR Score",'Calculation- Materials + Scrap'!$A$5," Shoe",tbl_Summary[[#This Row],[Select Shoe]])*tbl_Summary[[#This Row],[% Materials & Scraps]])+(GETPIVOTDATA("Sum of DQR Score",'Calculation- Energy Consump'!$A$5,"Shoe",tbl_Summary[[#This Row],[Select Shoe]])*tbl_Summary[[#This Row],[% Energy]])+AVERAGE(IFERROR(GETPIVOTDATA("Sum of DQR Score- Raw Material to Tier 1",'Calculation-Transport'!$I$5,"Shoe",tbl_Summary[[#This Row],[Select Shoe]]),),IFERROR(GETPIVOTDATA("Sum of DQR Score-Tier 1 to WH",'Calculation-Transport'!$L$5,"Shoe",tbl_Summary[[#This Row],[Select Shoe]]),),IFERROR(GETPIVOTDATA("Sum of DQR Score- WH to Consumer",'Calculation-Transport'!$R$5,"Shoe",tbl_Summary[[#This Row],[Select Shoe]]),))*tbl_Summary[[#This Row],[% Transportation]]+INDEX(tbl_UseEmissions[DQR Score],MATCH(tbl_Summary[[#This Row],[Select Shoe]],tbl_UseEmissions[Shoe],0),)*tbl_Summary[[#This Row],[% Use]]+INDEX(tbl_EOLEmissions[DQR Score],MATCH(tbl_Summary[[#This Row],[Select Shoe]],tbl_EOLEmissions[[ Shoe]],0),)*tbl_Summary[[#This Row],[% EOL]]),"") -> 2.044618447 | Q6: =IF(tbl_Summary[[#This Row],[DQR Score]]<=1,"Very Good",IF(AND(tbl_Summary[[#This Row],[DQR Score]]>1,tbl_Summary[[#This Row],[DQR Score]]<=2),"Good",IF(AND(tbl_Summary[[#This Row],[DQR Score]]>2,tbl_Summary[[#This Row],[DQR Score]]<=3),"Fair",IF(AND(tbl_Summary[[#This Row],[DQR Score]]>3,tbl_Summary[[#This Row],[DQR Score]]<=4),"Poor",IF(AND(tbl_Summary[[#This Row],[DQR Score]]>4,tbl_Summary[[#This Row],[DQR Score]]<=5),"Very Poor",""))))) -> Fair | R6: =IFERROR(((GETPIVOTDATA("Sum of Materials Uncertainty Score",'Calculation- Materials + Scrap'!$A$5," Shoe",tbl_Summary[[#This Row],[Select Shoe]])*tbl_Summary[[#This Row],[% Materials & Scraps]])+(GETPIVOTDATA("Sum of Uncertainty Score",'Calculation- Energy Consump'!$A$5,"Shoe",tbl_Summary[[#This Row],[Select Shoe]])*tbl_Summary[[#This Row],[% Energy]])+AVERAGE(IFERROR(GETPIVOTDATA("Sum of Uncertainty Score- Raw Maerial to Tier 1",'Calculation-Transport'!$I$5,"Shoe",tbl_Summary[[#This Row],[Select Shoe]]),),IFERROR(GETPIVOTDATA("Sum of Uncertainty Score- Tier 1 to WH",'Calculation-Transport'!$L$5,"Shoe",tbl_Summary[[#This Row],[Select Shoe]]),),IFERROR(GETPIVOTDATA("Sum of Uncertainty Score- WH to Consumer",'Calculation-Transport'!$R$5,"Shoe",tbl_Summary[[#This Row],[Select Shoe]]),))*tbl_Summary[[#This Row],[% Transportation]]+INDEX(tbl_UseEmissions[Uncertainty Score],MATCH(tbl_Summary[[#This Row],[Select Shoe]],tbl_UseEmissions[Shoe],0),)*tbl_Summary[[#This Row],[% Use]]+INDEX(tbl_EOLEmissions[Uncertainty Score],MATCH(tbl_Summary[[#This Row],[Select Shoe]],tbl_EOLEmissions[[ Shoe]],0),)*tbl_Summary[[#This Row],[% EOL]]),"") -> 2.4425027 | S6: =IF(tbl_Summary[[#This Row],[Uncertainty Score]]<=1.5,"Very Good (Very Low Uncertainty)",IF(AND(tbl_Summary[[#This Row],[Uncertainty Score]]>1.5,tbl_Summary[[#This Row],[Uncertainty Score]]<=2.5),"Good (Low Uncertainty)",IF(AND(tbl_Summary[[#This Row],[Uncertainty Score]]>2.5,tbl_Summary[[#This Row],[Uncertainty Score]]<=3.5),"Fair",IF(AND(tbl_Summary[[#This Row],[Uncertainty Score]]>3.5,tbl_Summary[[#This Row],[Uncertainty Score]]<=4.5),"Poor (High Uncertainty)",IF(AND(tbl_Summary[[#This Row],[Uncertainty Score]]>4.5,tbl_Summary[[#This Row],[Uncertainty Score]]<=5),"Very Poor (Very High Uncertainty)",""))))) -> Good (Low Uncertainty)
A7: Sneaker | B7: =IFERROR(GETPIVOTDATA("Net Materials Emissions (kg CO2e) for Pair of Shoes or Unit of Apparel",'Calculation- Materials + Scrap'!$A$5," Shoe",tbl_Summary[[#This Row],[Select Shoe]]),"") -> 10.12847362 | C7: =IFERROR(GETPIVOTDATA("Sum of Factory Emissions (Kg CO2 eq)",'Calculation- Energy Consump'!$A$5,"Shoe",tbl_Summary[[#This Row],[Select Shoe]]),"") -> 4.042314 | D7: =IFERROR((IFERROR(GETPIVOTDATA("Sum of Transportation Emissions- Raw Mat to Textile (kg)",'Calculation-Transport'!$B$5,"Shoe",tbl_Summary[[#This Row],[Select Shoe]]),0)+IFERROR(GETPIVOTDATA("Sum of Transportation Emissions- Textile to Tier 1 (kg)",'Calculation-Transport'!$F$5,"Shoe",tbl_Summary[[#This Row],[Select Shoe]]),0)+GETPIVOTDATA("Sum of Transportation Emissions- Tier 1 to Warehouse (kg)",'Calculation-Transport'!$L$5,"Shoe",tbl_Summary[[#This Row],[Select Shoe]])+GETPIVOTDATA("Sum of Transportation Emissions- Warehouse to Consumers(kg)",'Calculation-Transport'!$R$5,"Shoe",tbl_Summary[[#This Row],[Select Shoe]])),"") -> 1.786010937 | E7: =IFERROR(INDEX(tbl_UseEmissions[Use Emissions (kg CO2 eq)],MATCH(tbl_Summary[[#This Row],[Select Shoe]],tbl_UseEmissions[Shoe],0),),"") -> 0.03090844354 | F7: =IFERROR(INDEX(tbl_EOLEmissions[EOL Emissions (kg)],MATCH(tbl_Summary[[#This Row],[Select Shoe]],tbl_EOLEmissions[[ Shoe]],0),),"") -> 0.7422055303 | G7: =_xlfn.AGGREGATE(9,6,tbl_Summary[[#This Row],[Materials & Scraps]:[EOL]]) -> 16.72991253 | H7: =IFERROR(tbl_Summary[[#This Row],[Materials & Scraps]]/tbl_Summary[[#This Row],[Net CO2e (kg) for Pair]],) -> 0.6054110325 | I7: =IFERROR(tbl_Summary[[#This Row],[Energy ]]/tbl_Summary[[#This Row],[Net CO2e (kg) for Pair]],) -> 0.2416219447 | J7: =IFERROR(tbl_Summary[[#This Row],[Transportation]]/tbl_Summary[[#This Row],[Net CO2e (kg) for Pair]],) -> 0.1067555455 | K7: =IFERROR(tbl_Summary[[#This Row],[Use]]/tbl_Summary[[#This Row],[Net CO2e (kg) for Pair]],) -> 0.001847495824 | L7: =IFERROR(tbl_Summary[[#This Row],[EOL]]/tbl_Summary[[#This Row],[Net CO2e (kg) for Pair]],) -> 0.04436398152 | M7: =IFERROR(GETPIVOTDATA("Sum of FOR REPORTING PURPOSE: ProductBiogenicContent For Pair of Shoes or Apparel (kg CO2e)",'Calculation- Materials + Scrap'!$A$5," Shoe",tbl_Summary[[#This Row],[Select Shoe]]),"") -> 0 | N7: =IFERROR((IFERROR(GETPIVOTDATA("Sum of Aircraft Transportation Emissions",'Calculation-Transport'!$B$5,"Shoe",tbl_Summary[[#This Row],[Select Shoe]]),0)+IFERROR(GETPIVOTDATA("Sum of Aircraft Transportation Emissions-Textile to Tier 1",'Calculation-Transport'!$F$5,"Shoe",tbl_Summary[[#This Row],[Select Shoe]]),0)+GETPIVOTDATA("Sum of Aircraft Transportation Emissions-Tier 1 to Warehouse",'Calculation-Transport'!$L$5,"Shoe",tbl_Summary[[#This Row],[Select Shoe]])+GETPIVOTDATA("Sum of Aircraft Transportation Emissions-Warehouse to Consumers",'Calculation-Transport'!$R$5,"Shoe",tbl_Summary[[#This Row],[Select Shoe]])),"") -> 1.34828369 | O7: =IFERROR(tbl_Summary[[#This Row],[Aircraft Transportation]]/tbl_Summary[[#This Row],[Transportation]], "") -> 0.7549134564 | P7: =IFERROR(((GETPIVOTDATA("Sum of Materials DQR Score",'Calculation- Materials + Scrap'!$A$5," Shoe",tbl_Summary[[#This Row],[Select Shoe]])*tbl_Summary[[#This Row],[% Materials & Scraps]])+(GETPIVOTDATA("Sum of DQR Score",'Calculation- Energy Consump'!$A$5,"Shoe",tbl_Summary[[#This Row],[Select Shoe]])*tbl_Summary[[#This Row],[% Energy]])+AVERAGE(IFERROR(GETPIVOTDATA("Sum of DQR Score- Raw Material to Tier 1",'Calculation-Transport'!$I$5,"Shoe",tbl_Summary[[#This Row],[Select Shoe]]),),IFERROR(GETPIVOTDATA("Sum of DQR Score-Tier 1 to WH",'Calculation-Transport'!$L$5,"Shoe",tbl_Summary[[#This Row],[Select Shoe]]),),IFERROR(GETPIVOTDATA("Sum of DQR Score- WH to Consumer",'Calculation-Transport'!$R$5,"Shoe",tbl_Summary[[#This Row],[Select Shoe]]),))*tbl_Summary[[#This Row],[% Transportation]]+INDEX(tbl_UseEmissions[DQR Score],MATCH(tbl_Summary[[#This Row],[Select Shoe]],tbl_UseEmissions[Shoe],0),)*tbl_Summary[[#This Row],[% Use]]+INDEX(tbl_EOLEmissions[DQR Score],MATCH(tbl_Summary[[#This Row],[Select Shoe]],tbl_EOLEmissions[[ Shoe]],0),)*tbl_Summary[[#This Row],[% EOL]]),"") -> 1.788049633 | Q7: =IF(tbl_Summary[[#This Row],[DQR Score]]<=1,"Very Good",IF(AND(tbl_Summary[[#This Row],[DQR Score]]>1,tbl_Summary[[#This Row],[DQR Score]]<=2),"Good",IF(AND(tbl_Summary[[#This Row],[DQR Score]]>2,tbl_Summary[[#This Row],[DQR Score]]<=3),"Fair",IF(AND(tbl_Summary[[#This Row],[DQR Score]]>3,tbl_Summary[[#This Row],[DQR Score]]<=4),"Poor",IF(AND(tbl_Summary[[#This Row],[DQR Score]]>4,tbl_Summary[[#This Row],[DQR Score]]<=5),"Very Poor",""))))) -> Good | R7: =IFERROR(((GETPIVOTDATA("Sum of Materials Uncertainty Score",'Calculation- Materials + Scrap'!$A$5," Shoe",tbl_Summary[[#This Row],[Select Shoe]])*tbl_Summary[[#This Row],[% Materials & Scraps]])+(GETPIVOTDATA("Sum of Uncertainty Score",'Calculation- Energy Consump'!$A$5,"Shoe",tbl_Summary[[#This Row],[Select Shoe]])*tbl_Summary[[#This Row],[% Energy]])+AVERAGE(IFERROR(GETPIVOTDATA("Sum of Uncertainty Score- Raw Maerial to Tier 1",'Calculation-Transport'!$I$5,"Shoe",tbl_Summary[[#This Row],[Select Shoe]]),),IFERROR(GETPIVOTDATA("Sum of Uncertainty Score- Tier 1 to WH",'Calculation-Transport'!$L$5,"Shoe",tbl_Summary[[#This Row],[Select Shoe]]),),IFERROR(GETPIVOTDATA("Sum of Uncertainty Score- WH to Consumer",'Calculation-Transport'!$R$5,"Shoe",tbl_Summary[[#This Row],[Select Shoe]]),))*tbl_Summary[[#This Row],[% Transportation]]+INDEX(tbl_UseEmissions[Uncertainty Score],MATCH(tbl_Summary[[#This Row],[Select Shoe]],tbl_UseEmissions[Shoe],0),)*tbl_Summary[[#This Row],[% Use]]+INDEX(tbl_EOLEmissions[Uncertainty Score],MATCH(tbl_Summary[[#This Row],[Select Shoe]],tbl_EOLEmissions[[ Shoe]],0),)*tbl_Summary[[#This Row],[% EOL]]),"") -> 2.046211477 | S7: =IF(tbl_Summary[[#This Row],[Uncertainty Score]]<=1.5,"Very Good (Very Low Uncertainty)",IF(AND(tbl_Summary[[#This Row],[Uncertainty Score]]>1.5,tbl_Summary[[#This Row],[Uncertainty Score]]<=2.5),"Good (Low Uncertainty)",IF(AND(tbl_Summary[[#This Row],[Uncertainty Score]]>2.5,tbl_Summary[[#This Row],[Uncertainty Score]]<=3.5),"Fair",IF(AND(tbl_Summary[[#This Row],[Uncertainty Score]]>3.5,tbl_Summary[[#This Row],[Uncertainty Score]]<=4.5),"Poor (High Uncertainty)",IF(AND(tbl_Summary[[#This Row],[Uncertainty Score]]>4.5,tbl_Summary[[#This Row],[Uncertainty Score]]<=5),"Very Poor (Very High Uncertainty)",""))))) -> Good (Low Uncertainty)
B8: =IFERROR(GETPIVOTDATA("Net Materials Emissions (kg CO2e) for Pair of Shoes or Unit of Apparel",'Calculation- Materials + Scrap'!$A$5," Shoe",tbl_Summary[[#This Row],[Select Shoe]]),"") ->  | C8: =IFERROR(GETPIVOTDATA("Sum of Factory Emissions (Kg CO2 eq)",'Calculation- Energy Consump'!$A$5,"Shoe",tbl_Summary[[#This Row],[Select Shoe]]),"") ->  | D8: =IFERROR((IFERROR(GETPIVOTDATA("Sum of Transportation Emissions- Raw Mat to Textile (kg)",'Calculation-Transport'!$B$5,"Shoe",tbl_Summary[[#This Row],[Select Shoe]]),0)+IFERROR(GETPIVOTDATA("Sum of Transportation Emissions- Textile to Tier 1 (kg)",'Calculation-Transport'!$F$5,"Shoe",tbl_Summary[[#This Row],[Select Shoe]]),0)+GETPIVOTDATA("Sum of Transportation Emissions- Tier 1 to Warehouse (kg)",'Calculation-Transport'!$L$5,"Shoe",tbl_Summary[[#This Row],[Select Shoe]])+GETPIVOTDATA("Sum of Transportation Emissions- Warehouse to Consumers(kg)",'Calculation-Transport'!$R$5,"Shoe",tbl_Summary[[#This Row],[Select Shoe]])),"") ->  | E8: =IFERROR(INDEX(tbl_UseEmissions[Use Emissions (kg CO2 eq)],MATCH(tbl_Summary[[#This Row],[Select Shoe]],tbl_UseEmissions[Shoe],0),),"") ->  | F8: =IFERROR(INDEX(tbl_EOLEmissions[EOL Emissions (kg)],MATCH(tbl_Summary[[#This Row],[Select Shoe]],tbl_EOLEmissions[[ Shoe]],0),),"") ->  | G8: =_xlfn.AGGREGATE(9,6,tbl_Summary[[#This Row],[Materials & Scraps]:[EOL]]) -> 0 | H8: =IFERROR(tbl_Summary[[#This Row],[Materials & Scraps]]/tbl_Summary[[#This Row],[Net CO2e (kg) for Pair]],) -> 0 | I8: =IFERROR(tbl_Summary[[#This Row],[Energy ]]/tbl_Summary[[#This Row],[Net CO2e (kg) for Pair]],) -> 0 | J8: =IFERROR(tbl_Summary[[#This Row],[Transportation]]/tbl_Summary[[#This Row],[Net CO2e (kg) for Pair]],) -> 0 | K8: =IFERROR(tbl_Summary[[#This Row],[Use]]/tbl_Summary[[#This Row],[Net CO2e (kg) for Pair]],) -> 0 | L8: =IFERROR(tbl_Summary[[#This Row],[EOL]]/tbl_Summary[[#This Row],[Net CO2e (kg) for Pair]],) -> 0 | M8: =IFERROR(GETPIVOTDATA("Sum of FOR REPORTING PURPOSE: ProductBiogenicContent For Pair of Shoes or Apparel (kg CO2e)",'Calculation- Materials + Scrap'!$A$5," Shoe",tbl_Summary[[#This Row],[Select Shoe]]),"") ->  | N8: =IFERROR((IFERROR(GETPIVOTDATA("Sum of Aircraft Transportation Emissions",'Calculation-Transport'!$B$5,"Shoe",tbl_Summary[[#This Row],[Select Shoe]]),0)+IFERROR(GETPIVOTDATA("Sum of Aircraft Transportation Emissions-Textile to Tier 1",'Calculation-Transport'!$F$5,"Shoe",tbl_Summary[[#This Row],[Select Shoe]]),0)+GETPIVOTDATA("Sum of Aircraft Transportation Emissions-Tier 1 to Warehouse",'Calculation-Transport'!$L$5,"Shoe",tbl_Summary[[#This Row],[Select Shoe]])+GETPIVOTDATA("Sum of Aircraft Transportation Emissions-Warehouse to Consumers",'Calculation-Transport'!$R$5,"Shoe",tbl_Summary[[#This Row],[Select Shoe]])),"") ->  | O8: =IFERROR(tbl_Summary[[#This Row],[Aircraft Transportation]]/tbl_Summary[[#This Row],[Transportation]], "") ->  | P8: =IFERROR(((GETPIVOTDATA("Sum of Materials DQR Score",'Calculation- Materials + Scrap'!$A$5," Shoe",tbl_Summary[[#This Row],[Select Shoe]])*tbl_Summary[[#This Row],[% Materials & Scraps]])+(GETPIVOTDATA("Sum of DQR Score",'Calculation- Energy Consump'!$A$5,"Shoe",tbl_Summary[[#This Row],[Select Shoe]])*tbl_Summary[[#This Row],[% Energy]])+AVERAGE(IFERROR(GETPIVOTDATA("Sum of DQR Score- Raw Material to Tier 1",'Calculation-Transport'!$I$5,"Shoe",tbl_Summary[[#This Row],[Select Shoe]]),),IFERROR(GETPIVOTDATA("Sum of DQR Score-Tier 1 to WH",'Calculation-Transport'!$L$5,"Shoe",tbl_Summary[[#This Row],[Select Shoe]]),),IFERROR(GETPIVOTDATA("Sum of DQR Score- WH to Consumer",'Calculation-Transport'!$R$5,"Shoe",tbl_Summary[[#This Row],[Select Shoe]]),))*tbl_Summary[[#This Row],[% Transportation]]+INDEX(tbl_UseEmissions[DQR Score],MATCH(tbl_Summary[[#This Row],[Select Shoe]],tbl_UseEmissions[Shoe],0),)*tbl_Summary[[#This Row],[% Use]]+INDEX(tbl_EOLEmissions[DQR Score],MATCH(tbl_Summary[[#This Row],[Select Shoe]],tbl_EOLEmissions[[ Shoe]],0),)*tbl_Summary[[#This Row],[% EOL]]),"") ->  | Q8: =IF(tbl_Summary[[#This Row],[DQR Score]]<=1,"Very Good",IF(AND(tbl_Summary[[#This Row],[DQR Score]]>1,tbl_Summary[[#This Row],[DQR Score]]<=2),"Good",IF(AND(tbl_Summary[[#This Row],[DQR Score]]>2,tbl_Summary[[#This Row],[DQR Score]]<=3),"Fair",IF(AND(tbl_Summary[[#This Row],[DQR Score]]>3,tbl_Summary[[#This Row],[DQR Score]]<=4),"Poor",IF(AND(tbl_Summary[[#This Row],[DQR Score]]>4,tbl_Summary[[#This Row],[DQR Score]]<=5),"Very Poor",""))))) ->  | R8: =IFERROR(((GETPIVOTDATA("Sum of Materials Uncertainty Score",'Calculation- Materials + Scrap'!$A$5," Shoe",tbl_Summary[[#This Row],[Select Shoe]])*tbl_Summary[[#This Row],[% Materials & Scraps]])+(GETPIVOTDATA("Sum of Uncertainty Score",'Calculation- Energy Consump'!$A$5,"Shoe",tbl_Summary[[#This Row],[Select Shoe]])*tbl_Summary[[#This Row],[% Energy]])+AVERAGE(IFERROR(GETPIVOTDATA("Sum of Uncertainty Score- Raw Maerial to Tier 1",'Calculation-Transport'!$I$5,"Shoe",tbl_Summary[[#This Row],[Select Shoe]]),),IFERROR(GETPIVOTDATA("Sum of Uncertainty Score- Tier 1 to WH",'Calculation-Transport'!$L$5,"Shoe",tbl_Summary[[#This Row],[Select Shoe]]),),IFERROR(GETPIVOTDATA("Sum of Uncertainty Score- WH to Consumer",'Calculation-Transport'!$R$5,"Shoe",tbl_Summary[[#This Row],[Select Shoe]]),))*tbl_Summary[[#This Row],[% Transportation]]+INDEX(tbl_UseEmissions[Uncertainty Score],MATCH(tbl_Summary[[#This Row],[Select Shoe]],tbl_UseEmissions[Shoe],0),)*tbl_Summary[[#This Row],[% Use]]+INDEX(tbl_EOLEmissions[Uncertainty Score],MATCH(tbl_Summary[[#This Row],[Select Shoe]],tbl_EOLEmissions[[ Shoe]],0),)*tbl_Summary[[#This Row],[% EOL]]),"") ->  | S8: =IF(tbl_Summary[[#This Row],[Uncertainty Score]]<=1.5,"Very Good (Very Low Uncertainty)",IF(AND(tbl_Summary[[#This Row],[Uncertainty Score]]>1.5,tbl_Summary[[#This Row],[Uncertainty Score]]<=2.5),"Good (Low Uncertainty)",IF(AND(tbl_Summary[[#This Row],[Uncertainty Score]]>2.5,tbl_Summary[[#This Row],[Uncertainty Score]]<=3.5),"Fair",IF(AND(tbl_Summary[[#This Row],[Uncertainty Score]]>3.5,tbl_Summary[[#This Row],[Uncertainty Score]]<=4.5),"Poor (High Uncertainty)",IF(AND(tbl_Summary[[#This Row],[Uncertainty Score]]>4.5,tbl_Summary[[#This Row],[Uncertainty Score]]<=5),"Very Poor (Very High Uncertainty)",""))))) -> 
B9: =IFERROR(GETPIVOTDATA("Net Materials Emissions (kg CO2e) for Pair of Shoes or Unit of Apparel",'Calculation- Materials + Scrap'!$A$5," Shoe",tbl_Summary[[#This Row],[Select Shoe]]),"") ->  | C9: =IFERROR(GETPIVOTDATA("Sum of Factory Emissions (Kg CO2 eq)",'Calculation- Energy Consump'!$A$5,"Shoe",tbl_Summary[[#This Row],[Select Shoe]]),"") ->  | D9: =IFERROR((IFERROR(GETPIVOTDATA("Sum of Transportation Emissions- Raw Mat to Textile (kg)",'Calculation-Transport'!$B$5,"Shoe",tbl_Summary[[#This Row],[Select Shoe]]),0)+IFERROR(GETPIVOTDATA("Sum of Transportation Emissions- Textile to Tier 1 (kg)",'Calculation-Transport'!$F$5,"Shoe",tbl_Summary[[#This Row],[Select Shoe]]),0)+GETPIVOTDATA("Sum of Transportation Emissions- Tier 1 to Warehouse (kg)",'Calculation-Transport'!$L$5,"Shoe",tbl_Summary[[#This Row],[Select Shoe]])+GETPIVOTDATA("Sum of Transportation Emissions- Warehouse to Consumers(kg)",'Calculation-Transport'!$R$5,"Shoe",tbl_Summary[[#This Row],[Select Shoe]])),"") ->  | E9: =IFERROR(INDEX(tbl_UseEmissions[Use Emissions (kg CO2 eq)],MATCH(tbl_Summary[[#This Row],[Select Shoe]],tbl_UseEmissions[Shoe],0),),"") ->  | F9: =IFERROR(INDEX(tbl_EOLEmissions[EOL Emissions (kg)],MATCH(tbl_Summary[[#This Row],[Select Shoe]],tbl_EOLEmissions[[ Shoe]],0),),"") ->  | G9: =_xlfn.AGGREGATE(9,6,tbl_Summary[[#This Row],[Materials & Scraps]:[EOL]]) -> 0 | H9: =IFERROR(tbl_Summary[[#This Row],[Materials & Scraps]]/tbl_Summary[[#This Row],[Net CO2e (kg) for Pair]],) -> 0 | I9: =IFERROR(tbl_Summary[[#This Row],[Energy ]]/tbl_Summary[[#This Row],[Net CO2e (kg) for Pair]],) -> 0 | J9: =IFERROR(tbl_Summary[[#This Row],[Transportation]]/tbl_Summary[[#This Row],[Net CO2e (kg) for Pair]],) -> 0 | K9: =IFERROR(tbl_Summary[[#This Row],[Use]]/tbl_Summary[[#This Row],[Net CO2e (kg) for Pair]],) -> 0 | L9: =IFERROR(tbl_Summary[[#This Row],[EOL]]/tbl_Summary[[#This Row],[Net CO2e (kg) for Pair]],) -> 0 | M9: =IFERROR(GETPIVOTDATA("Sum of FOR REPORTING PURPOSE: ProductBiogenicContent For Pair of Shoes or Apparel (kg CO2e)",'Calculation- Materials + Scrap'!$A$5," Shoe",tbl_Summary[[#This Row],[Select Shoe]]),"") ->  | N9: =IFERROR((IFERROR(GETPIVOTDATA("Sum of Aircraft Transportation Emissions",'Calculation-Transport'!$B$5,"Shoe",tbl_Summary[[#This Row],[Select Shoe]]),0)+IFERROR(GETPIVOTDATA("Sum of Aircraft Transportation Emissions-Textile to Tier 1",'Calculation-Transport'!$F$5,"Shoe",tbl_Summary[[#This Row],[Select Shoe]]),0)+GETPIVOTDATA("Sum of Aircraft Transportation Emissions-Tier 1 to Warehouse",'Calculation-Transport'!$L$5,"Shoe",tbl_Summary[[#This Row],[Select Shoe]])+GETPIVOTDATA("Sum of Aircraft Transportation Emissions-Warehouse to Consumers",'Calculation-Transport'!$R$5,"Shoe",tbl_Summary[[#This Row],[Select Shoe]])),"") ->  | O9: =IFERROR(tbl_Summary[[#This Row],[Aircraft Transportation]]/tbl_Summary[[#This Row],[Transportation]], "") ->  | P9: =IFERROR(((GETPIVOTDATA("Sum of Materials DQR Score",'Calculation- Materials + Scrap'!$A$5," Shoe",tbl_Summary[[#This Row],[Select Shoe]])*tbl_Summary[[#This Row],[% Materials & Scraps]])+(GETPIVOTDATA("Sum of DQR Score",'Calculation- Energy Consump'!$A$5,"Shoe",tbl_Summary[[#This Row],[Select Shoe]])*tbl_Summary[[#This Row],[% Energy]])+AVERAGE(IFERROR(GETPIVOTDATA("Sum of DQR Score- Raw Material to Tier 1",'Calculation-Transport'!$I$5,"Shoe",tbl_Summary[[#This Row],[Select Shoe]]),),IFERROR(GETPIVOTDATA("Sum of DQR Score-Tier 1 to WH",'Calculation-Transport'!$L$5,"Shoe",tbl_Summary[[#This Row],[Select Shoe]]),),IFERROR(GETPIVOTDATA("Sum of DQR Score- WH to Consumer",'Calculation-Transport'!$R$5,"Shoe",tbl_Summary[[#This Row],[Select Shoe]]),))*tbl_Summary[[#This Row],[% Transportation]]+INDEX(tbl_UseEmissions[DQR Score],MATCH(tbl_Summary[[#This Row],[Select Shoe]],tbl_UseEmissions[Shoe],0),)*tbl_Summary[[#This Row],[% Use]]+INDEX(tbl_EOLEmissions[DQR Score],MATCH(tbl_Summary[[#This Row],[Select Shoe]],tbl_EOLEmissions[[ Shoe]],0),)*tbl_Summary[[#This Row],[% EOL]]),"") ->  | Q9: =IF(tbl_Summary[[#This Row],[DQR Score]]<=1,"Very Good",IF(AND(tbl_Summary[[#This Row],[DQR Score]]>1,tbl_Summary[[#This Row],[DQR Score]]<=2),"Good",IF(AND(tbl_Summary[[#This Row],[DQR Score]]>2,tbl_Summary[[#This Row],[DQR Score]]<=3),"Fair",IF(AND(tbl_Summary[[#This Row],[DQR Score]]>3,tbl_Summary[[#This Row],[DQR Score]]<=4),"Poor",IF(AND(tbl_Summary[[#This Row],[DQR Score]]>4,tbl_Summary[[#This Row],[DQR Score]]<=5),"Very Poor",""))))) ->  | R9: =IFERROR(((GETPIVOTDATA("Sum of Materials Uncertainty Score",'Calculation- Materials + Scrap'!$A$5," Shoe",tbl_Summary[[#This Row],[Select Shoe]])*tbl_Summary[[#This Row],[% Materials & Scraps]])+(GETPIVOTDATA("Sum of Uncertainty Score",'Calculation- Energy Consump'!$A$5,"Shoe",tbl_Summary[[#This Row],[Select Shoe]])*tbl_Summary[[#This Row],[% Energy]])+AVERAGE(IFERROR(GETPIVOTDATA("Sum of Uncertainty Score- Raw Maerial to Tier 1",'Calculation-Transport'!$I$5,"Shoe",tbl_Summary[[#This Row],[Select Shoe]]),),IFERROR(GETPIVOTDATA("Sum of Uncertainty Score- Tier 1 to WH",'Calculation-Transport'!$L$5,"Shoe",tbl_Summary[[#This Row],[Select Shoe]]),),IFERROR(GETPIVOTDATA("Sum of Uncertainty Score- WH to Consumer",'Calculation-Transport'!$R$5,"Shoe",tbl_Summary[[#This Row],[Select Shoe]]),))*tbl_Summary[[#This Row],[% Transportation]]+INDEX(tbl_UseEmissions[Uncertainty Score],MATCH(tbl_Summary[[#This Row],[Select Shoe]],tbl_UseEmissions[Shoe],0),)*tbl_Summary[[#This Row],[% Use]]+INDEX(tbl_EOLEmissions[Uncertainty Score],MATCH(tbl_Summary[[#This Row],[Select Shoe]],tbl_EOLEmissions[[ Shoe]],0),)*tbl_Summary[[#This Row],[% EOL]]),"") ->  | S9: =IF(tbl_Summary[[#This Row],[Uncertainty Score]]<=1.5,"Very Good (Very Low Uncertainty)",IF(AND(tbl_Summary[[#This Row],[Uncertainty Score]]>1.5,tbl_Summary[[#This Row],[Uncertainty Score]]<=2.5),"Good (Low Uncertainty)",IF(AND(tbl_Summary[[#This Row],[Uncertainty Score]]>2.5,tbl_Summary[[#This Row],[Uncertainty Score]]<=3.5),"Fair",IF(AND(tbl_Summary[[#This Row],[Uncertainty Score]]>3.5,tbl_Summary[[#This Row],[Uncertainty Score]]<=4.5),"Poor (High Uncertainty)",IF(AND(tbl_Summary[[#This Row],[Uncertainty Score]]>4.5,tbl_Summary[[#This Row],[Uncertainty Score]]<=5),"Very Poor (Very High Uncertainty)",""))))) -> 

Sheet Dashboard
F2: CARBON FOOTPRINT DASHBOARD
A5: A.1 Carbon Footprint Results: Breakdown according to ISO 14067:2018 Reporting Requirements
A37: A.2 Carbon Footprint Results: Breakdown by Net Total Results, by Life Cycle Phase
H69: B. Material Phase Carbon Footprint: Breakdown by Section | P69: C.1 Material Phase Carbon Footprint: Breakdown by Component | X69: C.2 Material Phase Carbon Footprint: Breakdown by Material Blend | AG69: C.3 Material Phase Carbon Footprint: Breakdown by Material
A97: C.4 Material Phase Carbon Footprint: Breakdown by Component | O97: C.5 Material Phase Carbon Footprint: Breakdown by Material & Process | AC97: D. Manufacturing Phase Carbon Footprint: % Breakdown by Process

Sheet Datasets -->

Sheet InputMats
AO1: =IF(AK1="Biodegradable waste",0.660323781,IF(AK1="Paper",1.047970417,IF(AK1="Plastic",0.07161172,IF(AK1="Textile",1.079526198,IF(AK1="Corrugated container",0.49604009,IF(AK1="","")))))) -> 
B5: This table generates materials that can be selected on the 'Calculation- Materials+Scraps' and 'InputBlends' tabs. Select the material from dropdown (column B), then enter stage and product category (columns C-D). If a new material is needed, input the relevant data in columns AQ-AY. Net carbon intensity (CI) includes selected material phases as well as direct land use change and biogenic carbon emissions/removals, if applicable. Select material type (column F) for end of life calculations; if a new material type is needed, input relevant data in columns BA-BD. | J5: Select relevant material processes from dropdown: yarn formation/mixing (column J), textile formation/foaming (column K), preparation/molding (column L), coloration (column M), additional finishing (column N). If a new material process is needed, input the relevant data in columns AQ-AY. Enter data source for record keeping (column O); currently includes PLACEHOLDER VALUES. | U5: Carbon Intensity breakdown by process | AA5: If applicable, enter direct land use change (column AA) and kg biogenic carbon/kg material (column AC). The kg CO2e biogenic carbon (column AB) is calculated based on the kg biogenic carbon (column AC). Methodology for estimating emissions from dLUC is included in columns BF-BJ, if primary data is not available. | AI5: This table summarizes the carbon intensity (CI) percentage breakdown by process (columns AI-AN); calculated based on material process selections (columns J-O). | AQ5: This table generates to dropdown options to select materials and processes in columns B-N. Enter the material stage, which includes material phase and processing steps (column AQ), notes on classification for record keeping (column AR), and the material or process option (column AS); currently includes PLACEHOLDER VALUES. Then, enter the carbon intensity excluding loss rates (column AV) and loss rates if applicable (column AW), as well as the data source for record keeping (column AU). Enter the data quality rating (DQR) and uncertainty scores (columns AX-AY); see 'DataQuality' tab for additional details on Data Quality assessment approach (Allbirds uses Higg values if data is from the MSI). | BA5: This table summarizes the end of life carbon intensities (CI) by material category, which are applied to a product's materials to calculate the end of life phase on the 'Calculation- EOL' tab. Enter the lanfill and incineration CIs (columns BB-BC), as well as notes on the data source for record keeping (column BD); currently includes PLACEHOLDER VALUES. | BF5: This table summarizes the emissions/removals from direct land use change (dLUC), if applicable, to then be entered in column AA. Enter the material (column BF), sourcing country (column BG), if land conversion occurred within the last 20 years (column BH), and the dLUC emissions/removals (column BI), as well as notes on the data source for record keeping (column BJ). Additional guidance on the methodology for estimating carbon emissions/removals from dLUC are included below the table (rows 19-24).
A6: Material Name/Stage/Product Category (CALCULATED COLUMN -NO NEED TO EDIT) | B6: Material Name | C6: Stage | D6: Product Category | E6: Net CI (kg CO2e/kg) | F6: Material Type- Landfill/Incinerated | G6: Landfill | H6: Incinerated | I6: 1 | J6: 2 | K6: 3 | L6: 4 | M6: 5 | N6: 6 | O6: Source | P6: Dataset Name (noted if different from the dropdown list) | Q6: DQR Score | R6: Uncertainty Score | S6: Notes | T6: CI (kg CO2e/kg)-EXCLUDING Biogenic C & dLUC | U6: CI1 | V6: CI2 | W6: CI3 | X6: CI4 | Y6: CI5 | Z6: CI6 | AA6: Direct land use change (dLUC) | AB6: Biogenic Carbon (kg CO2e/kg material) | AC6: Product Biogenic Carbon (kg C/kg material) | AD6: Indirect LUC (iLUC) kg CO2e/kg material- reported based on data availability | AE6: Net CI including direct + indirect LUC (kg CO2/kg material) | AG6: Helper (NO NEED TO EDIT) | AI6: 1. Fiber/Resin | AJ6: 2. Yarn formation/Mixing | AK6: 3. Textile formation/Foaming | AL6: 4. Preparation/Molding | AM6: 5. Coloration | AN6: 6. Additional Finishing | AP6: Helper (NO NEED TO EDIT) | AQ6: Stage | AR6: Notes on Classification (for REFERENCE ONLY) | AS6: Option | AT6: CI (kg CO2e/material) | AU6: Data Source | AV6: CI (kg CO2e/material)- EXCLUDING LOSS RATES | AW6: Loss rates | AX6: Data Quality Review (DQR) Score | AY6: Uncertainty/Precision Score | BA6: EOL Material Category | BB6: CI Landfill | BC6: CI Incineration | BD6: Notes | BF6: Relevant Material | BG6: Sourcing Country | BH6: Did land conversion occur within the last 20 years? | BI6: dLUC kg CO2e/kg material | BJ6: Reference
A7: =B7&" ; "&C7&" - "&D7 -> Acrylic ; Fiber - Apparel | B7: Acrylic | C7: Fiber | D7: Apparel | E7: =IFERROR(SUM(tbl_CIMats1622[[#This Row],[CI1]:[Biogenic Carbon (kg CO2e/kg material)]]),"") -> 0 | F7: Synthetic Textile | G7: =IFERROR((IF(OR(tbl_CIMats1622[[#This Row],[Material Type- Landfill/Incinerated]]=$BA$9,tbl_CIMats1622[[#This Row],[Material Type- Landfill/Incinerated]]=$BA$10,tbl_CIMats1622[[#This Row],[Material Type- Landfill/Incinerated]]=$BA$11,tbl_CIMats1622[[#This Row],[Material Type- Landfill/Incinerated]]=$BA$12,tbl_CIMats1622[[#This Row],[Material Type- Landfill/Incinerated]]=$BA$13,tbl_CIMats1622[[#This Row],[Material Type- Landfill/Incinerated]]=$BA$23,tbl_CIMats1622[[#This Row],[Material Type- Landfill/Incinerated]]=$BA$24),INDEX(EOL_CIs[#All],MATCH(tbl_CIMats1622[[#This Row],[Material Type- Landfill/Incinerated]],EOL_CIs[[#All],[EOL Material Category]],0),2),(INDEX(EOL_CIs[#All],MATCH(tbl_CIMats1622[[#This Row],[Material Type- Landfill/Incinerated]],EOL_CIs[[#All],[EOL Material Category]],0),2)+ABS(tbl_CIMats1622[[#This Row],[Biogenic Carbon (kg CO2e/kg material)]])))),) -> 1 | H7: =IFERROR(INDEX(EOL_CIs[#All],MATCH(tbl_CIMats1622[[#This Row],[Material Type- Landfill/Incinerated]],EOL_CIs[[#All],[EOL Material Category]],0),3)+ABS(tbl_CIMats1622[[#This Row],[Biogenic Carbon (kg CO2e/kg material)]]),) -> 1 | I7: =tbl_CIMats1622[[#This Row],[Material Name]] -> Acrylic | J7: No spinning | K7: No textile formation | L7: No prep | M7: No dyeing | N7: No finish | Q7: =IFERROR(INDEX(InputMatDropdownList[],MATCH(tbl_CIMats1622[[#This Row],[Material Name]]&";"&tbl_CIMats1622[[#This Row],[Stage]],InputMatDropdownList[Helper (NO NEED TO EDIT)],0),9)*$AI7,)+IFERROR(INDEX(InputMatDropdownList[],MATCH(tbl_CIMats1622[[#This Row],[2]],InputMatDropdownList[Option],0),9)*$AJ7,)+IFERROR(INDEX(InputMatDropdownList[],MATCH(tbl_CIMats1622[[#This Row],[3]],InputMatDropdownList[Option],0),9)*$AK7,) +IFERROR(INDEX(InputMatDropdownList[],MATCH(tbl_CIMats1622[[#This Row],[4]],InputMatDropdownList[Option],0),9)*$AL7,)+IFERROR(INDEX(InputMatDropdownList[],MATCH(tbl_CIMats1622[[#This Row],[5]],InputMatDropdownList[Option],0),9)*$AM7,)+IFERROR(INDEX(InputMatDropdownList[],MATCH(tbl_CIMats1622[[#This Row],[6]],InputMatDropdownList[Option],0),9)*$AN7,) -> 0 | R7: =IFERROR(INDEX(InputMatDropdownList[],MATCH(tbl_CIMats1622[[#This Row],[Material Name]]&";"&tbl_CIMats1622[[#This Row],[Stage]],InputMatDropdownList[Helper (NO NEED TO EDIT)],0),10)*$AI7,)+IFERROR(INDEX(InputMatDropdownList[],MATCH(tbl_CIMats1622[[#This Row],[2]],InputMatDropdownList[Option],0),10)*$AJ7,)+IFERROR(INDEX(InputMatDropdownList[],MATCH(tbl_CIMats1622[[#This Row],[3]],InputMatDropdownList[Option],0),10)*$AK7,) +IFERROR(INDEX(InputMatDropdownList[],MATCH(tbl_CIMats1622[[#This Row],[4]],InputMatDropdownList[Option],0),10)*$AL7,)+IFERROR(INDEX(InputMatDropdownList[],MATCH(tbl_CIMats1622[[#This Row],[5]],InputMatDropdownList[Option],0),10)*$AM7,)+IFERROR(INDEX(InputMatDropdownList[],MATCH(tbl_CIMats1622[[#This Row],[6]],InputMatDropdownList[Option],0),10)*$AN7,) -> 0 | T7: =IFERROR(SUM(tbl_CIMats1622[[#This Row],[CI1]:[CI6]]),"") -> 0 | U7: =IFERROR(INDEX(InputMatDropdownList[],MATCH(tbl_CIMats1622[[#This Row],[Material Name]]&";"&tbl_CIMats1622[[#This Row],[Stage]],InputMatDropdownList[Helper (NO NEED TO EDIT)],0),5),"") -> 0 | V7: =IF(ISBLANK(tbl_CIMats1622[[#This Row],[2]]),"",INDEX(InputMatDropdownList[],MATCH(tbl_CIMats1622[[#This Row],[2]],InputMatDropdownList[Option],0),5)) -> 0 | W7: =IF(ISBLANK(tbl_CIMats1622[[#This Row],[3]]),"",INDEX(InputMatDropdownList[],MATCH(tbl_CIMats1622[[#This Row],[3]],InputMatDropdownList[Option],0),5)) -> 0 | X7: =IF(ISBLANK(tbl_CIMats1622[[#This Row],[4]]),"",INDEX(InputMatDropdownList[],MATCH(tbl_CIMats1622[[#This Row],[4]],InputMatDropdownList[Option],0),5)) -> 0 | Y7: =IF(ISBLANK(tbl_CIMats1622[[#This Row],[5]]),"",INDEX(InputMatDropdownList[],MATCH(tbl_CIMats1622[[#This Row],[5]],InputMatDropdownList[Option],0),5)) -> 0 | Z7: =IF(ISBLANK(tbl_CIMats1622[[#This Row],[6]]),"",INDEX(InputMatDropdownList[],MATCH(tbl_CIMats1622[[#This Row],[6]],InputMatDropdownList[Option],0),5)) -> 0 | AB7: =-(AC7*(44/12)) -> 0 | AE7: =SUM(tbl_CIMats1622[[#This Row],[CI1]:[Biogenic Carbon (kg CO2e/kg material)]],tbl_CIMats1622[[#This Row],[Indirect LUC (iLUC) kg CO2e/kg material- reported based on data availability]]) -> 0 | AG7: =tbl_CIMats1622[[#This Row],[Material Name/Stage/Product Category (CALCULATED COLUMN -NO NEED TO EDIT)]] -> Acrylic ; Fiber - Apparel | AH7: =SUM(AI7:AN7) -> 0 | AI7: =IFERROR(tbl_CIMats1622[[#This Row],[CI1]]/tbl_CIMats1622[[#This Row],[CI (kg CO2e/kg)-EXCLUDING Biogenic C & dLUC]],) -> 0 | AJ7: =IFERROR(tbl_CIMats1622[[#This Row],[CI2]]/tbl_CIMats1622[[#This Row],[CI (kg CO2e/kg)-EXCLUDING Biogenic C & dLUC]],) -> 0 | AK7: =IFERROR(tbl_CIMats1622[[#This Row],[CI3]]/tbl_CIMats1622[[#This Row],[CI (kg CO2e/kg)-EXCLUDING Biogenic C & dLUC]],) -> 0 | AL7: =IFERROR(tbl_CIMats1622[[#This Row],[CI4]]/tbl_CIMats1622[[#This Row],[CI (kg CO2e/kg)-EXCLUDING Biogenic C & dLUC]],) -> 0 | AM7: =IFERROR(tbl_CIMats1622[[#This Row],[CI5]]/tbl_CIMats1622[[#This Row],[CI (kg CO2e/kg)-EXCLUDING Biogenic C & dLUC]],) -> 0 | AN7: =IFERROR(tbl_CIMats1622[[#This Row],[CI6]]/tbl_CIMats1622[[#This Row],[CI (kg CO2e/kg)-EXCLUDING Biogenic C & dLUC]],) -> 0 | AP7: =IF(OR(InputMatDropdownList[[#This Row],[Stage]]="Fiber",InputMatDropdownList[[#This Row],[Stage]]="Plastics",InputMatDropdownList[[#This Row],[Stage]]="Yarn",InputMatDropdownList[[#This Row],[Stage]]="Fabric",InputMatDropdownList[[#This Row],[Stage]]="Foam",InputMatDropdownList[[#This Row],[Stage]]="Rubber/Elastomer",InputMatDropdownList[[#This Row],[Stage]]="Other",InputMatDropdownList[[#This Row],[Stage]]="Packaging"),InputMatDropdownList[[#This Row],[Option]]&";"&InputMatDropdownList[[#This Row],[Stage]],InputMatDropdownList[[#This Row],[Option]]) -> Acrylic;Fiber | AQ7: Fiber | AR7: Synthetics | AS7: Acrylic | AT7: =InputMatDropdownList[[#This Row],[CI (kg CO2e/material)- EXCLUDING LOSS RATES]]*(1+InputMatDropdownList[[#This Row],[Loss rates]]) -> 0 | BA7: Plastic | BB7: 1 | BC7: 1 | BD7: PLACEHOLDER VALUE | BF7: Cotton | BG7: 23% India, 22% China, USA, Brazil, Australia | BH7: No primary data | BI7: 0.37 | BJ7: Direct Land Use Change Assessment Tool (2018); Country known, previous land use unknown dLUC values
A8: Alpaca ; Fiber - Apparel | B8: Alpaca | C8: Fiber | D8: Apparel | E8: =IFERROR(SUM(tbl_CIMats1622[[#This Row],[CI1]:[Biogenic Carbon (kg CO2e/kg material)]]),"") -> 0 | F8: Natural Textile | G8: =IFERROR((IF(OR(tbl_CIMats1622[[#This Row],[Material Type- Landfill/Incinerated]]=$BA$9,tbl_CIMats1622[[#This Row],[Material Type- Landfill/Incinerated]]=$BA$10,tbl_CIMats1622[[#This Row],[Material Type- Landfill/Incinerated]]=$BA$11,tbl_CIMats1622[[#This Row],[Material Type- Landfill/Incinerated]]=$BA$12,tbl_CIMats1622[[#This Row],[Material Type- Landfill/Incinerated]]=$BA$13,tbl_CIMats1622[[#This Row],[Material Type- Landfill/Incinerated]]=$BA$23,tbl_CIMats1622[[#This Row],[Material Type- Landfill/Incinerated]]=$BA$24),INDEX(EOL_CIs[#All],MATCH(tbl_CIMats1622[[#This Row],[Material Type- Landfill/Incinerated]],EOL_CIs[[#All],[EOL Material Category]],0),2),(INDEX(EOL_CIs[#All],MATCH(tbl_CIMats1622[[#This Row],[Material Type- Landfill/Incinerated]],EOL_CIs[[#All],[EOL Material Category]],0),2)+ABS(tbl_CIMats1622[[#This Row],[Biogenic Carbon (kg CO2e/kg material)]])))),) -> 1 | H8: =IFERROR(INDEX(EOL_CIs[#All],MATCH(tbl_CIMats1622[[#This Row],[Material Type- Landfill/Incinerated]],EOL_CIs[[#All],[EOL Material Category]],0),3)+ABS(tbl_CIMats1622[[#This Row],[Biogenic Carbon (kg CO2e/kg material)]]),) -> 1 | I8: =tbl_CIMats1622[[#This Row],[Material Name]] -> Alpaca | J8: No spinning | K8: No textile formation | L8: No prep | M8: No dyeing | N8: No finish | Q8: =IFERROR(INDEX(InputMatDropdownList[],MATCH(tbl_CIMats1622[[#This Row],[Material Name]]&";"&tbl_CIMats1622[[#This Row],[Stage]],InputMatDropdownList[Helper (NO NEED TO EDIT)],0),9)*$AI8,)+IFERROR(INDEX(InputMatDropdownList[],MATCH(tbl_CIMats1622[[#This Row],[2]],InputMatDropdownList[Option],0),9)*$AJ8,)+IFERROR(INDEX(InputMatDropdownList[],MATCH(tbl_CIMats1622[[#This Row],[3]],InputMatDropdownList[Option],0),9)*$AK8,) +IFERROR(INDEX(InputMatDropdownList[],MATCH(tbl_CIMats1622[[#This Row],[4]],InputMatDropdownList[Option],0),9)*$AL8,)+IFERROR(INDEX(InputMatDropdownList[],MATCH(tbl_CIMats1622[[#This Row],[5]],InputMatDropdownList[Option],0),9)*$AM8,)+IFERROR(INDEX(InputMatDropdownList[],MATCH(tbl_CIMats1622[[#This Row],[6]],InputMatDropdownList[Option],0),9)*$AN8,) -> 0 | R8: =IFERROR(INDEX(InputMatDropdownList[],MATCH(tbl_CIMats1622[[#This Row],[Material Name]]&";"&tbl_CIMats1622[[#This Row],[Stage]],InputMatDropdownList[Helper (NO NEED TO EDIT)],0),10)*$AI8,)+IFERROR(INDEX(InputMatDropdownList[],MATCH(tbl_CIMats1622[[#This Row],[2]],InputMatDropdownList[Option],0),10)*$AJ8,)+IFERROR(INDEX(InputMatDropdownList[],MATCH(tbl_CIMats1622[[#This Row],[3]],InputMatDropdownList[Option],0),10)*$AK8,) +IFERROR(INDEX(InputMatDropdownList[],MATCH(tbl_CIMats1622[[#This Row],[4]],InputMatDropdownList[Option],0),10)*$AL8,)+IFERROR(INDEX(InputMatDropdownList[],MATCH(tbl_CIMats1622[[#This Row],[5]],InputMatDropdownList[Option],0),10)*$AM8,)+IFERROR(INDEX(InputMatDropdownList[],MATCH(tbl_CIMats1622[[#This Row],[6]],InputMatDropdownList[Option],0),10)*$AN8,) -> 0 | T8: =IFERROR(SUM(tbl_CIMats1622[[#This Row],[CI1]:[CI6]]),"") -> 0 | U8: =IFERROR(INDEX(InputMatDropdownList[],MATCH(tbl_CIMats1622[[#This Row],[Material Name]]&";"&tbl_CIMats1622[[#This Row],[Stage]],InputMatDropdownList[Helper (NO NEED TO EDIT)],0),5),"") -> 0 | V8: =IF(ISBLANK(tbl_CIMats1622[[#This Row],[2]]),"",INDEX(InputMatDropdownList[],MATCH(tbl_CIMats1622[[#This Row],[2]],InputMatDropdownList[Option],0),5)) -> 0 | W8: =IF(ISBLANK(tbl_CIMats1622[[#This Row],[3]]),"",INDEX(InputMatDropdownList[],MATCH(tbl_CIMats1622[[#This Row],[3]],InputMatDropdownList[Option],0),5)) -> 0 | X8: =IF(ISBLANK(tbl_CIMats1622[[#This Row],[4]]),"",INDEX(InputMatDropdownList[],MATCH(tbl_CIMats1622[[#This Row],[4]],InputMatDropdownList[Option],0),5)) -> 0 | Y8: =IF(ISBLANK(tbl_CIMats1622[[#This Row],[5]]),"",INDEX(InputMatDropdownList[],MATCH(tbl_CIMats1622[[#This Row],[5]],InputMatDropdownList[Option],0),5)) -> 0 | Z8: =IF(ISBLANK(tbl_CIMats1622[[#This Row],[6]]),"",INDEX(InputMatDropdownList[],MATCH(tbl_CIMats1622[[#This Row],[6]],InputMatDropdownList[Option],0),5)) -> 0 | AB8: 0 | AE8: =SUM(tbl_CIMats1622[[#This Row],[CI1]:[Biogenic Carbon (kg CO2e/kg material)]],tbl_CIMats1622[[#This Row],[Indirect LUC (iLUC) kg CO2e/kg material- reported based on data availability]]) -> 0 | AG8: =tbl_CIMats1622[[#This Row],[Material Name/Stage/Product Category (CALCULATED COLUMN -NO NEED TO EDIT)]] -> Alpaca ; Fiber - Apparel | AH8: =SUM(AI8:AN8) -> 0 | AI8: =IFERROR(tbl_CIMats1622[[#This Row],[CI1]]/tbl_CIMats1622[[#This Row],[CI (kg CO2e/kg)-EXCLUDING Biogenic C & dLUC]],) -> 0 | AJ8: =IFERROR(tbl_CIMats1622[[#This Row],[CI2]]/tbl_CIMats1622[[#This Row],[CI (kg CO2e/kg)-EXCLUDING Biogenic C & dLUC]],) -> 0 | AK8: =IFERROR(tbl_CIMats1622[[#This Row],[CI3]]/tbl_CIMats1622[[#This Row],[CI (kg CO2e/kg)-EXCLUDING Biogenic C & dLUC]],) -> 0 | AL8: =IFERROR(tbl_CIMats1622[[#This Row],[CI4]]/tbl_CIMats1622[[#This Row],[CI (kg CO2e/kg)-EXCLUDING Biogenic C & dLUC]],) -> 0 | AM8: =IFERROR(tbl_CIMats1622[[#This Row],[CI5]]/tbl_CIMats1622[[#This Row],[CI (kg CO2e/kg)-EXCLUDING Biogenic C & dLUC]],) -> 0 | AN8: =IFERROR(tbl_CIMats1622[[#This Row],[CI6]]/tbl_CIMats1622[[#This Row],[CI (kg CO2e/kg)-EXCLUDING Biogenic C & dLUC]],) -> 0 | AP8: =IF(OR(InputMatDropdownList[[#This Row],[Stage]]="Fiber",InputMatDropdownList[[#This Row],[Stage]]="Plastics",InputMatDropdownList[[#This Row],[Stage]]="Yarn",InputMatDropdownList[[#This Row],[Stage]]="Fabric",InputMatDropdownList[[#This Row],[Stage]]="Foam",InputMatDropdownList[[#This Row],[Stage]]="Rubber/Elastomer",InputMatDropdownList[[#This Row],[Stage]]="Other",InputMatDropdownList[[#This Row],[Stage]]="Packaging"),InputMatDropdownList[[#This Row],[Option]]&";"&InputMatDropdownList[[#This Row],[Stage]],InputMatDropdownList[[#This Row],[Option]]) -> Alpaca;Fiber | AQ8: Fiber | AR8: Animal Fibers | AS8: Alpaca | AT8: =InputMatDropdownList[[#This Row],[CI (kg CO2e/material)- EXCLUDING LOSS RATES]]*(1+InputMatDropdownList[[#This Row],[Loss rates]]) -> 0 | BA8: Foam | BB8: 1 | BC8: 1 | BD8: PLACEHOLDER VALUE
A9: Bio-based spandex ; Fiber - Apparel | B9: Bio-based spandex | C9: Fiber | D9: Apparel | E9: =IFERROR(SUM(tbl_CIMats1622[[#This Row],[CI1]:[Biogenic Carbon (kg CO2e/kg material)]]),"") -> 0 | F9: Synthetic Textile | G9: =IFERROR((IF(OR(tbl_CIMats1622[[#This Row],[Material Type- Landfill/Incinerated]]=$BA$9,tbl_CIMats1622[[#This Row],[Material Type- Landfill/Incinerated]]=$BA$10,tbl_CIMats1622[[#This Row],[Material Type- Landfill/Incinerated]]=$BA$11,tbl_CIMats1622[[#This Row],[Material Type- Landfill/Incinerated]]=$BA$12,tbl_CIMats1622[[#This Row],[Material Type- Landfill/Incinerated]]=$BA$13,tbl_CIMats1622[[#This Row],[Material Type- Landfill/Incinerated]]=$BA$23,tbl_CIMats1622[[#This Row],[Material Type- Landfill/Incinerated]]=$BA$24),INDEX(EOL_CIs[#All],MATCH(tbl_CIMats1622[[#This Row],[Material Type- Landfill/Incinerated]],EOL_CIs[[#All],[EOL Material Category]],0),2),(INDEX(EOL_CIs[#All],MATCH(tbl_CIMats1622[[#This Row],[Material Type- Landfill/Incinerated]],EOL_CIs[[#All],[EOL Material Category]],0),2)+ABS(tbl_CIMats1622[[#This Row],[Biogenic Carbon (kg CO2e/kg material)]])))),) -> 1 | H9: =IFERROR(INDEX(EOL_CIs[#All],MATCH(tbl_CIMats1622[[#This Row],[Material Type- Landfill/Incinerated]],EOL_CIs[[#All],[EOL Material Category]],0),3)+ABS(tbl_CIMats1622[[#This Row],[Biogenic Carbon (kg CO2e/kg material)]]),) -> 1 | I9: =tbl_CIMats1622[[#This Row],[Material Name]] -> Bio-based spandex | J9: No spinning | K9: No textile formation | L9: No prep | M9: No dyeing | N9: No finish | Q9: =IFERROR(INDEX(InputMatDropdownList[],MATCH(tbl_CIMats1622[[#This Row],[Material Name]]&";"&tbl_CIMats1622[[#This Row],[Stage]],InputMatDropdownList[Helper (NO NEED TO EDIT)],0),9)*$AI9,)+IFERROR(INDEX(InputMatDropdownList[],MATCH(tbl_CIMats1622[[#This Row],[2]],InputMatDropdownList[Option],0),9)*$AJ9,)+IFERROR(INDEX(InputMatDropdownList[],MATCH(tbl_CIMats1622[[#This Row],[3]],InputMatDropdownList[Option],0),9)*$AK9,) +IFERROR(INDEX(InputMatDropdownList[],MATCH(tbl_CIMats1622[[#This Row],[4]],InputMatDropdownList[Option],0),9)*$AL9,)+IFERROR(INDEX(InputMatDropdownList[],MATCH(tbl_CIMats1622[[#This Row],[5]],InputMatDropdownList[Option],0),9)*$AM9,)+IFERROR(INDEX(InputMatDropdownList[],MATCH(tbl_CIMats1622[[#This Row],[6]],InputMatDropdownList[Option],0),9)*$AN9,) -> 0 | R9: =IFERROR(INDEX(InputMatDropdownList[],MATCH(tbl_CIMats1622[[#This Row],[Material Name]]&";"&tbl_CIMats1622[[#This Row],[Stage]],InputMatDropdownList[Helper (NO NEED TO EDIT)],0),10)*$AI9,)+IFERROR(INDEX(InputMatDropdownList[],MATCH(tbl_CIMats1622[[#This Row],[2]],InputMatDropdownList[Option],0),10)*$AJ9,)+IFERROR(INDEX(InputMatDropdownList[],MATCH(tbl_CIMats1622[[#This Row],[3]],InputMatDropdownList[Option],0),10)*$AK9,) +IFERROR(INDEX(InputMatDropdownList[],MATCH(tbl_CIMats1622[[#This Row],[4]],InputMatDropdownList[Option],0),10)*$AL9,)+IFERROR(INDEX(InputMatDropdownList[],MATCH(tbl_CIMats1622[[#This Row],[5]],InputMatDropdownList[Option],0),10)*$AM9,)+IFERROR(INDEX(InputMatDropdownList[],MATCH(tbl_CIMats1622[[#This Row],[6]],InputMatDropdownList[Option],0),10)*$AN9,) -> 0 | T9: =IFERROR(SUM(tbl_CIMats1622[[#This Row],[CI1]:[CI6]]),"") -> 0 | U9: =IFERROR(INDEX(InputMatDropdownList[],MATCH(tbl_CIMats1622[[#This Row],[Material Name]]&";"&tbl_CIMats1622[[#This Row],[Stage]],InputMatDropdownList[Helper (NO NEED TO EDIT)],0),5),"") -> 0 | V9: =IF(ISBLANK(tbl_CIMats1622[[#This Row],[2]]),"",INDEX(InputMatDropdownList[],MATCH(tbl_CIMats1622[[#This Row],[2]],InputMatDropdownList[Option],0),5)) -> 0 | W9: =IF(ISBLANK(tbl_CIMats1622[[#This Row],[3]]),"",INDEX(InputMatDropdownList[],MATCH(tbl_CIMats1622[[#This Row],[3]],InputMatDropdownList[Option],0),5)) -> 0 | X9: =IF(ISBLANK(tbl_CIMats1622[[#This Row],[4]]),"",INDEX(InputMatDropdownList[],MATCH(tbl_CIMats1622[[#This Row],[4]],InputMatDropdownList[Option],0),5)) -> 0 | Y9: =IF(ISBLANK(tbl_CIMats1622[[#This Row],[5]]),"",INDEX(InputMatDropdownList[],MATCH(tbl_CIMats1622[[#This Row],[5]],InputMatDropdownList[Option],0),5)) -> 0 | Z9: =IF(ISBLANK(tbl_CIMats1622[[#This Row],[6]]),"",INDEX(InputMatDropdownList[],MATCH(tbl_CIMats1622[[#This Row],[6]],InputMatDropdownList[Option],0),5)) -> 0 | AB9: 0 | AE9: =SUM(tbl_CIMats1622[[#This Row],[CI1]:[Biogenic Carbon (kg CO2e/kg material)]],tbl_CIMats1622[[#This Row],[Indirect LUC (iLUC) kg CO2e/kg material- reported based on data availability]]) -> 0 | AG9: =tbl_CIMats1622[[#This Row],[Material Name/Stage/Product Category (CALCULATED COLUMN -NO NEED TO EDIT)]] -> Bio-based spandex ; Fiber - Apparel | AH9: 0 | AI9: =IFERROR(tbl_CIMats1622[[#This Row],[CI1]]/tbl_CIMats1622[[#This Row],[CI (kg CO2e/kg)-EXCLUDING Biogenic C & dLUC]],) -> 0 | AJ9: =IFERROR(tbl_CIMats1622[[#This Row],[CI2]]/tbl_CIMats1622[[#This Row],[CI (kg CO2e/kg)-EXCLUDING Biogenic C & dLUC]],) -> 0 | AK9: =IFERROR(tbl_CIMats1622[[#This Row],[CI3]]/tbl_CIMats1622[[#This Row],[CI (kg CO2e/kg)-EXCLUDING Biogenic C & dLUC]],) -> 0 | AL9: =IFERROR(tbl_CIMats1622[[#This Row],[CI4]]/tbl_CIMats1622[[#This Row],[CI (kg CO2e/kg)-EXCLUDING Biogenic C & dLUC]],) -> 0 | AM9: =IFERROR(tbl_CIMats1622[[#This Row],[CI5]]/tbl_CIMats1622[[#This Row],[CI (kg CO2e/kg)-EXCLUDING Biogenic C & dLUC]],) -> 0 | AN9: =IFERROR(tbl_CIMats1622[[#This Row],[CI6]]/tbl_CIMats1622[[#This Row],[CI (kg CO2e/kg)-EXCLUDING Biogenic C & dLUC]],) -> 0 | AP9: =IF(OR(InputMatDropdownList[[#This Row],[Stage]]="Fiber",InputMatDropdownList[[#This Row],[Stage]]="Plastics",InputMatDropdownList[[#This Row],[Stage]]="Yarn",InputMatDropdownList[[#This Row],[Stage]]="Fabric",InputMatDropdownList[[#This Row],[Stage]]="Foam",InputMatDropdownList[[#This Row],[Stage]]="Rubber/Elastomer",InputMatDropdownList[[#This Row],[Stage]]="Other",InputMatDropdownList[[#This Row],[Stage]]="Packaging"),InputMatDropdownList[[#This Row],[Option]]&";"&InputMatDropdownList[[#This Row],[Stage]],InputMatDropdownList[[#This Row],[Option]]) -> Bio-based spandex;Fiber | AQ9: Fiber | AR9: Synthetics | AS9: Bio-based spandex | AT9: =InputMatDropdownList[[#This Row],[CI (kg CO2e/material)- EXCLUDING LOSS RATES]]*(1+InputMatDropdownList[[#This Row],[Loss rates]]) -> 0 | BA9: Natural Textile | BB9: 1 | BC9: 1 | BD9: PLACEHOLDER VALUE
A10: Cashmere ; Fiber - Apparel | B10: Cashmere | C10: Fiber | D10: Apparel | E10: =IFERROR(SUM(tbl_CIMats1622[[#This Row],[CI1]:[Biogenic Carbon (kg CO2e/kg material)]]),"") -> 0 | F10: Natural Textile | G10: =IFERROR((IF(OR(tbl_CIMats1622[[#This Row],[Material Type- Landfill/Incinerated]]=$BA$9,tbl_CIMats1622[[#This Row],[Material Type- Landfill/Incinerated]]=$BA$10,tbl_CIMats1622[[#This Row],[Material Type- Landfill/Incinerated]]=$BA$11,tbl_CIMats1622[[#This Row],[Material Type- Landfill/Incinerated]]=$BA$12,tbl_CIMats1622[[#This Row],[Material Type- Landfill/Incinerated]]=$BA$13,tbl_CIMats1622[[#This Row],[Material Type- Landfill/Incinerated]]=$BA$23,tbl_CIMats1622[[#This Row],[Material Type- Landfill/Incinerated]]=$BA$24),INDEX(EOL_CIs[#All],MATCH(tbl_CIMats1622[[#This Row],[Material Type- Landfill/Incinerated]],EOL_CIs[[#All],[EOL Material Category]],0),2),(INDEX(EOL_CIs[#All],MATCH(tbl_CIMats1622[[#This Row],[Material Type- Landfill/Incinerated]],EOL_CIs[[#All],[EOL Material Category]],0),2)+ABS(tbl_CIMats1622[[#This Row],[Biogenic Carbon (kg CO2e/kg material)]])))),) -> 1 | H10: =IFERROR(INDEX(EOL_CIs[#All],MATCH(tbl_CIMats1622[[#This Row],[Material Type- Landfill/Incinerated]],EOL_CIs[[#All],[EOL Material Category]],0),3)+ABS(tbl_CIMats1622[[#This Row],[Biogenic Carbon (kg CO2e/kg material)]]),) -> 1 | I10: =tbl_CIMats1622[[#This Row],[Material Name]] -> Cashmere | J10: No spinning | K10: No textile formation | L10: No prep | M10: No dyeing | N10: No finish | Q10: =IFERROR(INDEX(InputMatDropdownList[],MATCH(tbl_CIMats1622[[#This Row],[Material Name]]&";"&tbl_CIMats1622[[#This Row],[Stage]],InputMatDropdownList[Helper (NO NEED TO EDIT)],0),9)*$AI10,)+IFERROR(INDEX(InputMatDropdownList[],MATCH(tbl_CIMats1622[[#This Row],[2]],InputMatDropdownList[Option],0),9)*$AJ10,)+IFERROR(INDEX(InputMatDropdownList[],MATCH(tbl_CIMats1622[[#This Row],[3]],InputMatDropdownList[Option],0),9)*$AK10,) +IFERROR(INDEX(InputMatDropdownList[],MATCH(tbl_CIMats1622[[#This Row],[4]],InputMatDropdownList[Option],0),9)*$AL10,)+IFERROR(INDEX(InputMatDropdownList[],MATCH(tbl_CIMats1622[[#This Row],[5]],InputMatDropdownList[Option],0),9)*$AM10,)+IFERROR(INDEX(InputMatDropdownList[],MATCH(tbl_CIMats1622[[#This Row],[6]],InputMatDropdownList[Option],0),9)*$AN10,) -> 0 | R10: =IFERROR(INDEX(InputMatDropdownList[],MATCH(tbl_CIMats1622[[#This Row],[Material Name]]&";"&tbl_CIMats1622[[#This Row],[Stage]],InputMatDropdownList[Helper (NO NEED TO EDIT)],0),10)*$AI10,)+IFERROR(INDEX(InputMatDropdownList[],MATCH(tbl_CIMats1622[[#This Row],[2]],InputMatDropdownList[Option],0),10)*$AJ10,)+IFERROR(INDEX(InputMatDropdownList[],MATCH(tbl_CIMats1622[[#This Row],[3]],InputMatDropdownList[Option],0),10)*$AK10,) +IFERROR(INDEX(InputMatDropdownList[],MATCH(tbl_CIMats1622[[#This Row],[4]],InputMatDropdownList[Option],0),10)*$AL10,)+IFERROR(INDEX(InputMatDropdownList[],MATCH(tbl_CIMats1622[[#This Row],[5]],InputMatDropdownList[Option],0),10)*$AM10,)+IFERROR(INDEX(InputMatDropdownList[],MATCH(tbl_CIMats1622[[#This Row],[6]],InputMatDropdownList[Option],0),10)*$AN10,) -> 0 | T10: =IFERROR(SUM(tbl_CIMats1622[[#This Row],[CI1]:[CI6]]),"") -> 0 | U10: =IFERROR(INDEX(InputMatDropdownList[],MATCH(tbl_CIMats1622[[#This Row],[Material Name]]&";"&tbl_CIMats1622[[#This Row],[Stage]],InputMatDropdownList[Helper (NO NEED TO EDIT)],0),5),"") -> 0 | V10: =IF(ISBLANK(tbl_CIMats1622[[#This Row],[2]]),"",INDEX(InputMatDropdownList[],MATCH(tbl_CIMats1622[[#This Row],[2]],InputMatDropdownList[Option],0),5)) -> 0 | W10: =IF(ISBLANK(tbl_CIMats1622[[#This Row],[3]]),"",INDEX(InputMatDropdownList[],MATCH(tbl_CIMats1622[[#This Row],[3]],InputMatDropdownList[Option],0),5)) -> 0 | X10: =IF(ISBLANK(tbl_CIMats1622[[#This Row],[4]]),"",INDEX(InputMatDropdownList[],MATCH(tbl_CIMats1622[[#This Row],[4]],InputMatDropdownList[Option],0),5)) -> 0 | Y10: =IF(ISBLANK(tbl_CIMats1622[[#This Row],[5]]),"",INDEX(InputMatDropdownList[],MATCH(tbl_CIMats1622[[#This Row],[5]],InputMatDropdownList[Option],0),5)) -> 0 | Z10: =IF(ISBLANK(tbl_CIMats1622[[#This Row],[6]]),"",INDEX(InputMatDropdownList[],MATCH(tbl_CIMats1622[[#This Row],[6]],InputMatDropdownList[Option],0),5)) -> 0 | AB10: 0 | AE10: =SUM(tbl_CIMats1622[[#This Row],[CI1]:[Biogenic Carbon (kg CO2e/kg material)]],tbl_CIMats1622[[#This Row],[Indirect LUC (iLUC) kg CO2e/kg material- reported based on data availability]]) -> 0 | AG10: =tbl_CIMats1622[[#This Row],[Material Name/Stage/Product Category (CALCULATED COLUMN -NO NEED TO EDIT)]] -> Cashmere ; Fiber - Apparel | AH10: 0 | AI10: =IFERROR(tbl_CIMats1622[[#This Row],[CI1]]/tbl_CIMats1622[[#This Row],[CI (kg CO2e/kg)-EXCLUDING Biogenic C & dLUC]],) -> 0 | AJ10: =IFERROR(tbl_CIMats1622[[#This Row],[CI2]]/tbl_CIMats1622[[#This Row],[CI (kg CO2e/kg)-EXCLUDING Biogenic C & dLUC]],) -> 0 | AK10: =IFERROR(tbl_CIMats1622[[#This Row],[CI3]]/tbl_CIMats1622[[#This Row],[CI (kg CO2e/kg)-EXCLUDING Biogenic C & dLUC]],) -> 0 | AL10: =IFERROR(tbl_CIMats1622[[#This Row],[CI4]]/tbl_CIMats1622[[#This Row],[CI (kg CO2e/kg)-EXCLUDING Biogenic C & dLUC]],) -> 0 | AM10: =IFERROR(tbl_CIMats1622[[#This Row],[CI5]]/tbl_CIMats1622[[#This Row],[CI (kg CO2e/kg)-EXCLUDING Biogenic C & dLUC]],) -> 0 | AN10: =IFERROR(tbl_CIMats1622[[#This Row],[CI6]]/tbl_CIMats1622[[#This Row],[CI (kg CO2e/kg)-EXCLUDING Biogenic C & dLUC]],) -> 0 | AP10: =IF(OR(InputMatDropdownList[[#This Row],[Stage]]="Fiber",InputMatDropdownList[[#This Row],[Stage]]="Plastics",InputMatDropdownList[[#This Row],[Stage]]="Yarn",InputMatDropdownList[[#This Row],[Stage]]="Fabric",InputMatDropdownList[[#This Row],[Stage]]="Foam",InputMatDropdownList[[#This Row],[Stage]]="Rubber/Elastomer",InputMatDropdownList[[#This Row],[Stage]]="Other",InputMatDropdownList[[#This Row],[Stage]]="Packaging"),InputMatDropdownList[[#This Row],[Option]]&";"&InputMatDropdownList[[#This Row],[Stage]],InputMatDropdownList[[#This Row],[Option]]) -> Cashmere;Fiber | AQ10: Fiber | AR10: Animal Fibers | AS10: Cashmere | AT10: =InputMatDropdownList[[#This Row],[CI (kg CO2e/material)- EXCLUDING LOSS RATES]]*(1+InputMatDropdownList[[#This Row],[Loss rates]]) -> 0 | BA10: Synthetic Textile | BB10: 1 | BC10: 1 | BD10: PLACEHOLDER VALUE
A11: Cotton - Conventional ; Fiber - Apparel | B11: Cotton - Conventional | C11: Fiber | D11: Apparel | E11: =IFERROR(SUM(tbl_CIMats1622[[#This Row],[CI1]:[Biogenic Carbon (kg CO2e/kg material)]]),"") -> 0 | F11: Natural Textile | G11: =IFERROR((IF(OR(tbl_CIMats1622[[#This Row],[Material Type- Landfill/Incinerated]]=$BA$9,tbl_CIMats1622[[#This Row],[Material Type- Landfill/Incinerated]]=$BA$10,tbl_CIMats1622[[#This Row],[Material Type- Landfill/Incinerated]]=$BA$11,tbl_CIMats1622[[#This Row],[Material Type- Landfill/Incinerated]]=$BA$12,tbl_CIMats1622[[#This Row],[Material Type- Landfill/Incinerated]]=$BA$13,tbl_CIMats1622[[#This Row],[Material Type- Landfill/Incinerated]]=$BA$23,tbl_CIMats1622[[#This Row],[Material Type- Landfill/Incinerated]]=$BA$24),INDEX(EOL_CIs[#All],MATCH(tbl_CIMats1622[[#This Row],[Material Type- Landfill/Incinerated]],EOL_CIs[[#All],[EOL Material Category]],0),2),(INDEX(EOL_CIs[#All],MATCH(tbl_CIMats1622[[#This Row],[Material Type- Landfill/Incinerated]],EOL_CIs[[#All],[EOL Material Category]],0),2)+ABS(tbl_CIMats1622[[#This Row],[Biogenic Carbon (kg CO2e/kg material)]])))),) -> 1 | H11: =IFERROR(INDEX(EOL_CIs[#All],MATCH(tbl_CIMats1622[[#This Row],[Material Type- Landfill/Incinerated]],EOL_CIs[[#All],[EOL Material Category]],0),3)+ABS(tbl_CIMats1622[[#This Row],[Biogenic Carbon (kg CO2e/kg material)]]),) -> 1 | I11: =tbl_CIMats1622[[#This Row],[Material Name]] -> Cotton - Conventional | J11: No spinning | K11: No textile formation | L11: No prep | M11: No dyeing | N11: No finish | Q11: =IFERROR(INDEX(InputMatDropdownList[],MATCH(tbl_CIMats1622[[#This Row],[Material Name]]&";"&tbl_CIMats1622[[#This Row],[Stage]],InputMatDropdownList[Helper (NO NEED TO EDIT)],0),9)*$AI11,)+IFERROR(INDEX(InputMatDropdownList[],MATCH(tbl_CIMats1622[[#This Row],[2]],InputMatDropdownList[Option],0),9)*$AJ11,)+IFERROR(INDEX(InputMatDropdownList[],MATCH(tbl_CIMats1622[[#This Row],[3]],InputMatDropdownList[Option],0),9)*$AK11,) +IFERROR(INDEX(InputMatDropdownList[],MATCH(tbl_CIMats1622[[#This Row],[4]],InputMatDropdownList[Option],0),9)*$AL11,)+IFERROR(INDEX(InputMatDropdownList[],MATCH(tbl_CIMats1622[[#This Row],[5]],InputMatDropdownList[Option],0),9)*$AM11,)+IFERROR(INDEX(InputMatDropdownList[],MATCH(tbl_CIMats1622[[#This Row],[6]],InputMatDropdownList[Option],0),9)*$AN11,) -> 0 | R11: =IFERROR(INDEX(InputMatDropdownList[],MATCH(tbl_CIMats1622[[#This Row],[Material Name]]&";"&tbl_CIMats1622[[#This Row],[Stage]],InputMatDropdownList[Helper (NO NEED TO EDIT)],0),10)*$AI11,)+IFERROR(INDEX(InputMatDropdownList[],MATCH(tbl_CIMats1622[[#This Row],[2]],InputMatDropdownList[Option],0),10)*$AJ11,)+IFERROR(INDEX(InputMatDropdownList[],MATCH(tbl_CIMats1622[[#This Row],[3]],InputMatDropdownList[Option],0),10)*$AK11,) +IFERROR(INDEX(InputMatDropdownList[],MATCH(tbl_CIMats1622[[#This Row],[4]],InputMatDropdownList[Option],0),10)*$AL11,)+IFERROR(INDEX(InputMatDropdownList[],MATCH(tbl_CIMats1622[[#This Row],[5]],InputMatDropdownList[Option],0),10)*$AM11,)+IFERROR(INDEX(InputMatDropdownList[],MATCH(tbl_CIMats1622[[#This Row],[6]],InputMatDropdownList[Option],0),10)*$AN11,) -> 0 | T11: =IFERROR(SUM(tbl_CIMats1622[[#This Row],[CI1]:[CI6]]),"") -> 0 | U11: =IFERROR(INDEX(InputMatDropdownList[],MATCH(tbl_CIMats1622[[#This Row],[Material Name]]&";"&tbl_CIMats1622[[#This Row],[Stage]],InputMatDropdownList[Helper (NO NEED TO EDIT)],0),5),"") -> 0 | V11: =IF(ISBLANK(tbl_CIMats1622[[#This Row],[2]]),"",INDEX(InputMatDropdownList[],MATCH(tbl_CIMats1622[[#This Row],[2]],InputMatDropdownList[Option],0),5)) -> 0 | W11: =IF(ISBLANK(tbl_CIMats1622[[#This Row],[3]]),"",INDEX(InputMatDropdownList[],MATCH(tbl_CIMats1622[[#This Row],[3]],InputMatDropdownList[Option],0),5)) -> 0 | X11: =IF(ISBLANK(tbl_CIMats1622[[#This Row],[4]]),"",INDEX(InputMatDropdownList[],MATCH(tbl_CIMats1622[[#This Row],[4]],InputMatDropdownList[Option],0),5)) -> 0 | Y11: =IF(ISBLANK(tbl_CIMats1622[[#This Row],[5]]),"",INDEX(InputMatDropdownList[],MATCH(tbl_CIMats1622[[#This Row],[5]],InputMatDropdownList[Option],0),5)) -> 0 | Z11: =IF(ISBLANK(tbl_CIMats1622[[#This Row],[6]]),"",INDEX(InputMatDropdownList[],MATCH(tbl_CIMats1622[[#This Row],[6]],InputMatDropdownList[Option],0),5)) -> 0 | AB11: 0 | AE11: =SUM(tbl_CIMats1622[[#This Row],[CI1]:[Biogenic Carbon (kg CO2e/kg material)]],tbl_CIMats1622[[#This Row],[Indirect LUC (iLUC) kg CO2e/kg material- reported based on data availability]]) -> 0 | AG11: =tbl_CIMats1622[[#This Row],[Material Name/Stage/Product Category (CALCULATED COLUMN -NO NEED TO EDIT)]] -> Cotton - Conventional ; Fiber - Apparel | AH11: 0 | AI11: =IFERROR(tbl_CIMats1622[[#This Row],[CI1]]/tbl_CIMats1622[[#This Row],[CI (kg CO2e/kg)-EXCLUDING Biogenic C & dLUC]],) -> 0 | AJ11: =IFERROR(tbl_CIMats1622[[#This Row],[CI2]]/tbl_CIMats1622[[#This Row],[CI (kg CO2e/kg)-EXCLUDING Biogenic C & dLUC]],) -> 0 | AK11: =IFERROR(tbl_CIMats1622[[#This Row],[CI3]]/tbl_CIMats1622[[#This Row],[CI (kg CO2e/kg)-EXCLUDING Biogenic C & dLUC]],) -> 0 | AL11: =IFERROR(tbl_CIMats1622[[#This Row],[CI4]]/tbl_CIMats1622[[#This Row],[CI (kg CO2e/kg)-EXCLUDING Biogenic C & dLUC]],) -> 0 | AM11: =IFERROR(tbl_CIMats1622[[#This Row],[CI5]]/tbl_CIMats1622[[#This Row],[CI (kg CO2e/kg)-EXCLUDING Biogenic C & dLUC]],) -> 0 | AN11: =IFERROR(tbl_CIMats1622[[#This Row],[CI6]]/tbl_CIMats1622[[#This Row],[CI (kg CO2e/kg)-EXCLUDING Biogenic C & dLUC]],) -> 0 | AP11: =IF(OR(InputMatDropdownList[[#This Row],[Stage]]="Fiber",InputMatDropdownList[[#This Row],[Stage]]="Plastics",InputMatDropdownList[[#This Row],[Stage]]="Yarn",InputMatDropdownList[[#This Row],[Stage]]="Fabric",InputMatDropdownList[[#This Row],[Stage]]="Foam",InputMatDropdownList[[#This Row],[Stage]]="Rubber/Elastomer",InputMatDropdownList[[#This Row],[Stage]]="Other",InputMatDropdownList[[#This Row],[Stage]]="Packaging"),InputMatDropdownList[[#This Row],[Option]]&";"&InputMatDropdownList[[#This Row],[Stage]],InputMatDropdownList[[#This Row],[Option]]) -> Cotton - Conventional;Fiber | AQ11: Fiber | AR11: Natural Fibers | AS11: Cotton - Conventional | AT11: =InputMatDropdownList[[#This Row],[CI (kg CO2e/material)- EXCLUDING LOSS RATES]]*(1+InputMatDropdownList[[#This Row],[Loss rates]]) -> 0 | BA11: Metals | BB11: 1 | BC11: 1 | BD11: PLACEHOLDER VALUE
A12: Cotton - Organic ; Fiber - Apparel | B12: Cotton - Organic | C12: Fiber | D12: Apparel | E12: =IFERROR(SUM(tbl_CIMats1622[[#This Row],[CI1]:[Biogenic Carbon (kg CO2e/kg material)]]),"") -> 0 | F12: Natural Textile | G12: =IFERROR((IF(OR(tbl_CIMats1622[[#This Row],[Material Type- Landfill/Incinerated]]=$BA$9,tbl_CIMats1622[[#This Row],[Material Type- Landfill/Incinerated]]=$BA$10,tbl_CIMats1622[[#This Row],[Material Type- Landfill/Incinerated]]=$BA$11,tbl_CIMats1622[[#This Row],[Material Type- Landfill/Incinerated]]=$BA$12,tbl_CIMats1622[[#This Row],[Material Type- Landfill/Incinerated]]=$BA$13,tbl_CIMats1622[[#This Row],[Material Type- Landfill/Incinerated]]=$BA$23,tbl_CIMats1622[[#This Row],[Material Type- Landfill/Incinerated]]=$BA$24),INDEX(EOL_CIs[#All],MATCH(tbl_CIMats1622[[#This Row],[Material Type- Landfill/Incinerated]],EOL_CIs[[#All],[EOL Material Category]],0),2),(INDEX(EOL_CIs[#All],MATCH(tbl_CIMats1622[[#This Row],[Material Type- Landfill/Incinerated]],EOL_CIs[[#All],[EOL Material Category]],0),2)+ABS(tbl_CIMats1622[[#This Row],[Biogenic Carbon (kg CO2e/kg material)]])))),) -> 1 | H12: =IFERROR(INDEX(EOL_CIs[#All],MATCH(tbl_CIMats1622[[#This Row],[Material Type- Landfill/Incinerated]],EOL_CIs[[#All],[EOL Material Category]],0),3)+ABS(tbl_CIMats1622[[#This Row],[Biogenic Carbon (kg CO2e/kg material)]]),) -> 1 | I12: =tbl_CIMats1622[[#This Row],[Material Name]] -> Cotton - Organic | J12: No spinning | K12: No textile formation | L12: No prep | M12: No dyeing | N12: No finish | Q12: =IFERROR(INDEX(InputMatDropdownList[],MATCH(tbl_CIMats1622[[#This Row],[Material Name]]&";"&tbl_CIMats1622[[#This Row],[Stage]],InputMatDropdownList[Helper (NO NEED TO EDIT)],0),9)*$AI12,)+IFERROR(INDEX(InputMatDropdownList[],MATCH(tbl_CIMats1622[[#This Row],[2]],InputMatDropdownList[Option],0),9)*$AJ12,)+IFERROR(INDEX(InputMatDropdownList[],MATCH(tbl_CIMats1622[[#This Row],[3]],InputMatDropdownList[Option],0),9)*$AK12,) +IFERROR(INDEX(InputMatDropdownList[],MATCH(tbl_CIMats1622[[#This Row],[4]],InputMatDropdownList[Option],0),9)*$AL12,)+IFERROR(INDEX(InputMatDropdownList[],MATCH(tbl_CIMats1622[[#This Row],[5]],InputMatDropdownList[Option],0),9)*$AM12,)+IFERROR(INDEX(InputMatDropdownList[],MATCH(tbl_CIMats1622[[#This Row],[6]],InputMatDropdownList[Option],0),9)*$AN12,) -> 0 | R12: =IFERROR(INDEX(InputMatDropdownList[],MATCH(tbl_CIMats1622[[#This Row],[Material Name]]&";"&tbl_CIMats1622[[#This Row],[Stage]],InputMatDropdownList[Helper (NO NEED TO EDIT)],0),10)*$AI12,)+IFERROR(INDEX(InputMatDropdownList[],MATCH(tbl_CIMats1622[[#This Row],[2]],InputMatDropdownList[Option],0),10)*$AJ12,)+IFERROR(INDEX(InputMatDropdownList[],MATCH(tbl_CIMats1622[[#This Row],[3]],InputMatDropdownList[Option],0),10)*$AK12,) +IFERROR(INDEX(InputMatDropdownList[],MATCH(tbl_CIMats1622[[#This Row],[4]],InputMatDropdownList[Option],0),10)*$AL12,)+IFERROR(INDEX(InputMatDropdownList[],MATCH(tbl_CIMats1622[[#This Row],[5]],InputMatDropdownList[Option],0),10)*$AM12,)+IFERROR(INDEX(InputMatDropdownList[],MATCH(tbl_CIMats1622[[#This Row],[6]],InputMatDropdownList[Option],0),10)*$AN12,) -> 0 | T12: =IFERROR(SUM(tbl_CIMats1622[[#This Row],[CI1]:[CI6]]),"") -> 0 | U12: =IFERROR(INDEX(InputMatDropdownList[],MATCH(tbl_CIMats1622[[#This Row],[Material Name]]&";"&tbl_CIMats1622[[#This Row],[Stage]],InputMatDropdownList[Helper (NO NEED TO EDIT)],0),5),"") -> 0 | V12: =IF(ISBLANK(tbl_CIMats1622[[#This Row],[2]]),"",INDEX(InputMatDropdownList[],MATCH(tbl_CIMats1622[[#This Row],[2]],InputMatDropdownList[Option],0),5)) -> 0 | W12: =IF(ISBLANK(tbl_CIMats1622[[#This Row],[3]]),"",INDEX(InputMatDropdownList[],MATCH(tbl_CIMats1622[[#This Row],[3]],InputMatDropdownList[Option],0),5)) -> 0 | X12: =IF(ISBLANK(tbl_CIMats1622[[#This Row],[4]]),"",INDEX(InputMatDropdownList[],MATCH(tbl_CIMats1622[[#This Row],[4]],InputMatDropdownList[Option],0),5)) -> 0 | Y12: =IF(ISBLANK(tbl_CIMats1622[[#This Row],[5]]),"",INDEX(InputMatDropdownList[],MATCH(tbl_CIMats1622[[#This Row],[5]],InputMatDropdownList[Option],0),5)) -> 0 | Z12: =IF(ISBLANK(tbl_CIMats1622[[#This Row],[6]]),"",INDEX(InputMatDropdownList[],MATCH(tbl_CIMats1622[[#This Row],[6]],InputMatDropdownList[Option],0),5)) -> 0 | AB12: 0 | AE12: =SUM(tbl_CIMats1622[[#This Row],[CI1]:[Biogenic Carbon (kg CO2e/kg material)]],tbl_CIMats1622[[#This Row],[Indirect LUC (iLUC) kg CO2e/kg material- reported based on data availability]]) -> 0 | AG12: =tbl_CIMats1622[[#This Row],[Material Name/Stage/Product Category (CALCULATED COLUMN -NO NEED TO EDIT)]] -> Cotton - Organic ; Fiber - Apparel | AH12: 0 | AI12: =IFERROR(tbl_CIMats1622[[#This Row],[CI1]]/tbl_CIMats1622[[#This Row],[CI (kg CO2e/kg)-EXCLUDING Biogenic C & dLUC]],) -> 0 | AJ12: =IFERROR(tbl_CIMats1622[[#This Row],[CI2]]/tbl_CIMats1622[[#This Row],[CI (kg CO2e/kg)-EXCLUDING Biogenic C & dLUC]],) -> 0 | AK12: =IFERROR(tbl_CIMats1622[[#This Row],[CI3]]/tbl_CIMats1622[[#This Row],[CI (kg CO2e/kg)-EXCLUDING Biogenic C & dLUC]],) -> 0 | AL12: =IFERROR(tbl_CIMats1622[[#This Row],[CI4]]/tbl_CIMats1622[[#This Row],[CI (kg CO2e/kg)-EXCLUDING Biogenic C & dLUC]],) -> 0 | AM12: =IFERROR(tbl_CIMats1622[[#This Row],[CI5]]/tbl_CIMats1622[[#This Row],[CI (kg CO2e/kg)-EXCLUDING Biogenic C & dLUC]],) -> 0 | AN12: =IFERROR(tbl_CIMats1622[[#This Row],[CI6]]/tbl_CIMats1622[[#This Row],[CI (kg CO2e/kg)-EXCLUDING Biogenic C & dLUC]],) -> 0 | AP12: =IF(OR(InputMatDropdownList[[#This Row],[Stage]]="Fiber",InputMatDropdownList[[#This Row],[Stage]]="Plastics",InputMatDropdownList[[#This Row],[Stage]]="Yarn",InputMatDropdownList[[#This Row],[Stage]]="Fabric",InputMatDropdownList[[#This Row],[Stage]]="Foam",InputMatDropdownList[[#This Row],[Stage]]="Rubber/Elastomer",InputMatDropdownList[[#This Row],[Stage]]="Other",InputMatDropdownList[[#This Row],[Stage]]="Packaging"),InputMatDropdownList[[#This Row],[Option]]&";"&InputMatDropdownList[[#This Row],[Stage]],InputMatDropdownList[[#This Row],[Option]]) -> Cotton - Organic;Fiber | AQ12: Fiber | AR12: Natural Fibers | AS12: Cotton - Organic | AT12: =InputMatDropdownList[[#This Row],[CI (kg CO2e/material)- EXCLUDING LOSS RATES]]*(1+InputMatDropdownList[[#This Row],[Loss rates]]) -> 0 | BA12: Cardboard | BB12: 1 | BC12: 1 | BD12: PLACEHOLDER VALUE
A13: Elastane ; Fiber - Apparel | B13: Elastane | C13: Fiber | D13: Apparel | E13: =IFERROR(SUM(tbl_CIMats1622[[#This Row],[CI1]:[Biogenic Carbon (kg CO2e/kg material)]]),"") -> 0 | F13: Synthetic Textile | G13: =IFERROR((IF(OR(tbl_CIMats1622[[#This Row],[Material Type- Landfill/Incinerated]]=$BA$9,tbl_CIMats1622[[#This Row],[Material Type- Landfill/Incinerated]]=$BA$10,tbl_CIMats1622[[#This Row],[Material Type- Landfill/Incinerated]]=$BA$11,tbl_CIMats1622[[#This Row],[Material Type- Landfill/Incinerated]]=$BA$12,tbl_CIMats1622[[#This Row],[Material Type- Landfill/Incinerated]]=$BA$13,tbl_CIMats1622[[#This Row],[Material Type- Landfill/Incinerated]]=$BA$23,tbl_CIMats1622[[#This Row],[Material Type- Landfill/Incinerated]]=$BA$24),INDEX(EOL_CIs[#All],MATCH(tbl_CIMats1622[[#This Row],[Material Type- Landfill/Incinerated]],EOL_CIs[[#All],[EOL Material Category]],0),2),(INDEX(EOL_CIs[#All],MATCH(tbl_CIMats1622[[#This Row],[Material Type- Landfill/Incinerated]],EOL_CIs[[#All],[EOL Material Category]],0),2)+ABS(tbl_CIMats1622[[#This Row],[Biogenic Carbon (kg CO2e/kg material)]])))),) -> 1 | H13: =IFERROR(INDEX(EOL_CIs[#All],MATCH(tbl_CIMats1622[[#This Row],[Material Type- Landfill/Incinerated]],EOL_CIs[[#All],[EOL Material Category]],0),3)+ABS(tbl_CIMats1622[[#This Row],[Biogenic Carbon (kg CO2e/kg material)]]),) -> 1 | I13: =tbl_CIMats1622[[#This Row],[Material Name]] -> Elastane | J13: No spinning | K13: No textile formation | L13: No prep | M13: No dyeing | N13: No finish | Q13: =IFERROR(INDEX(InputMatDropdownList[],MATCH(tbl_CIMats1622[[#This Row],[Material Name]]&";"&tbl_CIMats1622[[#This Row],[Stage]],InputMatDropdownList[Helper (NO NEED TO EDIT)],0),9)*$AI13,)+IFERROR(INDEX(InputMatDropdownList[],MATCH(tbl_CIMats1622[[#This Row],[2]],InputMatDropdownList[Option],0),9)*$AJ13,)+IFERROR(INDEX(InputMatDropdownList[],MATCH(tbl_CIMats1622[[#This Row],[3]],InputMatDropdownList[Option],0),9)*$AK13,) +IFERROR(INDEX(InputMatDropdownList[],MATCH(tbl_CIMats1622[[#This Row],[4]],InputMatDropdownList[Option],0),9)*$AL13,)+IFERROR(INDEX(InputMatDropdownList[],MATCH(tbl_CIMats1622[[#This Row],[5]],InputMatDropdownList[Option],0),9)*$AM13,)+IFERROR(INDEX(InputMatDropdownList[],MATCH(tbl_CIMats1622[[#This Row],[6]],InputMatDropdownList[Option],0),9)*$AN13,) -> 0 | R13: =IFERROR(INDEX(InputMatDropdownList[],MATCH(tbl_CIMats1622[[#This Row],[Material Name]]&";"&tbl_CIMats1622[[#This Row],[Stage]],InputMatDropdownList[Helper (NO NEED TO EDIT)],0),10)*$AI13,)+IFERROR(INDEX(InputMatDropdownList[],MATCH(tbl_CIMats1622[[#This Row],[2]],InputMatDropdownList[Option],0),10)*$AJ13,)+IFERROR(INDEX(InputMatDropdownList[],MATCH(tbl_CIMats1622[[#This Row],[3]],InputMatDropdownList[Option],0),10)*$AK13,) +IFERROR(INDEX(InputMatDropdownList[],MATCH(tbl_CIMats1622[[#This Row],[4]],InputMatDropdownList[Option],0),10)*$AL13,)+IFERROR(INDEX(InputMatDropdownList[],MATCH(tbl_CIMats1622[[#This Row],[5]],InputMatDropdownList[Option],0),10)*$AM13,)+IFERROR(INDEX(InputMatDropdownList[],MATCH(tbl_CIMats1622[[#This Row],[6]],InputMatDropdownList[Option],0),10)*$AN13,) -> 0 | T13: =IFERROR(SUM(tbl_CIMats1622[[#This Row],[CI1]:[CI6]]),"") -> 0 | U13: =IFERROR(INDEX(InputMatDropdownList[],MATCH(tbl_CIMats1622[[#This Row],[Material Name]]&";"&tbl_CIMats1622[[#This Row],[Stage]],InputMatDropdownList[Helper (NO NEED TO EDIT)],0),5),"") -> 0 | V13: =IF(ISBLANK(tbl_CIMats1622[[#This Row],[2]]),"",INDEX(InputMatDropdownList[],MATCH(tbl_CIMats1622[[#This Row],[2]],InputMatDropdownList[Option],0),5)) -> 0 | W13: =IF(ISBLANK(tbl_CIMats1622[[#This Row],[3]]),"",INDEX(InputMatDropdownList[],MATCH(tbl_CIMats1622[[#This Row],[3]],InputMatDropdownList[Option],0),5)) -> 0 | X13: =IF(ISBLANK(tbl_CIMats1622[[#This Row],[4]]),"",INDEX(InputMatDropdownList[],MATCH(tbl_CIMats1622[[#This Row],[4]],InputMatDropdownList[Option],0),5)) -> 0 | Y13: =IF(ISBLANK(tbl_CIMats1622[[#This Row],[5]]),"",INDEX(InputMatDropdownList[],MATCH(tbl_CIMats1622[[#This Row],[5]],InputMatDropdownList[Option],0),5)) -> 0 | Z13: =IF(ISBLANK(tbl_CIMats1622[[#This Row],[6]]),"",INDEX(InputMatDropdownList[],MATCH(tbl_CIMats1622[[#This Row],[6]],InputMatDropdownList[Option],0),5)) -> 0 | AB13: 0 | AE13: =SUM(tbl_CIMats1622[[#This Row],[CI1]:[Biogenic Carbon (kg CO2e/kg material)]],tbl_CIMats1622[[#This Row],[Indirect LUC (iLUC) kg CO2e/kg material- reported based on data availability]]) -> 0 | AG13: =tbl_CIMats1622[[#This Row],[Material Name/Stage/Product Category (CALCULATED COLUMN -NO NEED TO EDIT)]] -> Elastane ; Fiber - Apparel | AH13: 0 | AI13: =IFERROR(tbl_CIMats1622[[#This Row],[CI1]]/tbl_CIMats1622[[#This Row],[CI (kg CO2e/kg)-EXCLUDING Biogenic C & dLUC]],) -> 0 | AJ13: =IFERROR(tbl_CIMats1622[[#This Row],[CI2]]/tbl_CIMats1622[[#This Row],[CI (kg CO2e/kg)-EXCLUDING Biogenic C & dLUC]],) -> 0 | AK13: =IFERROR(tbl_CIMats1622[[#This Row],[CI3]]/tbl_CIMats1622[[#This Row],[CI (kg CO2e/kg)-EXCLUDING Biogenic C & dLUC]],) -> 0 | AL13: =IFERROR(tbl_CIMats1622[[#This Row],[CI4]]/tbl_CIMats1622[[#This Row],[CI (kg CO2e/kg)-EXCLUDING Biogenic C & dLUC]],) -> 0 | AM13: =IFERROR(tbl_CIMats1622[[#This Row],[CI5]]/tbl_CIMats1622[[#This Row],[CI (kg CO2e/kg)-EXCLUDING Biogenic C & dLUC]],) -> 0 | AN13: =IFERROR(tbl_CIMats1622[[#This Row],[CI6]]/tbl_CIMats1622[[#This Row],[CI (kg CO2e/kg)-EXCLUDING Biogenic C & dLUC]],) -> 0 | AP13: =IF(OR(InputMatDropdownList[[#This Row],[Stage]]="Fiber",InputMatDropdownList[[#This Row],[Stage]]="Plastics",InputMatDropdownList[[#This Row],[Stage]]="Yarn",InputMatDropdownList[[#This Row],[Stage]]="Fabric",InputMatDropdownList[[#This Row],[Stage]]="Foam",InputMatDropdownList[[#This Row],[Stage]]="Rubber/Elastomer",InputMatDropdownList[[#This Row],[Stage]]="Other",InputMatDropdownList[[#This Row],[Stage]]="Packaging"),InputMatDropdownList[[#This Row],[Option]]&";"&InputMatDropdownList[[#This Row],[Stage]],InputMatDropdownList[[#This Row],[Option]]) -> Elastane;Fiber | AQ13: Fiber | AR13: Synthetics | AS13: Elastane | AT13: =InputMatDropdownList[[#This Row],[CI (kg CO2e/material)- EXCLUDING LOSS RATES]]*(1+InputMatDropdownList[[#This Row],[Loss rates]]) -> 0 | BA13: Paper | BB13: 1 | BC13: 1 | BD13: PLACEHOLDER VALUE
A14: Hemp ; Fiber - Apparel | B14: Hemp | C14: Fiber | D14: Apparel | E14: =IFERROR(SUM(tbl_CIMats1622[[#This Row],[CI1]:[Biogenic Carbon (kg CO2e/kg material)]]),"") -> 0 | F14: Natural Textile | G14: =IFERROR((IF(OR(tbl_CIMats1622[[#This Row],[Material Type- Landfill/Incinerated]]=$BA$9,tbl_CIMats1622[[#This Row],[Material Type- Landfill/Incinerated]]=$BA$10,tbl_CIMats1622[[#This Row],[Material Type- Landfill/Incinerated]]=$BA$11,tbl_CIMats1622[[#This Row],[Material Type- Landfill/Incinerated]]=$BA$12,tbl_CIMats1622[[#This Row],[Material Type- Landfill/Incinerated]]=$BA$13,tbl_CIMats1622[[#This Row],[Material Type- Landfill/Incinerated]]=$BA$23,tbl_CIMats1622[[#This Row],[Material Type- Landfill/Incinerated]]=$BA$24),INDEX(EOL_CIs[#All],MATCH(tbl_CIMats1622[[#This Row],[Material Type- Landfill/Incinerated]],EOL_CIs[[#All],[EOL Material Category]],0),2),(INDEX(EOL_CIs[#All],MATCH(tbl_CIMats1622[[#This Row],[Material Type- Landfill/Incinerated]],EOL_CIs[[#All],[EOL Material Category]],0),2)+ABS(tbl_CIMats1622[[#This Row],[Biogenic Carbon (kg CO2e/kg material)]])))),) -> 1 | H14: =IFERROR(INDEX(EOL_CIs[#All],MATCH(tbl_CIMats1622[[#This Row],[Material Type- Landfill/Incinerated]],EOL_CIs[[#All],[EOL Material Category]],0),3)+ABS(tbl_CIMats1622[[#This Row],[Biogenic Carbon (kg CO2e/kg material)]]),) -> 1 | I14: =tbl_CIMats1622[[#This Row],[Material Name]] -> Hemp | J14: No spinning | K14: No textile formation | L14: No prep | M14: No dyeing | N14: No finish | Q14: =IFERROR(INDEX(InputMatDropdownList[],MATCH(tbl_CIMats1622[[#This Row],[Material Name]]&";"&tbl_CIMats1622[[#This Row],[Stage]],InputMatDropdownList[Helper (NO NEED TO EDIT)],0),9)*$AI14,)+IFERROR(INDEX(InputMatDropdownList[],MATCH(tbl_CIMats1622[[#This Row],[2]],InputMatDropdownList[Option],0),9)*$AJ14,)+IFERROR(INDEX(InputMatDropdownList[],MATCH(tbl_CIMats1622[[#This Row],[3]],InputMatDropdownList[Option],0),9)*$AK14,) +IFERROR(INDEX(InputMatDropdownList[],MATCH(tbl_CIMats1622[[#This Row],[4]],InputMatDropdownList[Option],0),9)*$AL14,)+IFERROR(INDEX(InputMatDropdownList[],MATCH(tbl_CIMats1622[[#This Row],[5]],InputMatDropdownList[Option],0),9)*$AM14,)+IFERROR(INDEX(InputMatDropdownList[],MATCH(tbl_CIMats1622[[#This Row],[6]],InputMatDropdownList[Option],0),9)*$AN14,) -> 0 | R14: =IFERROR(INDEX(InputMatDropdownList[],MATCH(tbl_CIMats1622[[#This Row],[Material Name]]&";"&tbl_CIMats1622[[#This Row],[Stage]],InputMatDropdownList[Helper (NO NEED TO EDIT)],0),10)*$AI14,)+IFERROR(INDEX(InputMatDropdownList[],MATCH(tbl_CIMats1622[[#This Row],[2]],InputMatDropdownList[Option],0),10)*$AJ14,)+IFERROR(INDEX(InputMatDropdownList[],MATCH(tbl_CIMats1622[[#This Row],[3]],InputMatDropdownList[Option],0),10)*$AK14,) +IFERROR(INDEX(InputMatDropdownList[],MATCH(tbl_CIMats1622[[#This Row],[4]],InputMatDropdownList[Option],0),10)*$AL14,)+IFERROR(INDEX(InputMatDropdownList[],MATCH(tbl_CIMats1622[[#This Row],[5]],InputMatDropdownList[Option],0),10)*$AM14,)+IFERROR(INDEX(InputMatDropdownList[],MATCH(tbl_CIMats1622[[#This Row],[6]],InputMatDropdownList[Option],0),10)*$AN14,) -> 0 | T14: =IFERROR(SUM(tbl_CIMats1622[[#This Row],[CI1]:[CI6]]),"") -> 0 | U14: =IFERROR(INDEX(InputMatDropdownList[],MATCH(tbl_CIMats1622[[#This Row],[Material Name]]&";"&tbl_CIMats1622[[#This Row],[Stage]],InputMatDropdownList[Helper (NO NEED TO EDIT)],0),5),"") -> 0 | V14: =IF(ISBLANK(tbl_CIMats1622[[#This Row],[2]]),"",INDEX(InputMatDropdownList[],MATCH(tbl_CIMats1622[[#This Row],[2]],InputMatDropdownList[Option],0),5)) -> 0 | W14: =IF(ISBLANK(tbl_CIMats1622[[#This Row],[3]]),"",INDEX(InputMatDropdownList[],MATCH(tbl_CIMats1622[[#This Row],[3]],InputMatDropdownList[Option],0),5)) -> 0 | X14: =IF(ISBLANK(tbl_CIMats1622[[#This Row],[4]]),"",INDEX(InputMatDropdownList[],MATCH(tbl_CIMats1622[[#This Row],[4]],InputMatDropdownList[Option],0),5)) -> 0 | Y14: =IF(ISBLANK(tbl_CIMats1622[[#This Row],[5]]),"",INDEX(InputMatDropdownList[],MATCH(tbl_CIMats1622[[#This Row],[5]],InputMatDropdownList[Option],0),5)) -> 0 | Z14: =IF(ISBLANK(tbl_CIMats1622[[#This Row],[6]]),"",INDEX(InputMatDropdownList[],MATCH(tbl_CIMats1622[[#This Row],[6]],InputMatDropdownList[Option],0),5)) -> 0 | AB14: 0 | AE14: =SUM(tbl_CIMats1622[[#This Row],[CI1]:[Biogenic Carbon (kg CO2e/kg material)]],tbl_CIMats1622[[#This Row],[Indirect LUC (iLUC) kg CO2e/kg material- reported based on data availability]]) -> 0 | AG14: =tbl_CIMats1622[[#This Row],[Material Name/Stage/Product Category (CALCULATED COLUMN -NO NEED TO EDIT)]] -> Hemp ; Fiber - Apparel | AH14: 0 | AI14: =IFERROR(tbl_CIMats1622[[#This Row],[CI1]]/tbl_CIMats1622[[#This Row],[CI (kg CO2e/kg)-EXCLUDING Biogenic C & dLUC]],) -> 0 | AJ14: =IFERROR(tbl_CIMats1622[[#This Row],[CI2]]/tbl_CIMats1622[[#This Row],[CI (kg CO2e/kg)-EXCLUDING Biogenic C & dLUC]],) -> 0 | AK14: =IFERROR(tbl_CIMats1622[[#This Row],[CI3]]/tbl_CIMats1622[[#This Row],[CI (kg CO2e/kg)-EXCLUDING Biogenic C & dLUC]],) -> 0 | AL14: =IFERROR(tbl_CIMats1622[[#This Row],[CI4]]/tbl_CIMats1622[[#This Row],[CI (kg CO2e/kg)-EXCLUDING Biogenic C & dLUC]],) -> 0 | AM14: =IFERROR(tbl_CIMats1622[[#This Row],[CI5]]/tbl_CIMats1622[[#This Row],[CI (kg CO2e/kg)-EXCLUDING Biogenic C & dLUC]],) -> 0 | AN14: =IFERROR(tbl_CIMats1622[[#This Row],[CI6]]/tbl_CIMats1622[[#This Row],[CI (kg CO2e/kg)-EXCLUDING Biogenic C & dLUC]],) -> 0 | AP14: =IF(OR(InputMatDropdownList[[#This Row],[Stage]]="Fiber",InputMatDropdownList[[#This Row],[Stage]]="Plastics",InputMatDropdownList[[#This Row],[Stage]]="Yarn",InputMatDropdownList[[#This Row],[Stage]]="Fabric",InputMatDropdownList[[#This Row],[Stage]]="Foam",InputMatDropdownList[[#This Row],[Stage]]="Rubber/Elastomer",InputMatDropdownList[[#This Row],[Stage]]="Other",InputMatDropdownList[[#This Row],[Stage]]="Packaging"),InputMatDropdownList[[#This Row],[Option]]&";"&InputMatDropdownList[[#This Row],[Stage]],InputMatDropdownList[[#This Row],[Option]]) -> Hemp;Fiber | AQ14: Fiber | AR14: Bast fiber | AS14: Hemp | AT14: =InputMatDropdownList[[#This Row],[CI (kg CO2e/material)- EXCLUDING LOSS RATES]]*(1+InputMatDropdownList[[#This Row],[Loss rates]]) -> 0 | BA14: Rubber | BB14: 1 | BC14: 1 | BD14: PLACEHOLDER VALUE
A15: Linen ; Fiber - Apparel | B15: Linen | C15: Fiber | D15: Apparel | E15: =IFERROR(SUM(tbl_CIMats1622[[#This Row],[CI1]:[Biogenic Carbon (kg CO2e/kg material)]]),"") -> 0 | F15: Natural Textile | G15: =IFERROR((IF(OR(tbl_CIMats1622[[#This Row],[Material Type- Landfill/Incinerated]]=$BA$9,tbl_CIMats1622[[#This Row],[Material Type- Landfill/Incinerated]]=$BA$10,tbl_CIMats1622[[#This Row],[Material Type- Landfill/Incinerated]]=$BA$11,tbl_CIMats1622[[#This Row],[Material Type- Landfill/Incinerated]]=$BA$12,tbl_CIMats1622[[#This Row],[Material Type- Landfill/Incinerated]]=$BA$13,tbl_CIMats1622[[#This Row],[Material Type- Landfill/Incinerated]]=$BA$23,tbl_CIMats1622[[#This Row],[Material Type- Landfill/Incinerated]]=$BA$24),INDEX(EOL_CIs[#All],MATCH(tbl_CIMats1622[[#This Row],[Material Type- Landfill/Incinerated]],EOL_CIs[[#All],[EOL Material Category]],0),2),(INDEX(EOL_CIs[#All],MATCH(tbl_CIMats1622[[#This Row],[Material Type- Landfill/Incinerated]],EOL_CIs[[#All],[EOL Material Category]],0),2)+ABS(tbl_CIMats1622[[#This Row],[Biogenic Carbon (kg CO2e/kg material)]])))),) -> 1 | H15: =IFERROR(INDEX(EOL_CIs[#All],MATCH(tbl_CIMats1622[[#This Row],[Material Type- Landfill/Incinerated]],EOL_CIs[[#All],[EOL Material Category]],0),3)+ABS(tbl_CIMats1622[[#This Row],[Biogenic Carbon (kg CO2e/kg material)]]),) -> 1 | I15: =tbl_CIMats1622[[#This Row],[Material Name]] -> Linen | J15: No spinning | K15: No textile formation | L15: No prep | M15: No dyeing | N15: No finish | Q15: =IFERROR(INDEX(InputMatDropdownList[],MATCH(tbl_CIMats1622[[#This Row],[Material Name]]&";"&tbl_CIMats1622[[#This Row],[Stage]],InputMatDropdownList[Helper (NO NEED TO EDIT)],0),9)*$AI15,)+IFERROR(INDEX(InputMatDropdownList[],MATCH(tbl_CIMats1622[[#This Row],[2]],InputMatDropdownList[Option],0),9)*$AJ15,)+IFERROR(INDEX(InputMatDropdownList[],MATCH(tbl_CIMats1622[[#This Row],[3]],InputMatDropdownList[Option],0),9)*$AK15,) +IFERROR(INDEX(InputMatDropdownList[],MATCH(tbl_CIMats1622[[#This Row],[4]],InputMatDropdownList[Option],0),9)*$AL15,)+IFERROR(INDEX(InputMatDropdownList[],MATCH(tbl_CIMats1622[[#This Row],[5]],InputMatDropdownList[Option],0),9)*$AM15,)+IFERROR(INDEX(InputMatDropdownList[],MATCH(tbl_CIMats1622[[#This Row],[6]],InputMatDropdownList[Option],0),9)*$AN15,) -> 0 | R15: =IFERROR(INDEX(InputMatDropdownList[],MATCH(tbl_CIMats1622[[#This Row],[Material Name]]&";"&tbl_CIMats1622[[#This Row],[Stage]],InputMatDropdownList[Helper (NO NEED TO EDIT)],0),10)*$AI15,)+IFERROR(INDEX(InputMatDropdownList[],MATCH(tbl_CIMats1622[[#This Row],[2]],InputMatDropdownList[Option],0),10)*$AJ15,)+IFERROR(INDEX(InputMatDropdownList[],MATCH(tbl_CIMats1622[[#This Row],[3]],InputMatDropdownList[Option],0),10)*$AK15,) +IFERROR(INDEX(InputMatDropdownList[],MATCH(tbl_CIMats1622[[#This Row],[4]],InputMatDropdownList[Option],0),10)*$AL15,)+IFERROR(INDEX(InputMatDropdownList[],MATCH(tbl_CIMats1622[[#This Row],[5]],InputMatDropdownList[Option],0),10)*$AM15,)+IFERROR(INDEX(InputMatDropdownList[],MATCH(tbl_CIMats1622[[#This Row],[6]],InputMatDropdownList[Option],0),10)*$AN15,) -> 0 | T15: =IFERROR(SUM(tbl_CIMats1622[[#This Row],[CI1]:[CI6]]),"") -> 0 | U15: =IFERROR(INDEX(InputMatDropdownList[],MATCH(tbl_CIMats1622[[#This Row],[Material Name]]&";"&tbl_CIMats1622[[#This Row],[Stage]],InputMatDropdownList[Helper (NO NEED TO EDIT)],0),5),"") -> 0 | V15: =IF(ISBLANK(tbl_CIMats1622[[#This Row],[2]]),"",INDEX(InputMatDropdownList[],MATCH(tbl_CIMats1622[[#This Row],[2]],InputMatDropdownList[Option],0),5)) -> 0 | W15: =IF(ISBLANK(tbl_CIMats1622[[#This Row],[3]]),"",INDEX(InputMatDropdownList[],MATCH(tbl_CIMats1622[[#This Row],[3]],InputMatDropdownList[Option],0),5)) -> 0 | X15: =IF(ISBLANK(tbl_CIMats1622[[#This Row],[4]]),"",INDEX(InputMatDropdownList[],MATCH(tbl_CIMats1622[[#This Row],[4]],InputMatDropdownList[Option],0),5)) -> 0 | Y15: =IF(ISBLANK(tbl_CIMats1622[[#This Row],[5]]),"",INDEX(InputMatDropdownList[],MATCH(tbl_CIMats1622[[#This Row],[5]],InputMatDropdownList[Option],0),5)) -> 0 | Z15: =IF(ISBLANK(tbl_CIMats1622[[#This Row],[6]]),"",INDEX(InputMatDropdownList[],MATCH(tbl_CIMats1622[[#This Row],[6]],InputMatDropdownList[Option],0),5)) -> 0 | AB15: 0 | AE15: =SUM(tbl_CIMats1622[[#This Row],[CI1]:[Biogenic Carbon (kg CO2e/kg material)]],tbl_CIMats1622[[#This Row],[Indirect LUC (iLUC) kg CO2e/kg material- reported based on data availability]]) -> 0 | AG15: =tbl_CIMats1622[[#This Row],[Material Name/Stage/Product Category (CALCULATED COLUMN -NO NEED TO EDIT)]] -> Linen ; Fiber - Apparel | AH15: 0 | AI15: =IFERROR(tbl_CIMats1622[[#This Row],[CI1]]/tbl_CIMats1622[[#This Row],[CI (kg CO2e/kg)-EXCLUDING Biogenic C & dLUC]],) -> 0 | AJ15: =IFERROR(tbl_CIMats1622[[#This Row],[CI2]]/tbl_CIMats1622[[#This Row],[CI (kg CO2e/kg)-EXCLUDING Biogenic C & dLUC]],) -> 0 | AK15: =IFERROR(tbl_CIMats1622[[#This Row],[CI3]]/tbl_CIMats1622[[#This Row],[CI (kg CO2e/kg)-EXCLUDING Biogenic C & dLUC]],) -> 0 | AL15: =IFERROR(tbl_CIMats1622[[#This Row],[CI4]]/tbl_CIMats1622[[#This Row],[CI (kg CO2e/kg)-EXCLUDING Biogenic C & dLUC]],) -> 0 | AM15: =IFERROR(tbl_CIMats1622[[#This Row],[CI5]]/tbl_CIMats1622[[#This Row],[CI (kg CO2e/kg)-EXCLUDING Biogenic C & dLUC]],) -> 0 | AN15: =IFERROR(tbl_CIMats1622[[#This Row],[CI6]]/tbl_CIMats1622[[#This Row],[CI (kg CO2e/kg)-EXCLUDING Biogenic C & dLUC]],) -> 0 | AP15: =IF(OR(InputMatDropdownList[[#This Row],[Stage]]="Fiber",InputMatDropdownList[[#This Row],[Stage]]="Plastics",InputMatDropdownList[[#This Row],[Stage]]="Yarn",InputMatDropdownList[[#This Row],[Stage]]="Fabric",InputMatDropdownList[[#This Row],[Stage]]="Foam",InputMatDropdownList[[#This Row],[Stage]]="Rubber/Elastomer",InputMatDropdownList[[#This Row],[Stage]]="Other",InputMatDropdownList[[#This Row],[Stage]]="Packaging"),InputMatDropdownList[[#This Row],[Option]]&";"&InputMatDropdownList[[#This Row],[Stage]],InputMatDropdownList[[#This Row],[Option]]) -> Linen;Fiber | AQ15: Fiber | AR15: Bast fiber | AS15: Linen | AT15: =InputMatDropdownList[[#This Row],[CI (kg CO2e/material)- EXCLUDING LOSS RATES]]*(1+InputMatDropdownList[[#This Row],[Loss rates]]) -> 0
A16: Modal ; Fiber - Apparel | B16: Modal | C16: Fiber | D16: Apparel | E16: =IFERROR(SUM(tbl_CIMats1622[[#This Row],[CI1]:[Biogenic Carbon (kg CO2e/kg material)]]),"") -> 0 | F16: Natural Textile | G16: =IFERROR((IF(OR(tbl_CIMats1622[[#This Row],[Material Type- Landfill/Incinerated]]=$BA$9,tbl_CIMats1622[[#This Row],[Material Type- Landfill/Incinerated]]=$BA$10,tbl_CIMats1622[[#This Row],[Material Type- Landfill/Incinerated]]=$BA$11,tbl_CIMats1622[[#This Row],[Material Type- Landfill/Incinerated]]=$BA$12,tbl_CIMats1622[[#This Row],[Material Type- Landfill/Incinerated]]=$BA$13,tbl_CIMats1622[[#This Row],[Material Type- Landfill/Incinerated]]=$BA$23,tbl_CIMats1622[[#This Row],[Material Type- Landfill/Incinerated]]=$BA$24),INDEX(EOL_CIs[#All],MATCH(tbl_CIMats1622[[#This Row],[Material Type- Landfill/Incinerated]],EOL_CIs[[#All],[EOL Material Category]],0),2),(INDEX(EOL_CIs[#All],MATCH(tbl_CIMats1622[[#This Row],[Material Type- Landfill/Incinerated]],EOL_CIs[[#All],[EOL Material Category]],0),2)+ABS(tbl_CIMats1622[[#This Row],[Biogenic Carbon (kg CO2e/kg material)]])))),) -> 1 | H16: =IFERROR(INDEX(EOL_CIs[#All],MATCH(tbl_CIMats1622[[#This Row],[Material Type- Landfill/Incinerated]],EOL_CIs[[#All],[EOL Material Category]],0),3)+ABS(tbl_CIMats1622[[#This Row],[Biogenic Carbon (kg CO2e/kg material)]]),) -> 1 | I16: =tbl_CIMats1622[[#This Row],[Material Name]] -> Modal | J16: No spinning | K16: No textile formation | L16: No prep | M16: No dyeing | N16: No finish | Q16: =IFERROR(INDEX(InputMatDropdownList[],MATCH(tbl_CIMats1622[[#This Row],[Material Name]]&";"&tbl_CIMats1622[[#This Row],[Stage]],InputMatDropdownList[Helper (NO NEED TO EDIT)],0),9)*$AI16,)+IFERROR(INDEX(InputMatDropdownList[],MATCH(tbl_CIMats1622[[#This Row],[2]],InputMatDropdownList[Option],0),9)*$AJ16,)+IFERROR(INDEX(InputMatDropdownList[],MATCH(tbl_CIMats1622[[#This Row],[3]],InputMatDropdownList[Option],0),9)*$AK16,) +IFERROR(INDEX(InputMatDropdownList[],MATCH(tbl_CIMats1622[[#This Row],[4]],InputMatDropdownList[Option],0),9)*$AL16,)+IFERROR(INDEX(InputMatDropdownList[],MATCH(tbl_CIMats1622[[#This Row],[5]],InputMatDropdownList[Option],0),9)*$AM16,)+IFERROR(INDEX(InputMatDropdownList[],MATCH(tbl_CIMats1622[[#This Row],[6]],InputMatDropdownList[Option],0),9)*$AN16,) -> 0 | R16: =IFERROR(INDEX(InputMatDropdownList[],MATCH(tbl_CIMats1622[[#This Row],[Material Name]]&";"&tbl_CIMats1622[[#This Row],[Stage]],InputMatDropdownList[Helper (NO NEED TO EDIT)],0),10)*$AI16,)+IFERROR(INDEX(InputMatDropdownList[],MATCH(tbl_CIMats1622[[#This Row],[2]],InputMatDropdownList[Option],0),10)*$AJ16,)+IFERROR(INDEX(InputMatDropdownList[],MATCH(tbl_CIMats1622[[#This Row],[3]],InputMatDropdownList[Option],0),10)*$AK16,) +IFERROR(INDEX(InputMatDropdownList[],MATCH(tbl_CIMats1622[[#This Row],[4]],InputMatDropdownList[Option],0),10)*$AL16,)+IFERROR(INDEX(InputMatDropdownList[],MATCH(tbl_CIMats1622[[#This Row],[5]],InputMatDropdownList[Option],0),10)*$AM16,)+IFERROR(INDEX(InputMatDropdownList[],MATCH(tbl_CIMats1622[[#This Row],[6]],InputMatDropdownList[Option],0),10)*$AN16,) -> 0 | T16: =IFERROR(SUM(tbl_CIMats1622[[#This Row],[CI1]:[CI6]]),"") -> 0 | U16: =IFERROR(INDEX(InputMatDropdownList[],MATCH(tbl_CIMats1622[[#This Row],[Material Name]]&";"&tbl_CIMats1622[[#This Row],[Stage]],InputMatDropdownList[Helper (NO NEED TO EDIT)],0),5),"") -> 0 | V16: =IF(ISBLANK(tbl_CIMats1622[[#This Row],[2]]),"",INDEX(InputMatDropdownList[],MATCH(tbl_CIMats1622[[#This Row],[2]],InputMatDropdownList[Option],0),5)) -> 0 | W16: =IF(ISBLANK(tbl_CIMats1622[[#This Row],[3]]),"",INDEX(InputMatDropdownList[],MATCH(tbl_CIMats1622[[#This Row],[3]],InputMatDropdownList[Option],0),5)) -> 0 | X16: =IF(ISBLANK(tbl_CIMats1622[[#This Row],[4]]),"",INDEX(InputMatDropdownList[],MATCH(tbl_CIMats1622[[#This Row],[4]],InputMatDropdownList[Option],0),5)) -> 0 | Y16: =IF(ISBLANK(tbl_CIMats1622[[#This Row],[5]]),"",INDEX(InputMatDropdownList[],MATCH(tbl_CIMats1622[[#This Row],[5]],InputMatDropdownList[Option],0),5)) -> 0 | Z16: =IF(ISBLANK(tbl_CIMats1622[[#This Row],[6]]),"",INDEX(InputMatDropdownList[],MATCH(tbl_CIMats1622[[#This Row],[6]],InputMatDropdownList[Option],0),5)) -> 0 | AB16: 0 | AE16: =SUM(tbl_CIMats1622[[#This Row],[CI1]:[Biogenic Carbon (kg CO2e/kg material)]],tbl_CIMats1622[[#This Row],[Indirect LUC (iLUC) kg CO2e/kg material- reported based on data availability]]) -> 0 | AG16: =tbl_CIMats1622[[#This Row],[Material Name/Stage/Product Category (CALCULATED COLUMN -NO NEED TO EDIT)]] -> Modal ; Fiber - Apparel | AH16: 0 | AI16: =IFERROR(tbl_CIMats1622[[#This Row],[CI1]]/tbl_CIMats1622[[#This Row],[CI (kg CO2e/kg)-EXCLUDING Biogenic C & dLUC]],) -> 0 | AJ16: =IFERROR(tbl_CIMats1622[[#This Row],[CI2]]/tbl_CIMats1622[[#This Row],[CI (kg CO2e/kg)-EXCLUDING Biogenic C & dLUC]],) -> 0 | AK16: =IFERROR(tbl_CIMats1622[[#This Row],[CI3]]/tbl_CIMats1622[[#This Row],[CI (kg CO2e/kg)-EXCLUDING Biogenic C & dLUC]],) -> 0 | AL16: =IFERROR(tbl_CIMats1622[[#This Row],[CI4]]/tbl_CIMats1622[[#This Row],[CI (kg CO2e/kg)-EXCLUDING Biogenic C & dLUC]],) -> 0 | AM16: =IFERROR(tbl_CIMats1622[[#This Row],[CI5]]/tbl_CIMats1622[[#This Row],[CI (kg CO2e/kg)-EXCLUDING Biogenic C & dLUC]],) -> 0 | AN16: =IFERROR(tbl_CIMats1622[[#This Row],[CI6]]/tbl_CIMats1622[[#This Row],[CI (kg CO2e/kg)-EXCLUDING Biogenic C & dLUC]],) -> 0 | AP16: =IF(OR(InputMatDropdownList[[#This Row],[Stage]]="Fiber",InputMatDropdownList[[#This Row],[Stage]]="Plastics",InputMatDropdownList[[#This Row],[Stage]]="Yarn",InputMatDropdownList[[#This Row],[Stage]]="Fabric",InputMatDropdownList[[#This Row],[Stage]]="Foam",InputMatDropdownList[[#This Row],[Stage]]="Rubber/Elastomer",InputMatDropdownList[[#This Row],[Stage]]="Other",InputMatDropdownList[[#This Row],[Stage]]="Packaging"),InputMatDropdownList[[#This Row],[Option]]&";"&InputMatDropdownList[[#This Row],[Stage]],InputMatDropdownList[[#This Row],[Option]]) -> Modal;Fiber | AQ16: Fiber | AR16: MMCF | AS16: Modal | AT16: =InputMatDropdownList[[#This Row],[CI (kg CO2e/material)- EXCLUDING LOSS RATES]]*(1+InputMatDropdownList[[#This Row],[Loss rates]]) -> 0
A17: Nylon - Bio-based ; Fiber - Apparel | B17: Nylon - Bio-based | C17: Fiber | D17: Apparel | E17: =IFERROR(SUM(tbl_CIMats1622[[#This Row],[CI1]:[Biogenic Carbon (kg CO2e/kg material)]]),"") -> 0 | F17: Synthetic Textile | G17: =IFERROR((IF(OR(tbl_CIMats1622[[#This Row],[Material Type- Landfill/Incinerated]]=$BA$9,tbl_CIMats1622[[#This Row],[Material Type- Landfill/Incinerated]]=$BA$10,tbl_CIMats1622[[#This Row],[Material Type- Landfill/Incinerated]]=$BA$11,tbl_CIMats1622[[#This Row],[Material Type- Landfill/Incinerated]]=$BA$12,tbl_CIMats1622[[#This Row],[Material Type- Landfill/Incinerated]]=$BA$13,tbl_CIMats1622[[#This Row],[Material Type- Landfill/Incinerated]]=$BA$23,tbl_CIMats1622[[#This Row],[Material Type- Landfill/Incinerated]]=$BA$24),INDEX(EOL_CIs[#All],MATCH(tbl_CIMats1622[[#This Row],[Material Type- Landfill/Incinerated]],EOL_CIs[[#All],[EOL Material Category]],0),2),(INDEX(EOL_CIs[#All],MATCH(tbl_CIMats1622[[#This Row],[Material Type- Landfill/Incinerated]],EOL_CIs[[#All],[EOL Material Category]],0),2)+ABS(tbl_CIMats1622[[#This Row],[Biogenic Carbon (kg CO2e/kg material)]])))),) -> 1 | H17: =IFERROR(INDEX(EOL_CIs[#All],MATCH(tbl_CIMats1622[[#This Row],[Material Type- Landfill/Incinerated]],EOL_CIs[[#All],[EOL Material Category]],0),3)+ABS(tbl_CIMats1622[[#This Row],[Biogenic Carbon (kg CO2e/kg material)]]),) -> 1 | I17: =tbl_CIMats1622[[#This Row],[Material Name]] -> Nylon - Bio-based | J17: No spinning | K17: No textile formation | L17: No prep | M17: No dyeing | N17: No finish | Q17: =IFERROR(INDEX(InputMatDropdownList[],MATCH(tbl_CIMats1622[[#This Row],[Material Name]]&";"&tbl_CIMats1622[[#This Row],[Stage]],InputMatDropdownList[Helper (NO NEED TO EDIT)],0),9)*$AI17,)+IFERROR(INDEX(InputMatDropdownList[],MATCH(tbl_CIMats1622[[#This Row],[2]],InputMatDropdownList[Option],0),9)*$AJ17,)+IFERROR(INDEX(InputMatDropdownList[],MATCH(tbl_CIMats1622[[#This Row],[3]],InputMatDropdownList[Option],0),9)*$AK17,) +IFERROR(INDEX(InputMatDropdownList[],MATCH(tbl_CIMats1622[[#This Row],[4]],InputMatDropdownList[Option],0),9)*$AL17,)+IFERROR(INDEX(InputMatDropdownList[],MATCH(tbl_CIMats1622[[#This Row],[5]],InputMatDropdownList[Option],0),9)*$AM17,)+IFERROR(INDEX(InputMatDropdownList[],MATCH(tbl_CIMats1622[[#This Row],[6]],InputMatDropdownList[Option],0),9)*$AN17,) -> 0 | R17: =IFERROR(INDEX(InputMatDropdownList[],MATCH(tbl_CIMats1622[[#This Row],[Material Name]]&";"&tbl_CIMats1622[[#This Row],[Stage]],InputMatDropdownList[Helper (NO NEED TO EDIT)],0),10)*$AI17,)+IFERROR(INDEX(InputMatDropdownList[],MATCH(tbl_CIMats1622[[#This Row],[2]],InputMatDropdownList[Option],0),10)*$AJ17,)+IFERROR(INDEX(InputMatDropdownList[],MATCH(tbl_CIMats1622[[#This Row],[3]],InputMatDropdownList[Option],0),10)*$AK17,) +IFERROR(INDEX(InputMatDropdownList[],MATCH(tbl_CIMats1622[[#This Row],[4]],InputMatDropdownList[Option],0),10)*$AL17,)+IFERROR(INDEX(InputMatDropdownList[],MATCH(tbl_CIMats1622[[#This Row],[5]],InputMatDropdownList[Option],0),10)*$AM17,)+IFERROR(INDEX(InputMatDropdownList[],MATCH(tbl_CIMats1622[[#This Row],[6]],InputMatDropdownList[Option],0),10)*$AN17,) -> 0 | T17: =IFERROR(SUM(tbl_CIMats1622[[#This Row],[CI1]:[CI6]]),"") -> 0 | U17: =IFERROR(INDEX(InputMatDropdownList[],MATCH(tbl_CIMats1622[[#This Row],[Material Name]]&";"&tbl_CIMats1622[[#This Row],[Stage]],InputMatDropdownList[Helper (NO NEED TO EDIT)],0),5),"") -> 0 | V17: =IF(ISBLANK(tbl_CIMats1622[[#This Row],[2]]),"",INDEX(InputMatDropdownList[],MATCH(tbl_CIMats1622[[#This Row],[2]],InputMatDropdownList[Option],0),5)) -> 0 | W17: =IF(ISBLANK(tbl_CIMats1622[[#This Row],[3]]),"",INDEX(InputMatDropdownList[],MATCH(tbl_CIMats1622[[#This Row],[3]],InputMatDropdownList[Option],0),5)) -> 0 | X17: =IF(ISBLANK(tbl_CIMats1622[[#This Row],[4]]),"",INDEX(InputMatDropdownList[],MATCH(tbl_CIMats1622[[#This Row],[4]],InputMatDropdownList[Option],0),5)) -> 0 | Y17: =IF(ISBLANK(tbl_CIMats1622[[#This Row],[5]]),"",INDEX(InputMatDropdownList[],MATCH(tbl_CIMats1622[[#This Row],[5]],InputMatDropdownList[Option],0),5)) -> 0 | Z17: =IF(ISBLANK(tbl_CIMats1622[[#This Row],[6]]),"",INDEX(InputMatDropdownList[],MATCH(tbl_CIMats1622[[#This Row],[6]],InputMatDropdownList[Option],0),5)) -> 0 | AB17: 0 | AE17: =SUM(tbl_CIMats1622[[#This Row],[CI1]:[Biogenic Carbon (kg CO2e/kg material)]],tbl_CIMats1622[[#This Row],[Indirect LUC (iLUC) kg CO2e/kg material- reported based on data availability]]) -> 0 | AG17: =tbl_CIMats1622[[#This Row],[Material Name/Stage/Product Category (CALCULATED COLUMN -NO NEED TO EDIT)]] -> Nylon - Bio-based ; Fiber - Apparel | AH17: 0 | AI17: =IFERROR(tbl_CIMats1622[[#This Row],[CI1]]/tbl_CIMats1622[[#This Row],[CI (kg CO2e/kg)-EXCLUDING Biogenic C & dLUC]],) -> 0 | AJ17: =IFERROR(tbl_CIMats1622[[#This Row],[CI2]]/tbl_CIMats1622[[#This Row],[CI (kg CO2e/kg)-EXCLUDING Biogenic C & dLUC]],) -> 0 | AK17: =IFERROR(tbl_CIMats1622[[#This Row],[CI3]]/tbl_CIMats1622[[#This Row],[CI (kg CO2e/kg)-EXCLUDING Biogenic C & dLUC]],) -> 0 | AL17: =IFERROR(tbl_CIMats1622[[#This Row],[CI4]]/tbl_CIMats1622[[#This Row],[CI (kg CO2e/kg)-EXCLUDING Biogenic C & dLUC]],) -> 0 | AM17: =IFERROR(tbl_CIMats1622[[#This Row],[CI5]]/tbl_CIMats1622[[#This Row],[CI (kg CO2e/kg)-EXCLUDING Biogenic C & dLUC]],) -> 0 | AN17: =IFERROR(tbl_CIMats1622[[#This Row],[CI6]]/tbl_CIMats1622[[#This Row],[CI (kg CO2e/kg)-EXCLUDING Biogenic C & dLUC]],) -> 0 | AP17: =IF(OR(InputMatDropdownList[[#This Row],[Stage]]="Fiber",InputMatDropdownList[[#This Row],[Stage]]="Plastics",InputMatDropdownList[[#This Row],[Stage]]="Yarn",InputMatDropdownList[[#This Row],[Stage]]="Fabric",InputMatDropdownList[[#This Row],[Stage]]="Foam",InputMatDropdownList[[#This Row],[Stage]]="Rubber/Elastomer",InputMatDropdownList[[#This Row],[Stage]]="Other",InputMatDropdownList[[#This Row],[Stage]]="Packaging"),InputMatDropdownList[[#This Row],[Option]]&";"&InputMatDropdownList[[#This Row],[Stage]],InputMatDropdownList[[#This Row],[Option]]) -> Nylon - Bio-based;Fiber | AQ17: Fiber | AR17: Synthetics | AS17: Nylon - Bio-based | AT17: =InputMatDropdownList[[#This Row],[CI (kg CO2e/material)- EXCLUDING LOSS RATES]]*(1+InputMatDropdownList[[#This Row],[Loss rates]]) -> 0
A18: Nylon 6- Virgin ; Fiber - Apparel | B18: Nylon 6- Virgin | C18: Fiber | D18: Apparel | E18: =IFERROR(SUM(tbl_CIMats1622[[#This Row],[CI1]:[Biogenic Carbon (kg CO2e/kg material)]]),"") -> 0 | F18: Synthetic Textile | G18: =IFERROR((IF(OR(tbl_CIMats1622[[#This Row],[Material Type- Landfill/Incinerated]]=$BA$9,tbl_CIMats1622[[#This Row],[Material Type- Landfill/Incinerated]]=$BA$10,tbl_CIMats1622[[#This Row],[Material Type- Landfill/Incinerated]]=$BA$11,tbl_CIMats1622[[#This Row],[Material Type- Landfill/Incinerated]]=$BA$12,tbl_CIMats1622[[#This Row],[Material Type- Landfill/Incinerated]]=$BA$13,tbl_CIMats1622[[#This Row],[Material Type- Landfill/Incinerated]]=$BA$23,tbl_CIMats1622[[#This Row],[Material Type- Landfill/Incinerated]]=$BA$24),INDEX(EOL_CIs[#All],MATCH(tbl_CIMats1622[[#This Row],[Material Type- Landfill/Incinerated]],EOL_CIs[[#All],[EOL Material Category]],0),2),(INDEX(EOL_CIs[#All],MATCH(tbl_CIMats1622[[#This Row],[Material Type- Landfill/Incinerated]],EOL_CIs[[#All],[EOL Material Category]],0),2)+ABS(tbl_CIMats1622[[#This Row],[Biogenic Carbon (kg CO2e/kg material)]])))),) -> 1 | H18: =IFERROR(INDEX(EOL_CIs[#All],MATCH(tbl_CIMats1622[[#This Row],[Material Type- Landfill/Incinerated]],EOL_CIs[[#All],[EOL Material Category]],0),3)+ABS(tbl_CIMats1622[[#This Row],[Biogenic Carbon (kg CO2e/kg material)]]),) -> 1 | I18: =tbl_CIMats1622[[#This Row],[Material Name]] -> Nylon 6- Virgin | J18: No spinning | K18: No textile formation | L18: No prep | M18: No dyeing | N18: No finish | Q18: =IFERROR(INDEX(InputMatDropdownList[],MATCH(tbl_CIMats1622[[#This Row],[Material Name]]&";"&tbl_CIMats1622[[#This Row],[Stage]],InputMatDropdownList[Helper (NO NEED TO EDIT)],0),9)*$AI18,)+IFERROR(INDEX(InputMatDropdownList[],MATCH(tbl_CIMats1622[[#This Row],[2]],InputMatDropdownList[Option],0),9)*$AJ18,)+IFERROR(INDEX(InputMatDropdownList[],MATCH(tbl_CIMats1622[[#This Row],[3]],InputMatDropdownList[Option],0),9)*$AK18,) +IFERROR(INDEX(InputMatDropdownList[],MATCH(tbl_CIMats1622[[#This Row],[4]],InputMatDropdownList[Option],0),9)*$AL18,)+IFERROR(INDEX(InputMatDropdownList[],MATCH(tbl_CIMats1622[[#This Row],[5]],InputMatDropdownList[Option],0),9)*$AM18,)+IFERROR(INDEX(InputMatDropdownList[],MATCH(tbl_CIMats1622[[#This Row],[6]],InputMatDropdownList[Option],0),9)*$AN18,) -> 0 | R18: =IFERROR(INDEX(InputMatDropdownList[],MATCH(tbl_CIMats1622[[#This Row],[Material Name]]&";"&tbl_CIMats1622[[#This Row],[Stage]],InputMatDropdownList[Helper (NO NEED TO EDIT)],0),10)*$AI18,)+IFERROR(INDEX(InputMatDropdownList[],MATCH(tbl_CIMats1622[[#This Row],[2]],InputMatDropdownList[Option],0),10)*$AJ18,)+IFERROR(INDEX(InputMatDropdownList[],MATCH(tbl_CIMats1622[[#This Row],[3]],InputMatDropdownList[Option],0),10)*$AK18,) +IFERROR(INDEX(InputMatDropdownList[],MATCH(tbl_CIMats1622[[#This Row],[4]],InputMatDropdownList[Option],0),10)*$AL18,)+IFERROR(INDEX(InputMatDropdownList[],MATCH(tbl_CIMats1622[[#This Row],[5]],InputMatDropdownList[Option],0),10)*$AM18,)+IFERROR(INDEX(InputMatDropdownList[],MATCH(tbl_CIMats1622[[#This Row],[6]],InputMatDropdownList[Option],0),10)*$AN18,) -> 0 | T18: =IFERROR(SUM(tbl_CIMats1622[[#This Row],[CI1]:[CI6]]),"") -> 0 | U18: =IFERROR(INDEX(InputMatDropdownList[],MATCH(tbl_CIMats1622[[#This Row],[Material Name]]&";"&tbl_CIMats1622[[#This Row],[Stage]],InputMatDropdownList[Helper (NO NEED TO EDIT)],0),5),"") -> 0 | V18: =IF(ISBLANK(tbl_CIMats1622[[#This Row],[2]]),"",INDEX(InputMatDropdownList[],MATCH(tbl_CIMats1622[[#This Row],[2]],InputMatDropdownList[Option],0),5)) -> 0 | W18: =IF(ISBLANK(tbl_CIMats1622[[#This Row],[3]]),"",INDEX(InputMatDropdownList[],MATCH(tbl_CIMats1622[[#This Row],[3]],InputMatDropdownList[Option],0),5)) -> 0 | X18: =IF(ISBLANK(tbl_CIMats1622[[#This Row],[4]]),"",INDEX(InputMatDropdownList[],MATCH(tbl_CIMats1622[[#This Row],[4]],InputMatDropdownList[Option],0),5)) -> 0 | Y18: =IF(ISBLANK(tbl_CIMats1622[[#This Row],[5]]),"",INDEX(InputMatDropdownList[],MATCH(tbl_CIMats1622[[#This Row],[5]],InputMatDropdownList[Option],0),5)) -> 0 | Z18: =IF(ISBLANK(tbl_CIMats1622[[#This Row],[6]]),"",INDEX(InputMatDropdownList[],MATCH(tbl_CIMats1622[[#This Row],[6]],InputMatDropdownList[Option],0),5)) -> 0 | AB18: 0 | AE18: =SUM(tbl_CIMats1622[[#This Row],[CI1]:[Biogenic Carbon (kg CO2e/kg material)]],tbl_CIMats1622[[#This Row],[Indirect LUC (iLUC) kg CO2e/kg material- reported based on data availability]]) -> 0 | AG18: =tbl_CIMats1622[[#This Row],[Material Name/Stage/Product Category (CALCULATED COLUMN -NO NEED TO EDIT)]] -> Nylon 6- Virgin ; Fiber - Apparel | AH18: 0 | AI18: =IFERROR(tbl_CIMats1622[[#This Row],[CI1]]/tbl_CIMats1622[[#This Row],[CI (kg CO2e/kg)-EXCLUDING Biogenic C & dLUC]],) -> 0 | AJ18: =IFERROR(tbl_CIMats1622[[#This Row],[CI2]]/tbl_CIMats1622[[#This Row],[CI (kg CO2e/kg)-EXCLUDING Biogenic C & dLUC]],) -> 0 | AK18: =IFERROR(tbl_CIMats1622[[#This Row],[CI3]]/tbl_CIMats1622[[#This Row],[CI (kg CO2e/kg)-EXCLUDING Biogenic C & dLUC]],) -> 0 | AL18: =IFERROR(tbl_CIMats1622[[#This Row],[CI4]]/tbl_CIMats1622[[#This Row],[CI (kg CO2e/kg)-EXCLUDING Biogenic C & dLUC]],) -> 0 | AM18: =IFERROR(tbl_CIMats1622[[#This Row],[CI5]]/tbl_CIMats1622[[#This Row],[CI (kg CO2e/kg)-EXCLUDING Biogenic C & dLUC]],) -> 0 | AN18: =IFERROR(tbl_CIMats1622[[#This Row],[CI6]]/tbl_CIMats1622[[#This Row],[CI (kg CO2e/kg)-EXCLUDING Biogenic C & dLUC]],) -> 0 | AP18: =IF(OR(InputMatDropdownList[[#This Row],[Stage]]="Fiber",InputMatDropdownList[[#This Row],[Stage]]="Plastics",InputMatDropdownList[[#This Row],[Stage]]="Yarn",InputMatDropdownList[[#This Row],[Stage]]="Fabric",InputMatDropdownList[[#This Row],[Stage]]="Foam",InputMatDropdownList[[#This Row],[Stage]]="Rubber/Elastomer",InputMatDropdownList[[#This Row],[Stage]]="Other",InputMatDropdownList[[#This Row],[Stage]]="Packaging"),InputMatDropdownList[[#This Row],[Option]]&";"&InputMatDropdownList[[#This Row],[Stage]],InputMatDropdownList[[#This Row],[Option]]) -> Nylon 6- Virgin;Fiber | AQ18: Fiber | AR18: Synthetics | AS18: Nylon 6- Virgin | AT18: =InputMatDropdownList[[#This Row],[CI (kg CO2e/material)- EXCLUDING LOSS RATES]]*(1+InputMatDropdownList[[#This Row],[Loss rates]]) -> 0
A19: Nylon, mechanically recycled ; Fiber - Apparel | B19: Nylon, mechanically recycled | C19: Fiber | D19: Apparel | E19: =IFERROR(SUM(tbl_CIMats1622[[#This Row],[CI1]:[Biogenic Carbon (kg CO2e/kg material)]]),"") -> 0 | F19: Synthetic Textile | G19: =IFERROR((IF(OR(tbl_CIMats1622[[#This Row],[Material Type- Landfill/Incinerated]]=$BA$9,tbl_CIMats1622[[#This Row],[Material Type- Landfill/Incinerated]]=$BA$10,tbl_CIMats1622[[#This Row],[Material Type- Landfill/Incinerated]]=$BA$11,tbl_CIMats1622[[#This Row],[Material Type- Landfill/Incinerated]]=$BA$12,tbl_CIMats1622[[#This Row],[Material Type- Landfill/Incinerated]]=$BA$13,tbl_CIMats1622[[#This Row],[Material Type- Landfill/Incinerated]]=$BA$23,tbl_CIMats1622[[#This Row],[Material Type- Landfill/Incinerated]]=$BA$24),INDEX(EOL_CIs[#All],MATCH(tbl_CIMats1622[[#This Row],[Material Type- Landfill/Incinerated]],EOL_CIs[[#All],[EOL Material Category]],0),2),(INDEX(EOL_CIs[#All],MATCH(tbl_CIMats1622[[#This Row],[Material Type- Landfill/Incinerated]],EOL_CIs[[#All],[EOL Material Category]],0),2)+ABS(tbl_CIMats1622[[#This Row],[Biogenic Carbon (kg CO2e/kg material)]])))),) -> 1 | H19: =IFERROR(INDEX(EOL_CIs[#All],MATCH(tbl_CIMats1622[[#This Row],[Material Type- Landfill/Incinerated]],EOL_CIs[[#All],[EOL Material Category]],0),3)+ABS(tbl_CIMats1622[[#This Row],[Biogenic Carbon (kg CO2e/kg material)]]),) -> 1 | I19: =tbl_CIMats1622[[#This Row],[Material Name]] -> Nylon, mechanically recycled | J19: No spinning | K19: No textile formation | L19: No prep | M19: No dyeing | N19: No finish | Q19: =IFERROR(INDEX(InputMatDropdownList[],MATCH(tbl_CIMats1622[[#This Row],[Material Name]]&";"&tbl_CIMats1622[[#This Row],[Stage]],InputMatDropdownList[Helper (NO NEED TO EDIT)],0),9)*$AI19,)+IFERROR(INDEX(InputMatDropdownList[],MATCH(tbl_CIMats1622[[#This Row],[2]],InputMatDropdownList[Option],0),9)*$AJ19,)+IFERROR(INDEX(InputMatDropdownList[],MATCH(tbl_CIMats1622[[#This Row],[3]],InputMatDropdownList[Option],0),9)*$AK19,) +IFERROR(INDEX(InputMatDropdownList[],MATCH(tbl_CIMats1622[[#This Row],[4]],InputMatDropdownList[Option],0),9)*$AL19,)+IFERROR(INDEX(InputMatDropdownList[],MATCH(tbl_CIMats1622[[#This Row],[5]],InputMatDropdownList[Option],0),9)*$AM19,)+IFERROR(INDEX(InputMatDropdownList[],MATCH(tbl_CIMats1622[[#This Row],[6]],InputMatDropdownList[Option],0),9)*$AN19,) -> 0 | R19: =IFERROR(INDEX(InputMatDropdownList[],MATCH(tbl_CIMats1622[[#This Row],[Material Name]]&";"&tbl_CIMats1622[[#This Row],[Stage]],InputMatDropdownList[Helper (NO NEED TO EDIT)],0),10)*$AI19,)+IFERROR(INDEX(InputMatDropdownList[],MATCH(tbl_CIMats1622[[#This Row],[2]],InputMatDropdownList[Option],0),10)*$AJ19,)+IFERROR(INDEX(InputMatDropdownList[],MATCH(tbl_CIMats1622[[#This Row],[3]],InputMatDropdownList[Option],0),10)*$AK19,) +IFERROR(INDEX(InputMatDropdownList[],MATCH(tbl_CIMats1622[[#This Row],[4]],InputMatDropdownList[Option],0),10)*$AL19,)+IFERROR(INDEX(InputMatDropdownList[],MATCH(tbl_CIMats1622[[#This Row],[5]],InputMatDropdownList[Option],0),10)*$AM19,)+IFERROR(INDEX(InputMatDropdownList[],MATCH(tbl_CIMats1622[[#This Row],[6]],InputMatDropdownList[Option],0),10)*$AN19,) -> 0 | T19: =IFERROR(SUM(tbl_CIMats1622[[#This Row],[CI1]:[CI6]]),"") -> 0 | U19: =IFERROR(INDEX(InputMatDropdownList[],MATCH(tbl_CIMats1622[[#This Row],[Material Name]]&";"&tbl_CIMats1622[[#This Row],[Stage]],InputMatDropdownList[Helper (NO NEED TO EDIT)],0),5),"") -> 0 | V19: =IF(ISBLANK(tbl_CIMats1622[[#This Row],[2]]),"",INDEX(InputMatDropdownList[],MATCH(tbl_CIMats1622[[#This Row],[2]],InputMatDropdownList[Option],0),5)) -> 0 | W19: =IF(ISBLANK(tbl_CIMats1622[[#This Row],[3]]),"",INDEX(InputMatDropdownList[],MATCH(tbl_CIMats1622[[#This Row],[3]],InputMatDropdownList[Option],0),5)) -> 0 | X19: =IF(ISBLANK(tbl_CIMats1622[[#This Row],[4]]),"",INDEX(InputMatDropdownList[],MATCH(tbl_CIMats1622[[#This Row],[4]],InputMatDropdownList[Option],0),5)) -> 0 | Y19: =IF(ISBLANK(tbl_CIMats1622[[#This Row],[5]]),"",INDEX(InputMatDropdownList[],MATCH(tbl_CIMats1622[[#This Row],[5]],InputMatDropdownList[Option],0),5)) -> 0 | Z19: =IF(ISBLANK(tbl_CIMats1622[[#This Row],[6]]),"",INDEX(InputMatDropdownList[],MATCH(tbl_CIMats1622[[#This Row],[6]],InputMatDropdownList[Option],0),5)) -> 0 | AB19: 0 | AE19: =SUM(tbl_CIMats1622[[#This Row],[CI1]:[Biogenic Carbon (kg CO2e/kg material)]],tbl_CIMats1622[[#This Row],[Indirect LUC (iLUC) kg CO2e/kg material- reported based on data availability]]) -> 0 | AG19: =tbl_CIMats1622[[#This Row],[Material Name/Stage/Product Category (CALCULATED COLUMN -NO NEED TO EDIT)]] -> Nylon, mechanically recycled ; Fiber - Apparel | AH19: 0 | AI19: =IFERROR(tbl_CIMats1622[[#This Row],[CI1]]/tbl_CIMats1622[[#This Row],[CI (kg CO2e/kg)-EXCLUDING Biogenic C & dLUC]],) -> 0 | AJ19: =IFERROR(tbl_CIMats1622[[#This Row],[CI2]]/tbl_CIMats1622[[#This Row],[CI (kg CO2e/kg)-EXCLUDING Biogenic C & dLUC]],) -> 0 | AK19: =IFERROR(tbl_CIMats1622[[#This Row],[CI3]]/tbl_CIMats1622[[#This Row],[CI (kg CO2e/kg)-EXCLUDING Biogenic C & dLUC]],) -> 0 | AL19: =IFERROR(tbl_CIMats1622[[#This Row],[CI4]]/tbl_CIMats1622[[#This Row],[CI (kg CO2e/kg)-EXCLUDING Biogenic C & dLUC]],) -> 0 | AM19: =IFERROR(tbl_CIMats1622[[#This Row],[CI5]]/tbl_CIMats1622[[#This Row],[CI (kg CO2e/kg)-EXCLUDING Biogenic C & dLUC]],) -> 0 | AN19: =IFERROR(tbl_CIMats1622[[#This Row],[CI6]]/tbl_CIMats1622[[#This Row],[CI (kg CO2e/kg)-EXCLUDING Biogenic C & dLUC]],) -> 0 | AP19: =IF(OR(InputMatDropdownList[[#This Row],[Stage]]="Fiber",InputMatDropdownList[[#This Row],[Stage]]="Plastics",InputMatDropdownList[[#This Row],[Stage]]="Yarn",InputMatDropdownList[[#This Row],[Stage]]="Fabric",InputMatDropdownList[[#This Row],[Stage]]="Foam",InputMatDropdownList[[#This Row],[Stage]]="Rubber/Elastomer",InputMatDropdownList[[#This Row],[Stage]]="Other",InputMatDropdownList[[#This Row],[Stage]]="Packaging"),InputMatDropdownList[[#This Row],[Option]]&";"&InputMatDropdownList[[#This Row],[Stage]],InputMatDropdownList[[#This Row],[Option]]) -> Nylon, mechanically recycled;Fiber | AQ19: Fiber | AR19: Synthetics | AS19: Nylon, mechanically recycled | AT19: =InputMatDropdownList[[#This Row],[CI (kg CO2e/material)- EXCLUDING LOSS RATES]]*(1+InputMatDropdownList[[#This Row],[Loss rates]]) -> 0 | BF19: Methodology for estimating carbon emissions/removals from dLUC
A20: Nylon 6,6- Virgin ; Fiber - Apparel | B20: Nylon 6,6- Virgin | C20: Fiber | D20: Apparel | E20: =IFERROR(SUM(tbl_CIMats1622[[#This Row],[CI1]:[Biogenic Carbon (kg CO2e/kg material)]]),"") -> 0 | F20: Synthetic Textile | G20: =IFERROR((IF(OR(tbl_CIMats1622[[#This Row],[Material Type- Landfill/Incinerated]]=$BA$9,tbl_CIMats1622[[#This Row],[Material Type- Landfill/Incinerated]]=$BA$10,tbl_CIMats1622[[#This Row],[Material Type- Landfill/Incinerated]]=$BA$11,tbl_CIMats1622[[#This Row],[Material Type- Landfill/Incinerated]]=$BA$12,tbl_CIMats1622[[#This Row],[Material Type- Landfill/Incinerated]]=$BA$13,tbl_CIMats1622[[#This Row],[Material Type- Landfill/Incinerated]]=$BA$23,tbl_CIMats1622[[#This Row],[Material Type- Landfill/Incinerated]]=$BA$24),INDEX(EOL_CIs[#All],MATCH(tbl_CIMats1622[[#This Row],[Material Type- Landfill/Incinerated]],EOL_CIs[[#All],[EOL Material Category]],0),2),(INDEX(EOL_CIs[#All],MATCH(tbl_CIMats1622[[#This Row],[Material Type- Landfill/Incinerated]],EOL_CIs[[#All],[EOL Material Category]],0),2)+ABS(tbl_CIMats1622[[#This Row],[Biogenic Carbon (kg CO2e/kg material)]])))),) -> 1 | H20: =IFERROR(INDEX(EOL_CIs[#All],MATCH(tbl_CIMats1622[[#This Row],[Material Type- Landfill/Incinerated]],EOL_CIs[[#All],[EOL Material Category]],0),3)+ABS(tbl_CIMats1622[[#This Row],[Biogenic Carbon (kg CO2e/kg material)]]),) -> 1 | I20: =tbl_CIMats1622[[#This Row],[Material Name]] -> Nylon 6,6- Virgin | J20: No spinning | K20: No textile formation | L20: No prep | M20: No dyeing | N20: No finish | Q20: =IFERROR(INDEX(InputMatDropdownList[],MATCH(tbl_CIMats1622[[#This Row],[Material Name]]&";"&tbl_CIMats1622[[#This Row],[Stage]],InputMatDropdownList[Helper (NO NEED TO EDIT)],0),9)*$AI20,)+IFERROR(INDEX(InputMatDropdownList[],MATCH(tbl_CIMats1622[[#This Row],[2]],InputMatDropdownList[Option],0),9)*$AJ20,)+IFERROR(INDEX(InputMatDropdownList[],MATCH(tbl_CIMats1622[[#This Row],[3]],InputMatDropdownList[Option],0),9)*$AK20,) +IFERROR(INDEX(InputMatDropdownList[],MATCH(tbl_CIMats1622[[#This Row],[4]],InputMatDropdownList[Option],0),9)*$AL20,)+IFERROR(INDEX(InputMatDropdownList[],MATCH(tbl_CIMats1622[[#This Row],[5]],InputMatDropdownList[Option],0),9)*$AM20,)+IFERROR(INDEX(InputMatDropdownList[],MATCH(tbl_CIMats1622[[#This Row],[6]],InputMatDropdownList[Option],0),9)*$AN20,) -> 0 | R20: =IFERROR(INDEX(InputMatDropdownList[],MATCH(tbl_CIMats1622[[#This Row],[Material Name]]&";"&tbl_CIMats1622[[#This Row],[Stage]],InputMatDropdownList[Helper (NO NEED TO EDIT)],0),10)*$AI20,)+IFERROR(INDEX(InputMatDropdownList[],MATCH(tbl_CIMats1622[[#This Row],[2]],InputMatDropdownList[Option],0),10)*$AJ20,)+IFERROR(INDEX(InputMatDropdownList[],MATCH(tbl_CIMats1622[[#This Row],[3]],InputMatDropdownList[Option],0),10)*$AK20,) +IFERROR(INDEX(InputMatDropdownList[],MATCH(tbl_CIMats1622[[#This Row],[4]],InputMatDropdownList[Option],0),10)*$AL20,)+IFERROR(INDEX(InputMatDropdownList[],MATCH(tbl_CIMats1622[[#This Row],[5]],InputMatDropdownList[Option],0),10)*$AM20,)+IFERROR(INDEX(InputMatDropdownList[],MATCH(tbl_CIMats1622[[#This Row],[6]],InputMatDropdownList[Option],0),10)*$AN20,) -> 0 | T20: =IFERROR(SUM(tbl_CIMats1622[[#This Row],[CI1]:[CI6]]),"") -> 0 | U20: =IFERROR(INDEX(InputMatDropdownList[],MATCH(tbl_CIMats1622[[#This Row],[Material Name]]&";"&tbl_CIMats1622[[#This Row],[Stage]],InputMatDropdownList[Helper (NO NEED TO EDIT)],0),5),"") -> 0 | V20: =IF(ISBLANK(tbl_CIMats1622[[#This Row],[2]]),"",INDEX(InputMatDropdownList[],MATCH(tbl_CIMats1622[[#This Row],[2]],InputMatDropdownList[Option],0),5)) -> 0 | W20: =IF(ISBLANK(tbl_CIMats1622[[#This Row],[3]]),"",INDEX(InputMatDropdownList[],MATCH(tbl_CIMats1622[[#This Row],[3]],InputMatDropdownList[Option],0),5)) -> 0 | X20: =IF(ISBLANK(tbl_CIMats1622[[#This Row],[4]]),"",INDEX(InputMatDropdownList[],MATCH(tbl_CIMats1622[[#This Row],[4]],InputMatDropdownList[Option],0),5)) -> 0 | Y20: =IF(ISBLANK(tbl_CIMats1622[[#This Row],[5]]),"",INDEX(InputMatDropdownList[],MATCH(tbl_CIMats1622[[#This Row],[5]],InputMatDropdownList[Option],0),5)) -> 0 | Z20: =IF(ISBLANK(tbl_CIMats1622[[#This Row],[6]]),"",INDEX(InputMatDropdownList[],MATCH(tbl_CIMats1622[[#This Row],[6]],InputMatDropdownList[Option],0),5)) -> 0 | AB20: 0 | AE20: =SUM(tbl_CIMats1622[[#This Row],[CI1]:[Biogenic Carbon (kg CO2e/kg material)]],tbl_CIMats1622[[#This Row],[Indirect LUC (iLUC) kg CO2e/kg material- reported based on data availability]]) -> 0 | AG20: =tbl_CIMats1622[[#This Row],[Material Name/Stage/Product Category (CALCULATED COLUMN -NO NEED TO EDIT)]] -> Nylon 6,6- Virgin ; Fiber - Apparel | AH20: 0 | AI20: =IFERROR(tbl_CIMats1622[[#This Row],[CI1]]/tbl_CIMats1622[[#This Row],[CI (kg CO2e/kg)-EXCLUDING Biogenic C & dLUC]],) -> 0 | AJ20: =IFERROR(tbl_CIMats1622[[#This Row],[CI2]]/tbl_CIMats1622[[#This Row],[CI (kg CO2e/kg)-EXCLUDING Biogenic C & dLUC]],) -> 0 | AK20: =IFERROR(tbl_CIMats1622[[#This Row],[CI3]]/tbl_CIMats1622[[#This Row],[CI (kg CO2e/kg)-EXCLUDING Biogenic C & dLUC]],) -> 0 | AL20: =IFERROR(tbl_CIMats1622[[#This Row],[CI4]]/tbl_CIMats1622[[#This Row],[CI (kg CO2e/kg)-EXCLUDING Biogenic C & dLUC]],) -> 0 | AM20: =IFERROR(tbl_CIMats1622[[#This Row],[CI5]]/tbl_CIMats1622[[#This Row],[CI (kg CO2e/kg)-EXCLUDING Biogenic C & dLUC]],) -> 0 | AN20: =IFERROR(tbl_CIMats1622[[#This Row],[CI6]]/tbl_CIMats1622[[#This Row],[CI (kg CO2e/kg)-EXCLUDING Biogenic C & dLUC]],) -> 0 | AP20: =IF(OR(InputMatDropdownList[[#This Row],[Stage]]="Fiber",InputMatDropdownList[[#This Row],[Stage]]="Plastics",InputMatDropdownList[[#This Row],[Stage]]="Yarn",InputMatDropdownList[[#This Row],[Stage]]="Fabric",InputMatDropdownList[[#This Row],[Stage]]="Foam",InputMatDropdownList[[#This Row],[Stage]]="Rubber/Elastomer",InputMatDropdownList[[#This Row],[Stage]]="Other",InputMatDropdownList[[#This Row],[Stage]]="Packaging"),InputMatDropdownList[[#This Row],[Option]]&";"&InputMatDropdownList[[#This Row],[Stage]],InputMatDropdownList[[#This Row],[Option]]) -> Nylon 6,6- Virgin;Fiber | AQ20: Fiber | AR20: Synthetics | AS20: Nylon 6,6- Virgin | AT20: =InputMatDropdownList[[#This Row],[CI (kg CO2e/material)- EXCLUDING LOSS RATES]]*(1+InputMatDropdownList[[#This Row],[Loss rates]]) -> 0 | BF20: For materials with limited traceability, the following methodology can be applied:
A21: Nylon 6-Recycled- FDY ; Fiber - Apparel | B21: Nylon 6-Recycled- FDY | C21: Fiber | D21: Apparel | E21: =IFERROR(SUM(tbl_CIMats1622[[#This Row],[CI1]:[Biogenic Carbon (kg CO2e/kg material)]]),"") -> 0 | F21: Synthetic Textile | G21: =IFERROR((IF(OR(tbl_CIMats1622[[#This Row],[Material Type- Landfill/Incinerated]]=$BA$9,tbl_CIMats1622[[#This Row],[Material Type- Landfill/Incinerated]]=$BA$10,tbl_CIMats1622[[#This Row],[Material Type- Landfill/Incinerated]]=$BA$11,tbl_CIMats1622[[#This Row],[Material Type- Landfill/Incinerated]]=$BA$12,tbl_CIMats1622[[#This Row],[Material Type- Landfill/Incinerated]]=$BA$13,tbl_CIMats1622[[#This Row],[Material Type- Landfill/Incinerated]]=$BA$23,tbl_CIMats1622[[#This Row],[Material Type- Landfill/Incinerated]]=$BA$24),INDEX(EOL_CIs[#All],MATCH(tbl_CIMats1622[[#This Row],[Material Type- Landfill/Incinerated]],EOL_CIs[[#All],[EOL Material Category]],0),2),(INDEX(EOL_CIs[#All],MATCH(tbl_CIMats1622[[#This Row],[Material Type- Landfill/Incinerated]],EOL_CIs[[#All],[EOL Material Category]],0),2)+ABS(tbl_CIMats1622[[#This Row],[Biogenic Carbon (kg CO2e/kg material)]])))),) -> 1 | H21: =IFERROR(INDEX(EOL_CIs[#All],MATCH(tbl_CIMats1622[[#This Row],[Material Type- Landfill/Incinerated]],EOL_CIs[[#All],[EOL Material Category]],0),3)+ABS(tbl_CIMats1622[[#This Row],[Biogenic Carbon (kg CO2e/kg material)]]),) -> 1 | I21: =tbl_CIMats1622[[#This Row],[Material Name]] -> Nylon 6-Recycled- FDY | J21: No spinning | K21: No textile formation | L21: No prep | M21: No dyeing | N21: No finish | Q21: =IFERROR(INDEX(InputMatDropdownList[],MATCH(tbl_CIMats1622[[#This Row],[Material Name]]&";"&tbl_CIMats1622[[#This Row],[Stage]],InputMatDropdownList[Helper (NO NEED TO EDIT)],0),9)*$AI21,)+IFERROR(INDEX(InputMatDropdownList[],MATCH(tbl_CIMats1622[[#This Row],[2]],InputMatDropdownList[Option],0),9)*$AJ21,)+IFERROR(INDEX(InputMatDropdownList[],MATCH(tbl_CIMats1622[[#This Row],[3]],InputMatDropdownList[Option],0),9)*$AK21,) +IFERROR(INDEX(InputMatDropdownList[],MATCH(tbl_CIMats1622[[#This Row],[4]],InputMatDropdownList[Option],0),9)*$AL21,)+IFERROR(INDEX(InputMatDropdownList[],MATCH(tbl_CIMats1622[[#This Row],[5]],InputMatDropdownList[Option],0),9)*$AM21,)+IFERROR(INDEX(InputMatDropdownList[],MATCH(tbl_CIMats1622[[#This Row],[6]],InputMatDropdownList[Option],0),9)*$AN21,) -> 0 | R21: =IFERROR(INDEX(InputMatDropdownList[],MATCH(tbl_CIMats1622[[#This Row],[Material Name]]&";"&tbl_CIMats1622[[#This Row],[Stage]],InputMatDropdownList[Helper (NO NEED TO EDIT)],0),10)*$AI21,)+IFERROR(INDEX(InputMatDropdownList[],MATCH(tbl_CIMats1622[[#This Row],[2]],InputMatDropdownList[Option],0),10)*$AJ21,)+IFERROR(INDEX(InputMatDropdownList[],MATCH(tbl_CIMats1622[[#This Row],[3]],InputMatDropdownList[Option],0),10)*$AK21,) +IFERROR(INDEX(InputMatDropdownList[],MATCH(tbl_CIMats1622[[#This Row],[4]],InputMatDropdownList[Option],0),10)*$AL21,)+IFERROR(INDEX(InputMatDropdownList[],MATCH(tbl_CIMats1622[[#This Row],[5]],InputMatDropdownList[Option],0),10)*$AM21,)+IFERROR(INDEX(InputMatDropdownList[],MATCH(tbl_CIMats1622[[#This Row],[6]],InputMatDropdownList[Option],0),10)*$AN21,) -> 0 | T21: =IFERROR(SUM(tbl_CIMats1622[[#This Row],[CI1]:[CI6]]),"") -> 0 | U21: =IFERROR(INDEX(InputMatDropdownList[],MATCH(tbl_CIMats1622[[#This Row],[Material Name]]&";"&tbl_CIMats1622[[#This Row],[Stage]],InputMatDropdownList[Helper (NO NEED TO EDIT)],0),5),"") -> 0 | V21: =IF(ISBLANK(tbl_CIMats1622[[#This Row],[2]]),"",INDEX(InputMatDropdownList[],MATCH(tbl_CIMats1622[[#This Row],[2]],InputMatDropdownList[Option],0),5)) -> 0 | W21: =IF(ISBLANK(tbl_CIMats1622[[#This Row],[3]]),"",INDEX(InputMatDropdownList[],MATCH(tbl_CIMats1622[[#This Row],[3]],InputMatDropdownList[Option],0),5)) -> 0 | X21: =IF(ISBLANK(tbl_CIMats1622[[#This Row],[4]]),"",INDEX(InputMatDropdownList[],MATCH(tbl_CIMats1622[[#This Row],[4]],InputMatDropdownList[Option],0),5)) -> 0 | Y21: =IF(ISBLANK(tbl_CIMats1622[[#This Row],[5]]),"",INDEX(InputMatDropdownList[],MATCH(tbl_CIMats1622[[#This Row],[5]],InputMatDropdownList[Option],0),5)) -> 0 | Z21: =IF(ISBLANK(tbl_CIMats1622[[#This Row],[6]]),"",INDEX(InputMatDropdownList[],MATCH(tbl_CIMats1622[[#This Row],[6]],InputMatDropdownList[Option],0),5)) -> 0 | AB21: 0 | AE21: =SUM(tbl_CIMats1622[[#This Row],[CI1]:[Biogenic Carbon (kg CO2e/kg material)]],tbl_CIMats1622[[#This Row],[Indirect LUC (iLUC) kg CO2e/kg material- reported based on data availability]]) -> 0 | AG21: =tbl_CIMats1622[[#This Row],[Material Name/Stage/Product Category (CALCULATED COLUMN -NO NEED TO EDIT)]] -> Nylon 6-Recycled- FDY ; Fiber - Apparel | AH21: 0 | AI21: =IFERROR(tbl_CIMats1622[[#This Row],[CI1]]/tbl_CIMats1622[[#This Row],[CI (kg CO2e/kg)-EXCLUDING Biogenic C & dLUC]],) -> 0 | AJ21: =IFERROR(tbl_CIMats1622[[#This Row],[CI2]]/tbl_CIMats1622[[#This Row],[CI (kg CO2e/kg)-EXCLUDING Biogenic C & dLUC]],) -> 0 | AK21: =IFERROR(tbl_CIMats1622[[#This Row],[CI3]]/tbl_CIMats1622[[#This Row],[CI (kg CO2e/kg)-EXCLUDING Biogenic C & dLUC]],) -> 0 | AL21: =IFERROR(tbl_CIMats1622[[#This Row],[CI4]]/tbl_CIMats1622[[#This Row],[CI (kg CO2e/kg)-EXCLUDING Biogenic C & dLUC]],) -> 0 | AM21: =IFERROR(tbl_CIMats1622[[#This Row],[CI5]]/tbl_CIMats1622[[#This Row],[CI (kg CO2e/kg)-EXCLUDING Biogenic C & dLUC]],) -> 0 | AN21: =IFERROR(tbl_CIMats1622[[#This Row],[CI6]]/tbl_CIMats1622[[#This Row],[CI (kg CO2e/kg)-EXCLUDING Biogenic C & dLUC]],) -> 0 | AP21: =IF(OR(InputMatDropdownList[[#This Row],[Stage]]="Fiber",InputMatDropdownList[[#This Row],[Stage]]="Plastics",InputMatDropdownList[[#This Row],[Stage]]="Yarn",InputMatDropdownList[[#This Row],[Stage]]="Fabric",InputMatDropdownList[[#This Row],[Stage]]="Foam",InputMatDropdownList[[#This Row],[Stage]]="Rubber/Elastomer",InputMatDropdownList[[#This Row],[Stage]]="Other",InputMatDropdownList[[#This Row],[Stage]]="Packaging"),InputMatDropdownList[[#This Row],[Option]]&";"&InputMatDropdownList[[#This Row],[Stage]],InputMatDropdownList[[#This Row],[Option]]) -> Nylon 6-Recycled- FDY;Fiber | AQ21: Fiber | AR21: Synthetics | AS21: Nylon 6-Recycled- FDY | AT21: =InputMatDropdownList[[#This Row],[CI (kg CO2e/material)- EXCLUDING LOSS RATES]]*(1+InputMatDropdownList[[#This Row],[Loss rates]]) -> 0 | BF21: 1) Where country of production is known, but the previous land use is unknown, the emissions/removals from LUC is estimated as the average emissions from the land use change for that commodity in that country. The Direct Land Use Change Assessment Tool (v2018) can be used to retrieve emission factors.
A22: Nylon 6-Recycled, texturised ; Fiber - Apparel | B22: Nylon 6-Recycled, texturised | C22: Fiber | D22: Apparel | E22: =IFERROR(SUM(tbl_CIMats1622[[#This Row],[CI1]:[Biogenic Carbon (kg CO2e/kg material)]]),"") -> 0 | F22: Synthetic Textile | G22: =IFERROR((IF(OR(tbl_CIMats1622[[#This Row],[Material Type- Landfill/Incinerated]]=$BA$9,tbl_CIMats1622[[#This Row],[Material Type- Landfill/Incinerated]]=$BA$10,tbl_CIMats1622[[#This Row],[Material Type- Landfill/Incinerated]]=$BA$11,tbl_CIMats1622[[#This Row],[Material Type- Landfill/Incinerated]]=$BA$12,tbl_CIMats1622[[#This Row],[Material Type- Landfill/Incinerated]]=$BA$13,tbl_CIMats1622[[#This Row],[Material Type- Landfill/Incinerated]]=$BA$23,tbl_CIMats1622[[#This Row],[Material Type- Landfill/Incinerated]]=$BA$24),INDEX(EOL_CIs[#All],MATCH(tbl_CIMats1622[[#This Row],[Material Type- Landfill/Incinerated]],EOL_CIs[[#All],[EOL Material Category]],0),2),(INDEX(EOL_CIs[#All],MATCH(tbl_CIMats1622[[#This Row],[Material Type- Landfill/Incinerated]],EOL_CIs[[#All],[EOL Material Category]],0),2)+ABS(tbl_CIMats1622[[#This Row],[Biogenic Carbon (kg CO2e/kg material)]])))),) -> 1 | H22: =IFERROR(INDEX(EOL_CIs[#All],MATCH(tbl_CIMats1622[[#This Row],[Material Type- Landfill/Incinerated]],EOL_CIs[[#All],[EOL Material Category]],0),3)+ABS(tbl_CIMats1622[[#This Row],[Biogenic Carbon (kg CO2e/kg material)]]),) -> 1 | I22: =tbl_CIMats1622[[#This Row],[Material Name]] -> Nylon 6-Recycled, texturised | J22: No spinning | K22: No textile formation | L22: No prep | M22: No dyeing | N22: No finish | Q22: =IFERROR(INDEX(InputMatDropdownList[],MATCH(tbl_CIMats1622[[#This Row],[Material Name]]&";"&tbl_CIMats1622[[#This Row],[Stage]],InputMatDropdownList[Helper (NO NEED TO EDIT)],0),9)*$AI22,)+IFERROR(INDEX(InputMatDropdownList[],MATCH(tbl_CIMats1622[[#This Row],[2]],InputMatDropdownList[Option],0),9)*$AJ22,)+IFERROR(INDEX(InputMatDropdownList[],MATCH(tbl_CIMats1622[[#This Row],[3]],InputMatDropdownList[Option],0),9)*$AK22,) +IFERROR(INDEX(InputMatDropdownList[],MATCH(tbl_CIMats1622[[#This Row],[4]],InputMatDropdownList[Option],0),9)*$AL22,)+IFERROR(INDEX(InputMatDropdownList[],MATCH(tbl_CIMats1622[[#This Row],[5]],InputMatDropdownList[Option],0),9)*$AM22,)+IFERROR(INDEX(InputMatDropdownList[],MATCH(tbl_CIMats1622[[#This Row],[6]],InputMatDropdownList[Option],0),9)*$AN22,) -> 0 | R22: =IFERROR(INDEX(InputMatDropdownList[],MATCH(tbl_CIMats1622[[#This Row],[Material Name]]&";"&tbl_CIMats1622[[#This Row],[Stage]],InputMatDropdownList[Helper (NO NEED TO EDIT)],0),10)*$AI22,)+IFERROR(INDEX(InputMatDropdownList[],MATCH(tbl_CIMats1622[[#This Row],[2]],InputMatDropdownList[Option],0),10)*$AJ22,)+IFERROR(INDEX(InputMatDropdownList[],MATCH(tbl_CIMats1622[[#This Row],[3]],InputMatDropdownList[Option],0),10)*$AK22,) +IFERROR(INDEX(InputMatDropdownList[],MATCH(tbl_CIMats1622[[#This Row],[4]],InputMatDropdownList[Option],0),10)*$AL22,)+IFERROR(INDEX(InputMatDropdownList[],MATCH(tbl_CIMats1622[[#This Row],[5]],InputMatDropdownList[Option],0),10)*$AM22,)+IFERROR(INDEX(InputMatDropdownList[],MATCH(tbl_CIMats1622[[#This Row],[6]],InputMatDropdownList[Option],0),10)*$AN22,) -> 0 | T22: =IFERROR(SUM(tbl_CIMats1622[[#This Row],[CI1]:[CI6]]),"") -> 0 | U22: =IFERROR(INDEX(InputMatDropdownList[],MATCH(tbl_CIMats1622[[#This Row],[Material Name]]&";"&tbl_CIMats1622[[#This Row],[Stage]],InputMatDropdownList[Helper (NO NEED TO EDIT)],0),5),"") -> 0 | V22: =IF(ISBLANK(tbl_CIMats1622[[#This Row],[2]]),"",INDEX(InputMatDropdownList[],MATCH(tbl_CIMats1622[[#This Row],[2]],InputMatDropdownList[Option],0),5)) -> 0 | W22: =IF(ISBLANK(tbl_CIMats1622[[#This Row],[3]]),"",INDEX(InputMatDropdownList[],MATCH(tbl_CIMats1622[[#This Row],[3]],InputMatDropdownList[Option],0),5)) -> 0 | X22: =IF(ISBLANK(tbl_CIMats1622[[#This Row],[4]]),"",INDEX(InputMatDropdownList[],MATCH(tbl_CIMats1622[[#This Row],[4]],InputMatDropdownList[Option],0),5)) -> 0 | Y22: =IF(ISBLANK(tbl_CIMats1622[[#This Row],[5]]),"",INDEX(InputMatDropdownList[],MATCH(tbl_CIMats1622[[#This Row],[5]],InputMatDropdownList[Option],0),5)) -> 0 | Z22: =IF(ISBLANK(tbl_CIMats1622[[#This Row],[6]]),"",INDEX(InputMatDropdownList[],MATCH(tbl_CIMats1622[[#This Row],[6]],InputMatDropdownList[Option],0),5)) -> 0 | AB22: 0 | AE22: =SUM(tbl_CIMats1622[[#This Row],[CI1]:[Biogenic Carbon (kg CO2e/kg material)]],tbl_CIMats1622[[#This Row],[Indirect LUC (iLUC) kg CO2e/kg material- reported based on data availability]]) -> 0 | AG22: =tbl_CIMats1622[[#This Row],[Material Name/Stage/Product Category (CALCULATED COLUMN -NO NEED TO EDIT)]] -> Nylon 6-Recycled, texturised ; Fiber - Apparel | AH22: 0 | AI22: =IFERROR(tbl_CIMats1622[[#This Row],[CI1]]/tbl_CIMats1622[[#This Row],[CI (kg CO2e/kg)-EXCLUDING Biogenic C & dLUC]],) -> 0 | AJ22: =IFERROR(tbl_CIMats1622[[#This Row],[CI2]]/tbl_CIMats1622[[#This Row],[CI (kg CO2e/kg)-EXCLUDING Biogenic C & dLUC]],) -> 0 | AK22: =IFERROR(tbl_CIMats1622[[#This Row],[CI3]]/tbl_CIMats1622[[#This Row],[CI (kg CO2e/kg)-EXCLUDING Biogenic C & dLUC]],) -> 0 | AL22: =IFERROR(tbl_CIMats1622[[#This Row],[CI4]]/tbl_CIMats1622[[#This Row],[CI (kg CO2e/kg)-EXCLUDING Biogenic C & dLUC]],) -> 0 | AM22: =IFERROR(tbl_CIMats1622[[#This Row],[CI5]]/tbl_CIMats1622[[#This Row],[CI (kg CO2e/kg)-EXCLUDING Biogenic C & dLUC]],) -> 0 | AN22: =IFERROR(tbl_CIMats1622[[#This Row],[CI6]]/tbl_CIMats1622[[#This Row],[CI (kg CO2e/kg)-EXCLUDING Biogenic C & dLUC]],) -> 0 | AP22: =IF(OR(InputMatDropdownList[[#This Row],[Stage]]="Fiber",InputMatDropdownList[[#This Row],[Stage]]="Plastics",InputMatDropdownList[[#This Row],[Stage]]="Yarn",InputMatDropdownList[[#This Row],[Stage]]="Fabric",InputMatDropdownList[[#This Row],[Stage]]="Foam",InputMatDropdownList[[#This Row],[Stage]]="Rubber/Elastomer",InputMatDropdownList[[#This Row],[Stage]]="Other",InputMatDropdownList[[#This Row],[Stage]]="Packaging"),InputMatDropdownList[[#This Row],[Option]]&";"&InputMatDropdownList[[#This Row],[Stage]],InputMatDropdownList[[#This Row],[Option]]) -> Nylon 6-Recycled, texturised;Fiber | AQ22: Fiber | AR22: Synthetics | AS22: Nylon 6-Recycled, texturised | AT22: =InputMatDropdownList[[#This Row],[CI (kg CO2e/material)- EXCLUDING LOSS RATES]]*(1+InputMatDropdownList[[#This Row],[Loss rates]]) -> 0
A23: Polyester - Recycled ; Fiber - Apparel | B23: Polyester - Recycled | C23: Fiber | D23: Apparel | E23: =IFERROR(SUM(tbl_CIMats1622[[#This Row],[CI1]:[Biogenic Carbon (kg CO2e/kg material)]]),"") -> 0 | F23: Synthetic Textile | G23: =IFERROR((IF(OR(tbl_CIMats1622[[#This Row],[Material Type- Landfill/Incinerated]]=$BA$9,tbl_CIMats1622[[#This Row],[Material Type- Landfill/Incinerated]]=$BA$10,tbl_CIMats1622[[#This Row],[Material Type- Landfill/Incinerated]]=$BA$11,tbl_CIMats1622[[#This Row],[Material Type- Landfill/Incinerated]]=$BA$12,tbl_CIMats1622[[#This Row],[Material Type- Landfill/Incinerated]]=$BA$13,tbl_CIMats1622[[#This Row],[Material Type- Landfill/Incinerated]]=$BA$23,tbl_CIMats1622[[#This Row],[Material Type- Landfill/Incinerated]]=$BA$24),INDEX(EOL_CIs[#All],MATCH(tbl_CIMats1622[[#This Row],[Material Type- Landfill/Incinerated]],EOL_CIs[[#All],[EOL Material Category]],0),2),(INDEX(EOL_CIs[#All],MATCH(tbl_CIMats1622[[#This Row],[Material Type- Landfill/Incinerated]],EOL_CIs[[#All],[EOL Material Category]],0),2)+ABS(tbl_CIMats1622[[#This Row],[Biogenic Carbon (kg CO2e/kg material)]])))),) -> 1 | H23: =IFERROR(INDEX(EOL_CIs[#All],MATCH(tbl_CIMats1622[[#This Row],[Material Type- Landfill/Incinerated]],EOL_CIs[[#All],[EOL Material Category]],0),3)+ABS(tbl_CIMats1622[[#This Row],[Biogenic Carbon (kg CO2e/kg material)]]),) -> 1 | I23: =tbl_CIMats1622[[#This Row],[Material Name]] -> Polyester - Recycled | J23: No spinning | K23: No textile formation | L23: No prep | M23: No dyeing | N23: No finish | Q23: =IFERROR(INDEX(InputMatDropdownList[],MATCH(tbl_CIMats1622[[#This Row],[Material Name]]&";"&tbl_CIMats1622[[#This Row],[Stage]],InputMatDropdownList[Helper (NO NEED TO EDIT)],0),9)*$AI23,)+IFERROR(INDEX(InputMatDropdownList[],MATCH(tbl_CIMats1622[[#This Row],[2]],InputMatDropdownList[Option],0),9)*$AJ23,)+IFERROR(INDEX(InputMatDropdownList[],MATCH(tbl_CIMats1622[[#This Row],[3]],InputMatDropdownList[Option],0),9)*$AK23,) +IFERROR(INDEX(InputMatDropdownList[],MATCH(tbl_CIMats1622[[#This Row],[4]],InputMatDropdownList[Option],0),9)*$AL23,)+IFERROR(INDEX(InputMatDropdownList[],MATCH(tbl_CIMats1622[[#This Row],[5]],InputMatDropdownList[Option],0),9)*$AM23,)+IFERROR(INDEX(InputMatDropdownList[],MATCH(tbl_CIMats1622[[#This Row],[6]],InputMatDropdownList[Option],0),9)*$AN23,) -> 0 | R23: =IFERROR(INDEX(InputMatDropdownList[],MATCH(tbl_CIMats1622[[#This Row],[Material Name]]&";"&tbl_CIMats1622[[#This Row],[Stage]],InputMatDropdownList[Helper (NO NEED TO EDIT)],0),10)*$AI23,)+IFERROR(INDEX(InputMatDropdownList[],MATCH(tbl_CIMats1622[[#This Row],[2]],InputMatDropdownList[Option],0),10)*$AJ23,)+IFERROR(INDEX(InputMatDropdownList[],MATCH(tbl_CIMats1622[[#This Row],[3]],InputMatDropdownList[Option],0),10)*$AK23,) +IFERROR(INDEX(InputMatDropdownList[],MATCH(tbl_CIMats1622[[#This Row],[4]],InputMatDropdownList[Option],0),10)*$AL23,)+IFERROR(INDEX(InputMatDropdownList[],MATCH(tbl_CIMats1622[[#This Row],[5]],InputMatDropdownList[Option],0),10)*$AM23,)+IFERROR(INDEX(InputMatDropdownList[],MATCH(tbl_CIMats1622[[#This Row],[6]],InputMatDropdownList[Option],0),10)*$AN23,) -> 0 | T23: =IFERROR(SUM(tbl_CIMats1622[[#This Row],[CI1]:[CI6]]),"") -> 0 | U23: =IFERROR(INDEX(InputMatDropdownList[],MATCH(tbl_CIMats1622[[#This Row],[Material Name]]&";"&tbl_CIMats1622[[#This Row],[Stage]],InputMatDropdownList[Helper (NO NEED TO EDIT)],0),5),"") -> 0 | V23: =IF(ISBLANK(tbl_CIMats1622[[#This Row],[2]]),"",INDEX(InputMatDropdownList[],MATCH(tbl_CIMats1622[[#This Row],[2]],InputMatDropdownList[Option],0),5)) -> 0 | W23: =IF(ISBLANK(tbl_CIMats1622[[#This Row],[3]]),"",INDEX(InputMatDropdownList[],MATCH(tbl_CIMats1622[[#This Row],[3]],InputMatDropdownList[Option],0),5)) -> 0 | X23: =IF(ISBLANK(tbl_CIMats1622[[#This Row],[4]]),"",INDEX(InputMatDropdownList[],MATCH(tbl_CIMats1622[[#This Row],[4]],InputMatDropdownList[Option],0),5)) -> 0 | Y23: =IF(ISBLANK(tbl_CIMats1622[[#This Row],[5]]),"",INDEX(InputMatDropdownList[],MATCH(tbl_CIMats1622[[#This Row],[5]],InputMatDropdownList[Option],0),5)) -> 0 | Z23: =IF(ISBLANK(tbl_CIMats1622[[#This Row],[6]]),"",INDEX(InputMatDropdownList[],MATCH(tbl_CIMats1622[[#This Row],[6]],InputMatDropdownList[Option],0),5)) -> 0 | AB23: 0 | AE23: =SUM(tbl_CIMats1622[[#This Row],[CI1]:[Biogenic Carbon (kg CO2e/kg material)]],tbl_CIMats1622[[#This Row],[Indirect LUC (iLUC) kg CO2e/kg material- reported based on data availability]]) -> 0 | AG23: =tbl_CIMats1622[[#This Row],[Material Name/Stage/Product Category (CALCULATED COLUMN -NO NEED TO EDIT)]] -> Polyester - Recycled ; Fiber - Apparel | AH23: 0 | AI23: =IFERROR(tbl_CIMats1622[[#This Row],[CI1]]/tbl_CIMats1622[[#This Row],[CI (kg CO2e/kg)-EXCLUDING Biogenic C & dLUC]],) -> 0 | AJ23: =IFERROR(tbl_CIMats1622[[#This Row],[CI2]]/tbl_CIMats1622[[#This Row],[CI (kg CO2e/kg)-EXCLUDING Biogenic C & dLUC]],) -> 0 | AK23: =IFERROR(tbl_CIMats1622[[#This Row],[CI3]]/tbl_CIMats1622[[#This Row],[CI (kg CO2e/kg)-EXCLUDING Biogenic C & dLUC]],) -> 0 | AL23: =IFERROR(tbl_CIMats1622[[#This Row],[CI4]]/tbl_CIMats1622[[#This Row],[CI (kg CO2e/kg)-EXCLUDING Biogenic C & dLUC]],) -> 0 | AM23: =IFERROR(tbl_CIMats1622[[#This Row],[CI5]]/tbl_CIMats1622[[#This Row],[CI (kg CO2e/kg)-EXCLUDING Biogenic C & dLUC]],) -> 0 | AN23: =IFERROR(tbl_CIMats1622[[#This Row],[CI6]]/tbl_CIMats1622[[#This Row],[CI (kg CO2e/kg)-EXCLUDING Biogenic C & dLUC]],) -> 0 | AP23: =IF(OR(InputMatDropdownList[[#This Row],[Stage]]="Fiber",InputMatDropdownList[[#This Row],[Stage]]="Plastics",InputMatDropdownList[[#This Row],[Stage]]="Yarn",InputMatDropdownList[[#This Row],[Stage]]="Fabric",InputMatDropdownList[[#This Row],[Stage]]="Foam",InputMatDropdownList[[#This Row],[Stage]]="Rubber/Elastomer",InputMatDropdownList[[#This Row],[Stage]]="Other",InputMatDropdownList[[#This Row],[Stage]]="Packaging"),InputMatDropdownList[[#This Row],[Option]]&";"&InputMatDropdownList[[#This Row],[Stage]],InputMatDropdownList[[#This Row],[Option]]) -> Polyester - Recycled;Fiber | AQ23: Fiber | AR23: Synthetics | AS23: Polyester - Recycled | AT23: =InputMatDropdownList[[#This Row],[CI (kg CO2e/material)- EXCLUDING LOSS RATES]]*(1+InputMatDropdownList[[#This Row],[Loss rates]]) -> 0 | BF23: 2) When country of production is unknown, import statistics can be retreived for the relevant commodities from government databases to determine the country of production. A weighted average of the land use change emissions can then be retreived from the Direct Land Use Change Assessment Tool (v2018).
A24: Polyester - Virgin ; Fiber - Apparel | B24: Polyester - Virgin | C24: Fiber | D24: Apparel | E24: =IFERROR(SUM(tbl_CIMats1622[[#This Row],[CI1]:[Biogenic Carbon (kg CO2e/kg material)]]),"") -> 0 | F24: Synthetic Textile | G24: =IFERROR((IF(OR(tbl_CIMats1622[[#This Row],[Material Type- Landfill/Incinerated]]=$BA$9,tbl_CIMats1622[[#This Row],[Material Type- Landfill/Incinerated]]=$BA$10,tbl_CIMats1622[[#This Row],[Material Type- Landfill/Incinerated]]=$BA$11,tbl_CIMats1622[[#This Row],[Material Type- Landfill/Incinerated]]=$BA$12,tbl_CIMats1622[[#This Row],[Material Type- Landfill/Incinerated]]=$BA$13,tbl_CIMats1622[[#This Row],[Material Type- Landfill/Incinerated]]=$BA$23,tbl_CIMats1622[[#This Row],[Material Type- Landfill/Incinerated]]=$BA$24),INDEX(EOL_CIs[#All],MATCH(tbl_CIMats1622[[#This Row],[Material Type- Landfill/Incinerated]],EOL_CIs[[#All],[EOL Material Category]],0),2),(INDEX(EOL_CIs[#All],MATCH(tbl_CIMats1622[[#This Row],[Material Type- Landfill/Incinerated]],EOL_CIs[[#All],[EOL Material Category]],0),2)+ABS(tbl_CIMats1622[[#This Row],[Biogenic Carbon (kg CO2e/kg material)]])))),) -> 1 | H24: =IFERROR(INDEX(EOL_CIs[#All],MATCH(tbl_CIMats1622[[#This Row],[Material Type- Landfill/Incinerated]],EOL_CIs[[#All],[EOL Material Category]],0),3)+ABS(tbl_CIMats1622[[#This Row],[Biogenic Carbon (kg CO2e/kg material)]]),) -> 1 | I24: =tbl_CIMats1622[[#This Row],[Material Name]] -> Polyester - Virgin | J24: No spinning | K24: No textile formation | L24: No prep | M24: No dyeing | N24: No finish | Q24: =IFERROR(INDEX(InputMatDropdownList[],MATCH(tbl_CIMats1622[[#This Row],[Material Name]]&";"&tbl_CIMats1622[[#This Row],[Stage]],InputMatDropdownList[Helper (NO NEED TO EDIT)],0),9)*$AI24,)+IFERROR(INDEX(InputMatDropdownList[],MATCH(tbl_CIMats1622[[#This Row],[2]],InputMatDropdownList[Option],0),9)*$AJ24,)+IFERROR(INDEX(InputMatDropdownList[],MATCH(tbl_CIMats1622[[#This Row],[3]],InputMatDropdownList[Option],0),9)*$AK24,) +IFERROR(INDEX(InputMatDropdownList[],MATCH(tbl_CIMats1622[[#This Row],[4]],InputMatDropdownList[Option],0),9)*$AL24,)+IFERROR(INDEX(InputMatDropdownList[],MATCH(tbl_CIMats1622[[#This Row],[5]],InputMatDropdownList[Option],0),9)*$AM24,)+IFERROR(INDEX(InputMatDropdownList[],MATCH(tbl_CIMats1622[[#This Row],[6]],InputMatDropdownList[Option],0),9)*$AN24,) -> 0 | R24: =IFERROR(INDEX(InputMatDropdownList[],MATCH(tbl_CIMats1622[[#This Row],[Material Name]]&";"&tbl_CIMats1622[[#This Row],[Stage]],InputMatDropdownList[Helper (NO NEED TO EDIT)],0),10)*$AI24,)+IFERROR(INDEX(InputMatDropdownList[],MATCH(tbl_CIMats1622[[#This Row],[2]],InputMatDropdownList[Option],0),10)*$AJ24,)+IFERROR(INDEX(InputMatDropdownList[],MATCH(tbl_CIMats1622[[#This Row],[3]],InputMatDropdownList[Option],0),10)*$AK24,) +IFERROR(INDEX(InputMatDropdownList[],MATCH(tbl_CIMats1622[[#This Row],[4]],InputMatDropdownList[Option],0),10)*$AL24,)+IFERROR(INDEX(InputMatDropdownList[],MATCH(tbl_CIMats1622[[#This Row],[5]],InputMatDropdownList[Option],0),10)*$AM24,)+IFERROR(INDEX(InputMatDropdownList[],MATCH(tbl_CIMats1622[[#This Row],[6]],InputMatDropdownList[Option],0),10)*$AN24,) -> 0 | T24: =IFERROR(SUM(tbl_CIMats1622[[#This Row],[CI1]:[CI6]]),"") -> 0 | U24: =IFERROR(INDEX(InputMatDropdownList[],MATCH(tbl_CIMats1622[[#This Row],[Material Name]]&";"&tbl_CIMats1622[[#This Row],[Stage]],InputMatDropdownList[Helper (NO NEED TO EDIT)],0),5),"") -> 0 | V24: =IF(ISBLANK(tbl_CIMats1622[[#This Row],[2]]),"",INDEX(InputMatDropdownList[],MATCH(tbl_CIMats1622[[#This Row],[2]],InputMatDropdownList[Option],0),5)) -> 0 | W24: =IF(ISBLANK(tbl_CIMats1622[[#This Row],[3]]),"",INDEX(InputMatDropdownList[],MATCH(tbl_CIMats1622[[#This Row],[3]],InputMatDropdownList[Option],0),5)) -> 0 | X24: =IF(ISBLANK(tbl_CIMats1622[[#This Row],[4]]),"",INDEX(InputMatDropdownList[],MATCH(tbl_CIMats1622[[#This Row],[4]],InputMatDropdownList[Option],0),5)) -> 0 | Y24: =IF(ISBLANK(tbl_CIMats1622[[#This Row],[5]]),"",INDEX(InputMatDropdownList[],MATCH(tbl_CIMats1622[[#This Row],[5]],InputMatDropdownList[Option],0),5)) -> 0 | Z24: =IF(ISBLANK(tbl_CIMats1622[[#This Row],[6]]),"",INDEX(InputMatDropdownList[],MATCH(tbl_CIMats1622[[#This Row],[6]],InputMatDropdownList[Option],0),5)) -> 0 | AB24: 0 | AE24: =SUM(tbl_CIMats1622[[#This Row],[CI1]:[Biogenic Carbon (kg CO2e/kg material)]],tbl_CIMats1622[[#This Row],[Indirect LUC (iLUC) kg CO2e/kg material- reported based on data availability]]) -> 0 | AG24: =tbl_CIMats1622[[#This Row],[Material Name/Stage/Product Category (CALCULATED COLUMN -NO NEED TO EDIT)]] -> Polyester - Virgin ; Fiber - Apparel | AH24: 0 | AI24: =IFERROR(tbl_CIMats1622[[#This Row],[CI1]]/tbl_CIMats1622[[#This Row],[CI (kg CO2e/kg)-EXCLUDING Biogenic C & dLUC]],) -> 0 | AJ24: =IFERROR(tbl_CIMats1622[[#This Row],[CI2]]/tbl_CIMats1622[[#This Row],[CI (kg CO2e/kg)-EXCLUDING Biogenic C & dLUC]],) -> 0 | AK24: =IFERROR(tbl_CIMats1622[[#This Row],[CI3]]/tbl_CIMats1622[[#This Row],[CI (kg CO2e/kg)-EXCLUDING Biogenic C & dLUC]],) -> 0 | AL24: =IFERROR(tbl_CIMats1622[[#This Row],[CI4]]/tbl_CIMats1622[[#This Row],[CI (kg CO2e/kg)-EXCLUDING Biogenic C & dLUC]],) -> 0 | AM24: =IFERROR(tbl_CIMats1622[[#This Row],[CI5]]/tbl_CIMats1622[[#This Row],[CI (kg CO2e/kg)-EXCLUDING Biogenic C & dLUC]],) -> 0 | AN24: =IFERROR(tbl_CIMats1622[[#This Row],[CI6]]/tbl_CIMats1622[[#This Row],[CI (kg CO2e/kg)-EXCLUDING Biogenic C & dLUC]],) -> 0 | AP24: =IF(OR(InputMatDropdownList[[#This Row],[Stage]]="Fiber",InputMatDropdownList[[#This Row],[Stage]]="Plastics",InputMatDropdownList[[#This Row],[Stage]]="Yarn",InputMatDropdownList[[#This Row],[Stage]]="Fabric",InputMatDropdownList[[#This Row],[Stage]]="Foam",InputMatDropdownList[[#This Row],[Stage]]="Rubber/Elastomer",InputMatDropdownList[[#This Row],[Stage]]="Other",InputMatDropdownList[[#This Row],[Stage]]="Packaging"),InputMatDropdownList[[#This Row],[Option]]&";"&InputMatDropdownList[[#This Row],[Stage]],InputMatDropdownList[[#This Row],[Option]]) -> Polyester - Virgin;Fiber | AQ24: Fiber | AR24: Synthetics | AS24: Polyester - Virgin | AT24: =InputMatDropdownList[[#This Row],[CI (kg CO2e/material)- EXCLUDING LOSS RATES]]*(1+InputMatDropdownList[[#This Row],[Loss rates]]) -> 0
A25: Silk ; Fiber - Apparel | B25: Silk | C25: Fiber | D25: Apparel | E25: =IFERROR(SUM(tbl_CIMats1622[[#This Row],[CI1]:[Biogenic Carbon (kg CO2e/kg material)]]),"") -> 0 | F25: Natural Textile | G25: =IFERROR((IF(OR(tbl_CIMats1622[[#This Row],[Material Type- Landfill/Incinerated]]=$BA$9,tbl_CIMats1622[[#This Row],[Material Type- Landfill/Incinerated]]=$BA$10,tbl_CIMats1622[[#This Row],[Material Type- Landfill/Incinerated]]=$BA$11,tbl_CIMats1622[[#This Row],[Material Type- Landfill/Incinerated]]=$BA$12,tbl_CIMats1622[[#This Row],[Material Type- Landfill/Incinerated]]=$BA$13,tbl_CIMats1622[[#This Row],[Material Type- Landfill/Incinerated]]=$BA$23,tbl_CIMats1622[[#This Row],[Material Type- Landfill/Incinerated]]=$BA$24),INDEX(EOL_CIs[#All],MATCH(tbl_CIMats1622[[#This Row],[Material Type- Landfill/Incinerated]],EOL_CIs[[#All],[EOL Material Category]],0),2),(INDEX(EOL_CIs[#All],MATCH(tbl_CIMats1622[[#This Row],[Material Type- Landfill/Incinerated]],EOL_CIs[[#All],[EOL Material Category]],0),2)+ABS(tbl_CIMats1622[[#This Row],[Biogenic Carbon (kg CO2e/kg material)]])))),) -> 1 | H25: =IFERROR(INDEX(EOL_CIs[#All],MATCH(tbl_CIMats1622[[#This Row],[Material Type- Landfill/Incinerated]],EOL_CIs[[#All],[EOL Material Category]],0),3)+ABS(tbl_CIMats1622[[#This Row],[Biogenic Carbon (kg CO2e/kg material)]]),) -> 1 | I25: =tbl_CIMats1622[[#This Row],[Material Name]] -> Silk | J25: No spinning | K25: No textile formation | L25: No prep | M25: No dyeing | N25: No finish | Q25: =IFERROR(INDEX(InputMatDropdownList[],MATCH(tbl_CIMats1622[[#This Row],[Material Name]]&";"&tbl_CIMats1622[[#This Row],[Stage]],InputMatDropdownList[Helper (NO NEED TO EDIT)],0),9)*$AI25,)+IFERROR(INDEX(InputMatDropdownList[],MATCH(tbl_CIMats1622[[#This Row],[2]],InputMatDropdownList[Option],0),9)*$AJ25,)+IFERROR(INDEX(InputMatDropdownList[],MATCH(tbl_CIMats1622[[#This Row],[3]],InputMatDropdownList[Option],0),9)*$AK25,) +IFERROR(INDEX(InputMatDropdownList[],MATCH(tbl_CIMats1622[[#This Row],[4]],InputMatDropdownList[Option],0),9)*$AL25,)+IFERROR(INDEX(InputMatDropdownList[],MATCH(tbl_CIMats1622[[#This Row],[5]],InputMatDropdownList[Option],0),9)*$AM25,)+IFERROR(INDEX(InputMatDropdownList[],MATCH(tbl_CIMats1622[[#This Row],[6]],InputMatDropdownList[Option],0),9)*$AN25,) -> 0 | R25: =IFERROR(INDEX(InputMatDropdownList[],MATCH(tbl_CIMats1622[[#This Row],[Material Name]]&";"&tbl_CIMats1622[[#This Row],[Stage]],InputMatDropdownList[Helper (NO NEED TO EDIT)],0),10)*$AI25,)+IFERROR(INDEX(InputMatDropdownList[],MATCH(tbl_CIMats1622[[#This Row],[2]],InputMatDropdownList[Option],0),10)*$AJ25,)+IFERROR(INDEX(InputMatDropdownList[],MATCH(tbl_CIMats1622[[#This Row],[3]],InputMatDropdownList[Option],0),10)*$AK25,) +IFERROR(INDEX(InputMatDropdownList[],MATCH(tbl_CIMats1622[[#This Row],[4]],InputMatDropdownList[Option],0),10)*$AL25,)+IFERROR(INDEX(InputMatDropdownList[],MATCH(tbl_CIMats1622[[#This Row],[5]],InputMatDropdownList[Option],0),10)*$AM25,)+IFERROR(INDEX(InputMatDropdownList[],MATCH(tbl_CIMats1622[[#This Row],[6]],InputMatDropdownList[Option],0),10)*$AN25,) -> 0 | T25: =IFERROR(SUM(tbl_CIMats1622[[#This Row],[CI1]:[CI6]]),"") -> 0 | U25: =IFERROR(INDEX(InputMatDropdownList[],MATCH(tbl_CIMats1622[[#This Row],[Material Name]]&";"&tbl_CIMats1622[[#This Row],[Stage]],InputMatDropdownList[Helper (NO NEED TO EDIT)],0),5),"") -> 0 | V25: =IF(ISBLANK(tbl_CIMats1622[[#This Row],[2]]),"",INDEX(InputMatDropdownList[],MATCH(tbl_CIMats1622[[#This Row],[2]],InputMatDropdownList[Option],0),5)) -> 0 | W25: =IF(ISBLANK(tbl_CIMats1622[[#This Row],[3]]),"",INDEX(InputMatDropdownList[],MATCH(tbl_CIMats1622[[#This Row],[3]],InputMatDropdownList[Option],0),5)) -> 0 | X25: =IF(ISBLANK(tbl_CIMats1622[[#This Row],[4]]),"",INDEX(InputMatDropdownList[],MATCH(tbl_CIMats1622[[#This Row],[4]],InputMatDropdownList[Option],0),5)) -> 0 | Y25: =IF(ISBLANK(tbl_CIMats1622[[#This Row],[5]]),"",INDEX(InputMatDropdownList[],MATCH(tbl_CIMats1622[[#This Row],[5]],InputMatDropdownList[Option],0),5)) -> 0 | Z25: =IF(ISBLANK(tbl_CIMats1622[[#This Row],[6]]),"",INDEX(InputMatDropdownList[],MATCH(tbl_CIMats1622[[#This Row],[6]],InputMatDropdownList[Option],0),5)) -> 0 | AB25: 0 | AE25: =SUM(tbl_CIMats1622[[#This Row],[CI1]:[Biogenic Carbon (kg CO2e/kg material)]],tbl_CIMats1622[[#This Row],[Indirect LUC (iLUC) kg CO2e/kg material- reported based on data availability]]) -> 0 | AG25: =tbl_CIMats1622[[#This Row],[Material Name/Stage/Product Category (CALCULATED COLUMN -NO NEED TO EDIT)]] -> Silk ; Fiber - Apparel | AH25: 0 | AI25: =IFERROR(tbl_CIMats1622[[#This Row],[CI1]]/tbl_CIMats1622[[#This Row],[CI (kg CO2e/kg)-EXCLUDING Biogenic C & dLUC]],) -> 0 | AJ25: =IFERROR(tbl_CIMats1622[[#This Row],[CI2]]/tbl_CIMats1622[[#This Row],[CI (kg CO2e/kg)-EXCLUDING Biogenic C & dLUC]],) -> 0 | AK25: =IFERROR(tbl_CIMats1622[[#This Row],[CI3]]/tbl_CIMats1622[[#This Row],[CI (kg CO2e/kg)-EXCLUDING Biogenic C & dLUC]],) -> 0 | AL25: =IFERROR(tbl_CIMats1622[[#This Row],[CI4]]/tbl_CIMats1622[[#This Row],[CI (kg CO2e/kg)-EXCLUDING Biogenic C & dLUC]],) -> 0 | AM25: =IFERROR(tbl_CIMats1622[[#This Row],[CI5]]/tbl_CIMats1622[[#This Row],[CI (kg CO2e/kg)-EXCLUDING Biogenic C & dLUC]],) -> 0 | AN25: =IFERROR(tbl_CIMats1622[[#This Row],[CI6]]/tbl_CIMats1622[[#This Row],[CI (kg CO2e/kg)-EXCLUDING Biogenic C & dLUC]],) -> 0 | AP25: =IF(OR(InputMatDropdownList[[#This Row],[Stage]]="Fiber",InputMatDropdownList[[#This Row],[Stage]]="Plastics",InputMatDropdownList[[#This Row],[Stage]]="Yarn",InputMatDropdownList[[#This Row],[Stage]]="Fabric",InputMatDropdownList[[#This Row],[Stage]]="Foam",InputMatDropdownList[[#This Row],[Stage]]="Rubber/Elastomer",InputMatDropdownList[[#This Row],[Stage]]="Other",InputMatDropdownList[[#This Row],[Stage]]="Packaging"),InputMatDropdownList[[#This Row],[Option]]&";"&InputMatDropdownList[[#This Row],[Stage]],InputMatDropdownList[[#This Row],[Option]]) -> Silk;Fiber | AQ25: Fiber | AR25: Natural Fibers | AS25: Silk | AT25: =InputMatDropdownList[[#This Row],[CI (kg CO2e/material)- EXCLUDING LOSS RATES]]*(1+InputMatDropdownList[[#This Row],[Loss rates]]) -> 0
A26: Tencel Lyocell ; Fiber - Apparel | B26: Tencel Lyocell | C26: Fiber | D26: Apparel | E26: =IFERROR(SUM(tbl_CIMats1622[[#This Row],[CI1]:[Biogenic Carbon (kg CO2e/kg material)]]),"") -> 0 | F26: Natural Textile | G26: =IFERROR((IF(OR(tbl_CIMats1622[[#This Row],[Material Type- Landfill/Incinerated]]=$BA$9,tbl_CIMats1622[[#This Row],[Material Type- Landfill/Incinerated]]=$BA$10,tbl_CIMats1622[[#This Row],[Material Type- Landfill/Incinerated]]=$BA$11,tbl_CIMats1622[[#This Row],[Material Type- Landfill/Incinerated]]=$BA$12,tbl_CIMats1622[[#This Row],[Material Type- Landfill/Incinerated]]=$BA$13,tbl_CIMats1622[[#This Row],[Material Type- Landfill/Incinerated]]=$BA$23,tbl_CIMats1622[[#This Row],[Material Type- Landfill/Incinerated]]=$BA$24),INDEX(EOL_CIs[#All],MATCH(tbl_CIMats1622[[#This Row],[Material Type- Landfill/Incinerated]],EOL_CIs[[#All],[EOL Material Category]],0),2),(INDEX(EOL_CIs[#All],MATCH(tbl_CIMats1622[[#This Row],[Material Type- Landfill/Incinerated]],EOL_CIs[[#All],[EOL Material Category]],0),2)+ABS(tbl_CIMats1622[[#This Row],[Biogenic Carbon (kg CO2e/kg material)]])))),) -> 1 | H26: =IFERROR(INDEX(EOL_CIs[#All],MATCH(tbl_CIMats1622[[#This Row],[Material Type- Landfill/Incinerated]],EOL_CIs[[#All],[EOL Material Category]],0),3)+ABS(tbl_CIMats1622[[#This Row],[Biogenic Carbon (kg CO2e/kg material)]]),) -> 1 | I26: =tbl_CIMats1622[[#This Row],[Material Name]] -> Tencel Lyocell | J26: No spinning | K26: No textile formation | L26: No prep | M26: No dyeing | N26: No finish | Q26: =IFERROR(INDEX(InputMatDropdownList[],MATCH(tbl_CIMats1622[[#This Row],[Material Name]]&";"&tbl_CIMats1622[[#This Row],[Stage]],InputMatDropdownList[Helper (NO NEED TO EDIT)],0),9)*$AI26,)+IFERROR(INDEX(InputMatDropdownList[],MATCH(tbl_CIMats1622[[#This Row],[2]],InputMatDropdownList[Option],0),9)*$AJ26,)+IFERROR(INDEX(InputMatDropdownList[],MATCH(tbl_CIMats1622[[#This Row],[3]],InputMatDropdownList[Option],0),9)*$AK26,) +IFERROR(INDEX(InputMatDropdownList[],MATCH(tbl_CIMats1622[[#This Row],[4]],InputMatDropdownList[Option],0),9)*$AL26,)+IFERROR(INDEX(InputMatDropdownList[],MATCH(tbl_CIMats1622[[#This Row],[5]],InputMatDropdownList[Option],0),9)*$AM26,)+IFERROR(INDEX(InputMatDropdownList[],MATCH(tbl_CIMats1622[[#This Row],[6]],InputMatDropdownList[Option],0),9)*$AN26,) -> 0 | R26: =IFERROR(INDEX(InputMatDropdownList[],MATCH(tbl_CIMats1622[[#This Row],[Material Name]]&";"&tbl_CIMats1622[[#This Row],[Stage]],InputMatDropdownList[Helper (NO NEED TO EDIT)],0),10)*$AI26,)+IFERROR(INDEX(InputMatDropdownList[],MATCH(tbl_CIMats1622[[#This Row],[2]],InputMatDropdownList[Option],0),10)*$AJ26,)+IFERROR(INDEX(InputMatDropdownList[],MATCH(tbl_CIMats1622[[#This Row],[3]],InputMatDropdownList[Option],0),10)*$AK26,) +IFERROR(INDEX(InputMatDropdownList[],MATCH(tbl_CIMats1622[[#This Row],[4]],InputMatDropdownList[Option],0),10)*$AL26,)+IFERROR(INDEX(InputMatDropdownList[],MATCH(tbl_CIMats1622[[#This Row],[5]],InputMatDropdownList[Option],0),10)*$AM26,)+IFERROR(INDEX(InputMatDropdownList[],MATCH(tbl_CIMats1622[[#This Row],[6]],InputMatDropdownList[Option],0),10)*$AN26,) -> 0 | T26: =IFERROR(SUM(tbl_CIMats1622[[#This Row],[CI1]:[CI6]]),"") -> 0 | U26: =IFERROR(INDEX(InputMatDropdownList[],MATCH(tbl_CIMats1622[[#This Row],[Material Name]]&";"&tbl_CIMats1622[[#This Row],[Stage]],InputMatDropdownList[Helper (NO NEED TO EDIT)],0),5),"") -> 0 | V26: =IF(ISBLANK(tbl_CIMats1622[[#This Row],[2]]),"",INDEX(InputMatDropdownList[],MATCH(tbl_CIMats1622[[#This Row],[2]],InputMatDropdownList[Option],0),5)) -> 0 | W26: =IF(ISBLANK(tbl_CIMats1622[[#This Row],[3]]),"",INDEX(InputMatDropdownList[],MATCH(tbl_CIMats1622[[#This Row],[3]],InputMatDropdownList[Option],0),5)) -> 0 | X26: =IF(ISBLANK(tbl_CIMats1622[[#This Row],[4]]),"",INDEX(InputMatDropdownList[],MATCH(tbl_CIMats1622[[#This Row],[4]],InputMatDropdownList[Option],0),5)) -> 0 | Y26: =IF(ISBLANK(tbl_CIMats1622[[#This Row],[5]]),"",INDEX(InputMatDropdownList[],MATCH(tbl_CIMats1622[[#This Row],[5]],InputMatDropdownList[Option],0),5)) -> 0 | Z26: =IF(ISBLANK(tbl_CIMats1622[[#This Row],[6]]),"",INDEX(InputMatDropdownList[],MATCH(tbl_CIMats1622[[#This Row],[6]],InputMatDropdownList[Option],0),5)) -> 0 | AB26: 0 | AE26: =SUM(tbl_CIMats1622[[#This Row],[CI1]:[Biogenic Carbon (kg CO2e/kg material)]],tbl_CIMats1622[[#This Row],[Indirect LUC (iLUC) kg CO2e/kg material- reported based on data availability]]) -> 0 | AG26: =tbl_CIMats1622[[#This Row],[Material Name/Stage/Product Category (CALCULATED COLUMN -NO NEED TO EDIT)]] -> Tencel Lyocell ; Fiber - Apparel | AH26: 0 | AI26: =IFERROR(tbl_CIMats1622[[#This Row],[CI1]]/tbl_CIMats1622[[#This Row],[CI (kg CO2e/kg)-EXCLUDING Biogenic C & dLUC]],) -> 0 | AJ26: =IFERROR(tbl_CIMats1622[[#This Row],[CI2]]/tbl_CIMats1622[[#This Row],[CI (kg CO2e/kg)-EXCLUDING Biogenic C & dLUC]],) -> 0 | AK26: =IFERROR(tbl_CIMats1622[[#This Row],[CI3]]/tbl_CIMats1622[[#This Row],[CI (kg CO2e/kg)-EXCLUDING Biogenic C & dLUC]],) -> 0 | AL26: =IFERROR(tbl_CIMats1622[[#This Row],[CI4]]/tbl_CIMats1622[[#This Row],[CI (kg CO2e/kg)-EXCLUDING Biogenic C & dLUC]],) -> 0 | AM26: =IFERROR(tbl_CIMats1622[[#This Row],[CI5]]/tbl_CIMats1622[[#This Row],[CI (kg CO2e/kg)-EXCLUDING Biogenic C & dLUC]],) -> 0 | AN26: =IFERROR(tbl_CIMats1622[[#This Row],[CI6]]/tbl_CIMats1622[[#This Row],[CI (kg CO2e/kg)-EXCLUDING Biogenic C & dLUC]],) -> 0 | AP26: =IF(OR(InputMatDropdownList[[#This Row],[Stage]]="Fiber",InputMatDropdownList[[#This Row],[Stage]]="Plastics",InputMatDropdownList[[#This Row],[Stage]]="Yarn",InputMatDropdownList[[#This Row],[Stage]]="Fabric",InputMatDropdownList[[#This Row],[Stage]]="Foam",InputMatDropdownList[[#This Row],[Stage]]="Rubber/Elastomer",InputMatDropdownList[[#This Row],[Stage]]="Other",InputMatDropdownList[[#This Row],[Stage]]="Packaging"),InputMatDropdownList[[#This Row],[Option]]&";"&InputMatDropdownList[[#This Row],[Stage]],InputMatDropdownList[[#This Row],[Option]]) -> Tencel Lyocell;Fiber | AQ26: Fiber | AR26: MMCF | AS26: Tencel Lyocell | AT26: =InputMatDropdownList[[#This Row],[CI (kg CO2e/material)- EXCLUDING LOSS RATES]]*(1+InputMatDropdownList[[#This Row],[Loss rates]]) -> 0
